Workbook

Sheet Portada
H30: =IF([1]EJECUTIVO!$J$38=[1]EJECUTIVO!$J$4,[1]EJECUTIVO!$G$38,(CONCATENATE([1]EJECUTIVO!$G$38," ",[1]EJECUTIVO!$I$37," ",[1]EJECUTIVO!$J$37))) -> ENERO 2022 2023

Sheet Indice
S1: -21982
B3: Consejo Monetario Centroamericano
B4: Secretaría Ejecutiva
B5: www.secmca.org
B13: REPORTE EJECUTIVO MENSUAL
B14: DE INDICADORES MACROECONÓMICOS
B15: DE CENTROAMÉRICA, PANAMÁ Y REPÚBLICA DOMINICANA
J18: Con cifras al mes de:
B23: CONTENIDO
B26: INDICADORES REGIONALES
D27: Principales indicadores macroeconómicos región CARD y CAPARD
D28: CARD: evolución de los principales indicadores macroeconómicos
D29: CAPARD: evolución de los principales indicadores macroeconómicos
B31: INDICADORES POR PAÍS
D32: Cuadro comparativo por país
D33: Proyecciones 2023-2024
D34: Seguimiento de las proyecciones en 2023
D35: Evolución de indicadores macroeconómicos seleccionados (series mensuales)
D36: Nota técnica
J46: Nº-21982
B47: Elaborado con información recibida al | G47: 2024-02-22 | J47: REM N° 282
J48: Enero 2024
B52: ADVERTENCIA El Consejo Monetario Centroamericano y su Secretaría Ejecutiva autorizan la reproducción total, gráficos y cifras de esta publicación, siempre que se mencione la fuente. No obstante, no asumen responsabilidad legal alguna o de cualquier otra índole, por la manipulación, interpretación personal y uso de dicha información. Derechos Reservados © 2020

Sheet Regional-cuadro
A1: Consejo Monetario Centroamericano | G1: =CONCATENATE(Indice!$J$47,",") -> REM N° 282, | H1: =Indice!$J$48 -> Enero 2024
A2: Secretaría Ejecutiva
A3: PRINCIPALES INDICADORES MACROECONÓMICOS REGIONALES
B5: Agregados Regionales | D5: Región CARD 1/ | G5: Región CAPARD 1/
B7: I. SECTOR REAL
B8: 1. Indice de Precios al Consumidor (IPC) | D8: =IF([2]EJECUTIVO!$J$7=[2]EJECUTIVO!$J$5,[2]EJECUTIVO!$G$7,CONCATENATE([2]EJECUTIVO!$G$7," ",[2]EJECUTIVO!$I$5," ",[2]EJECUTIVO!$J$5)) -> ENERO 2023 2024 | G8: =IF([2]EJECUTIVO!$J$7=[2]EJECUTIVO!$J$5,[2]EJECUTIVO!$G$8,CONCATENATE([2]EJECUTIVO!$G$8," ",[2]EJECUTIVO!$I$5," ",[2]EJECUTIVO!$J$5)) -> ENERO 2023 2024
B9: 1.1 Variación interanual | D9: =CONCATENATE(ROUND([2]EJECUTIVO!$I$7,1)," %") -> 8,4 % | E9: =CONCATENATE(ROUND([2]EJECUTIVO!$J$7,1)," %") -> 2,8 % | G9: =CONCATENATE(ROUND([2]EJECUTIVO!$I$8,1)," %") -> 7,6 % | H9: =CONCATENATE(ROUND([2]EJECUTIVO!$J$8,1)," %") -> 2,6 %
B11: 2. Índice Mensual de Actividad Económica (IMAE) | D11: =IF([2]EJECUTIVO!$J$12=[2]EJECUTIVO!$J$10,[2]EJECUTIVO!$G$10,CONCATENATE([2]EJECUTIVO!$G$12," ",[2]EJECUTIVO!$I$10," ",[2]EJECUTIVO!$J$10)) -> NOVIEMBRE 2022 2023 | G11: =IF([2]EJECUTIVO!$J$13=[2]EJECUTIVO!$J$10,[2]EJECUTIVO!$G$10,CONCATENATE([2]EJECUTIVO!$G$13," ",[2]EJECUTIVO!$I$10," ",[2]EJECUTIVO!$J$10)) -> SEPTIEMBRE 2022 2023
B12: 2.1 Variación acumulada de la tendencia-ciclo | D12: =CONCATENATE(ROUND([2]EJECUTIVO!$I$12,1),"%") -> 4,5% | E12: =CONCATENATE(ROUND([2]EJECUTIVO!$J$12,1)," %") -> 3,5 % | G12: =CONCATENATE(ROUND([2]EJECUTIVO!$I$13,1)," %") -> 6 % | H12: =CONCATENATE(ROUND([2]EJECUTIVO!$J$13,1)," %") -> 4,4 %
B14: 3. Producto Interno Bruto Trimestral (PIB) | D14: =CONCATENATE([2]EJECUTIVO!$G$17," TRIMESTRE "," ",[2]EJECUTIVO!$I$15," ",[2]EJECUTIVO!$J$15) -> III TRIMESTRE 2022 2023 | G14: =CONCATENATE([2]EJECUTIVO!$G$18," TRIMESTRE "," ",[2]EJECUTIVO!$I$15," ",[2]EJECUTIVO!$J$15) -> III TRIMESTRE 2022 2023
B15: 3.1 PIB nominal (millones de US$) | D15: =[2]EJECUTIVO!$I$17 -> 88740.14476 | E15: =[2]EJECUTIVO!$J$17 -> 97538.20551 | G15: =[2]EJECUTIVO!$I$18 -> 106796.8264 | H15: =[2]EJECUTIVO!$J$18 -> n.d.
B16: 3.2 PIB real, tasa de variación interanual | D16: =CONCATENATE(ROUND([2]EJECUTIVO!$I$22,1)," %") -> 3,9 % | E16: =CONCATENATE(ROUND([2]EJECUTIVO!$J$22,1)," %") -> 3,8 % | G16: =CONCATENATE(ROUND([2]EJECUTIVO!$I$23,1)," %") -> 4,8 % | H16: =+[2]EJECUTIVO!$J$23 -> n.d.
B18: 4. Producto Interno Bruto anual (PIB) | D18: =IF([2]EJECUTIVO!$J$5=[2]EJECUTIVO!$J$25-1," ANUAL",CONCATENATE(" ANUAL"," ",[2]EJECUTIVO!$I$30," ",[2]EJECUTIVO!$J$30)) -> ANUAL 2022 2023 | G18: =IF([2]EJECUTIVO!$J$25-1=[2]EJECUTIVO!$J$5," ANUAL",CONCATENATE(" ANUAL"," ",[2]EJECUTIVO!$I$25," ",[2]EJECUTIVO!$J$25)) -> ANUAL 2022 2023
B19: 4.1 PIB nominal (millones de US$) | D19: =[2]EJECUTIVO!$I$27 -> 358127.2862 | E19: =[2]EJECUTIVO!$J$27 -> 399483.8988 | G19: =[2]EJECUTIVO!$I$28 -> 429212.3598 | H19: =[2]EJECUTIVO!$J$28 -> 476740.8988
B20: 4.2 PIB real, tasa de variación interanual | D20: =CONCATENATE(ROUND([2]EJECUTIVO!$I$32,1)," %") -> 4,3 % | E20: =CONCATENATE(ROUND([2]EJECUTIVO!$J$32,1)," %") -> 3,5 % | G20: =CONCATENATE(ROUND([2]EJECUTIVO!$I$33,1)," %") -> 4,8 % | H20: =CONCATENATE(ROUND([2]EJECUTIVO!$J$33,1)," %") -> 3,8 %
B22: II. SECTOR EXTERNO
B23: 1. Comercio Exterior 2/ | D23: =CONCATENATE("ACUMULADO A ",[2]EJECUTIVO!$G$55," ",[2]EJECUTIVO!$I$37," ",[2]EJECUTIVO!$J$37) -> ACUMULADO A SEPTIEMBRE 2022 2023 | G23: =CONCATENATE("ACUMULADO A ",[2]EJECUTIVO!$G$55," ",[2]EJECUTIVO!$I$37," ",[2]EJECUTIVO!$J$37) -> ACUMULADO A SEPTIEMBRE 2022 2023
B24: 1.1 Balanza de bienes (millones de US$) | D24: =[2]EJECUTIVO!$I$55 -> -44289.10565 | E24: =[2]EJECUTIVO!$J$55 -> -40458.14233 | G24: =[2]EJECUTIVO!$I$56 -> -55250.43565 | H24: =[2]EJECUTIVO!$J$56 -> -54004.86233
B25: 1.2 Exportaciones totales FOB (millones de US$) | D25: =[2]EJECUTIVO!$I$40 -> 55407.94524 | E25: =[2]EJECUTIVO!$J$40 -> 54235.34382 | G25: =[2]EJECUTIVO!$I$42 -> 66699.18524 | H25: =[2]EJECUTIVO!$J$42 -> 66630.83382
B26: 1.2.1 Tasa crecimiento interanual | D26: =CONCATENATE(ROUND([2]EJECUTIVO!$I$41,1)," %") -> 16,3 % | E26: =CONCATENATE(ROUND([2]EJECUTIVO!$J$41,1)," %") -> -2,1 % | G26: =CONCATENATE(ROUND([2]EJECUTIVO!$I$43,1)," %") -> 17,1 % | H26: =CONCATENATE(ROUND([2]EJECUTIVO!$J$43,1)," %") -> -0,1 %
B27: 1.3 Importaciones totales CIF (millones de US$) | D27: =[2]EJECUTIVO!$I$48 -> 99697.05089 | E27: =[2]EJECUTIVO!$J$48 -> 94693.48615 | G27: =[2]EJECUTIVO!$I$50 -> 121949.6209 | H27: =[2]EJECUTIVO!$J$50 -> 120635.6961
B28: 1.3.1 Tasa crecimiento interanual | D28: =CONCATENATE(ROUND([2]EJECUTIVO!$I$49,1)," %") -> 28 % | E28: =CONCATENATE(ROUND([2]EJECUTIVO!$J$49,1)," %") -> -5 % | G28: =CONCATENATE(ROUND([2]EJECUTIVO!$I$51,1)," %") -> 31,7 % | H28: =CONCATENATE(ROUND([2]EJECUTIVO!$J$51,1)," %") -> -1,1 %
B30: 2. Ingreso de Remesas familiares | C30: sin Costa Rica | D30: =CONCATENATE("ACUMULADO A ",[2]EJECUTIVO!$G$72," ",[2]EJECUTIVO!$I$63," ",[2]EJECUTIVO!$J$63) -> ACUMULADO A SEPTIEMBRE 2022 2023 | G30: =CONCATENATE("ACUMULADO A ",[2]EJECUTIVO!$G$71," ",2020," ",2021) -> ACUMULADO A SEPTIEMBRE 2020 2021
B31: 2.1 Ingreso de Remesas familiares (millones de US$) | D31: =[2]EJECUTIVO!$I$72 -> 35117.1127 | E31: =[2]EJECUTIVO!$J$72 -> 38712.34968 | G31: =[2]EJECUTIVO!$I$71 -> 35665.56436 | H31: =[2]EJECUTIVO!$J$71 -> 39303.8169
B33: 3. Inversión Extranjera Directa (IED) | D33: =CONCATENATE("ACUMULADO AL"," ",[2]EJECUTIVO!$G$81," ","TRIMESTRE") -> ACUMULADO AL III TRIMESTRE | G33: =CONCATENATE("ACUMULADO AL"," ",[2]EJECUTIVO!$G$82," ","TRIMESTRE") -> ACUMULADO AL II TRIMESTRE
D34: =[2]EJECUTIVO!$I$84 -> 2022 | E34: =[2]EJECUTIVO!$J$84 -> 2023 | G34: =[2]EJECUTIVO!$I$84 -> 2022 | H34: =[2]EJECUTIVO!$J$84 -> 2023
B35: 3.1. IED en la economía declarante, acumulado (millones de US$) | D35: =[2]EJECUTIVO!$I$86 -> 8277.733452 | E35: =[2]EJECUTIVO!$J$86 -> 9633.506199 | G35: =[2]EJECUTIVO!$I$87 -> 7106.557341 | H35: =[2]EJECUTIVO!$J$87 -> 9227.013532
B36: 3.2. Tasa de Variación interanual | D36: =CONCATENATE(ROUND((([2]EJECUTIVO!$I$86/[2]EJECUTIVO!$H$86)-1)*100,1)," %") -> 8 % | E36: =CONCATENATE(ROUND((([2]EJECUTIVO!$J$86/[2]EJECUTIVO!$I$86)-1)*100,1)," %") -> 16,4 % | G36: =CONCATENATE(ROUND((([2]EJECUTIVO!$I$87/[2]EJECUTIVO!$H$87)-1)*100,1)," %") -> 24,5 % | H36: =CONCATENATE(ROUND((([2]EJECUTIVO!$J$87/[2]EJECUTIVO!$I$87)-1)*100,1)," %") -> 29,8 %
B38: 4. Cuenta Corriente | D38: =CONCATENATE("ACUMULADO AL"," ",[2]EJECUTIVO!$G$76," ","TRIMESTRE") -> ACUMULADO AL III TRIMESTRE | G38: =CONCATENATE("ACUMULADO AL"," ",[2]EJECUTIVO!$G$77," ","TRIMESTRE") -> ACUMULADO AL II TRIMESTRE
D39: =[2]EJECUTIVO!$I$74 -> 2022 | E39: =[2]EJECUTIVO!$J$74 -> 2023 | G39: =[2]EJECUTIVO!$I$74 -> 2022 | H39: =[2]EJECUTIVO!$J$74 -> 2023
B40: 4.1. Cuenta Corriente (millones de US$) | D40: =[2]EJECUTIVO!$I$76 -> -9239.930466 | E40: =[2]EJECUTIVO!$J$76 -> -985.6037533 | G40: =[2]EJECUTIVO!$I$77 -> -6137.140317 | H40: =[2]EJECUTIVO!$J$77 -> 191.8169228
B42: 5. Reservas Internacionales Netas del Banco Central (RIN) 3/ | D42: =CONCATENATE("SALDO A ",[2]EJECUTIVO!$G$65," ",[2]EJECUTIVO!$I$63," ",[2]EJECUTIVO!$J$63) -> SALDO A ENERO 2022 2023 | G42: =CONCATENATE("SALDO A ",[2]EJECUTIVO!$G$66," ",[2]EJECUTIVO!$I$63," ",[2]EJECUTIVO!$J$63) -> SALDO A NOVIEMBRE 2022 2023
B43: 5.1 RIN del Banco Central (millones de US$) | D43: =[2]EJECUTIVO!$I$65 -> 58576.12369 | E43: =[2]EJECUTIVO!$J$65 -> 65554.09192 | G43: =[2]EJECUTIVO!$I$66 -> 63838.90741 | H43: =[2]EJECUTIVO!$J$66 -> 71091.53998
D44: =CONCATENATE("ACUMULADO A ",[2]EJECUTIVO!$G$60," ",[2]EJECUTIVO!$I$58," ",[2]EJECUTIVO!$J$58) -> ACUMULADO A SEPTIEMBRE 2022 2023 | G44: =CONCATENATE("ACUMULADO A ",[2]EJECUTIVO!$G$61," ",[2]EJECUTIVO!$I$58," ",[2]EJECUTIVO!$J$58) -> ACUMULADO A SEPTIEMBRE 2022 2023
B45: 5.2 RIN Banco Central/ Importaciones (meses de importación promedio) | D45: =[2]EJECUTIVO!$I$60 -> 5.746285795 | E45: =[2]EJECUTIVO!$J$60 -> 6.171622165 | G45: =[2]EJECUTIVO!$I$61 -> 5.245670191 | H45: =[2]EJECUTIVO!$J$61 -> 5.369976284
B47: III. SECTOR FISCAL
B48: 1. Resultado del Gobierno Central | D48: =CONCATENATE("ACUMULADO A ",[2]EJECUTIVO!$G$93," ",[2]EJECUTIVO!$I$91," ",[2]EJECUTIVO!$J$91) -> ACUMULADO A OCTUBRE 2022 2023 | G48: =CONCATENATE("ACUMULADO A ",[2]EJECUTIVO!$G$94," ",[2]EJECUTIVO!$I$91," ",[2]EJECUTIVO!$J$91) -> ACUMULADO A SEPTIEMBRE 2022 2023
B49: 1.1 Ingresos totales del Gobierno Central, incluye donaciones (millones US$) | D49: =[2]EJECUTIVO!$I$93 -> 47167.62026 | E49: =[2]EJECUTIVO!$J$93 -> 63712.94836 | G49: =[2]EJECUTIVO!$I$94 -> 47449.2412 | H49: =[2]EJECUTIVO!$J$94 -> 64033.03398
B50: 1.2 Gastos totales del Gobierno Central (millones US$) | D50: =[2]EJECUTIVO!$I$98 -> 50338.37431 | E50: =[2]EJECUTIVO!$J$98 -> 69572.44212 | G50: =[2]EJECUTIVO!$I$99 -> 54011.20066 | H50: =[2]EJECUTIVO!$J$99 -> 74850.72257
B51: 1.3 Donaciones recibidas (millones US$) | D51: =[2]EJECUTIVO!$I$103 -> 119.8961925 | E51: =[2]EJECUTIVO!$J$103 -> 162.6832678 | G51: =[2]EJECUTIVO!$I$104 -> 108.3948494 | H51: =[2]EJECUTIVO!$J$104 -> 150.4489798
B52: 1.4 Resultado del Gobierno Central (millones US$) | D52: =[2]EJECUTIVO!$I$108 -> -3050.857858 | E52: =[2]EJECUTIVO!$J$108 -> -5696.810491 | G52: =[2]EJECUTIVO!$I$109 -> -6453.564618 | H52: =[2]EJECUTIVO!$J$109 -> -10667.23961
B53: 1.5 Resultado del Gobierno Central / PIB | D53: =[2]EJECUTIVO!$I$113 -> -0.008518920437 | E53: =[2]EJECUTIVO!$J$113 -> -0.01590722268 | G53: =[2]EJECUTIVO!$I$114 -> -0.01503583127 | H53: =[2]EJECUTIVO!$J$114 -> -0.02485305785
B56: 2. Deuda Pública | D56: =IF([2]EJECUTIVO!$J$49=[2]EJECUTIVO!$J$5,[2]EJECUTIVO!$G$118,CONCATENATE([2]EJECUTIVO!$G$118," ",[2]EJECUTIVO!$I$116," ",[2]EJECUTIVO!$J$116)) -> SEPTIEMBRE 2022 2023 | G56: =IF([2]EJECUTIVO!$J$49=[2]EJECUTIVO!$J$5,[2]EJECUTIVO!$G$119,CONCATENATE([2]EJECUTIVO!$G$119," ",[2]EJECUTIVO!$I$116," ",[2]EJECUTIVO!$J$116)) -> SEPTIEMBRE 2022 2023
B57: 2.1 Deuda Interna (millones de US$) 4/ | D57: =[2]EJECUTIVO!$I$118 -> 104441.6974 | E57: =[2]EJECUTIVO!$J$118 -> 110082.4981 | G57: =[2]EJECUTIVO!$I$119 -> 112354.3974 | H57: =[2]EJECUTIVO!$J$119 -> 117443.4781
B58: 2.2 Deuda Externa (millones de US$) | D58: =[2]EJECUTIVO!$I$123 -> 91709.29528 | E58: =[2]EJECUTIVO!$J$123 -> 98626.67154 | G58: =[2]EJECUTIVO!$I$124 -> 127315.8853 | H58: =[2]EJECUTIVO!$J$124 -> 137061.8715
B59: 2.3 Deuda Total (millones de US$) 4/ | D59: =[2]EJECUTIVO!$I$128 -> 196150.9927 | E59: =[2]EJECUTIVO!$J$128 -> 208709.1696 | G59: =[2]EJECUTIVO!$I$129 -> 239670.2827 | H59: =[2]EJECUTIVO!$J$129 -> 254505.3496
B60: 2.4 Deuda Total / PIB 4/ | D60: =IF(ISERROR([2]EJECUTIVO!$I$133/100),"n.d.",[2]EJECUTIVO!$I$133/100) -> 0.5477130625 | E60: =IF(ISERROR([2]EJECUTIVO!$J$133/100),"n.d.",[2]EJECUTIVO!$J$133/100) -> 0.5224470129 | G60: =IF(ISERROR([2]EJECUTIVO!$I$134/100),"n.d.",[2]EJECUTIVO!$I$134/100) -> 0.5583955757 | H60: =IF(ISERROR([2]EJECUTIVO!$J$134/100),"n.d.",[2]EJECUTIVO!$J$134/100) -> 0.5338441704
B62: Agregados Regionales | C62: Región CARD | F62: Región CAPARD
B63: IV. SECTOR MONETARIO | C63: =+[2]EJECUTIVO!$J$138 -> 2023 | D63: =+[2]EJECUTIVO!$I$138 -> 2022 | E63: =+[2]EJECUTIVO!$J$138 -> 2023 | F63: =+[2]EJECUTIVO!$J$146 -> 2023 | G63: =+[2]EJECUTIVO!$I$146 -> 2022 | H63: =+[2]EJECUTIVO!$J$146 -> 2023
B64: 1. Agregados Monetarios | C64: =CONCATENATE("Porcentaje respecto a M3 a ",[2]EJECUTIVO!$G$141) -> Porcentaje respecto a M3 a AGOSTO | D64: =CONCATENATE("Variación Interanual a ",[2]EJECUTIVO!$G$141) -> Variación Interanual a AGOSTO | F64: =CONCATENATE("Porcentaje respecto a M3 a ",[2]EJECUTIVO!$G$141) -> Porcentaje respecto a M3 a AGOSTO | G64: =CONCATENATE("Variación Interanual a ",[2]EJECUTIVO!$G$141) -> Variación Interanual a AGOSTO
B65: 1.1 M1 5/ | C65: =INDEX('[2]MONE(M)CARD'!$FA:$FJ,[2]EJECUTIVO!$E$149+6,3)/100 -> 0.3472405328 | D65: =INDEX('[2]MONE(M)CARD'!$EQ:$EZ,[2]EJECUTIVO!$E$149-6,3)/100 -> 0.06960038223 | E65: =INDEX('[2]MONE(M)CARD'!$EQ:$EZ,[2]EJECUTIVO!$E$149+6,3)/100 -> 0.1340427441 | F65: =INDEX('[2]MONE(M)CAPARD'!$FW:$GF,[2]EJECUTIVO!$E$149+6,3)/100 -> 0.3278500668 | G65: =INDEX('[2]MONE(M)CAPARD'!$FM:$FV,[2]EJECUTIVO!$E$149-6,3)/100 -> 0.05480483294 | H65: =INDEX('[2]MONE(M)CAPARD'!$FM:$FV,[2]EJECUTIVO!$E$149+6,3)/100 -> 0.1142789163
B66: 1.2 M2 6/ | C66: =INDEX('[2]MONE(M)CARD'!$FA:$FJ,[2]EJECUTIVO!$E$149+6,6)/100 -> 0.7720463461 | D66: =INDEX('[2]MONE(M)CARD'!$EQ:$EZ,[2]EJECUTIVO!$E$149-6,6)/100 -> 0.07046054871 | E66: =INDEX('[2]MONE(M)CARD'!$EQ:$EZ,[2]EJECUTIVO!$E$149+6,6)/100 -> 0.1244841709 | F66: =INDEX('[2]MONE(M)CAPARD'!$FW:$GF,[2]EJECUTIVO!$E$149+6,6)/100 -> 0.8100426824 | G66: =INDEX('[2]MONE(M)CAPARD'!$FM:$FV,[2]EJECUTIVO!$E$149-6,6)/100 -> 0.06042972463 | H66: =INDEX('[2]MONE(M)CAPARD'!$FM:$FV,[2]EJECUTIVO!$E$149+6,6)/100 -> 0.09644543317
B67: 1.3 M3 7/ | C67: =INDEX('[2]MONE(M)CARD'!$FA:$FJ,[2]EJECUTIVO!$E$149+6,10)/100 -> 1 | D67: =INDEX('[2]MONE(M)CARD'!$EQ:$EZ,[2]EJECUTIVO!$E$149-6,10)/100 -> 0.06793746913 | E67: =INDEX('[2]MONE(M)CARD'!$EQ:$EZ,[2]EJECUTIVO!$E$149+6,10)/100 -> 0.0951179873 | F67: =INDEX('[2]MONE(M)CAPARD'!$FW:$GF,[2]EJECUTIVO!$E$149+6,10)/100 -> 1 | G67: =INDEX('[2]MONE(M)CAPARD'!$FM:$FV,[2]EJECUTIVO!$E$149-6,10)/100 -> 0.06041628708 | H67: =INDEX('[2]MONE(M)CAPARD'!$FM:$FV,[2]EJECUTIVO!$E$149+6,10)/100 -> 0.07806222793
B68: 1.4 Base Monetaria Amplia 8/ | C68: =INDEX('[2]MONE(M)CARD'!$FM:$FM,[2]EJECUTIVO!$E$149+6,1)/100 -> 0.3198218531 | D68: =INDEX('[2]MONE(M)CARD'!$FN:$FN,[2]EJECUTIVO!$E$149-6,1)/100 -> 0.03414494614 | E68: =INDEX('[2]MONE(M)CARD'!$FN:$FN,[2]EJECUTIVO!$E$149+6,1)/100 -> 0.121977004 | F68: =INDEX('[2]MONE(M)CAPARD'!$GI:$GI,[2]EJECUTIVO!$E$149+6,1)/100 -> 0.2761075077 | G68: =INDEX('[2]MONE(M)CAPARD'!$GJ:$GJ,[2]EJECUTIVO!$E$149-6,1)/100 -> 0.03477227651 | H68: =INDEX('[2]MONE(M)CAPARD'!$GJ:$GJ,[2]EJECUTIVO!$E$149+6,1)/100 -> 0.1146971348
B70: 2. Crédito Neto de las OSD 9/ con el Sector Público | C70: =CONCATENATE("Saldo en millones de US$ a ",[2]EJECUTIVO!$G$141) -> Saldo en millones de US$ a AGOSTO | D70: =CONCATENATE("Variación Interanual a ",[2]EJECUTIVO!$G$141) -> Variación Interanual a AGOSTO | F70: =CONCATENATE("Saldo en millones de US$ a ",[2]EJECUTIVO!$G$141) -> Saldo en millones de US$ a AGOSTO | G70: =CONCATENATE("Variación Interanual a ",[2]EJECUTIVO!$G$141) -> Variación Interanual a AGOSTO
B71: 2.1 Total Activos | C71: =INDEX('[2]MONE(M)CARD'!$FO:$FW,[2]EJECUTIVO!$E$149+6,9) -> 36120.25226 | D71: =INDEX('[2]MONE(M)CARD'!$GX:$HE,[2]EJECUTIVO!$E$149-6,8)/100 -> 0.02586063093 | E71: =INDEX('[2]MONE(M)CARD'!$GX:$HE,[2]EJECUTIVO!$E$149+6,8)/100 -> 0.0315702588 | F71: =INDEX('[2]MONE(M)CAPARD'!$GK:$GS,[2]EJECUTIVO!$E$149+6,9) -> 40243.23228 | G71: =INDEX('[2]MONE(M)CAPARD'!$HT:$IA,[2]EJECUTIVO!$E$149-6,8)/100 -> 0.02846039175 | H71: =INDEX('[2]MONE(M)CAPARD'!$HT:$IA,[2]EJECUTIVO!$E$149+6,8)/100 -> 0.03622084016
B72: 2.2 Total Pasivos | C72: =INDEX('[2]MONE(M)CARD'!$FX:$GF,[2]EJECUTIVO!$E$149+6,8) -> 22618.11225 | D72: =INDEX('[2]MONE(M)CARD'!$HF:$HN,[2]EJECUTIVO!$E$149-6,8)/100 -> 0.1597341747 | E72: =INDEX('[2]MONE(M)CARD'!$HF:$HN,[2]EJECUTIVO!$E$149+6,8)/100 -> 0.1518055065 | F72: =INDEX('[2]MONE(M)CAPARD'!$GT:$HB,[2]EJECUTIVO!$E$149+6,8) -> 26572.4433 | G72: =INDEX('[2]MONE(M)CAPARD'!$IB:$IJ,[2]EJECUTIVO!$E$149-6,8)/100 -> 0.1596150373 | H72: =INDEX('[2]MONE(M)CAPARD'!$IB:$IJ,[2]EJECUTIVO!$E$149+6,8)/100 -> 0.2144846166
B73: 2.3 Crédito neto | C73: =INDEX('[2]MONE(M)CARD'!$FX:$GF,[2]EJECUTIVO!$E$149+6,9) -> 13502.14001 | D73: =INDEX('[2]MONE(M)CARD'!$HF:$HN,[2]EJECUTIVO!$E$149-6,9)/100 -> -0.1059321719 | E73: =INDEX('[2]MONE(M)CARD'!$HF:$HN,[2]EJECUTIVO!$E$149+6,9)/100 -> -0.12196804 | F73: =INDEX('[2]MONE(M)CAPARD'!$GT:$HB,[2]EJECUTIVO!$E$149+6,9) -> 13670.78898 | G73: =INDEX('[2]MONE(M)CAPARD'!$IB:$IJ,[2]EJECUTIVO!$E$149-6,9)/100 -> -0.1025148514 | H73: =INDEX('[2]MONE(M)CAPARD'!$IB:$IJ,[2]EJECUTIVO!$E$149+6,9)/100 -> -0.1937936551
B75: 3. Crédito 10/ de las OSD 9/ con el Sector Privado | C75: =CONCATENATE("Saldo en millones de US$ a ",[2]EJECUTIVO!$G$141) -> Saldo en millones de US$ a AGOSTO | D75: =CONCATENATE("Variación Interanual a ",[2]EJECUTIVO!$G$141) -> Variación Interanual a AGOSTO | F75: =CONCATENATE("Saldo en millones de US$ a ",[2]EJECUTIVO!$G$141) -> Saldo en millones de US$ a AGOSTO | G75: =CONCATENATE("Variación Interanual a ",[2]EJECUTIVO!$G$141) -> Variación Interanual a AGOSTO
B76: 3.1 Otras Sociedades No Financieras 11/ | C76: =INDEX('Datos_Regional (M)'!AF:AK,[2]EJECUTIVO!$E$149-1,5) -> 73389.70693 | D76: =INDEX('Datos_Regional (M)'!AL:AR,[2]EJECUTIVO!$E$149-13,2)/100 -> 0.1249568952 | E76: =INDEX('Datos_Regional (M)'!AL:AR,[2]EJECUTIVO!$E$149-1,2)/100 -> 0.1075316029 | F76: =INDEX('Datos_Regional (M)'!AW:BB,[2]EJECUTIVO!$E$149-1,5) -> 98915.48309 | G76: =INDEX('Datos_Regional (M)'!BC:BI,[2]EJECUTIVO!$E$149-13,2)/100 -> 0.1007180038 | H76: =INDEX('Datos_Regional (M)'!BC:CI,[2]EJECUTIVO!$E$149-1,2)/100 -> 0.08462182014
B77: 3.2 Hogares e ISFLSH 12/ | C77: =INDEX('Datos_Regional (M)'!AF:AK,[2]EJECUTIVO!$E$149-1,4) -> 84396.65767 | D77: =INDEX('Datos_Regional (M)'!AL:AR,[2]EJECUTIVO!$E$149-13,5)/100 -> 0.12944327 | E77: =INDEX('Datos_Regional (M)'!AL:AR,[2]EJECUTIVO!$E$149-1,5)/100 -> 0.1688229881 | F77: =INDEX('Datos_Regional (M)'!AW:BB,[2]EJECUTIVO!$E$149-1,4) -> 113678.4787 | G77: =INDEX('Datos_Regional (M)'!BC:BI,[2]EJECUTIVO!$E$149-13,5)/100 -> 0.1019854538 | H77: =INDEX('Datos_Regional (M)'!BC:CI,[2]EJECUTIVO!$E$149-1,5)/100 -> 0.1331877362
B78: 3.3 Otros 13/ | C78: =INDEX('Datos_Regional (M)'!AF:AK,[2]EJECUTIVO!$E$149-1,2) -> 2321.674948 | D78: =INDEX('Datos_Regional (M)'!AL:AR,[2]EJECUTIVO!$E$149-13,3)/100 -> 0.300533044 | E78: =INDEX('Datos_Regional (M)'!AL:AR,[2]EJECUTIVO!$E$149-1,3)/100 -> 0.3253058426 | F78: =INDEX('Datos_Regional (M)'!AW:BB,[2]EJECUTIVO!$E$149-1,2) -> 3183.837849 | G78: =INDEX('Datos_Regional (M)'!BC:BI,[2]EJECUTIVO!$E$149-13,3)/100 -> 0.2003237017 | H78: =INDEX('Datos_Regional (M)'!BC:CI,[2]EJECUTIVO!$E$149-1,3)/100 -> 0.244750309
B79: 3.4 Total | C79: =INDEX('Datos_Regional (M)'!AF:AK,[2]EJECUTIVO!$E$149-1,6) -> 160108.0395 | D79: =INDEX('Datos_Regional (M)'!AL:AR,[2]EJECUTIVO!$E$149-13,6)/100 -> 0.1291710205 | E79: =INDEX('Datos_Regional (M)'!AL:AR,[2]EJECUTIVO!$E$149-1,6)/100 -> 0.1418137936 | F79: =INDEX('Datos_Regional (M)'!AW:BB,[2]EJECUTIVO!$E$149-1,6) -> 215777.7997 | G79: =INDEX('Datos_Regional (M)'!BC:CI,[2]EJECUTIVO!$E$149-13,6)/100 -> 0.1025793719 | H79: =INDEX('Datos_Regional (M)'!BC:CI,[2]EJECUTIVO!$E$149-1,6)/100 -> 0.1118361998
B80: Fuente: Cálculos de la Secretaría Ejecutiva con base en la información proporcionada por los Bancos Centrales de la región.
B81: */ No incluye las remesas de Costa Rica debido a que se compilan trimestralmente. En 2013 Costa Rica recibió 229 millones de US$ de remesas netas (ingresos-egresos).
B82: Notas:
B83: 1/ La región CARD incluye a los países centroamericanos y a la República Dominicana. La región CAPARD incluye a los países centroamericanos, Panamá y la República Dominicana.
B84: 2/ Incluye comercio intrarregional. No incluye la maquila en el caso de Honduras. En Panamá incluye: exportación de mercancías generales, reexportaciones nacionales y reexportaciones de la Zona Libre de Colón.
B85: 3/ En Panamá, al no tener banco central, las RIN son administradas por el Banco Nacional de Panamá (BNP).
B86: 4/ Incluye la deuda interna consolidada en los casos de Guatemala, Honduras y República Dominicana, tal como lo recomienda la versión del 2001 del Manual de Estadísticas de Finanzas Públicas del FMI. En el resto de países se considera únicamente la deuda interna bruta.
B87: 5/ M1: incluye billetes y monedas en poder del público más los depósitos transferibles en MN.
B88: 6/ M2: incluye M1 más otros depósitos en MN, más valores distintos de acciones emitidos por las sociedades de depósito en moneda nacional.
B89: 7/ M3: incluye M2 más depósitos transferibles en ME, más otros depósitos en ME, más valores distintos de acciones emitidos por las sociedades de depósito en ME.
B90: 8/ Base Monetaria Amplia: incluye billetes y monedas en circulación, más depósitos transferibles por concepto de encaje en MN, más valores por concepto de encaje en MN, más pasivos frente a OSD de encaje legal en ME, más otros pasivos frente a OSD a corto plazo, más depósitos y valores de otros sectores.
B91: 9/ OSD corresponde a otras sociedades de depósito, por ejemplo: Bancos comerciales, cooperativas, y otras sociedades de depósito que reciben dinero de público.
B92: 10/ Incluye valores distintos de acciones y préstamos.
B93: 11/ Otras sociedades no Financieras abarca las sociedades y cuasisociedades que se dedican principalmente a la producción de bienes y servicios no financieros.
B94: 12/ ISFLSH corresponde a Instituciones sin fines de lucro que dan servicios a los hogares, en estas podemos encontrar organizaciones del tipo ONG´s.
B95: 13/ Incluye otros sectores residentes, por ejemplo otras sociedades financieras.

Sheet Región CARD-graficos
B1: Consejo Monetario Centroamericano | P1: =CONCATENATE(Indice!$J$47,",") -> REM N° 282, | Q1: =Indice!$J$48 -> Enero 2024
B2: Secretaría Ejecutiva
B3: REGIÓN CARD: EVOLUCIÓN DE LOS PRINCIPALES INDICADORES MACROECONÓMICOS
B5: Región CARD: Inflación, serie original y tendencia de largo plazo | K5: Región CARD: Ciclo de crecimiento de la Actividad Económica
B6: (cálculos basados en el IPC, variación interanual) | K6: (cálculos basados en el IMAE, variación interanual)
B21: Región CARD: | K21: Región CARD:
B22: Reservas Internacionales Netas del Banco Central | K22: Flujos trimestrales de Inversión Extranjera Directa (IED) en la economía declarante
H30: =IF([1]EJECUTIVO!$J$38=[1]EJECUTIVO!$J$4,[1]EJECUTIVO!$G$38,(CONCATENATE([1]EJECUTIVO!$G$38," ",[1]EJECUTIVO!$I$37," ",[1]EJECUTIVO!$J$37))) -> ENERO 2022 2023
K36: Los flujos negativos observados en El Salvador y Honduras surgen debido a amortizaciones netas de préstamos con el inversionista directo, mayores a lo registrado por acciones u otras aportaciones de capital, los cuales por metodología deben sumarse al valor de la IED. El valor de Guatemala del IV trimestre de 2021 corresponde a la venta de una empresa de telecomunicaciones a un no residente.
B38: =CONCATENATE("Región CARD:") -> Región CARD: | K38: Región CARD:
B39: Flujos mensuales de comercio exterior | K39: Ingreso de Remesas, sin acumular
B55: Región CARD: | K55: Región CARD: Saldo Operacional (con donaciones) del Gobierno Central con respecto al PIB
B56: Deuda Pública Bruta Total, Interna y Externa | K56: =CONCATENATE("Datos a ",'Saldo Operacional'!C4," de cada año") -> Datos a octubre de cada año
B69: Incluye la deuda interna consolidada en los casos de Guatemala, Honduras y República Dominicana, tal como lo recomienda la versión del 2001 del Manual de Estadísticas de Finanzas Públicas del FMI. En el resto de países se considera únicamente la deuda interna bruta. A partir de 2019 se dispone únicamente de datos trimestrales de Nicaragua.
B71: Región CARD: | K71: Región CARD:
B72: =CONCATENATE("Agregados Monetarios (Millones US$)"," ","y variación interanual") -> Agregados Monetarios (Millones US$) y variación interanual | K72: =CONCATENATE("Crédito Total (Millones US$)"," ","y variación interanual") -> Crédito Total (Millones US$) y variación interanual
B90: OJO, REVISAR AÑO DE INICIO DE TODOS ESTOS GRAFICOS PARA ARMONIZAR !!!
C92: deuda: a partir de diciembre 2011 mensual
C93: remesas: desde 2006
C94: ied:2008
C95: agregados monetarios:2002
C96: crédito osd:2003
C98: ***la serie mas corta es la de remesas 2008, la extensión se puede evaluar a partir de esta fecha para que se armonizado pero se perdería información en otras series
K101: OSD: Corresponde a Otras Sociedades de Depósito, por ejemplo: bancos comerciales y cooperativas.
B103: La región CARD la conforman los países de Centroamérica y República Dominicana

Sheet Región CAPARD-graficos
B1: Consejo Monetario Centroamericano | P1: =CONCATENATE(Indice!$J$47,",") -> REM N° 282, | Q1: =Indice!$J$48 -> Enero 2024
B2: Secretaría Ejecutiva
B3: REGIÓN CAPARD: EVOLUCIÓN DE LOS PRINCIPALES INDICADORES MACROECONÓMICOS
B5: Región CAPARD: Inflación, serie original y tendencia de largo plazo | K5: Región CAPARD: Ciclo de crecimiento de la Actividad Económica
B6: (cálculos basados en el IPC, variación interanual) | K6: (cálculos basados en el IMAE, variación interanual)
B21: Región CAPARD: | K21: Región CAPARD:
B22: Reservas Internacionales Netas del Banco Central | K22: Flujos trimestrales de Inversión Extranjera Directa (IED) en la economía declarante
H30: =IF([1]EJECUTIVO!$J$38=[1]EJECUTIVO!$J$4,[1]EJECUTIVO!$G$38,(CONCATENATE([1]EJECUTIVO!$G$38," ",[1]EJECUTIVO!$I$37," ",[1]EJECUTIVO!$J$37))) -> ENERO 2022 2023
B35: En Panamá, el Banco Nacional de Panamá (BNP) funciona como receptor y gestor de las RIN que corresponden a los activos externos de reserva menos los pasivos de corto plazo frente a no residentes. Los primeros se componen de: billetes y depósitos en moneda extranjera e inversiones en títulos (incluidos los títulos de deuda y participaciones de capital); los pasivos se componen de los depósitos transferibles de no residentes en moneda extranjera. | K35: Los flujos negativos observados en El Salvador, Honduras y Panamá surgen debido a amortizaciones netas de préstamos con el inversionista directo, mayores a lo registrado por acciones u otras aportaciones de capital, los cuales por metodología deben sumarse al valor de la IED.
B38: =CONCATENATE("Región CAPARD:") -> Región CAPARD: | K38: Región CAPARD:
B39: Flujos mensuales de comercio exterior | K39: Ingreso de Remesas, sin acumular
B55: Región CAPARD: | K55: Región CAPARD: Saldo Operacional (con donaciones) del Gobierno Central con respecto al PIB
B56: Deuda Pública Bruta Total, Interna y Externa | K56: =CONCATENATE("Datos a ",'Saldo Operacional'!G4," de cada año") -> Datos a septiembre de cada año
B69: Incluye la deuda interna consolidada en los casos de Guatemala, Honduras y República Dominicana, tal como lo recomienda la versión del 2001 del Manual de Estadísticas de Finanzas Públicas del FMI. En el resto de países se considera únicamente la deuda interna bruta. A partir de 2019 se dispone únicamente de datos trimestrales de Nicaragua.
B71: Región CAPARD: | K71: Región CAPARD:
B72: =CONCATENATE("Agregados Monetarios (Millones US$)"," ","y variación interanual") -> Agregados Monetarios (Millones US$) y variación interanual | K72: =CONCATENATE("Crédito Total (Millones US$)"," ","y variación interanual") -> Crédito Total (Millones US$) y variación interanual
B90: OJO, REVISAR AÑO DE INICIO DE TODOS ESTOS GRAFICOS PARA ARMONIZAR !!!
C92: deuda: a partir de diciembre 2011 mensual
C93: remesas: desde 2006
C94: ied:2008
C95: agregados monetarios:2002
C96: crédito osd:2003
C98: ***la serie mas corta es la de remesas 2008, la extensión se puede evaluar a partir de esta fecha para que se armonizado pero se perdería información en otras series
K100: OSD: Corresponde a Otras Sociedades de Depósito, por ejemplo: bancos comerciales y cooperativas.
B103: La región CAPARD la conforman los países de Centroamérica, Panamá y República Dominicana.

Sheet Comparativo
A1: Consejo Monetario Centroamericano
A2: Secretaría Ejecutiva
A3: CUADRO COMPARATIVO POR PAIS
E4: =CONCATENATE(Indice!$J$47,",") -> REM N° 282, | F4: =Indice!$J$48 -> Enero 2024
A6: Indicadores | B6: Costa Rica | D6: El Salvador | F6: Guatemala | H6: Honduras | J6: Nicaragua | L6: Rep. Dominicana | N6: Panamá
A8: I. SECTOR REAL
A9: 1. Precios al Consumidor | B9: =IF([3]EJECUTIVO!$J$4=[3]EJECUTIVO!$J$8,[3]EJECUTIVO!$G$10,CONCATENATE([3]EJECUTIVO!$G$5," ",[3]EJECUTIVO!$I$4," ",[3]EJECUTIVO!$J$4)) -> ENERO 2023 2024 | D9: =IF([4]EJECUTIVO!$J$4=[4]EJECUTIVO!$J$8,[4]EJECUTIVO!$G$10,CONCATENATE([4]EJECUTIVO!$G$6," ",[4]EJECUTIVO!$I$4," ",[4]EJECUTIVO!$J$4)) -> ENERO 2023 2024 | F9: =IF([5]EJECUTIVO!$J$4=[5]EJECUTIVO!$J$8,[5]EJECUTIVO!$G$10,CONCATENATE([5]EJECUTIVO!$G$5," ",[5]EJECUTIVO!$I$4," ",[5]EJECUTIVO!$J$4)) -> ENERO 2023 2024 | H9: =IF([1]EJECUTIVO!$J$4=[1]EJECUTIVO!$J$8,[1]EJECUTIVO!$G$10,CONCATENATE([1]EJECUTIVO!$G$5," ",[1]EJECUTIVO!$I$4," ",[1]EJECUTIVO!$J$4)) -> ENERO 2023 2024 | J9: =IF([6]EJECUTIVO!$J$4=[6]EJECUTIVO!$J$8,[6]EJECUTIVO!$G$10,CONCATENATE([6]EJECUTIVO!$G$5," ",[6]EJECUTIVO!$I$4," ",[6]EJECUTIVO!$J$4)) -> ENERO 2023 2024 | L9: =IF([7]EJECUTIVO!$J$4=[7]EJECUTIVO!$J$8,[7]EJECUTIVO!$G$10,CONCATENATE([7]EJECUTIVO!$G$5," ",[7]EJECUTIVO!$I$4," ",[7]EJECUTIVO!$J$4)) -> ENERO 2023 2024 | N9: =IF([8]EJECUTIVO!$J$4=[8]EJECUTIVO!$J$8,[8]EJECUTIVO!$G$10,CONCATENATE([8]EJECUTIVO!$G$5," ",[8]EJECUTIVO!$I$4," ",[8]EJECUTIVO!$J$4)) -> ENERO 2023 2024
A10: 1.1 Tasa de variación interanual en el mes indicado | B10: =[3]EJECUTIVO!$I$6 -> 7.651846828 | C10: =[3]EJECUTIVO!$J$6 -> -1.868633983 | D10: =[4]EJECUTIVO!$I$6 -> 7.030812276 | E10: =[4]EJECUTIVO!$J$6 -> 1.20895406 | F10: =[5]EJECUTIVO!$I$6 -> 9.6904793 | G10: =[5]EJECUTIVO!$J$6 -> 3.817300869 | H10: =[1]EJECUTIVO!$I$6 -> 8.927613941 | I10: =[1]EJECUTIVO!$J$6 -> 4.996308147 | J10: =[6]EJECUTIVO!$I$6 -> 10.92483164 | K10: =[6]EJECUTIVO!$J$6 -> 5.789685198 | L10: =[7]EJECUTIVO!$I$6 -> 7.243329087 | M10: =[7]EJECUTIVO!$J$6 -> 3.317250189 | N10: =[8]EJECUTIVO!$I$6 -> 2.712607065 | O10: =[8]EJECUTIVO!$J$6 -> 1.222285912
A11: 1.2 Tasa de variación acumulada al mes indicado respecto a diciembre | B11: =[3]EJECUTIVO!$I$7 -> 0.1604648997 | C11: =[3]EJECUTIVO!$J$7 -> 0.05509726645 | D11: =[4]EJECUTIVO!$I$7 -> 0.3443687877 | E11: =[4]EJECUTIVO!$J$7 -> 0.3247255296 | F11: =[5]EJECUTIVO!$I$7 -> 0.3764565282 | G11: =[5]EJECUTIVO!$J$7 -> 0.03 | H11: =[1]EJECUTIVO!$I$7 -> 0.4201680672 | I11: =[1]EJECUTIVO!$J$7 -> 0.234962406 | J11: =[6]EJECUTIVO!$I$7 -> 0.0989115239 | K11: =[6]EJECUTIVO!$J$7 -> 0.2751484011 | L11: =[7]EJECUTIVO!$I$7 -> 0.6345801127 | M11: =[7]EJECUTIVO!$J$7 -> 0.3900808465 | N11: =[8]EJECUTIVO!$I$7 -> 0.9426491724 | O11: =[8]EJECUTIVO!$J$7 -> 0.2507355577
A12: =CONCATENATE(" 1.3 Tasa de variación de los precios en el 2022 y proyectado para el 2023") -> 1.3 Tasa de variación de los precios en el 2022 y proyectado para el 2023 | B12: =[3]METAS!$H$7 -> 7.877153761 | C12: =[3]METAS!$K$7 -> 3.0 ± 1 | D12: =[4]METAS!$H$7 -> 7.319683773 | E12: =[4]METAS!$K$7 -> 2.8 | F12: =[5]METAS!$H$7 -> 9.236292428 | G12: =[5]METAS!$K$7 -> 4.0 ± 1 | H12: =[1]METAS!$H$7 -> 9.796472185 | I12: =[1]METAS!$K$7 -> 5.0 – 6.0 | J12: =[6]METAS!$H$7 -> 11.59344791 | K12: =[6]METAS!$K$7 -> 4.5 - 5.5 | L12: =[7]METAS!$H$7 -> 7.826916116 | M12: =[7]METAS!$K$7 -> 4.0 ± 1 | N12: =[8]METAS!$H$7 -> 2.624350178 | O12: =[8]METAS!$K$7 -> n.d.
A13: 1.4 Tasa de variación interanual del índice subyacente de inflación | B13: =[3]EJECUTIVO!$I$5 -> 4.534148456 | C13: =[3]EJECUTIVO!$J$5 -> 1.438679117 | D13: =[4]EJECUTIVO!$I$5 -> 4.576926535 | E13: =[4]EJECUTIVO!$J$5 -> 0.8598452279 | F13: =[5]EJECUTIVO!$I$5 -> 5.24 | G13: =[5]EJECUTIVO!$J$5 -> n.d. | H13: =[1]EJECUTIVO!$I$5 -> 9.020134228 | I13: =[1]EJECUTIVO!$J$5 -> 4.998768776 | J13: =[6]EJECUTIVO!$I$5 -> 9.2116431 | K13: =[6]EJECUTIVO!$J$5 -> 6.313136412 | L13: =[7]EJECUTIVO!$I$5 -> 6.602921791 | M13: =[7]EJECUTIVO!$J$5 -> 4.085222797 | N13: =[8]EJECUTIVO!$H$5 -> n.d. | O13: =[8]EJECUTIVO!$I$5 -> n.d.
A14: 2. Producción | B14: =IF([3]EJECUTIVO!$J$9=[3]EJECUTIVO!$J$2,[3]EJECUTIVO!$G$10,CONCATENATE([3]EJECUTIVO!$G$10," ",[3]EJECUTIVO!$I$9," ",[3]EJECUTIVO!$J$9)) -> DICIEMBRE 2022 2023 | D14: =IF([4]EJECUTIVO!$J$9=[4]EJECUTIVO!$J$2,[4]EJECUTIVO!$G$10,CONCATENATE([4]EJECUTIVO!$G$10," ",[4]EJECUTIVO!$I$9," ",[4]EJECUTIVO!$J$9)) -> NOVIEMBRE 2022 2023 | F14: =IF([5]EJECUTIVO!$J$9=[5]EJECUTIVO!$J$2,[5]EJECUTIVO!$G$10,CONCATENATE([5]EJECUTIVO!$G$10," ",[5]EJECUTIVO!$I$9," ",[5]EJECUTIVO!$J$9)) -> JUNIO 2022 2023 | H14: =IF([1]EJECUTIVO!$J$9=[1]EJECUTIVO!$J$2,[1]EJECUTIVO!$G$10,CONCATENATE([1]EJECUTIVO!$G$10," ",[1]EJECUTIVO!$I$9," ",[1]EJECUTIVO!$J$9)) -> DICIEMBRE 2022 2023 | J14: =IF([6]EJECUTIVO!$J$9=[6]EJECUTIVO!$J$2,[6]EJECUTIVO!$G$10,CONCATENATE([6]EJECUTIVO!$G$10," ",[6]EJECUTIVO!$I$9," ",[6]EJECUTIVO!$J$9)) -> NOVIEMBRE 2022 2023 | L14: =IF([7]EJECUTIVO!$J$9=[7]EJECUTIVO!$J$2,[7]EJECUTIVO!$G$10,CONCATENATE([7]EJECUTIVO!$G$10," ",[7]EJECUTIVO!$I$9," ",[7]EJECUTIVO!$J$9)) -> NOVIEMBRE 2022 2023 | N14: =IF([8]EJECUTIVO!$J$9=[8]EJECUTIVO!$J$2,[8]EJECUTIVO!$G$10,CONCATENATE([8]EJECUTIVO!$G$10," ",[8]EJECUTIVO!$I$9," ",[8]EJECUTIVO!$J$9)) -> SEPTIEMBRE 2022 2023
A15: 2.1 IMAE (variación acumulada Tendencia-Ciclo en el mes indicado) | B15: =[3]EJECUTIVO!$I$10 -> 4.465209978 | C15: =[3]EJECUTIVO!$J$10 -> 5.416855501 | D15: =[4]EJECUTIVO!$I$10 -> 3.206951049 | E15: =[4]EJECUTIVO!$J$10 -> 3.026833224 | F15: =[5]EJECUTIVO!$I$10 -> 4.572557996 | G15: =[5]EJECUTIVO!$J$10 -> 3.641197717 | H15: =[1]EJECUTIVO!$I$10 -> 4.260558235 | I15: =[1]EJECUTIVO!$J$10 -> 3.193890732 | J15: =[6]EJECUTIVO!$I$10 -> 3.940878885 | K15: =[6]EJECUTIVO!$J$10 -> 4.543574785 | L15: =[7]EJECUTIVO!$I$10 -> 5.256534991 | M15: =[7]EJECUTIVO!$J$10 -> 2.189226767 | N15: =[8]EJECUTIVO!$I$10 -> 7.881626319 | O15: =[8]EJECUTIVO!$J$10 -> 9.442871193
A16: 2.2 Tasa de variación del PIB real estimado para 2022 y 2023 | B16: =[3]METAS!$H$12 -> 4.55149178 | C16: =[3]METAS!$K$12 -> 5 | D16: =[4]METAS!$H$12 -> 2.600216685 | E16: =[4]METAS!$K$12 -> 2.7 | F16: =[5]METAS!$H$12 -> 4.117999702 | G16: =[5]METAS!$K$12 -> 3.484484731 | H16: =[1]METAS!$H$12 -> 3.997949815 | I16: =[1]METAS!$K$12 -> 3.0 – 3.5 | J16: =[6]METAS!$H$12 -> 3.750774921 | K16: =[6]METAS!$K$12 -> 4.0 - 5.0 | L16: =[7]METAS!$H$12 -> 4.858324033 | M16: =[7]METAS!$K$12 -> 2.5 - 3.0 | N16: =[8]METAS!$H$12 -> 15.33581786 | O16: =[8]METAS!$K$12 -> n.d.
A17: 2.3 Tasa de variación interanual del PIB trimestral, a precios constantes a/ | B17: =CONCATENATE(" ",[3]EJECUTIVO!$G$11," ","TRIMESTRE 2022 2023") -> IV TRIMESTRE 2022 2023 | D17: =CONCATENATE(" ",[4]EJECUTIVO!$G$11," ","TRIMESTRE 2022 2023") -> III TRIMESTRE 2022 2023 | F17: =CONCATENATE(" ",[5]EJECUTIVO!$G$11," ","TRIMESTRE 2022 2023") -> III TRIMESTRE 2022 2023 | H17: =CONCATENATE(" ",[1]EJECUTIVO!$G$11," ","TRIMESTRE 2022 2023") -> III TRIMESTRE 2022 2023 | J17: =CONCATENATE(" ",[6]EJECUTIVO!$G$11," ","TRIMESTRE 2022 2023") -> III TRIMESTRE 2022 2023 | L17: =CONCATENATE(" ",[7]EJECUTIVO!$G$11," ","TRIMESTRE 2022 2023") -> III TRIMESTRE 2022 2023 | N17: =CONCATENATE(" ",[8]EJECUTIVO!$G$11," ","TRIMESTRE 2021 2022") -> III TRIMESTRE 2021 2022
B18: =[3]EJECUTIVO!I$11 -> 4.459408737 | C18: =[3]EJECUTIVO!J$11 -> 5.135163455 | D18: =[4]EJECUTIVO!I$11 -> 2.185314685 | E18: =[4]EJECUTIVO!J$11 -> 3.507271172 | F18: =[5]EJECUTIVO!I$11 -> 3.78038932 | G18: =[5]EJECUTIVO!J$11 -> 3.735587309 | H18: =[1]EJECUTIVO!I$11 -> 4.057271592 | I18: =[1]EJECUTIVO!J$11 -> 3.877356974 | J18: =[6]EJECUTIVO!I$11 -> 3.440869179 | K18: =[6]EJECUTIVO!J$11 -> 6.190512163 | L18: =[7]EJECUTIVO!I$11 -> 5.013127015 | M18: =[7]EJECUTIVO!J$11 -> 2.633467026 | N18: =[8]EJECUTIVO!I$11 -> 25.4974906 | O18: =[8]EJECUTIVO!J$11 -> 9.480235762
A19: 2.4 PIB a precios corrientes en millones de US dólares b/(estimado) | B19: 2022 | C19: 2023 | D19: =+B19 -> 2022 | E19: =+C19 -> 2023 | F19: 2022 | G19: 2023 | H19: 2022 | I19: 2023 | J19: 2022 | K19: 2023 | L19: 2022 | M19: 2023 | N19: 2022 | O19: 2023
B20: =[3]METAS!$H$14 -> 69242.53783 | C20: =[3]METAS!$K$14 -> 86497.94152 | D20: =[4]METAS!$H$14 -> 32488.71 | E20: =[4]METAS!$K$14 -> 34876.2 | F20: =[5]METAS!$H$14 -> 95002.11181 | G20: =[5]METAS!$K$14 -> 102028.7446 | H20: =[1]METAS!$H$14 -> 31717.70114 | I20: =[1]METAS!$K$14 -> n.d. | J20: =[6]METAS!$H$14 -> 15671.63867 | K20: =[6]METAS!$K$14 -> n.d. | L20: =[7]METAS!$H$14 -> 114004.5868 | M20: =[7]METAS!$K$14 -> 120194.2 | N20: =[8]METAS!$H$14 -> 63605.06578 | O20: =[8]METAS!$K$14 -> 71085.07352
A22: II. SECTOR EXTERNO
A23: 1.Indicadores de Balanza de Pagos y del comercio exterior
A24: 1.1 Comercio exterior, acumulado en millones de US$ c/ | B24: =IF([3]EJECUTIVO!$J$16=[3]EJECUTIVO!$J$4,[3]EJECUTIVO!$G$16,(CONCATENATE([3]EJECUTIVO!$G$16," ",[3]EJECUTIVO!$I$15," ",[3]EJECUTIVO!$J$15))) -> DICIEMBRE 2022 2023 | D24: =IF([4]EJECUTIVO!$J$16=[4]EJECUTIVO!$J$4,[4]EJECUTIVO!$G$16,(CONCATENATE([4]EJECUTIVO!$G$16," ",[4]EJECUTIVO!$I$15," ",[4]EJECUTIVO!$J$15))) -> ENERO 2023 2024 | F24: =IF([5]EJECUTIVO!$J$16=[5]EJECUTIVO!$J$4,[5]EJECUTIVO!$G$16,(CONCATENATE([5]EJECUTIVO!$G$16," ",[5]EJECUTIVO!$I$15," ",[5]EJECUTIVO!$J$15))) -> NOVIEMBRE 2022 2023 | H24: =IF([1]EJECUTIVO!$J$16=[1]EJECUTIVO!$J$4,[1]EJECUTIVO!$G$16,(CONCATENATE([1]EJECUTIVO!$G$16," ",[1]EJECUTIVO!$I$15," ",[1]EJECUTIVO!$J$15))) -> DICIEMBRE 2022 2023 | J24: =IF([6]EJECUTIVO!$J$16=[6]EJECUTIVO!$J$4,[6]EJECUTIVO!$G$16,(CONCATENATE([6]EJECUTIVO!$G$16," ",[6]EJECUTIVO!$I$15," ",[6]EJECUTIVO!$J$15))) -> NOVIEMBRE 2022 2023 | L24: =IF([7]EJECUTIVO!$J$16=[7]EJECUTIVO!$J$4,[7]EJECUTIVO!$G$16,(CONCATENATE([7]EJECUTIVO!$G$16," ",[7]EJECUTIVO!$I$15," ",[7]EJECUTIVO!$J$15))) -> SEPTIEMBRE 2022 2023 | N24: =IF([8]EJECUTIVO!$J$16=[8]EJECUTIVO!$J$4,[8]EJECUTIVO!$G$16,(CONCATENATE([8]EJECUTIVO!$G$16," ",[8]EJECUTIVO!$I$15," ",[8]EJECUTIVO!$J$15))) -> NOVIEMBRE 2022 2023
A25: 1.1.1 Exportaciones totales de bienes FOB | B25: =[3]EJECUTIVO!$I$17 -> 15723.2149 | C25: =[3]EJECUTIVO!$J$17 -> 18106.17373 | D25: =[4]EJECUTIVO!$I$17 -> 522.55 | E25: =[4]EJECUTIVO!$J$17 -> 531.06 | F25: =[5]EJECUTIVO!$I$17 -> 14383.7734 | G25: =[5]EJECUTIVO!$J$17 -> 13039.85911 | H25: =[1]EJECUTIVO!$I$17 -> 12246.89934 | I25: =[1]EJECUTIVO!$J$17 -> 11348.20135 | J25: =[6]EJECUTIVO!$I$17 -> 7165.899994 | K25: =[6]EJECUTIVO!$J$17 -> 7036.323753 | L25: =[7]EJECUTIVO!$I$17 -> 10508.4 | M25: =[7]EJECUTIVO!$J$17 -> 9829.5 | N25: =[8]EJECUTIVO!$I$17 -> 14266.59 | O25: =[8]EJECUTIVO!$J$17 -> 14763.31
A26: 1.1.2 Importaciones totales de bienes CIF | B26: =[3]EJECUTIVO!$I$18 -> 21397.01164 | C26: =[3]EJECUTIVO!$J$18 -> 22515.8963 | D26: =[4]EJECUTIVO!$I$18 -> 1300.22 | E26: =[4]EJECUTIVO!$J$18 -> 1256.03 | F26: =[5]EJECUTIVO!$I$18 -> 29703.87392 | G26: =[5]EJECUTIVO!$J$18 -> 27899.52877 | H26: =[1]EJECUTIVO!$I$18 -> 20699.40248 | I26: =[1]EJECUTIVO!$J$18 -> 19327.41505 | J26: =[6]EJECUTIVO!$I$18 -> 9319.177405 | K26: =[6]EJECUTIVO!$J$18 -> 9162.665397 | L26: =[7]EJECUTIVO!$I$18 -> 23132.5 | M26: =[7]EJECUTIVO!$J$18 -> 21575.8 | N26: =[8]EJECUTIVO!$I$18 -> 26995.47 | O26: =[8]EJECUTIVO!$J$18 -> 31260.71
A27: 1.1.3 Saldo acumulado (exportaciones - importaciones) | B27: =[3]EJECUTIVO!$I$16 -> -5673.796741 | C27: =[3]EJECUTIVO!$J$16 -> -4409.722568 | D27: =[4]EJECUTIVO!$I$16 -> -777.67 | E27: =[4]EJECUTIVO!$J$16 -> -724.97 | F27: =[5]EJECUTIVO!$I$16 -> -15320.10051 | G27: =[5]EJECUTIVO!$J$16 -> -14859.66965 | H27: =[1]EJECUTIVO!$I$16 -> -8452.503135 | I27: =[1]EJECUTIVO!$J$16 -> -7979.213704 | J27: =[6]EJECUTIVO!$I$16 -> -2153.277412 | K27: =[6]EJECUTIVO!$J$16 -> -2126.341644 | L27: =[7]EJECUTIVO!$I$16 -> -12624.1 | M27: =[7]EJECUTIVO!$J$16 -> -11746.3 | N27: =[8]EJECUTIVO!$I$16 -> -12728.88 | O27: =[8]EJECUTIVO!$J$16 -> -16497.4
A28: 1.1.4 Saldo en el 2022 (preliminar) y proyectado para el 2023 | B28: =[3]METAS!$H$22 -> -5673.796741 | C28: =[3]METAS!$K$22 -> n.d. | D28: =[4]METAS!$H$22 -> -9992.9 | E28: =[4]METAS!$K$22 -> n.d. | F28: =[5]METAS!$H$22 -> -16469.41075 | G28: =[5]METAS!$K$22 -> -17260.16089 | H28: =[1]METAS!$H$22 -> -8452.503135 | I28: =[1]METAS!$K$22 -> -9450.393008 | J28: =[6]METAS!$H$22 -> -2393.84877 | K28: =[6]METAS!$K$22 -> n.d. | L28: =[7]METAS!$H$22 -> -16966 | M28: =[7]METAS!$K$22 -> n.d. | N28: =[8]METAS!$H$22 -> -7694.82 | O28: =[8]METAS!$K$22 -> n.d.
A29: 2.5 Saldo RIN/ Importaciones (meses de importación promedio) | B29: =[3]EJECUTIVO!$I$19 -> 4.795062119 | C29: =[3]EJECUTIVO!$J$19 -> 7.045102619 | D29: =[4]EJECUTIVO!$I$19 -> 2.10327483 | E29: =[4]EJECUTIVO!$J$19 -> 2.198538251 | F29: =[5]EJECUTIVO!$I$19 -> 7.554125789 | G29: =[5]EJECUTIVO!$J$19 -> 8.294889205 | H29: =[1]EJECUTIVO!$I$19 -> 4.882169913 | I29: =[1]EJECUTIVO!$J$19 -> 4.691305058 | J29: =[6]EJECUTIVO!$I$19 -> 4.965746254 | K29: =[6]EJECUTIVO!$J$19 -> 6.430727026 | L29: =[7]EJECUTIVO!$I$19 -> 5.371478725 | M29: =[7]EJECUTIVO!$J$19 -> 6.612012486 | N29: =[7]EJECUTIVO!$I$19 -> 5.371478725 | O29: =[7]EJECUTIVO!$J$19 -> 6.612012486
A30: 1.2 Transferencias Corrientes, acumulado en millones de US$ | B30: =IF([3]EJECUTIVO!$J$38=[3]EJECUTIVO!$J$4,CONCATENATE([3]EJECUTIVO!$G$38," TRIMESTRE"," "),CONCATENATE([3]EJECUTIVO!$G$38," TRIMESTRE ",[3]EJECUTIVO!$I$37," ",[3]EJECUTIVO!$J$37)) -> III TRIMESTRE 2022 2023 | D30: =IF([4]EJECUTIVO!$J$38=[4]EJECUTIVO!$J$4,[4]EJECUTIVO!$G$38,(CONCATENATE([4]EJECUTIVO!$G$38," ",[4]EJECUTIVO!$I$37," ",[4]EJECUTIVO!$J$37))) -> OCTUBRE 2022 2023 | F30: =IF([5]EJECUTIVO!$J$38=[5]EJECUTIVO!$J$4,[5]EJECUTIVO!$G$38,(CONCATENATE([5]EJECUTIVO!$G$38," ",[5]EJECUTIVO!$I$37," ",[5]EJECUTIVO!$J$37))) -> DICIEMBRE 2022 2023 | H30: =IF([1]EJECUTIVO!$J$38=[1]EJECUTIVO!$J$4,[1]EJECUTIVO!$G$38,(CONCATENATE([1]EJECUTIVO!$G$38," ",[1]EJECUTIVO!$I$37," ",[1]EJECUTIVO!$J$37))) -> ENERO 2022 2023 | J30: =IF([6]EJECUTIVO!$J$38=[6]EJECUTIVO!$J$4,[6]EJECUTIVO!$G$38,(CONCATENATE([6]EJECUTIVO!$G$38," ",[6]EJECUTIVO!$I$37," ",[6]EJECUTIVO!$J$37))) -> DICIEMBRE 2022 2023 | L30: =IF([7]EJECUTIVO!$J$38=[7]EJECUTIVO!$J$4,[7]EJECUTIVO!$G$38,(CONCATENATE([7]EJECUTIVO!$G$38," ",[7]EJECUTIVO!$I$37," ",[7]EJECUTIVO!$J$37))) -> DICIEMBRE 2022 2023 | N30: =IF([8]EJECUTIVO!$J$38=[8]EJECUTIVO!$J$4,CONCATENATE([8]EJECUTIVO!$G$38," TRIMESTRE"," "),CONCATENATE([8]EJECUTIVO!$G$38," TRIMESTRE ",[8]EJECUTIVO!$I$37," ",[8]EJECUTIVO!$J$37)) -> III TRIMESTRE 2022 2023
A31: 1.2.1 Ingreso de remesas familiares d/ | B31: =[3]EJECUTIVO!$I$38 -> 434.0601633 | C31: =[3]EJECUTIVO!$J$38 -> 473.8276537 | D31: =[4]EJECUTIVO!$I$38 -> 6418.15 | E31: =[4]EJECUTIVO!$J$38 -> 6740.13 | F31: =[5]EJECUTIVO!$I$38 -> 18040.32108 | G31: =[5]EJECUTIVO!$J$38 -> 19804.00205 | H31: =[1]EJECUTIVO!$I$38 -> 683.6652 | I31: =[1]EJECUTIVO!$J$38 -> 661.0025 | J31: =[6]EJECUTIVO!$I$38 -> 3224.9 | K31: =[6]EJECUTIVO!$J$38 -> 4660.1 | L31: =[7]EJECUTIVO!$I$38 -> 9856.497461 | M31: =[7]EJECUTIVO!$J$38 -> 10157.23678 | N31: =[8]EJECUTIVO!$I$38 -> 346.5794325 | O31: =[8]EJECUTIVO!$J$38 -> 348.8915277
A32: 1.2.2 Saldo en el 2022 (preliminar) y proyectado para el 2023 | B32: =+[3]METAS!$H$27 -> 575.2867613 | C32: =[3]METAS!$K$27 -> n.d. | D32: =+[4]METAS!$H$27 -> 7819.57 | E32: =[4]METAS!$K$27 -> n.d. | F32: =+[5]METAS!$H$27 -> 18040.32108 | G32: =[5]METAS!$K$27 -> 20024.75642 | H32: =+[1]METAS!$H$27 -> 8686.1973 | I32: =[1]METAS!$K$27 -> 8888.2 | J32: =+[6]METAS!$H$27 -> 3224.9 | K32: =[6]METAS!$K$27 -> n.d. | L32: =+[7]METAS!$H$27 -> 9856.497461 | M32: =+[7]METAS!$K$27 -> 10200 | N32: =+[8]METAS!$H$27 -> 512.7098688 | O32: =[8]METAS!$K$27 -> n.d.
A33: 1.3 Inversión directa, saldo en millones de US$ | B33: =CONCATENATE([3]EJECUTIVO!$G$44," ","TRIMESTRE 2021 2022") -> III TRIMESTRE 2021 2022 | D33: =CONCATENATE([4]EJECUTIVO!$G$44," ","TRIMESTRE 2021 2022") -> III TRIMESTRE 2021 2022 | F33: =CONCATENATE([5]EJECUTIVO!$G$44," ","TRIMESTRE 2021 2022") -> III TRIMESTRE 2021 2022 | H33: =CONCATENATE([1]EJECUTIVO!$G$44," ","TRIMESTRE 2021 2022") -> III TRIMESTRE 2021 2022 | J33: =CONCATENATE([6]EJECUTIVO!$G$44," ","TRIMESTRE 2021 2022") -> III TRIMESTRE 2021 2022 | L33: =CONCATENATE([7]EJECUTIVO!$G$44," ","TRIMESTRE 2021 2022") -> III TRIMESTRE 2021 2022 | N33: =CONCATENATE([8]EJECUTIVO!$G$44," ","TRIMESTRE 2020 2021") -> II TRIMESTRE 2020 2021
A34: 1.3.1 Inversión Extranjera Directa en la economía declarante e/ | B34: =+[3]EJECUTIVO!$I$44 -> 2313.620872 | C34: =+[3]EJECUTIVO!$J$44 -> 2690.9862 | D34: =+[4]EJECUTIVO!$I$44 -> -47.7549607 | E34: =+[4]EJECUTIVO!$J$44 -> 486.7614929 | F34: =+[5]EJECUTIVO!$I$44 -> 1042.4 | G34: =+[5]EJECUTIVO!$J$44 -> 1136.3 | H34: =+[1]EJECUTIVO!$I$44 -> 647.8675409 | I34: =+[1]EJECUTIVO!$J$44 -> 761.0585056 | J34: =+[6]EJECUTIVO!$I$44 -> 1079.7 | K34: =+[6]EJECUTIVO!$J$44 -> 1177.7 | L34: =+[7]EJECUTIVO!$I$44 -> 3241.9 | M34: =+[7]EJECUTIVO!$J$44 -> 3380.7 | N34: =+[8]EJECUTIVO!$I$44 -> 1560.62644 | O34: =+[8]EJECUTIVO!$J$44 -> 2695.861289
A35: 1.4 Balanza en cuenta corriente, saldo en millones de US$ | B35: =CONCATENATE([3]EJECUTIVO!$G$41," ","TRIMESTRE 2021 2022") -> III TRIMESTRE 2021 2022 | D35: =CONCATENATE([4]EJECUTIVO!$G$41," ","TRIMESTRE 2021 2022") -> III TRIMESTRE 2021 2022 | F35: =CONCATENATE([5]EJECUTIVO!$G$41," ","TRIMESTRE 2021 2022") -> III TRIMESTRE 2021 2022 | H35: =CONCATENATE([1]EJECUTIVO!$G$41," ","TRIMESTRE 2021 2022") -> III TRIMESTRE 2021 2022 | J35: =CONCATENATE([6]EJECUTIVO!$G$41," ","TRIMESTRE 2021 2022") -> III TRIMESTRE 2021 2022 | L35: =CONCATENATE([7]EJECUTIVO!$G$41," ","TRIMESTRE 2021 2022") -> III TRIMESTRE 2021 2022 | N35: =CONCATENATE([8]EJECUTIVO!$G$41," ","TRIMESTRE 2020 2021") -> II TRIMESTRE 2020 2021
A36: 1.4.1 Saldo de Balanza en Cuenta Corriente | B36: =[3]EJECUTIVO!$I$41 -> -1880.863372 | C36: =[3]EJECUTIVO!$J$41 -> -580.7761533 | D36: =[4]EJECUTIVO!$I$41 -> -1788.422182 | E36: =[4]EJECUTIVO!$J$41 -> -550.8948717 | F36: =[5]EJECUTIVO!$I$41 -> 898.1 | G36: =[5]EJECUTIVO!$J$41 -> 2879.6 | H36: =[1]EJECUTIVO!$I$41 -> -787.1449122 | I36: =[1]EJECUTIVO!$J$41 -> -451.3327283 | J36: =[6]EJECUTIVO!$I$41 -> -199.9 | K36: =[6]EJECUTIVO!$J$41 -> 1201.6 | L36: =[7]EJECUTIVO!$I$41 -> -5481.7 | M36: =[7]EJECUTIVO!$J$41 -> -3483.8 | N36: =[8]EJECUTIVO!$I$41 -> -448.4118823 | O36: =[8]EJECUTIVO!$J$41 -> -421.0666014
A37: 1.4.2 Saldo en el 2022 (preliminar) y proyectado para 2023 | B37: =+[3]METAS!$H$23 -> -2587.67967 | C37: =+[3]METAS!$K$23 -> -1816.456772 | D37: =+[4]METAS!$H$23 -> -2146.173194 | E37: =+[4]METAS!$K$23 -> n.d. | F37: =+[5]METAS!$H$23 -> 1247.8 | G37: =+[5]METAS!$K$23 -> 2487.6 | H37: =+[1]METAS!$H$23 -> -1373.677983 | I37: =+[1]METAS!$K$23 -> n.d. | J37: =+[6]METAS!$H$23 -> -251.9 | K37: =+[6]METAS!$K$23 -> n.d. | L37: =+[7]METAS!$H$23 -> -6326.8 | M37: =+[7]METAS!$K$23 -> -6592.5256 | N37: =+[8]METAS!$H$23 -> -1406.787817 | O37: =+[8]METAS!$K$23 -> n.d.
A39: 1.5 Saldo RIN del Banco Central, en millones de US$ | B39: =IF([3]EJECUTIVO!$G$22=[3]EJECUTIVO!$J$4,[3]EJECUTIVO!$G$22,(CONCATENATE([3]EJECUTIVO!$G$22," ",[3]EJECUTIVO!$I$21," ",[3]EJECUTIVO!$J$21))) -> ENERO 2023 2024 | D39: =IF([4]EJECUTIVO!$G$22=[4]EJECUTIVO!$J$4,[4]EJECUTIVO!$G$22,(CONCATENATE([4]EJECUTIVO!$G$22," ",[4]EJECUTIVO!$I$21," ",[4]EJECUTIVO!$J$21))) -> ENERO 2023 2024 | F39: =IF([5]EJECUTIVO!$G$22=[5]EJECUTIVO!$J$4,[5]EJECUTIVO!$G$22,(CONCATENATE([5]EJECUTIVO!$G$22," ",[5]EJECUTIVO!$I$21," ",[5]EJECUTIVO!$J$21))) -> ENERO 2023 2024 | H39: =IF([3]EJECUTIVO!$G$22=[1]EJECUTIVO!$J$4,[1]EJECUTIVO!$G$22,(CONCATENATE([1]EJECUTIVO!$G$22," ",[1]EJECUTIVO!$I$21," ",[1]EJECUTIVO!$J$21))) -> ENERO 2022 2023 | J39: =IF([3]EJECUTIVO!$G$22=[6]EJECUTIVO!$J$4,[6]EJECUTIVO!$G$22,(CONCATENATE([6]EJECUTIVO!$G$22," ",[6]EJECUTIVO!$I$21," ",[6]EJECUTIVO!$J$21))) -> ENERO 2023 2024 | L39: =IF([3]EJECUTIVO!$G$22=[7]EJECUTIVO!$J$4,[7]EJECUTIVO!$G$22,(CONCATENATE([7]EJECUTIVO!$G$22," ",[7]EJECUTIVO!$I$21," ",[7]EJECUTIVO!$J$21))) -> ENERO 2023 2024 | N39: =IF([3]EJECUTIVO!$G$22=[8]EJECUTIVO!$J$4,[8]EJECUTIVO!$G$22,(CONCATENATE([8]EJECUTIVO!$G$22," ",[8]EJECUTIVO!$I$21," ",[8]EJECUTIVO!$J$21))) -> NOVIEMBRE 2022 2023
A40: 1.5.1 Saldo RIN a fines de mes | B40: =[3]EJECUTIVO!$I$22 -> 8281.6 | C40: =ROUND([3]EJECUTIVO!$J$22,0) -> 14337 | D40: =[4]EJECUTIVO!$I$22 -> 2734.72 | E40: =[4]EJECUTIVO!$J$22 -> 2761.43 | F40: =[5]EJECUTIVO!$I$22 -> 20139.4 | G40: =ROUND([5]EJECUTIVO!$J$22,0) -> 21227 | H40: =[1]EJECUTIVO!$I$22 -> 8340.3 | I40: =ROUND([1]EJECUTIVO!$J$22,0) -> 7396 | J40: =[6]EJECUTIVO!$I$22 -> 4482.970027 | K40: =ROUND([6]EJECUTIVO!$J$22,0) -> 5472 | L40: =[7]EJECUTIVO!$I$22 -> 14597.13366 | M40: =ROUND([7]EJECUTIVO!$J$22,0) -> 14360 | N40: =[8]EJECUTIVO!$I$22 -> 7217.716728 | O40: =ROUND([8]EJECUTIVO!$J$22,0) -> 6441
A41: 1.5.2 Saldo en el 2022 y proyectado para el 2023 | B41: =+[3]METAS!$H$25 -> 8550 | C41: =+[3]METAS!$K$25 -> n.d. | D41: =+[4]METAS!$H$25 -> 2440.44 | E41: =+[4]METAS!$K$25 -> n.d. | F41: =+[5]METAS!$H$25 -> 20019.8 | G41: =+[5]METAS!$K$25 -> 20769.8 | H41: =+[1]METAS!$H$25 -> 8421.5 | I41: =+[1]METAS!$K$25 -> n.d. | J41: =+[6]METAS!$H$25 -> 4356.370027 | K41: =+[6]METAS!$K$25 -> n.d. | L41: =+[7]METAS!$H$25 -> 14436.13907 | M41: =+[7]METAS!$K$25 -> n.d. | N41: =+[8]METAS!$H$25 -> 8099.465384 | O41: =+[8]METAS!$K$25 -> n.d.
B42: =IF([3]EJECUTIVO!$J$16=[3]EJECUTIVO!$J$4,[3]EJECUTIVO!$G$16,(CONCATENATE([3]EJECUTIVO!$G$16," ",[3]EJECUTIVO!$I$15," ",[3]EJECUTIVO!$J$15))) -> DICIEMBRE 2022 2023 | D42: =IF([4]EJECUTIVO!$J$16=[4]EJECUTIVO!$J$4,[4]EJECUTIVO!$G$16,(CONCATENATE([4]EJECUTIVO!$G$16," ",[4]EJECUTIVO!$I$15," ",[4]EJECUTIVO!$J$15))) -> ENERO 2023 2024 | F42: =IF([5]EJECUTIVO!$J$16=[5]EJECUTIVO!$J$4,[5]EJECUTIVO!$G$16,(CONCATENATE([5]EJECUTIVO!$G$16," ",[5]EJECUTIVO!$I$15," ",[5]EJECUTIVO!$J$15))) -> NOVIEMBRE 2022 2023 | H42: =IF([1]EJECUTIVO!$J$16=[1]EJECUTIVO!$J$4,[1]EJECUTIVO!$G$16,(CONCATENATE([1]EJECUTIVO!$G$16," ",[1]EJECUTIVO!$I$15," ",[1]EJECUTIVO!$J$15))) -> DICIEMBRE 2022 2023 | J42: =IF([6]EJECUTIVO!$J$16=[6]EJECUTIVO!$J$4,[6]EJECUTIVO!$G$16,(CONCATENATE([6]EJECUTIVO!$G$16," ",[6]EJECUTIVO!$I$15," ",[6]EJECUTIVO!$J$15))) -> NOVIEMBRE 2022 2023 | L42: =IF([7]EJECUTIVO!$J$16=[7]EJECUTIVO!$J$4,[7]EJECUTIVO!$G$16,(CONCATENATE([7]EJECUTIVO!$G$16," ",[7]EJECUTIVO!$I$15," ",[7]EJECUTIVO!$J$15))) -> SEPTIEMBRE 2022 2023 | N42: =IF([8]EJECUTIVO!$J$16=[8]EJECUTIVO!$J$4,[8]EJECUTIVO!$G$16,(CONCATENATE([8]EJECUTIVO!$G$16," ",[8]EJECUTIVO!$I$15," ",[8]EJECUTIVO!$J$15))) -> NOVIEMBRE 2022 2023
A43: 1.5.3 Saldo RIN/ Importaciones (importación promedio al mes indicado) | B43: =[3]EJECUTIVO!$I$19 -> 4.795062119 | C43: =[3]EJECUTIVO!$J$19 -> 7.045102619 | D43: =[4]EJECUTIVO!$I$19 -> 2.10327483 | E43: =[4]EJECUTIVO!$J$19 -> 2.198538251 | F43: =[5]EJECUTIVO!$I$19 -> 7.554125789 | G43: =[5]EJECUTIVO!$J$19 -> 8.294889205 | H43: =[1]EJECUTIVO!$I$19 -> 4.882169913 | I43: =[1]EJECUTIVO!$J$19 -> 4.691305058 | J43: =[6]EJECUTIVO!$I$19 -> 4.965746254 | K43: =[6]EJECUTIVO!$J$19 -> 6.430727026 | L43: =[7]EJECUTIVO!$I$19 -> 5.371478725 | M43: =[7]EJECUTIVO!$J$19 -> 6.612012486 | N43: =[8]EJECUTIVO!$I$19 -> 2.941044702 | O43: =[8]EJECUTIVO!$J$19 -> 2.266596686
A44: 1.5.3 Saldo RIN/ Importaciones (importación promedio al mes indicado) | B44: =IF([3]EJECUTIVO!$J$37=[3]EJECUTIVO!$J$4,CONCATENATE([3]EJECUTIVO!$G$38," TRIMESTRE"," "),CONCATENATE([3]EJECUTIVO!$G$38," TRIMESTRE ",[3]EJECUTIVO!$I$37," ",[3]EJECUTIVO!$J$37)) -> III TRIMESTRE 2022 2023 | D44: =IF([4]EJECUTIVO!$J$37=[4]EJECUTIVO!$J$4,[4]EJECUTIVO!$G$38,(CONCATENATE([4]EJECUTIVO!$G$38," ",[4]EJECUTIVO!$I$37," ",[4]EJECUTIVO!$J$37))) -> OCTUBRE 2022 2023 | F44: =IF([5]EJECUTIVO!$J$37=[5]EJECUTIVO!$J$4,CONCATENATE([5]EJECUTIVO!$G$38," TRIMESTRE"," "),CONCATENATE([5]EJECUTIVO!$G$38," TRIMESTRE ",[5]EJECUTIVO!$I$37," ",[5]EJECUTIVO!$J$37)) -> DICIEMBRE TRIMESTRE 2022 2023 | H44: =IF([1]EJECUTIVO!$J$37=[1]EJECUTIVO!$J$4,CONCATENATE([1]EJECUTIVO!$G$38," TRIMESTRE"," "),CONCATENATE([1]EJECUTIVO!$G$38," TRIMESTRE ",[1]EJECUTIVO!$I$37," ",[1]EJECUTIVO!$J$37)) -> ENERO TRIMESTRE 2022 2023 | J44: =IF([6]EJECUTIVO!$J$37=[6]EJECUTIVO!$J$4,CONCATENATE([6]EJECUTIVO!$G$38," TRIMESTRE"," "),CONCATENATE([6]EJECUTIVO!$G$38," TRIMESTRE ",[6]EJECUTIVO!$I$37," ",[6]EJECUTIVO!$J$37)) -> DICIEMBRE TRIMESTRE 2022 2023 | L44: =IF([7]EJECUTIVO!$J$37=[7]EJECUTIVO!$J$4,CONCATENATE([7]EJECUTIVO!$G$38," TRIMESTRE"," "),CONCATENATE([7]EJECUTIVO!$G$38," TRIMESTRE ",[7]EJECUTIVO!$I$37," ",[7]EJECUTIVO!$J$37)) -> DICIEMBRE TRIMESTRE 2022 2023 | N44: =IF([7]EJECUTIVO!$J$37=[7]EJECUTIVO!$J$4,CONCATENATE([7]EJECUTIVO!$G$38," TRIMESTRE"," "),CONCATENATE([7]EJECUTIVO!$G$38," TRIMESTRE ",[7]EJECUTIVO!$I$37," ",[7]EJECUTIVO!$J$37)) -> DICIEMBRE TRIMESTRE 2022 2023
A45: 1.5.3 Saldo RIN/ Importaciones (importación promedio al mes indicado) | B45: =[3]EJECUTIVO!$I$38 -> 434.0601633 | C45: =[3]EJECUTIVO!$J$38 -> 473.8276537 | D45: =[4]EJECUTIVO!$I$38 -> 6418.15 | E45: =[4]EJECUTIVO!$J$38 -> 6740.13 | F45: =[5]EJECUTIVO!$I$38 -> 18040.32108 | G45: =[5]EJECUTIVO!$J$38 -> 19804.00205 | H45: =[1]EJECUTIVO!$I$38 -> 683.6652 | I45: =[1]EJECUTIVO!$J$38 -> 661.0025 | J45: =[6]EJECUTIVO!$I$38 -> 3224.9 | K45: =[6]EJECUTIVO!$J$38 -> 4660.1 | L45: =[7]EJECUTIVO!$I$38 -> 9856.497461 | M45: =[7]EJECUTIVO!$J$38 -> 10157.23678 | N45: =[7]EJECUTIVO!$I$38 -> 9856.497461 | O45: =[7]EJECUTIVO!$J$38 -> 10157.23678
A46: 1.5.3 Saldo RIN/ Importaciones (importación promedio al mes indicado) | B46: =[3]METAS!$H$27 -> 575.2867613 | C46: =[3]METAS!$M$27 -> n.d. | D46: =[4]METAS!$H$27 -> 7819.57 | E46: =[4]METAS!$M$27 -> n.d. | F46: =[5]METAS!$H$27 -> 18040.32108 | G46: =[5]METAS!$M$27 -> 20024.75642 | H46: =[1]METAS!$H$27 -> 8686.1973 | I46: =[1]METAS!$M$27 -> 8888.2 | J46: =[6]METAS!$H$27 -> 3224.9 | K46: =[6]METAS!$M$27 -> n.d. | L46: =[7]METAS!$H$27 -> 9856.497461 | M46: =[7]METAS!$M$27 -> 10200 | N46: =[7]METAS!$H$27 -> 9856.497461 | O46: =[7]METAS!$M$27 -> 10200
A47: 2. Tipo de Cambio | B47: =IF([3]EJECUTIVO!$J$4=[3]EJECUTIVO!$J$8,[3]EJECUTIVO!$G$10,CONCATENATE([3]EJECUTIVO!$G$31," ",[3]EJECUTIVO!$I$30," ",[3]EJECUTIVO!$J$30)) -> NOVIEMBRE 2022 2023 | D47: =IF([4]EJECUTIVO!$J$4=[4]EJECUTIVO!$J$8,[4]EJECUTIVO!$G$10,CONCATENATE([4]EJECUTIVO!$G$31," ",[4]EJECUTIVO!$I$30," ",[4]EJECUTIVO!$J$30)) -> NOVIEMBRE 2022 2023 | F47: =IF([5]EJECUTIVO!$J$4=[5]EJECUTIVO!$J$8,[5]EJECUTIVO!$G$10,CONCATENATE([5]EJECUTIVO!$G$31," ",[5]EJECUTIVO!$I$30," ",[5]EJECUTIVO!$J$30)) -> NOVIEMBRE 2022 2023 | H47: =IF([1]EJECUTIVO!$J$4=[1]EJECUTIVO!$J$8,[1]EJECUTIVO!$G$10,CONCATENATE([1]EJECUTIVO!$G$31," ",[1]EJECUTIVO!$I$30," ",[1]EJECUTIVO!$J$30)) -> NOVIEMBRE 2022 2023 | J47: =IF([6]EJECUTIVO!$J$4=[6]EJECUTIVO!$J$8,[6]EJECUTIVO!$G$10,CONCATENATE([6]EJECUTIVO!$G$31," ",[6]EJECUTIVO!$I$30," ",[6]EJECUTIVO!$J$30)) -> NOVIEMBRE 2022 2023 | L47: =IF([7]EJECUTIVO!$J$4=[7]EJECUTIVO!$J$8,[7]EJECUTIVO!$G$10,CONCATENATE([7]EJECUTIVO!$G$31," ",[7]EJECUTIVO!$I$30," ",[7]EJECUTIVO!$J$30)) -> NOVIEMBRE 2022 2023 | N47: =IF([8]EJECUTIVO!$J$4=[8]EJECUTIVO!$J$8,[8]EJECUTIVO!$G$10,CONCATENATE([8]EJECUTIVO!$G$31," ",[8]EJECUTIVO!$I$30," ",[8]EJECUTIVO!$J$30)) -> NOVIEMBRE 2022 2023
A48: 2.1 Unidades Moneda Nacional por US$, promedio compra | B48: =[3]EJECUTIVO!$I$31 -> 608.4203333 | C48: =[3]EJECUTIVO!$J$31 -> 529.8723333 | D48: =[4]EJECUTIVO!$I$31 -> 8.75 | E48: =[4]EJECUTIVO!$J$31 -> 8.75 | F48: =[5]EJECUTIVO!$I$31 -> 7.79169 | G48: =[5]EJECUTIVO!$J$31 -> 7.8073 | H48: =[1]EJECUTIVO!$I$31 -> 24.66868182 | I48: =[1]EJECUTIVO!$J$31 -> 24.67443182 | J48: =[6]EJECUTIVO!$I$31 -> 35.99769774 | K48: =[6]EJECUTIVO!$J$31 -> 36.39961922 | L48: =[7]EJECUTIVO!$I$31 -> 54.206 | M48: =[7]EJECUTIVO!$J$31 -> 56.708 | N48: =[8]EJECUTIVO!$I$31 -> 1 | O48: =[8]EJECUTIVO!$J$31 -> 1
A49: 2.2 ITCER-USA, 2000=100, tasa de variación interanual | B49: =[3]EJECUTIVO!$I$32 -> -5.064509463 | C49: =[3]EJECUTIVO!$J$32 -> -8.690175163 | D49: =[4]EJECUTIVO!$I$32 -> -0.1738471788 | E49: =[4]EJECUTIVO!$J$32 -> 0.9923482093 | F49: =[5]EJECUTIVO!$I$32 -> -0.8569771147 | G49: =[5]EJECUTIVO!$J$32 -> -0.9328040724 | H49: =[1]EJECUTIVO!$I$32 -> -0.7301543908 | I49: =[1]EJECUTIVO!$J$32 -> -1.800351267 | J49: =[6]EJECUTIVO!$I$32 -> -1.990251855 | K49: =[6]EJECUTIVO!$J$32 -> -1.331071081 | L49: =[7]EJECUTIVO!$I$32 -> -4.385661748 | M49: =[7]EJECUTIVO!$J$32 -> 3.727514397 | N49: =[8]EJECUTIVO!$I$32 -> 5.55995996 | O49: =[8]EJECUTIVO!$J$32 -> 1.098939633
A50: 2.3 ITCER-Global f/, 2000=100, tasa de variación interanual | B50: =[3]EJECUTIVO!$I$33 -> -8.262508152 | C50: =[3]EJECUTIVO!$J$33 -> -7.358496534 | D50: =[4]EJECUTIVO!$I$33 -> -2.591859386 | E50: =[4]EJECUTIVO!$J$33 -> 2.324310338 | F50: =[5]EJECUTIVO!$I$33 -> -2.83952407 | G50: =[5]EJECUTIVO!$J$33 -> 1.285843607 | H50: =[1]EJECUTIVO!$I$33 -> -1.829505132 | I50: =[1]EJECUTIVO!$J$33 -> -0.7205138512 | J50: =[6]EJECUTIVO!$I$33 -> -4.24469508 | K50: =[6]EJECUTIVO!$J$33 -> 0.7329894394 | L50: =[7]EJECUTIVO!$I$33 -> -8.442029274 | M50: =[7]EJECUTIVO!$J$33 -> 4.846358956 | N50: =[8]EJECUTIVO!$I$33 -> -0.7880934041 | O50: =[8]EJECUTIVO!$J$33 -> 2.404378496
A51: 2.4 ITCER-Región g/, 2000=100, tasa de variación interanual | B51: =[3]EJECUTIVO!$I$34 -> -4.837065137 | C51: =[3]EJECUTIVO!$J$34 -> -8.28208164 | D51: =[4]EJECUTIVO!$I$34 -> 1.340522436 | E51: =[4]EJECUTIVO!$J$34 -> 3.448544853 | F51: =[5]EJECUTIVO!$I$34 -> 0.1454681475 | G51: =[5]EJECUTIVO!$J$34 -> 0.64804146 | H51: =[1]EJECUTIVO!$I$34 -> 3.876050665 | I51: =[1]EJECUTIVO!$J$34 -> -0.3900481636 | J51: =[6]EJECUTIVO!$I$34 -> -0.4991444686 | K51: =[6]EJECUTIVO!$J$34 -> 1.576991919 | L51: =[7]EJECUTIVO!$I$34 -> -3.189064314 | M51: =[7]EJECUTIVO!$J$34 -> 6.765553377 | N51: =[8]EJECUTIVO!$I$34 -> 9.716887845 | O51: =[8]EJECUTIVO!$J$34 -> 6.197352537
A52: 2.5 ITCER-Global f/, tasa de variación con el año base (2000) | B52: =[3]EJECUTIVO!$I$35 -> -11.85806741 | C52: =[3]EJECUTIVO!$J$35 -> -18.34398847 | D52: =[4]EJECUTIVO!$I$35 -> 7.756113746 | E52: =[4]EJECUTIVO!$J$35 -> 10.26070024 | F52: =[5]EJECUTIVO!$I$35 -> -47.24663176 | G52: =[5]EJECUTIVO!$J$35 -> -46.56830595 | H52: =[1]EJECUTIVO!$I$35 -> -19.41326742 | I52: =[1]EJECUTIVO!$J$35 -> -19.99390599 | J52: =[6]EJECUTIVO!$I$35 -> 13.64265802 | K52: =[6]EJECUTIVO!$J$35 -> 14.4756467 | L52: =[7]EJECUTIVO!$I$35 -> 12.69339254 | M52: =[7]EJECUTIVO!$J$35 -> 18.15491886 | N52: =[8]EJECUTIVO!$I$35 -> 2.630905518 | O52: =[8]EJECUTIVO!$J$35 -> 5.098540941
A54: III. SECTOR FISCAL
A55: 1. Resultado del Gobierno Central, en millones de US$ | B55: =IF([3]EJECUTIVO!$J$49=[3]EJECUTIVO!$J$4,[3]EJECUTIVO!$G$49,(CONCATENATE([3]EJECUTIVO!$G$49," ",[3]EJECUTIVO!$I$48," ",[3]EJECUTIVO!$J$48))) -> DICIEMBRE 2022 2023 | D55: =IF([4]EJECUTIVO!$J$49=[4]EJECUTIVO!$J$4,[4]EJECUTIVO!$G$49,(CONCATENATE([4]EJECUTIVO!$G$49," ",[4]EJECUTIVO!$I$48," ",[4]EJECUTIVO!$J$48))) -> DICIEMBRE 2022 2023 | F55: =IF([5]EJECUTIVO!$J$49=[5]EJECUTIVO!$J$4,[5]EJECUTIVO!$G$49,(CONCATENATE([5]EJECUTIVO!$G$49," ",[5]EJECUTIVO!$I$48," ",[5]EJECUTIVO!$J$48))) -> DICIEMBRE 2022 2023 | H55: =IF([1]EJECUTIVO!$J$49=[1]EJECUTIVO!$J$4,[1]EJECUTIVO!$G$49,(CONCATENATE([1]EJECUTIVO!$G$49," ",[1]EJECUTIVO!$I$48," ",[1]EJECUTIVO!$J$48))) -> OCTUBRE 2022 2023 | J55: =IF([6]EJECUTIVO!$J$49=[6]EJECUTIVO!$J$4,[6]EJECUTIVO!$G$49,(CONCATENATE([6]EJECUTIVO!$G$49," ",[6]EJECUTIVO!$I$48," ",[6]EJECUTIVO!$J$48))) -> NOVIEMBRE 2022 2023 | L55: =IF([7]EJECUTIVO!$J$49=[7]EJECUTIVO!$J$4,[7]EJECUTIVO!$G$49,(CONCATENATE([7]EJECUTIVO!$G$49," ",[7]EJECUTIVO!$I$48," ",[7]EJECUTIVO!$J$48))) -> DICIEMBRE 2022 2023 | N55: =IF([8]EJECUTIVO!$J$49=[8]EJECUTIVO!$J$4,[8]EJECUTIVO!$G$49,(CONCATENATE([8]EJECUTIVO!$G$49," ",[8]EJECUTIVO!$I$48," ",[8]EJECUTIVO!$J$48))) -> DICIEMBRE 2022 2023
A56: 1.1 Ingresos totales, acumulado | B56: =[3]EJECUTIVO!$I49 -> 11453.63549 | C56: =[3]EJECUTIVO!$J49 -> 24744.97212 | D56: =[4]EJECUTIVO!$I49 -> 6633.549541 | E56: =[4]EJECUTIVO!$J49 -> 7046.427655 | F56: =[5]EJECUTIVO!$I49 -> 12010.70881 | G56: =[5]EJECUTIVO!$J49 -> 12892.20877 | H56: =[1]EJECUTIVO!$I49 -> 4916.618129 | I56: =[1]EJECUTIVO!$J49 -> 5356.023499 | J56: =[6]EJECUTIVO!$I49 -> 3086.699419 | K56: =[6]EJECUTIVO!$J49 -> 3503.513863 | L56: =[7]EJECUTIVO!$I49 -> 17412.24358 | M56: =[7]EJECUTIVO!$J49 -> 19089.1841 | N56: =[8]EJECUTIVO!$I49 -> 9290.3 | O56: =[8]EJECUTIVO!$J49 -> 10674.8
A57: 1.2 Ingresos tributarios, acumulado | B57: =[3]EJECUTIVO!$I50 -> 9825.695138 | C57: =[3]EJECUTIVO!$J50 -> 21713.1785 | D57: =[4]EJECUTIVO!$I50 -> 6416.429896 | E57: =[4]EJECUTIVO!$J50 -> 6709.76294 | F57: =[5]EJECUTIVO!$I50 -> 11426.55093 | G57: =[5]EJECUTIVO!$J50 -> 12190.80851 | H57: =[1]EJECUTIVO!$I50 -> 4581.066245 | I57: =[1]EJECUTIVO!$J50 -> 4926.257513 | J57: =[6]EJECUTIVO!$I50 -> 2855.082737 | K57: =[6]EJECUTIVO!$J50 -> 3249.374687 | L57: =[7]EJECUTIVO!$I50 -> 15771.05799 | M57: =[7]EJECUTIVO!$J50 -> 17366.54223 | N57: =[8]EJECUTIVO!$I50 -> 5846.7 | O57: =[8]EJECUTIVO!$J50 -> 6398.4
A58: 1.3 Gastos totales, acumulado | B58: =[3]EJECUTIVO!$I51 -> 13218.56146 | C58: =[3]EJECUTIVO!$J51 -> 29351.60152 | D58: =[4]EJECUTIVO!$I51 -> 7238.259536 | E58: =[4]EJECUTIVO!$J51 -> 7830.408765 | F58: =[5]EJECUTIVO!$I51 -> 13620.0124 | G58: =[5]EJECUTIVO!$J51 -> 14325.749 | H58: =[1]EJECUTIVO!$I51 -> 4570.979104 | I58: =[1]EJECUTIVO!$J51 -> 5168.280859 | J58: =[6]EJECUTIVO!$I51 -> 2889.044731 | K58: =[6]EJECUTIVO!$J51 -> 2999.148811 | L58: =[7]EJECUTIVO!$I51 -> 21383.52293 | M58: =[7]EJECUTIVO!$J51 -> 23223.46228 | N58: =[8]EJECUTIVO!$I51 -> 12384.6 | O58: =[8]EJECUTIVO!$J51 -> 13790.7
A59: 1.4 Donaciones, acumulado | B59: =[3]EJECUTIVO!$I52 -> 0 | C59: =[3]EJECUTIVO!$J52 -> 0 | D59: =[4]EJECUTIVO!$I52 -> 17.31293966 | E59: =[4]EJECUTIVO!$J52 -> 19.41456396 | F59: =[5]EJECUTIVO!$I52 -> 7.182391992 | G59: =[5]EJECUTIVO!$J52 -> 6.668688238 | H59: =[1]EJECUTIVO!$I52 -> 69.46913237 | I59: =[1]EJECUTIVO!$J52 -> 79.94629343 | J59: =[6]EJECUTIVO!$I52 -> 20.68296006 | K59: =[6]EJECUTIVO!$J52 -> 12.8362393 | L59: =[7]EJECUTIVO!$I52 -> 41.70201328 | M59: =[7]EJECUTIVO!$J52 -> 120.9515329 | N59: =[8]EJECUTIVO!$I52 -> 0 | O59: =[8]EJECUTIVO!$J52 -> 0
A60: 1.5 Déficit (-) superávit (+) con donaciones | B60: =[3]EJECUTIVO!$I56 -> -1764.925976 | C60: =[3]EJECUTIVO!$J56 -> -4606.629403 | D60: =[4]EJECUTIVO!$I56 -> -587.397056 | E60: =[4]EJECUTIVO!$J56 -> -764.5665458 | F60: =[5]EJECUTIVO!$I56 -> -1602.121195 | G60: =[5]EJECUTIVO!$J56 -> -1426.871545 | H60: =[1]EJECUTIVO!$I56 -> 415.108157 | I60: =[1]EJECUTIVO!$J56 -> 267.6889333 | J60: =[6]EJECUTIVO!$I56 -> 218.3376483 | K60: =[6]EJECUTIVO!$J56 -> 517.2012915 | L60: =[7]EJECUTIVO!$I56 -> -3929.577332 | M60: =[7]EJECUTIVO!$J56 -> -4013.326648 | N60: =[8]EJECUTIVO!$I56 -> -3094.3 | O60: =[8]EJECUTIVO!$J56 -> -3115.9
A61: 1.5.1 Financiamiento interno | B61: =[3]EJECUTIVO!$I57 -> 137.5247759 | C61: =[3]EJECUTIVO!$J57 -> 695.543797 | D61: =[4]EJECUTIVO!$I57 -> 576.1329718 | E61: =[4]EJECUTIVO!$J57 -> 728.2081949 | F61: =[5]EJECUTIVO!$I57 -> 1587.5847 | G61: =[5]EJECUTIVO!$J57 -> 62.50313076 | H61: =[1]EJECUTIVO!$I57 -> -288.9243217 | I61: =[1]EJECUTIVO!$J57 -> -29.32792831 | J61: =[6]EJECUTIVO!$I57 -> -441.626176 | K61: =[6]EJECUTIVO!$J57 -> -813.1379172 | L61: =[7]EJECUTIVO!$I57 -> 757.9944802 | M61: =[7]EJECUTIVO!$J57 -> 1383.703529 | N61: =[8]EJECUTIVO!$I57 -> n.d. | O61: =[8]EJECUTIVO!$J57 -> n.d.
A62: 1.5.2 Financiamiento externo | B62: =[3]EJECUTIVO!$I58 -> 1627.401173 | C62: =[3]EJECUTIVO!$J58 -> 3911.085947 | D62: =[4]EJECUTIVO!$I58 -> 11.26408427 | E62: =[4]EJECUTIVO!$J58 -> 36.35835091 | F62: =[5]EJECUTIVO!$I58 -> 14.53101589 | G62: =[5]EJECUTIVO!$J58 -> 1364.368417 | H62: =[1]EJECUTIVO!$I58 -> -126.1838353 | I62: =[1]EJECUTIVO!$J58 -> -238.361005 | J62: =[6]EJECUTIVO!$I58 -> 223.2885278 | K62: =[6]EJECUTIVO!$J58 -> 295.9366257 | L62: =[7]EJECUTIVO!$I58 -> 2963.260312 | M62: =[7]EJECUTIVO!$J58 -> 2514.547688 | N62: =[8]EJECUTIVO!$I58 -> n.d. | O62: =[8]EJECUTIVO!$J58 -> n.d.
A63: 1.6 Déficit (-) superávit (+) en el 2021 y estimado 2022, con donaciones | B63: =[3]METAS!$H$39 -> -1764.925976 | C63: =[3]METAS!$K$39 -> n.d. | D63: =[4]METAS!$H$39 -> -587.397056 | E63: =[4]METAS!$K$39 -> n.d. | F63: =[5]METAS!$H$39 -> -1599.765533 | G63: =[5]METAS!$K$39 -> -1743.907857 | H63: =[1]METAS!$H$39 -> -400.8086097 | I63: =[1]METAS!$K$39 -> n.d. | J63: =[6]METAS!$H$39 -> 204.8758686 | K63: =[6]METAS!$K$39 -> n.d. | L63: =[7]METAS!$H$39 -> -3929.577332 | M63: =[7]METAS!$K$39 -> n.d. | N63: =[8]METAS!$H$39 -> -3981.3 | O63: =[8]METAS!$K$39 -> n.d.
A64: 1.7 Ingresos Corrientes, tasa de variación interanual | B64: =[3]EJECUTIVO!$I53 -> 16.07134522 | C64: =[3]EJECUTIVO!$J53 -> 97.81261473 | D64: =[4]EJECUTIVO!$I53 -> 10.22179283 | E64: =[4]EJECUTIVO!$J53 -> 6.224090316 | F64: =[5]EJECUTIVO!$I53 -> 13.41175063 | G64: =[5]EJECUTIVO!$J53 -> 8.560461752 | H64: =[1]EJECUTIVO!$I53 -> 15.64149776 | I64: =[1]EJECUTIVO!$J53 -> 9.625444092 | J64: =[6]EJECUTIVO!$I53 -> 18.22807271 | K64: =[6]EJECUTIVO!$J53 -> 15.38404163 | L64: =[7]EJECUTIVO!$I53 -> 13.83785748 | M64: =[7]EJECUTIVO!$J53 -> 11.70899886 | N64: =[8]EJECUTIVO!$I53 -> 30.45214841 | O64: =[8]EJECUTIVO!$J53 -> 18.89202507
A65: 1.8 Relación Gasto Capital / Gasto Total, en porcentajes | B65: =[3]EJECUTIVO!$I54 -> 7.161079332 | C65: =[3]EJECUTIVO!$J54 -> 7.045134312 | D65: =[4]EJECUTIVO!$I54 -> 9.274869653 | E65: =[4]EJECUTIVO!$J54 -> 16.44611871 | F65: =[5]EJECUTIVO!$I54 -> 17.44637969 | G65: =[5]EJECUTIVO!$J54 -> 18.42651474 | H65: =[1]EJECUTIVO!$I54 -> 12.68353006 | I65: =[1]EJECUTIVO!$J54 -> 14.1177071 | J65: =[6]EJECUTIVO!$I54 -> 17.84476075 | K65: =[6]EJECUTIVO!$J54 -> 13.87397138 | L65: =[7]EJECUTIVO!$I54 -> 13.90207572 | M65: =[7]EJECUTIVO!$J54 -> 15.14320094 | N65: =[8]EJECUTIVO!$I54 -> 37.15716816 | O65: =[8]EJECUTIVO!$J54 -> 26.68357934
A66: 1.9 Ahorro Corriente, en millones de US$ | B66: =[3]EJECUTIVO!$I55 -> -811.0778311 | C66: =[3]EJECUTIVO!$J55 -> -2532.764564 | D66: =[4]EJECUTIVO!$I55 -> 66.62914141 | E66: =[4]EJECUTIVO!$J55 -> 503.2972113 | F66: =[5]EJECUTIVO!$I55 -> 749.453241 | G66: =[5]EJECUTIVO!$J55 -> 1196.109091 | H66: =[1]EJECUTIVO!$I55 -> 887.1287182 | I66: =[1]EJECUTIVO!$J55 -> 878.8453619 | J66: =[6]EJECUTIVO!$I55 -> 713.1900529 | K66: =[6]EJECUTIVO!$J55 -> 920.583804 | L66: =[7]EJECUTIVO!$I55 -> -993.5303876 | M66: =[7]EJECUTIVO!$J55 -> -627.89477 | N66: =[8]EJECUTIVO!$I55 -> 620.6 | O66: =[8]EJECUTIVO!$J55 -> 469.5
A67: 2. Saldo Deuda Pública, en millones de US$ | B67: =IF([3]EJECUTIVO!$J$62=[3]EJECUTIVO!$J$4,[3]EJECUTIVO!$G$62,CONCATENATE([3]EJECUTIVO!$G$62," ",[3]EJECUTIVO!$I$61," ",[3]EJECUTIVO!$J$61)) -> SEPTIEMBRE 2022 2023 | D67: =IF([4]EJECUTIVO!$J$62=[4]EJECUTIVO!$J$4,[4]EJECUTIVO!$G$62,CONCATENATE([4]EJECUTIVO!$G$62," ",[4]EJECUTIVO!$I$61," ",[4]EJECUTIVO!$J$61)) -> DICIEMBRE 2022 2023 | F67: =IF([5]EJECUTIVO!$J$62=[5]EJECUTIVO!$J$4,[5]EJECUTIVO!$G$62,CONCATENATE([5]EJECUTIVO!$G$62," ",[5]EJECUTIVO!$I$61," ",[5]EJECUTIVO!$J$61)) -> DICIEMBRE 2022 2023 | H67: =IF([1]EJECUTIVO!$J$62=[1]EJECUTIVO!$J$4,[1]EJECUTIVO!$G$62,CONCATENATE([1]EJECUTIVO!$G$62," ",[1]EJECUTIVO!$I$61," ",[1]EJECUTIVO!$J$61)) -> NOVIEMBRE 2022 2023 | J67: =IF([6]EJECUTIVO!$J$62=[6]EJECUTIVO!$J$4,[6]EJECUTIVO!$G$62,CONCATENATE([6]EJECUTIVO!$G$62," ",[6]EJECUTIVO!$I$61," ",[6]EJECUTIVO!$J$61)) -> NOVIEMBRE 2022 2023 | L67: =IF([7]EJECUTIVO!$J$62=[7]EJECUTIVO!$J$4,[7]EJECUTIVO!$G$62,CONCATENATE([7]EJECUTIVO!$G$62," ",[7]EJECUTIVO!$I$61," ",[7]EJECUTIVO!$J$61)) -> DICIEMBRE 2022 2023 | N67: =IF([8]EJECUTIVO!$J$62=[8]EJECUTIVO!$J$4,[8]EJECUTIVO!$G$62,CONCATENATE([8]EJECUTIVO!$G$62," ",[8]EJECUTIVO!$I$61," ",[8]EJECUTIVO!$J$61)) -> ENERO 2023 2024
A68: 2.1 Saldo Deuda Pública Total h/ | B68: =[3]EJECUTIVO!$I$62 -> 52703.3129 | C68: =[3]EJECUTIVO!$J62 -> 64130.50403 | D68: =[4]EJECUTIVO!$I62 -> 25350.14 | E68: =[4]EJECUTIVO!$J62 -> 20098.64479 | F68: =[5]EJECUTIVO!$I62 -> 26074.02066 | G68: =[5]EJECUTIVO!$J62 -> 26975.99311 | H68: =[1]EJECUTIVO!$I62 -> 14332.09542 | I68: =[1]EJECUTIVO!$J62 -> 14338.8093 | J68: =[6]EJECUTIVO!$I62 -> 9452.272651 | K68: =[6]EJECUTIVO!$J62 -> 10302.84551 | L68: =[7]EJECUTIVO!$I62 -> 66764.57 | M68: =[7]EJECUTIVO!$J62 -> 70946.29247 | N68: =[8]EJECUTIVO!$I62 -> 44218.63 | O68: =[8]EJECUTIVO!$J62 -> 46894.56
A69: 2.1.1 Saldo Deuda Interna Bruta | B69: =[3]EJECUTIVO!$I$63 -> 37748.0329 | C69: =[3]EJECUTIVO!$J63 -> 46902.66403 | D69: =[4]EJECUTIVO!$I63 -> 13731.4 | E69: =[4]EJECUTIVO!$J63 -> 8010.03004 | F69: =[5]EJECUTIVO!$I63 -> 21632.18317 | G69: =[5]EJECUTIVO!$J63 -> 20924.70507 | H69: =[1]EJECUTIVO!$I63 -> 13306.38816 | I69: =[1]EJECUTIVO!$J63 -> 12444.71933 | J69: =[6]EJECUTIVO!$I63 -> 1409.252101 | K69: =[6]EJECUTIVO!$J63 -> 1752.251156 | L69: =[7]EJECUTIVO!$I63 -> 31677.98 | M69: =[7]EJECUTIVO!$J63 -> 33279.32167 | N69: =[8]EJECUTIVO!$I63 -> 7421.41 | O69: =[8]EJECUTIVO!$J63 -> 7004.94
A70: 2.1.1.1 Sector Público No Financiero | B70: =[3]EJECUTIVO!$I$64 -> 34992.84775 | C70: =[3]EJECUTIVO!$J64 -> 41477.85685 | D70: =[4]EJECUTIVO!$I64 -> 7340.72 | E70: =[4]EJECUTIVO!$J64 -> 7846.14565 | F70: =[5]EJECUTIVO!$I64 -> 16258.77284 | G70: =[5]EJECUTIVO!$J64 -> 15991.03938 | H70: =[1]EJECUTIVO!$I64 -> 11205.4609 | I70: =[1]EJECUTIVO!$J64 -> 10873.7723 | J70: =[6]EJECUTIVO!$I64 -> 715.2655181 | K70: =[6]EJECUTIVO!$J64 -> 622.1772238 | L70: =[7]EJECUTIVO!$I64 -> 15496.97 | M70: =[7]EJECUTIVO!$J64 -> 15974.69819 | N70: =[8]EJECUTIVO!$I64 -> 7421.41 | O70: =[8]EJECUTIVO!$J64 -> 7004.94
A71: a) Gobierno Central | B71: =[3]EJECUTIVO!$I$65 -> 33475.76671 | C71: =[3]EJECUTIVO!$J65 -> 39850.1097 | D71: =[4]EJECUTIVO!$I65 -> 6775.55 | E71: =[4]EJECUTIVO!$J65 -> 7274.867569 | F71: =[5]EJECUTIVO!$I65 -> 16258.77284 | G71: =[5]EJECUTIVO!$J65 -> 15991.03938 | H71: =[1]EJECUTIVO!$I65 -> 8366.992559 | I71: =[1]EJECUTIVO!$J65 -> 7797.466519 | J71: =[6]EJECUTIVO!$I65 -> 715.2655181 | K71: =[6]EJECUTIVO!$J65 -> 622.1772238 | L71: =[7]EJECUTIVO!$I65 -> 15191 | M71: =[7]EJECUTIVO!$J65 -> 15753.63093 | N71: =[8]EJECUTIVO!$I65 -> 7417.59 | O71: =[8]EJECUTIVO!$J65 -> 7001.12
A72: b) Resto del Sector Público No Financiero | B72: =[3]EJECUTIVO!$I$66 -> 1517.081042 | C72: =[3]EJECUTIVO!$J66 -> 1627.747142 | D72: =[4]EJECUTIVO!$I66 -> 565.17 | E72: =[4]EJECUTIVO!$J66 -> 571.2780807 | F72: =[5]EJECUTIVO!$I66 -> n.d. | G72: =[5]EJECUTIVO!$J66 -> n.d. | H72: =[1]EJECUTIVO!$I66 -> 2838.468338 | I72: =[1]EJECUTIVO!$J66 -> 3076.30578 | J72: =[6]EJECUTIVO!$I66 -> n.d. | K72: =[6]EJECUTIVO!$J66 -> n.d. | L72: =[7]EJECUTIVO!$I66 -> 305.97 | M72: =[7]EJECUTIVO!$J66 -> 221.0672592 | N72: =[8]EJECUTIVO!$I66 -> 3.82 | O72: =[8]EJECUTIVO!$J66 -> 3.82
A73: 2.1.1.2 Sector Público Financiero | B73: =[3]EJECUTIVO!$I$67 -> 2755.185149 | C73: =[3]EJECUTIVO!$J67 -> 5424.807182 | D73: =[4]EJECUTIVO!$I67 -> 6390.68 | E73: =[4]EJECUTIVO!$J67 -> 163.8843901 | F73: =[5]EJECUTIVO!$I67 -> 5373.410322 | G73: =[5]EJECUTIVO!$J67 -> 4933.665686 | H73: =[1]EJECUTIVO!$I67 -> 2100.927268 | I73: =[1]EJECUTIVO!$J67 -> 1570.947028 | J73: =[6]EJECUTIVO!$I67 -> 693.9865833 | K73: =[6]EJECUTIVO!$J67 -> 1130.073933 | L73: =[7]EJECUTIVO!$I67 -> 16181.01 | M73: =[7]EJECUTIVO!$J67 -> 17304.62349 | N73: =[8]EJECUTIVO!$I67 -> n.d. | O73: =[8]EJECUTIVO!$J67 -> n.d.
A74: a) Banco Central | B74: =[3]EJECUTIVO!$I$68 -> 2755.185149 | C74: =[3]EJECUTIVO!$J68 -> 5424.807182 | D74: =[4]EJECUTIVO!$I68 -> 0 | E74: =[4]EJECUTIVO!$J68 -> 1 | F74: =[5]EJECUTIVO!$I68 -> 5373.410322 | G74: =[5]EJECUTIVO!$J68 -> 4933.665686 | H74: =[1]EJECUTIVO!$I68 -> 1977.918875 | I74: =[1]EJECUTIVO!$J68 -> 1483.200446 | J74: =[6]EJECUTIVO!$I68 -> 693.9865833 | K74: =[6]EJECUTIVO!$J68 -> 1130.073933 | L74: =[7]EJECUTIVO!$I68 -> 16181.01 | M74: =[7]EJECUTIVO!$J68 -> 17304.62349 | N74: =[8]EJECUTIVO!$I68 -> n.d. | O74: =[8]EJECUTIVO!$J68 -> n.d.
A75: b) Resto del Sector Público Financiero | B75: =[3]EJECUTIVO!$I$69 -> n.d. | C75: =[3]EJECUTIVO!$J69 -> n.d. | D75: =[4]EJECUTIVO!$I69 -> 6390.68 | E75: =[4]EJECUTIVO!$J69 -> 162.8843901 | F75: =[5]EJECUTIVO!$I69 -> n.d. | G75: =[5]EJECUTIVO!$J69 -> n.d. | H75: =[1]EJECUTIVO!$I69 -> 123.0083929 | I75: =[1]EJECUTIVO!$J69 -> 87.74658236 | J75: =[6]EJECUTIVO!$I69 -> n.d. | K75: =[6]EJECUTIVO!$J69 -> n.d. | L75: =[7]EJECUTIVO!$I69 -> n.d. | M75: =[7]EJECUTIVO!$J69 -> n.d. | N75: =[8]EJECUTIVO!$I69 -> n.d. | O75: =[8]EJECUTIVO!$J69 -> n.d.
A76: 2.1.2 Deuda Intragubernamental | B76: =[3]EJECUTIVO!$I$70 -> n.d. | C76: =[3]EJECUTIVO!$J70 -> n.d. | D76: =[4]EJECUTIVO!$I70 -> n.d. | E76: =[4]EJECUTIVO!$J70 -> n.d. | F76: =[5]EJECUTIVO!$I70 -> 6649.025806 | G76: =[5]EJECUTIVO!$J70 -> 6395.621262 | H76: =[1]EJECUTIVO!$I70 -> 7972.792743 | I76: =[1]EJECUTIVO!$J70 -> 7487.110026 | J76: =[6]EJECUTIVO!$I70 -> n.d. | K76: =[6]EJECUTIVO!$J70 -> n.d. | L76: =[7]EJECUTIVO!$I70 -> 2362.25 | M76: =[7]EJECUTIVO!$J70 -> 2285.9 | N76: =[8]EJECUTIVO!$I70 -> n.d. | O76: =[8]EJECUTIVO!$J70 -> n.d.
A77: a) Deuda Intragubernamental SPNF | B77: =[3]EJECUTIVO!$I$71 -> n.d. | C77: =[3]EJECUTIVO!$J71 -> n.d. | D77: =[4]EJECUTIVO!$I71 -> n.d. | E77: =[4]EJECUTIVO!$J71 -> n.d. | F77: =[5]EJECUTIVO!$I71 -> 3971.50145 | G77: =[5]EJECUTIVO!$J71 -> 3895.002546 | H77: =[1]EJECUTIVO!$I71 -> 4168.231884 | I77: =[1]EJECUTIVO!$J71 -> 4217.8221 | J77: =[6]EJECUTIVO!$I71 -> n.d. | K77: =[6]EJECUTIVO!$J71 -> n.d. | L77: =[7]EJECUTIVO!$I71 -> 2362.25 | M77: =[7]EJECUTIVO!$J71 -> 2285.9 | N77: =[8]EJECUTIVO!$I71 -> n.d. | O77: =[8]EJECUTIVO!$J71 -> n.d.
A78: b) Deuda Intragubernamental del BC | B78: =[3]EJECUTIVO!$I$72 -> n.d. | C78: =[3]EJECUTIVO!$J72 -> n.d. | D78: =[4]EJECUTIVO!$I72 -> n.d. | E78: =[4]EJECUTIVO!$J72 -> n.d. | F78: =[5]EJECUTIVO!$I72 -> 2677.524356 | G78: =[5]EJECUTIVO!$J72 -> 2500.618716 | H78: =[1]EJECUTIVO!$I72 -> 3804.56086 | I78: =[1]EJECUTIVO!$J72 -> 3269.287926 | J78: =[6]EJECUTIVO!$I72 -> n.d. | K78: =[6]EJECUTIVO!$J72 -> n.d. | L78: =[7]EJECUTIVO!$I72 -> n.d. | M78: =[7]EJECUTIVO!$J72 -> n.d. | N78: =[8]EJECUTIVO!$I72 -> n.d. | O78: =[8]EJECUTIVO!$J72 -> n.d.
A79: 2.1.3 Saldo Deuda Interna Consolidada (2.1.1 - 2.1.2) | B79: =[3]EJECUTIVO!$I$73 -> n.d. | C79: =[3]EJECUTIVO!$J73 -> n.d. | D79: =[4]EJECUTIVO!$I73 -> n.d. | E79: =[4]EJECUTIVO!$J73 -> n.d. | F79: =[5]EJECUTIVO!$I73 -> 14983.15736 | G79: =[5]EJECUTIVO!$J73 -> 14529.08381 | H79: =[1]EJECUTIVO!$I73 -> 5333.595421 | I79: =[1]EJECUTIVO!$J73 -> 4957.609301 | J79: =[6]EJECUTIVO!$I73 -> n.d. | K79: =[6]EJECUTIVO!$J73 -> n.d. | L79: =[7]EJECUTIVO!$I73 -> 29315.73 | M79: =[7]EJECUTIVO!$J73 -> 30993.42167 | N79: =[8]EJECUTIVO!$I73 -> n.d. | O79: =[8]EJECUTIVO!$J73 -> n.d.
A80: 2.1.4 Saldo Deuda Externa | B80: =[3]EJECUTIVO!$I74 -> 14955.28 | C80: =[3]EJECUTIVO!$J74 -> 17227.84 | D80: =[4]EJECUTIVO!$I74 -> 11618.74 | E80: =[4]EJECUTIVO!$J74 -> 12088.61475 | F80: =[5]EJECUTIVO!$I74 -> 11090.8633 | G80: =[5]EJECUTIVO!$J74 -> 12446.9093 | H80: =[1]EJECUTIVO!$I74 -> 8998.5 | I80: =[1]EJECUTIVO!$J74 -> 9381.2 | J80: =[6]EJECUTIVO!$I74 -> 8043.02055 | K80: =[6]EJECUTIVO!$J74 -> 8550.594358 | L80: =[7]EJECUTIVO!$I74 -> 37448.84 | M80: =[7]EJECUTIVO!$J74 -> 39952.8708 | N80: =[8]EJECUTIVO!$I74 -> 36797.22 | O80: =[8]EJECUTIVO!$J74 -> 39889.62
A81: 2.1.4.1 Sector Público No Financiero | B81: =[3]EJECUTIVO!$I75 -> 13698.46 | C81: =[3]EJECUTIVO!$J75 -> 14878.51 | D81: =[4]EJECUTIVO!$I75 -> 11123.6 | E81: =[4]EJECUTIVO!$J75 -> 11535.02023 | F81: =[5]EJECUTIVO!$I75 -> 11090.8633 | G81: =[5]EJECUTIVO!$J75 -> 12446.9093 | H81: =[1]EJECUTIVO!$I75 -> 8364.6 | I81: =[1]EJECUTIVO!$J75 -> 8684.5 | J81: =[6]EJECUTIVO!$I75 -> 6209.683577 | K81: =[6]EJECUTIVO!$J75 -> 6757.169321 | L81: =[7]EJECUTIVO!$I75 -> 36357.55 | M81: =[7]EJECUTIVO!$J75 -> 38854.0908 | N81: =[8]EJECUTIVO!$I75 -> 36797.22 | O81: =[8]EJECUTIVO!$J75 -> 39889.62
A82: a) Gobierno Central | B82: =[3]EJECUTIVO!$I76 -> 11628.53 | C82: =[3]EJECUTIVO!$J76 -> 12804.36 | D82: =[4]EJECUTIVO!$I76 -> 10642.81 | E82: =[4]EJECUTIVO!$J76 -> 11009.50856 | F82: =[5]EJECUTIVO!$I76 -> 11069.298 | G82: =[5]EJECUTIVO!$J76 -> 12429.2138 | H82: =[1]EJECUTIVO!$I76 -> 8162.2 | I82: =[1]EJECUTIVO!$J76 -> 8513.9 | J82: =[6]EJECUTIVO!$I76 -> 6170.857893 | K82: =[6]EJECUTIVO!$J76 -> 6721.312913 | L82: =[7]EJECUTIVO!$I76 -> 36351.6 | M82: =[7]EJECUTIVO!$J76 -> 38848.12519 | N82: =[8]EJECUTIVO!$I76 -> 36785.25 | O82: =[8]EJECUTIVO!$J76 -> 39879.89
A83: b) Resto del Sector Público No Financiero | B83: =[3]EJECUTIVO!$I77 -> 2069.93 | C83: =[3]EJECUTIVO!$J77 -> 2074.15 | D83: =[4]EJECUTIVO!$I77 -> 480.79 | E83: =[4]EJECUTIVO!$J77 -> 525.51167 | F83: =[5]EJECUTIVO!$I77 -> 21.5653 | G83: =[5]EJECUTIVO!$J77 -> 17.6955 | H83: =[1]EJECUTIVO!$I77 -> 202.4 | I83: =[1]EJECUTIVO!$J77 -> 170.6 | J83: =[6]EJECUTIVO!$I77 -> 38.82568458 | K83: =[6]EJECUTIVO!$J77 -> 35.85640804 | L83: =[7]EJECUTIVO!$I77 -> 5.95 | M83: =[7]EJECUTIVO!$J77 -> 5.965608432 | N83: =[8]EJECUTIVO!$I77 -> 11.97 | O83: =[8]EJECUTIVO!$J77 -> 9.73
A84: 2.1.4.2 Sector Público Financiero | B84: =[3]EJECUTIVO!$I78 -> 1256.82 | C84: =[3]EJECUTIVO!$J78 -> 2349.33 | D84: =[4]EJECUTIVO!$I78 -> 495.14 | E84: =[4]EJECUTIVO!$J78 -> 553.59452 | F84: =[5]EJECUTIVO!$I78 -> n.d. | G84: =[5]EJECUTIVO!$J78 -> n.d. | H84: =[1]EJECUTIVO!$I78 -> 633.9 | I84: =[1]EJECUTIVO!$J78 -> 696.7 | J84: =[6]EJECUTIVO!$I78 -> 1833.336973 | K84: =[6]EJECUTIVO!$J78 -> 1793.425038 | L84: =[7]EJECUTIVO!$I78 -> 1091.29 | M84: =[7]EJECUTIVO!$J78 -> 1098.78 | N84: =[8]EJECUTIVO!$I78 -> 0 | O84: =[8]EJECUTIVO!$J78 -> 0
A85: a) Banco Central | B85: =[3]EJECUTIVO!$I79 -> 656.88 | C85: =[3]EJECUTIVO!$J79 -> 1773.13 | D85: =[4]EJECUTIVO!$I79 -> 85.97 | E85: =[4]EJECUTIVO!$J79 -> 6.92407 | F85: =[5]EJECUTIVO!$I79 -> 0 | G85: =[5]EJECUTIVO!$J79 -> 0 | H85: =[1]EJECUTIVO!$I79 -> 617.4 | I85: =[1]EJECUTIVO!$J79 -> 679.9 | J85: =[6]EJECUTIVO!$I79 -> 1833.336973 | K85: =[6]EJECUTIVO!$J79 -> 1793.425038 | L85: =[7]EJECUTIVO!$I79 -> 1091.29 | M85: =[7]EJECUTIVO!$J79 -> 1098.78 | N85: =[8]EJECUTIVO!$I79 -> 0 | O85: =[8]EJECUTIVO!$J79 -> 0
A86: b) Resto del Sector Público Financiero | B86: =[3]EJECUTIVO!$I80 -> 599.94 | C86: =[3]EJECUTIVO!$J80 -> 576.2 | D86: =[4]EJECUTIVO!$I80 -> 409.17 | E86: =[4]EJECUTIVO!$J80 -> 546.67045 | F86: =[5]EJECUTIVO!$I80 -> n.d. | G86: =[5]EJECUTIVO!$J80 -> n.d. | H86: =[1]EJECUTIVO!$I80 -> 16.5 | I86: =[1]EJECUTIVO!$J80 -> 16.8 | J86: =[6]EJECUTIVO!$I80 -> 0 | K86: =[6]EJECUTIVO!$J80 -> 0 | L86: =[7]EJECUTIVO!$I80 -> n.d. | M86: =[7]EJECUTIVO!$J80 -> n.d. | N86: =[8]EJECUTIVO!$I80 -> 0 | O86: =[8]EJECUTIVO!$J80 -> 0
A87: 2.2 Relación Deuda Pública Total/PIB h/ | B87: =[3]EJECUTIVO!$I81 -> 76.11406881 | C87: =[3]EJECUTIVO!$J81 -> 74.14107539 | D87: =[4]EJECUTIVO!$I81 -> 78.02753633 | E87: =[4]EJECUTIVO!$J81 -> 57.62853978 | F87: =[5]EJECUTIVO!$I81 -> 27.44572743 | G87: =[5]EJECUTIVO!$J81 -> 25.46215241 | H87: =[1]EJECUTIVO!$I81 -> 45.18642558 | I87: =[1]EJECUTIVO!$J81 -> 41.4988801 | J87: =[6]EJECUTIVO!$I81 -> 60.3145137 | K87: =[6]EJECUTIVO!$J81 -> 59.15116789 | L87: =[7]EJECUTIVO!$I81 -> 58.563056 | M87: =[7]EJECUTIVO!$J81 -> 59.02638602 | N87: =[8]EJECUTIVO!$I81 -> 57.23575857 | O87: =[8]EJECUTIVO!$J81 -> 60.69943177
A88: 2.2.1.a Deuda Interna/PIB (bruta) | B88: =[3]EJECUTIVO!$I82 -> 54.51566924 | C88: =[3]EJECUTIVO!$J82 -> 54.22402338 | D88: =[4]EJECUTIVO!$I82 -> 42.2651438 | E88: =[4]EJECUTIVO!$J82 -> 22.96703781 | F88: =[5]EJECUTIVO!$I82 -> 22.77021295 | G88: =[5]EJECUTIVO!$J82 -> 19.75045098 | H88: =[1]EJECUTIVO!$I82 -> 41.95256177 | I88: =[1]EJECUTIVO!$J82 -> 36.01707118 | J88: =[6]EJECUTIVO!$I82 -> 8.992372343 | K88: =[6]EJECUTIVO!$J82 -> 10.06010448 | L88: =[7]EJECUTIVO!$I82 -> 27.78658376 | M88: =[7]EJECUTIVO!$J82 -> 27.68795971 | N88: =[8]EJECUTIVO!$I82 -> 9.606132778 | O88: =[8]EJECUTIVO!$J82 -> 9.067061884
A89: 2.2.1.b Deuda Interna/PIB (consolidada) | B89: =[3]EJECUTIVO!$I83 -> n.d. | C89: =[3]EJECUTIVO!$J83 -> n.d. | D89: =[4]EJECUTIVO!$I83 -> n.d. | E89: =[4]EJECUTIVO!$J83 -> n.d. | F89: =[5]EJECUTIVO!$I83 -> 15.771394 | G89: =[5]EJECUTIVO!$J83 -> 13.71373965 | H89: =[1]EJECUTIVO!$I83 -> 16.81583226 | I89: =[1]EJECUTIVO!$J83 -> 14.34813935 | J89: =[6]EJECUTIVO!$I83 -> n.d. | K89: =[6]EJECUTIVO!$J83 -> n.d. | L89: =[7]EJECUTIVO!$I83 -> 25.71451801 | M89: =[7]EJECUTIVO!$J83 -> 25.78612086 | N89: =[8]EJECUTIVO!$I83 -> n.d. | O89: =[8]EJECUTIVO!$J83 -> n.d.
A90: 2.2.2 Deuda Externa/PIB | B90: =[3]EJECUTIVO!$I84 -> 21.59839958 | C90: =[3]EJECUTIVO!$J84 -> 19.91705201 | D90: =[4]EJECUTIVO!$I84 -> 35.76239254 | E90: =[4]EJECUTIVO!$J84 -> 34.66150197 | F90: =[5]EJECUTIVO!$I84 -> 11.67433343 | G90: =[5]EJECUTIVO!$J84 -> 11.74841276 | H90: =[1]EJECUTIVO!$I84 -> 28.37059331 | I90: =[1]EJECUTIVO!$J84 -> 27.15074075 | J90: =[6]EJECUTIVO!$I84 -> 51.32214135 | K90: =[6]EJECUTIVO!$J84 -> 49.09106341 | L90: =[7]EJECUTIVO!$I84 -> 32.84853799 | M90: =[7]EJECUTIVO!$J84 -> 33.24026517 | N90: =[8]EJECUTIVO!$I84 -> 47.62962579 | O90: =[8]EJECUTIVO!$J84 -> 51.63236988
A92: IV. SECTOR MONEDA Y CREDITO i/
A93: 1. Principales variables monetarias, tasas de variación | B93: =IF([3]EJECUTIVO!$J$100=[3]EJECUTIVO!$J$4,[3]EJECUTIVO!$G$101,CONCATENATE([3]EJECUTIVO!$G$101," ",[3]EJECUTIVO!$I$99," ",[3]EJECUTIVO!$J$99)) -> SEPTIEMBRE 2022 2023 | D93: =IF([4]EJECUTIVO!$J$100=[4]EJECUTIVO!$J$4,[4]EJECUTIVO!$G$101,CONCATENATE([4]EJECUTIVO!$G$101," ",[4]EJECUTIVO!$I$99," ",[4]EJECUTIVO!$J$99)) -> NOVIEMBRE 2022 2023 | F93: =IF([5]EJECUTIVO!$J$100=[5]EJECUTIVO!$J$4,[5]EJECUTIVO!$G$101,CONCATENATE([5]EJECUTIVO!$G$101," ",[5]EJECUTIVO!$I$99," ",[5]EJECUTIVO!$J$99)) -> DICIEMBRE 2022 2023 | H93: =IF([1]EJECUTIVO!$J$100=[1]EJECUTIVO!$J$4,[1]EJECUTIVO!$G$101,CONCATENATE([1]EJECUTIVO!$G$101," ",[1]EJECUTIVO!$I$99," ",[1]EJECUTIVO!$J$99)) -> OCTUBRE 2022 2023 | J93: =IF([6]EJECUTIVO!$J$100=[6]EJECUTIVO!$J$4,[6]EJECUTIVO!$G$101,CONCATENATE([6]EJECUTIVO!$G$101," ",[6]EJECUTIVO!$I$99," ",[6]EJECUTIVO!$J$99)) -> AGOSTO 2022 2023 | L93: =IF([7]EJECUTIVO!$J$100=[7]EJECUTIVO!$J$4,[7]EJECUTIVO!$G$101,CONCATENATE([7]EJECUTIVO!$G$101," ",[7]EJECUTIVO!$I$99," ",[7]EJECUTIVO!$J$99)) -> DICIEMBRE 2022 2023 | N93: =IF([8]EJECUTIVO!$J$100=[8]EJECUTIVO!$J$4,[8]EJECUTIVO!$G$101,CONCATENATE([8]EJECUTIVO!$G$101," ",[8]EJECUTIVO!$I$99," ",[8]EJECUTIVO!$J$99)) -> NOVIEMBRE 2022 2023
A94: 1.1 Base Monetaria Restringida, tasa interanual ponderada para los componentes | B94: =[3]EJECUTIVO!$I100 -> 15.35499879 | C94: =[3]EJECUTIVO!$J100 -> 9.594932693 | D94: =[4]EJECUTIVO!$I100 -> -20.41068527 | E94: =[4]EJECUTIVO!$J100 -> 8.163072976 | F94: =[5]EJECUTIVO!$I100 -> 7.044283177 | G94: =[5]EJECUTIVO!$J100 -> 10.20486127 | H94: =[1]EJECUTIVO!$I100 -> -10.22072275 | I94: =[1]EJECUTIVO!$J100 -> -0.919996487 | J94: =[6]EJECUTIVO!$I100 -> 13.01031486 | K94: =[6]EJECUTIVO!$J100 -> 19.98099118 | L94: =[7]EJECUTIVO!$I100 -> 13.12536224 | M94: =[7]EJECUTIVO!$J100 -> 3.34203463 | N94: =[8]EJECUTIVO!$I100 -> -11.42673188 | O94: =[8]EJECUTIVO!$J100 -> -5.978674454
A95: 1.1.1 Billetes y monedas en circulación | B95: =[3]EJECUTIVO!$I101 -> 0.4835548064 | C95: =[3]EJECUTIVO!$J101 -> -1.512757256 | D95: =[4]EJECUTIVO!$I101 -> 0.002548759592 | E95: =[4]EJECUTIVO!$J101 -> 0 | F95: =[5]EJECUTIVO!$I101 -> 7.688944443 | G95: =[5]EJECUTIVO!$J101 -> 9.372279091 | H95: =[1]EJECUTIVO!$I101 -> 8.515576749 | I95: =[1]EJECUTIVO!$J101 -> -1.53062596 | J95: =[6]EJECUTIVO!$I101 -> 11.63939115 | K95: =[6]EJECUTIVO!$J101 -> 15.19177955 | L95: =[7]EJECUTIVO!$I101 -> 2.018986872 | M95: =[7]EJECUTIVO!$J101 -> 7.204346367 | N95: =[8]EJECUTIVO!$I101 -> -11.42673188 | O95: =[8]EJECUTIVO!$J101 -> -5.978674454
A96: 1.1.2 Depósitos transferibles por concepto de encaje en MN | B96: =[3]EJECUTIVO!$I102 -> 14.87144398 | C96: =[3]EJECUTIVO!$J102 -> 11.10768995 | D96: =[4]EJECUTIVO!$I102 -> -20.41323403 | E96: =[4]EJECUTIVO!$J102 -> 8.163072976 | F96: =[5]EJECUTIVO!$I102 -> -0.7902478155 | G96: =[5]EJECUTIVO!$J102 -> 0.6982837078 | H96: =[1]EJECUTIVO!$I102 -> -19.92968167 | I96: =[1]EJECUTIVO!$J102 -> 4.569495571 | J96: =[6]EJECUTIVO!$I102 -> 1.370923712 | K96: =[6]EJECUTIVO!$J102 -> 4.78921163 | L96: =[7]EJECUTIVO!$I102 -> 11.10637537 | M96: =[7]EJECUTIVO!$J102 -> -3.862311737 | N96: =[8]EJECUTIVO!$I102 -> n.a. | O96: =[8]EJECUTIVO!$J102 -> n.a.
A97: 1.1.3 Valores por concepto de encaje en MN j/ | B97: =[3]EJECUTIVO!$I103 -> n.a. | C97: =[3]EJECUTIVO!$J103 -> n.a. | D97: =[4]EJECUTIVO!$I103 -> n.d. | E97: =[4]EJECUTIVO!$J103 -> n.d. | F97: =[5]EJECUTIVO!$I103 -> 0.1455865496 | G97: =[5]EJECUTIVO!$J103 -> 0.1342984714 | H97: =[1]EJECUTIVO!$I103 -> 1.193382174 | I97: =[1]EJECUTIVO!$J103 -> -3.958866098 | J97: =[6]EJECUTIVO!$I103 -> n.a. | K97: =[6]EJECUTIVO!$J103 -> n.a. | L97: =[7]EJECUTIVO!$I103 -> n.a. | M97: =[7]EJECUTIVO!$J103 -> n.a. | N97: =[8]EJECUTIVO!$I103 -> n.a. | O97: =[8]EJECUTIVO!$J103 -> n.a.
A98: 1.2. Agregados monetarios, tasa interanual ponderada para los componentes
A99: 1.2.1 Agregado Monetario M1, tasa de variación interanual | B99: =[3]EJECUTIVO!$I104 -> -8.048162155 | C99: =[3]EJECUTIVO!$J104 -> 8.666940042 | D99: =[4]EJECUTIVO!$I104 -> -1.894056814 | E99: =[4]EJECUTIVO!$J104 -> -1.905482543 | F99: =[5]EJECUTIVO!$I104 -> 11.37471413 | G99: =[5]EJECUTIVO!$J104 -> 8.42607109 | H99: =[1]EJECUTIVO!$I104 -> 26.33219272 | I99: =[1]EJECUTIVO!$J104 -> 6.100076632 | J99: =[6]EJECUTIVO!$I104 -> 17.51426386 | K99: =[6]EJECUTIVO!$J104 -> 24.39900029 | L99: =[7]EJECUTIVO!$I104 -> 10.22934428 | M99: =[7]EJECUTIVO!$J104 -> 9.014314798 | N99: =[8]EJECUTIVO!$I104 -> -4.236577619 | O99: =[8]EJECUTIVO!$J104 -> 0.3574182926
A100: 1.2.1.1 Billetes y monedas en poder del público | B100: =[3]EJECUTIVO!$I105 -> -0.5367901118 | C100: =[3]EJECUTIVO!$J105 -> 0.2860669786 | D100: =[4]EJECUTIVO!$I105 -> 0.0009468793537 | E100: =[4]EJECUTIVO!$J105 -> 0.0004656354757 | F100: =[5]EJECUTIVO!$I105 -> 5.285696398 | G100: =[5]EJECUTIVO!$J105 -> 5.889065208 | H100: =[1]EJECUTIVO!$I105 -> 6.729820406 | I100: =[1]EJECUTIVO!$J105 -> -0.6998193594 | J100: =[6]EJECUTIVO!$I105 -> 8.487912683 | K100: =[6]EJECUTIVO!$J105 -> 11.41635015 | L100: =[7]EJECUTIVO!$I105 -> 0.3502885091 | M100: =[7]EJECUTIVO!$J105 -> 2.935489442 | N100: =[8]EJECUTIVO!$I105 -> n.a. | O100: =[8]EJECUTIVO!$J105 -> n.a.
A101: 1.2.1.2 Depósitos transferibles en MN | B101: =[3]EJECUTIVO!$I106 -> -7.511372043 | C101: =[3]EJECUTIVO!$J106 -> 8.380873064 | D101: =[4]EJECUTIVO!$I106 -> -1.895003693 | E101: =[4]EJECUTIVO!$J106 -> -1.905948178 | F101: =[5]EJECUTIVO!$I106 -> 6.089017737 | G101: =[5]EJECUTIVO!$J106 -> 2.537005882 | H101: =[1]EJECUTIVO!$I106 -> 19.60237232 | I101: =[1]EJECUTIVO!$J106 -> 6.799895991 | J101: =[6]EJECUTIVO!$I106 -> 9.026351175 | K101: =[6]EJECUTIVO!$J106 -> 12.98265014 | L101: =[7]EJECUTIVO!$I106 -> 9.879055768 | M101: =[7]EJECUTIVO!$J106 -> 6.078825356 | N101: =[8]EJECUTIVO!$I106 -> -4.236577619 | O101: =[8]EJECUTIVO!$J106 -> 0.3574182926
A102: 1.2.2 Agregado Monetario M2, tasa de variación interanual | B102: =[3]EJECUTIVO!$I107 -> -4.783127572 | C102: =[3]EJECUTIVO!$J107 -> 11.10208382 | D102: =[4]EJECUTIVO!$I107 -> 5.008015969 | E102: =[4]EJECUTIVO!$J107 -> 8.795416749 | F102: =[5]EJECUTIVO!$I107 -> 10.36166965 | G102: =[5]EJECUTIVO!$J107 -> 6.872932516 | H102: =[1]EJECUTIVO!$I107 -> 14.83619063 | I102: =[1]EJECUTIVO!$J107 -> 12.55879342 | J102: =[6]EJECUTIVO!$I107 -> 17.51426386 | K102: =[6]EJECUTIVO!$J107 -> 24.39900029 | L102: =[7]EJECUTIVO!$I107 -> 6.994726103 | M102: =[7]EJECUTIVO!$J107 -> 16.88045789 | N102: =[8]EJECUTIVO!$I107 -> 1.29428889 | O102: =[8]EJECUTIVO!$J107 -> 2.865346545
A103: 1.2.2.1 Otros depósitos en MN | B103: =[3]EJECUTIVO!$I108 -> 0.1413051319 | C103: =[3]EJECUTIVO!$J108 -> 0.198086698 | D103: =[4]EJECUTIVO!$I108 -> 5.352154291 | E103: =[4]EJECUTIVO!$J108 -> 6.528585631 | F103: =[5]EJECUTIVO!$I108 -> 5.882049729 | G103: =[5]EJECUTIVO!$J108 -> 3.604633663 | H103: =[1]EJECUTIVO!$I108 -> 6.420080656 | I103: =[1]EJECUTIVO!$J108 -> 10.63875125 | J103: =[6]EJECUTIVO!$I108 -> n.a. | K103: =[6]EJECUTIVO!$J108 -> n.a. | L103: =[7]EJECUTIVO!$I108 -> 23.5389368 | M103: =[7]EJECUTIVO!$J108 -> 12.83282852 | N103: =[8]EJECUTIVO!$I108 -> 2.358004532 | O103: =[8]EJECUTIVO!$J108 -> 2.780506312
A104: 1.2.2.2 Valores distintos de acciones emitidos por las sociedades de depósitos en MN | B104: =[3]EJECUTIVO!$I109 -> 0.9319358589 | C104: =[3]EJECUTIVO!$J109 -> 4.813622929 | D104: =[4]EJECUTIVO!$I109 -> 0.2276050872 | E104: =[4]EJECUTIVO!$J109 -> 2.804216693 | F104: =[5]EJECUTIVO!$I109 -> -0.7905128249 | G104: =[5]EJECUTIVO!$J109 -> -0.6715042905 | H104: =[1]EJECUTIVO!$I109 -> 1.261973227 | I104: =[1]EJECUTIVO!$J109 -> 0.0968151023 | J104: =[6]EJECUTIVO!$I109 -> n.a. | K104: =[6]EJECUTIVO!$J109 -> n.a. | L104: =[7]EJECUTIVO!$I109 -> -20.96630327 | M104: =[7]EJECUTIVO!$J109 -> 0.03298012209 | N104: =[8]EJECUTIVO!$I109 -> 0 | O104: =[8]EJECUTIVO!$J109 -> 0
A105: 1.2.2.3 Agregado Monetario M1 | B105: =[3]EJECUTIVO!$I110 -> -5.856368563 | C105: =[3]EJECUTIVO!$J110 -> 6.090374194 | D105: =[4]EJECUTIVO!$I110 -> -0.5717434089 | E105: =[4]EJECUTIVO!$J110 -> -0.537385574 | F105: =[5]EJECUTIVO!$I110 -> 5.270132744 | G105: =[5]EJECUTIVO!$J110 -> 3.939803144 | H105: =[1]EJECUTIVO!$I110 -> 7.154136748 | I105: =[1]EJECUTIVO!$J110 -> 1.823227067 | J105: =[6]EJECUTIVO!$I110 -> 17.51426386 | K105: =[6]EJECUTIVO!$J110 -> 24.39900029 | L105: =[7]EJECUTIVO!$I110 -> 4.422092573 | M105: =[7]EJECUTIVO!$J110 -> 4.014649246 | N105: =[8]EJECUTIVO!$I110 -> -1.063715643 | O105: =[8]EJECUTIVO!$J110 -> 0.08484023302
A106: 1.2.3 Agregado Monetario M3, tasa de variación interanual k/ | B106: =[3]EJECUTIVO!$I111 -> 0.7497464827 | C106: =[3]EJECUTIVO!$J111 -> -0.5543108091 | D106: =[4]EJECUTIVO!$I111 -> 5.008015969 | E106: =[4]EJECUTIVO!$J111 -> 8.795416749 | F106: =[5]EJECUTIVO!$I111 -> 7.008374833 | G106: =[5]EJECUTIVO!$J111 -> 5.723454883 | H106: =[1]EJECUTIVO!$I111 -> 13.7506545 | I106: =[1]EJECUTIVO!$J111 -> 10.27141357 | J106: =[6]EJECUTIVO!$I111 -> 14.25718126 | K106: =[6]EJECUTIVO!$J111 -> 15.32436225 | L106: =[7]EJECUTIVO!$I111 -> 5.56820716 | M106: =[7]EJECUTIVO!$J111 -> 14.30594018 | N106: =[8]EJECUTIVO!$I111 -> 1.29428889 | O106: =[8]EJECUTIVO!$J111 -> 2.865346545
A107: 1.2.3.1 Depósitos transferibles en ME | B107: =[3]EJECUTIVO!$I112 -> 3.056209525 | C107: =[3]EJECUTIVO!$J112 -> -6.180450865 | D107: =[4]EJECUTIVO!$I112 -> n.a. | E107: =[4]EJECUTIVO!$J112 -> n.a. | F107: =[5]EJECUTIVO!$I112 -> -0.3292612668 | G107: =[5]EJECUTIVO!$J112 -> 0.109187849 | H107: =[1]EJECUTIVO!$I112 -> 0.9258396259 | I107: =[1]EJECUTIVO!$J112 -> -0.5785281064 | J107: =[6]EJECUTIVO!$I112 -> 3.035124209 | K107: =[6]EJECUTIVO!$J112 -> 2.182759555 | L107: =[7]EJECUTIVO!$I112 -> -3.60484753e-08 | M107: =[7]EJECUTIVO!$J112 -> n.a. | N107: =[8]EJECUTIVO!$I112 -> n.a. | O107: =[8]EJECUTIVO!$J112 -> n.a.
A108: 1.2.3.2 Otros depósitos en ME | B108: =[3]EJECUTIVO!$I113 -> 0.07459178597 | C108: =[3]EJECUTIVO!$J113 -> -0.03893514287 | D108: =[4]EJECUTIVO!$I113 -> n.a. | E108: =[4]EJECUTIVO!$J113 -> n.a. | F108: =[5]EJECUTIVO!$I113 -> -1.023429673 | G108: =[5]EJECUTIVO!$J113 -> -0.0712551804 | H108: =[1]EJECUTIVO!$I113 -> 1.140191927 | I108: =[1]EJECUTIVO!$J113 -> 0.9195022656 | J108: =[6]EJECUTIVO!$I113 -> 6.823531742 | K108: =[6]EJECUTIVO!$J113 -> 6.839371696 | L108: =[7]EJECUTIVO!$I113 -> 0.4784191431 | M108: =[7]EJECUTIVO!$J113 -> 1.856711837 | N108: =[8]EJECUTIVO!$I113 -> n.a. | O108: =[8]EJECUTIVO!$J113 -> n.a.
A109: 1.2.3.3 Valores distintos de acciones emitidos por las sociedades de depósito en ME | B109: =[3]EJECUTIVO!$I114 -> 0.6418978276 | C109: =[3]EJECUTIVO!$J114 -> -0.9661508618 | D109: =[4]EJECUTIVO!$I114 -> n.a. | E109: =[4]EJECUTIVO!$J114 -> n.a. | F109: =[5]EJECUTIVO!$I114 -> -0.08912175504 | G109: =[5]EJECUTIVO!$J114 -> -0.09516110981 | H109: =[1]EJECUTIVO!$I114 -> -0.05559642648 | I109: =[1]EJECUTIVO!$J114 -> -0.1024632097 | J109: =[6]EJECUTIVO!$I114 -> n.a. | K109: =[6]EJECUTIVO!$J114 -> n.a. | L109: =[7]EJECUTIVO!$I114 -> n.a. | M109: =[7]EJECUTIVO!$J114 -> n.a. | N109: =[8]EJECUTIVO!$I114 -> n.a. | O109: =[8]EJECUTIVO!$J114 -> n.a.
A110: 1.2.3.4 Agregado Monetario M2 | B110: =[3]EJECUTIVO!$I115 -> -3.022952656 | C110: =[3]EJECUTIVO!$J115 -> 6.63122606 | D110: =[4]EJECUTIVO!$I115 -> 5.008015969 | E110: =[4]EJECUTIVO!$J115 -> 8.795416749 | F110: =[5]EJECUTIVO!$I115 -> 8.450187528 | G110: =[5]EJECUTIVO!$J115 -> 5.780683324 | H110: =[1]EJECUTIVO!$I115 -> 11.74021937 | I110: =[1]EJECUTIVO!$J115 -> 10.03290262 | J110: =[6]EJECUTIVO!$I115 -> 4.398525309 | K110: =[6]EJECUTIVO!$J115 -> 6.302231003 | L110: =[7]EJECUTIVO!$I115 -> 5.089788053 | M110: =[7]EJECUTIVO!$J115 -> 12.44922834 | N110: =[8]EJECUTIVO!$I115 -> 1.29428889 | O110: =[8]EJECUTIVO!$J115 -> 2.865346545
A111: 1.3. Titulos emitidos por el Banco Central, tasa de variación interanual | B111: =[3]EJECUTIVO!$I116 -> -10.99111452 | C111: =[3]EJECUTIVO!$J116 -> 55.85101827 | D111: =[4]EJECUTIVO!$I116 -> 1773.020554 | E111: =[4]EJECUTIVO!$J116 -> -58.05747669 | F111: =[5]EJECUTIVO!$I116 -> -2.350546934 | G111: =[5]EJECUTIVO!$J116 -> -9.476941919 | H111: =[1]EJECUTIVO!$I116 -> 38.04955184 | I111: =[1]EJECUTIVO!$J116 -> -18.23675861 | J111: =[6]EJECUTIVO!$I116 -> -9.459830858 | K111: =[6]EJECUTIVO!$J116 -> -14.75432397 | L111: =[7]EJECUTIVO!$I116 -> 18.75689105 | M111: =[7]EJECUTIVO!$J116 -> 10.62679772 | N111: =[8]EJECUTIVO!$I116 -> 0.616324471 | O111: =[8]EJECUTIVO!$J116 -> 0.06272798725
A112: 1.3.1 Títulos emitidos por el BC en MN | B112: =[3]EJECUTIVO!$I117 -> -13.74843644 | C112: =[3]EJECUTIVO!$J117 -> 56.29347095 | D112: =[4]EJECUTIVO!$I117 -> -68.0252248 | E112: =[4]EJECUTIVO!$J117 -> 0 | F112: =[5]EJECUTIVO!$I117 -> -2.455130338 | G112: =[5]EJECUTIVO!$J117 -> -9.477692177 | H112: =[1]EJECUTIVO!$I117 -> 35.03521722 | I112: =[1]EJECUTIVO!$J117 -> -18.93759858 | J112: =[6]EJECUTIVO!$I117 -> n.a. | K112: =[6]EJECUTIVO!$J117 -> n.a. | L112: =[7]EJECUTIVO!$I117 -> 18.75689105 | M112: =[7]EJECUTIVO!$J117 -> 10.62679772 | N112: =[8]EJECUTIVO!$I117 -> 0.616324471 | O112: =[8]EJECUTIVO!$J117 -> 0.06272798725
A113: 1.3.2 Títulos emitidos por el BC en ME | B113: =[3]EJECUTIVO!$I118 -> n.d. | C113: =[3]EJECUTIVO!$J118 -> -0.44245268 | D113: =[4]EJECUTIVO!$I118 -> 1841.045778 | E113: =[4]EJECUTIVO!$J118 -> -58.05747669 | F113: =[5]EJECUTIVO!$I118 -> 0.1045834049 | G113: =[5]EJECUTIVO!$J118 -> 0.0007502583737 | H113: =[1]EJECUTIVO!$I118 -> 3.014334621 | I113: =[1]EJECUTIVO!$J118 -> 0.7008399715 | J113: =[6]EJECUTIVO!$I118 -> -9.459830858 | K113: =[6]EJECUTIVO!$J118 -> -14.75432397 | L113: =[7]EJECUTIVO!$I118 -> n.d. | M113: =[7]EJECUTIVO!$J118 -> n.d. | N113: =[8]EJECUTIVO!$I118 -> n.a. | O113: =[8]EJECUTIVO!$J118 -> n.a.
A114: 1.4. Saldo de los créditos de las Otras Sociedades de Depósito, tasa de variación interanual | B114: =[3]EJECUTIVO!$I119 -> 3.409958809 | C114: =[3]EJECUTIVO!$J119 -> 0.4325070192 | D114: =[4]EJECUTIVO!$I119 -> 9.540953244 | E114: =[4]EJECUTIVO!$J119 -> 8.035096817 | F114: =[5]EJECUTIVO!$I119 -> 9.668925936 | G114: =[5]EJECUTIVO!$J119 -> 8.346854773 | H114: =[1]EJECUTIVO!$I119 -> 16.70344308 | I114: =[1]EJECUTIVO!$J119 -> 12.7460934 | J114: =[6]EJECUTIVO!$I119 -> 13.19123174 | K114: =[6]EJECUTIVO!$J119 -> 7.036782988 | L114: =[7]EJECUTIVO!$I119 -> 14.44673706 | M114: =[7]EJECUTIVO!$J119 -> 15.35762677 | N114: =[8]EJECUTIVO!$I119 -> 9.821588115 | O114: =[8]EJECUTIVO!$J119 -> 5.523424973
A115: 1.4.1 Al Sector Público neto | B115: =[3]EJECUTIVO!$I120 -> -1.679129717 | C115: =[3]EJECUTIVO!$J120 -> 0.4600457667 | D115: =[4]EJECUTIVO!$I120 -> 1.490137322 | E115: =[4]EJECUTIVO!$J120 -> 3.655388926 | F115: =[5]EJECUTIVO!$I120 -> -0.2724258736 | G115: =[5]EJECUTIVO!$J120 -> -1.222660627 | H115: =[1]EJECUTIVO!$I120 -> 1.255218395 | I115: =[1]EJECUTIVO!$J120 -> -2.881765359 | J115: =[6]EJECUTIVO!$I120 -> 1.495905922 | K115: =[6]EJECUTIVO!$J120 -> -1.689965153 | L115: =[7]EJECUTIVO!$I120 -> 2.605483456 | M115: =[7]EJECUTIVO!$J120 -> 1.237402109 | N115: =[8]EJECUTIVO!$I120 -> 0.4024264307 | O115: =[8]EJECUTIVO!$J120 -> 0.1857664508
A116: 1.4.2 Al Sector Privado | B116: =[3]EJECUTIVO!$I121 -> 3.375109485 | C116: =[3]EJECUTIVO!$J121 -> 0.3931742426 | D116: =[4]EJECUTIVO!$I121 -> 7.808042211 | E116: =[4]EJECUTIVO!$J121 -> 3.930180873 | F116: =[5]EJECUTIVO!$I121 -> 8.70050927 | G116: =[5]EJECUTIVO!$J121 -> 7.270981396 | H116: =[1]EJECUTIVO!$I121 -> 13.85853615 | I116: =[1]EJECUTIVO!$J121 -> 15.80741041 | J116: =[6]EJECUTIVO!$I121 -> 8.411188192 | K116: =[6]EJECUTIVO!$J121 -> 11.32772648 | L116: =[7]EJECUTIVO!$I121 -> 11.27339565 | M116: =[7]EJECUTIVO!$J121 -> 13.53620083 | N116: =[8]EJECUTIVO!$I121 -> 2.980156896 | O116: =[8]EJECUTIVO!$J121 -> 2.032743863
A117: 1.4.3 A no residentes y otros | B117: =[3]EJECUTIVO!$I122 -> 1.713979041 | C117: =[3]EJECUTIVO!$J122 -> -0.4207129901 | D117: =[4]EJECUTIVO!$I122 -> 0.2427737118 | E117: =[4]EJECUTIVO!$J122 -> 0.4495270168 | F117: =[5]EJECUTIVO!$I122 -> 1.240842539 | G117: =[5]EJECUTIVO!$J122 -> 2.298534004 | H117: =[1]EJECUTIVO!$I122 -> 1.589688535 | I117: =[1]EJECUTIVO!$J122 -> -0.1795516504 | J117: =[6]EJECUTIVO!$I122 -> 3.284137621 | K117: =[6]EJECUTIVO!$J122 -> -2.600978337 | L117: =[7]EJECUTIVO!$I122 -> 0.5678579521 | M117: =[7]EJECUTIVO!$J122 -> 0.5840238325 | N117: =[8]EJECUTIVO!$I122 -> 6.439004788 | O117: =[8]EJECUTIVO!$J122 -> 3.304914659
A118: 2. Relaciones Analíticas | B118: =IF([3]EJECUTIVO!$J$120=[3]EJECUTIVO!$J$4,[3]EJECUTIVO!$G$121,CONCATENATE([3]EJECUTIVO!$G$121," ",[3]EJECUTIVO!$I$124," ",[3]EJECUTIVO!$J$124)) -> SEPTIEMBRE 2022 2023 | D118: =IF([4]EJECUTIVO!$J$121=[4]EJECUTIVO!$J$4,[4]EJECUTIVO!$G$122,CONCATENATE([4]EJECUTIVO!$G$122," ",[4]EJECUTIVO!$I$124," ",[4]EJECUTIVO!$J$124)) -> NOVIEMBRE 2022 2023 | F118: =IF([5]EJECUTIVO!$J$120=[5]EJECUTIVO!$J$4,[5]EJECUTIVO!$G$121,CONCATENATE([5]EJECUTIVO!$G$121," ",[5]EJECUTIVO!$I$124," ",[5]EJECUTIVO!$J$124)) -> DICIEMBRE 2022 2023 | H118: =IF([1]EJECUTIVO!$J$120=[1]EJECUTIVO!$J$4,[1]EJECUTIVO!$G$121,CONCATENATE([1]EJECUTIVO!$G$121," ",[1]EJECUTIVO!$I$124," ",[1]EJECUTIVO!$J$124)) -> OCTUBRE 2022 2023 | J118: =IF([6]EJECUTIVO!$J$120=[6]EJECUTIVO!$J$4,[6]EJECUTIVO!$G$121,CONCATENATE([6]EJECUTIVO!$G$125," ",[6]EJECUTIVO!$I$124," ",[6]EJECUTIVO!$J$124)) -> AGOSTO 2022 2023 | L118: =IF([7]EJECUTIVO!$J$120=[7]EJECUTIVO!$J$4,[7]EJECUTIVO!$G$121,CONCATENATE([7]EJECUTIVO!$G$121," ",[7]EJECUTIVO!$I$124," ",[7]EJECUTIVO!$J$124)) -> DICIEMBRE 2022 2023 | N118: =IF([8]EJECUTIVO!$J$120=[8]EJECUTIVO!$J$4,[8]EJECUTIVO!$G$125,CONCATENATE([8]EJECUTIVO!$G$125," ",[8]EJECUTIVO!$I$124," ",[8]EJECUTIVO!$J$124)) -> NOVIEMBRE 2022 2023
A119: 2.1 Multiplicador Monetario (M2/BMAmplia) | B119: =[3]EJECUTIVO!$I125 -> 1.813478214 | C119: =[3]EJECUTIVO!$J125 -> 1.716282199 | D119: =[4]EJECUTIVO!$I125 -> 7.434317333 | E119: =[4]EJECUTIVO!$J125 -> 7.606366115 | F119: =[5]EJECUTIVO!$I125 -> 2.59169017 | G119: =[5]EJECUTIVO!$J125 -> 2.580290763 | H119: =[1]EJECUTIVO!$I125 -> 2.146602446 | I119: =[1]EJECUTIVO!$J125 -> 2.523298207 | J119: =[6]EJECUTIVO!$I125 -> 0.5479273429 | K119: =[6]EJECUTIVO!$J125 -> 0.5753607919 | L119: =[7]EJECUTIVO!$I125 -> 2.278439525 | M119: =[7]EJECUTIVO!$J125 -> 2.480091522 | N119: =[8]EJECUTIVO!$I125 -> 15.96299322 | O119: =[8]EJECUTIVO!$J125 -> 17.6216202
A120: 2.2 Relación RIN / BMAmplia, en porcentajes | B120: =[3]EJECUTIVO!$I126 -> 67.63725982 | C120: =[3]EJECUTIVO!$J126 -> 73.97727021 | D120: =[4]EJECUTIVO!$I126 -> 103.5720365 | E120: =[4]EJECUTIVO!$J126 -> 105.2949909 | F120: =[5]EJECUTIVO!$I126 -> 111.2726409 | G120: =[5]EJECUTIVO!$J126 -> 110.0336358 | H120: =[1]EJECUTIVO!$I126 -> 99.88790729 | I120: =[1]EJECUTIVO!$J126 -> 96.95890535 | J120: =[6]EJECUTIVO!$I126 -> 158.3827796 | K120: =[6]EJECUTIVO!$J126 -> 163.315683 | L120: =[7]EJECUTIVO!$I126 -> 109.1643185 | M120: =[7]EJECUTIVO!$J126 -> 112.4453166 | N120: =[8]EJECUTIVO!$I126 -> 304.7754648 | O120: =[8]EJECUTIVO!$J126 -> 291.8925327
A121: 2.3 Relación Cuasidinero / M2, en porcentajes L/ | B121: =[3]EJECUTIVO!$I127 -> 29.72866821 | C121: =[3]EJECUTIVO!$J127 -> 31.26888051 | D121: =[4]EJECUTIVO!$I127 -> 71.7979272 | E121: =[4]EJECUTIVO!$J127 -> 74.57182659 | F121: =[5]EJECUTIVO!$I127 -> 53.2427023 | G121: =[5]EJECUTIVO!$J127 -> 52.56319851 | H121: =[1]EJECUTIVO!$I127 -> 71.01696465 | I121: =[1]EJECUTIVO!$J127 -> 71.68233479 | J121: =[6]EJECUTIVO!$I127 -> 0 | K121: =[6]EJECUTIVO!$J127 -> 0 | L121: =[7]EJECUTIVO!$I127 -> 55.46362273 | M121: =[7]EJECUTIVO!$J127 -> 58.46095456 | N121: =[8]EJECUTIVO!$I127 -> 76.26304116 | O121: =[8]EJECUTIVO!$J127 -> 76.84176462
A122: 2.4 Relación Depósitos en ME / Depósitos Totales, en porcentajes m/ | B122: =[3]EJECUTIVO!$I128 -> 47.01056384 | C122: =[3]EJECUTIVO!$J128 -> 39.80890921 | D122: =[4]EJECUTIVO!$I128 -> n.a. | E122: =[4]EJECUTIVO!$J128 -> n.a. | F122: =[5]EJECUTIVO!$I128 -> 18.99646191 | G122: =[5]EJECUTIVO!$J128 -> 18.14256577 | H122: =[1]EJECUTIVO!$I128 -> 22.02358671 | I122: =[1]EJECUTIVO!$J128 -> 20.39931606 | J122: =[6]EJECUTIVO!$I128 -> 86.44718603 | K122: =[6]EJECUTIVO!$J128 -> 84.73983606 | L122: =[7]EJECUTIVO!$I128 -> 29.57236327 | M122: =[7]EJECUTIVO!$J128 -> 27.53330446 | N122: =[8]EJECUTIVO!$I128 -> n.a. | O122: =[8]EJECUTIVO!$J128 -> n.a.
A123: 2.5 Relación Créditos en ME / Créditos Totales, en porcentajes m/ n/ | B123: =[3]EJECUTIVO!$I129 -> 35.1318789 | C123: =[3]EJECUTIVO!$J129 -> 31.44137087 | D123: =[4]EJECUTIVO!$I129 -> n.a. | E123: =[4]EJECUTIVO!$J129 -> n.a. | F123: =[5]EJECUTIVO!$I129 -> 24.09298073 | G123: =[5]EJECUTIVO!$J129 -> 22.62289536 | H123: =[1]EJECUTIVO!$I129 -> 21.41135567 | I123: =[1]EJECUTIVO!$J129 -> 20.31649099 | J123: =[6]EJECUTIVO!$I129 -> 100 | K123: =[6]EJECUTIVO!$J129 -> 100 | L123: =[7]EJECUTIVO!$I129 -> 20.31775661 | M123: =[7]EJECUTIVO!$J129 -> 19.86691042 | N123: =[8]EJECUTIVO!$I129 -> n.a. | O123: =[8]EJECUTIVO!$J129 -> n.a.
A124: 2.6 Relación Crédito-sector privado / PIB, en porcentajes | B124: =[3]EJECUTIVO!$I130 -> 53.47263157 | C124: =[3]EJECUTIVO!$J130 -> 51.19032441 | D124: =[4]EJECUTIVO!$I130 -> 51.49410152 | E124: =[4]EJECUTIVO!$J130 -> 50.28322082 | F124: =[5]EJECUTIVO!$I130 -> 39.09030704 | G124: =[5]EJECUTIVO!$J130 -> 39.97535885 | H124: =[1]EJECUTIVO!$I130 -> 64.76817414 | I124: =[1]EJECUTIVO!$J130 -> 70.64067908 | J124: =[6]EJECUTIVO!$I130 -> 24.55402708 | K124: =[6]EJECUTIVO!$J130 -> 25.69926941 | L124: =[7]EJECUTIVO!$I130 -> 27.3873881 | M124: =[7]EJECUTIVO!$J130 -> 30.19129648 | N124: =[8]EJECUTIVO!$I130 -> 77.95600728 | O124: =[8]EJECUTIVO!$J130 -> 74.07842093
A125: 2.7 Relación Saldo de OMA's / M3, en porcentajes | B125: =[3]EJECUTIVO!$I131 -> 6.014377363 | C125: =[3]EJECUTIVO!$J131 -> 9.425716127 | D125: =[4]EJECUTIVO!$I131 -> 3.464418854 | E125: =[4]EJECUTIVO!$J131 -> 1.335593657 | F125: =[5]EJECUTIVO!$I131 -> 10.02426529 | G125: =[5]EJECUTIVO!$J131 -> 8.583025876 | H125: =[1]EJECUTIVO!$I131 -> 14.39015588 | I125: =[1]EJECUTIVO!$J131 -> 10.34552346 | J125: =[6]EJECUTIVO!$I131 -> 11.65743626 | K125: =[6]EJECUTIVO!$J131 -> 8.616965359 | L125: =[7]EJECUTIVO!$I131 -> 39.19533393 | M125: =[7]EJECUTIVO!$J131 -> 37.93376155 | N125: =[8]EJECUTIVO!$I131 -> 3.207400026 | O125: =[8]EJECUTIVO!$J131 -> 3.120012785
A126: 3. Tasas de Interés y de encaje ñ/ | B126: =IF([3]EJECUTIVO!$J$84=[3]EJECUTIVO!$J$4,[3]EJECUTIVO!$G$85,CONCATENATE([3]EJECUTIVO!$G$89," ",[3]EJECUTIVO!$I$88," ",[3]EJECUTIVO!$J$88)) -> OCTUBRE 2022 2023 | D126: =IF([4]EJECUTIVO!$J$85=[4]EJECUTIVO!$J$4,[4]EJECUTIVO!$G$86,CONCATENATE([4]EJECUTIVO!$G$89," ",[4]EJECUTIVO!$I$88," ",[4]EJECUTIVO!$J$88)) -> OCTUBRE 2022 2023 | F126: =IF([5]EJECUTIVO!$J$84=[5]EJECUTIVO!$J$4,[5]EJECUTIVO!$G$85,CONCATENATE([5]EJECUTIVO!$G$89," ",[5]EJECUTIVO!$I$88," ",[5]EJECUTIVO!$J$88)) -> ENERO 2023 2024 | H126: =IF([1]EJECUTIVO!$J$84=[1]EJECUTIVO!$J$4,[1]EJECUTIVO!$G$85,CONCATENATE([1]EJECUTIVO!$G$89," ",[1]EJECUTIVO!$I$88," ",[1]EJECUTIVO!$J$88)) -> OCTUBRE 2022 2023 | J126: =IF([6]EJECUTIVO!$J$84=[6]EJECUTIVO!$J$4,[6]EJECUTIVO!$G$85,CONCATENATE([6]EJECUTIVO!$G$89," ",[6]EJECUTIVO!$I$88," ",[6]EJECUTIVO!$J$88)) -> DICIEMBRE 2022 2023 | L126: =IF([7]EJECUTIVO!$J$84=[7]EJECUTIVO!$J$4,[7]EJECUTIVO!$G$85,CONCATENATE([7]EJECUTIVO!$G$89," ",[7]EJECUTIVO!$I$88," ",[7]EJECUTIVO!$J$88)) -> ENERO 2023 2024 | N126: =IF([8]EJECUTIVO!$J$84=[8]EJECUTIVO!$J$4,[8]EJECUTIVO!$G$85,CONCATENATE([8]EJECUTIVO!$G$89," ",[8]EJECUTIVO!$I$88," ",[8]EJECUTIVO!$J$88)) -> NOVIEMBRE 2022 2023
A127: 3.1 Tasa interés activa nominal promedio corto plazo en MN | B127: =[3]EJECUTIVO!$I91 -> 12.63547192 | C127: =[3]EJECUTIVO!$J91 -> 13.25836886 | D127: =[4]EJECUTIVO!$I91 -> 6.66 | E127: =[4]EJECUTIVO!$J91 -> 7.81 | F127: =[5]EJECUTIVO!$I91 -> 11.89 | G127: =[5]EJECUTIVO!$J91 -> 12.18 | H127: =[1]EJECUTIVO!$I91 -> 14.25 | I127: =[1]EJECUTIVO!$J91 -> 14.39 | J127: =[6]EJECUTIVO!$I91 -> 9.132061241 | K127: =[6]EJECUTIVO!$J91 -> 12.27250822 | L127: =[7]EJECUTIVO!$I91 -> 13.9692 | M127: =[7]EJECUTIVO!J91 -> 14.7481 | N127: =[8]EJECUTIVO!$I91 -> 8.261111111 | O127: =[8]EJECUTIVO!J91 -> 8.897777778
A128: 3.2 Tasa interés activa real promedio corto plazo en MN | B128: =[3]EJECUTIVO!$I92 -> 3.343450361 | C128: =[3]EJECUTIVO!$J92 -> 14.72564272 | D128: =[4]EJECUTIVO!$I92 -> -0.7536115187 | E128: =[4]EJECUTIVO!$J92 -> 5.009955433 | F128: =[5]EJECUTIVO!$I92 -> 2.005206572 | G128: =[5]EJECUTIVO!$J92 -> 8.05520762 | H128: =[1]EJECUTIVO!$I92 -> 3.689316132 | I128: =[1]EJECUTIVO!$J92 -> 8.081628402 | J128: =[6]EJECUTIVO!$I92 -> -0.3393509599 | K128: =[6]EJECUTIVO!$J92 -> 7.372806676 | L128: =[7]EJECUTIVO!$I92 -> 6.271598402 | M128: =[7]EJECUTIVO!J92 -> 11.06383473 | N128: =[8]EJECUTIVO!$I92 -> 6.669169031 | O128: =[8]EJECUTIVO!J92 -> 6.75157406
A129: 3.3 Tasa interés activa promedio corto plazo en ME | B129: =[3]EJECUTIVO!$I93 -> 7.03135002 | C129: =[3]EJECUTIVO!$J93 -> 7.82531682 | D129: =[4]EJECUTIVO!$I93 -> 6.66 | E129: =[4]EJECUTIVO!$J93 -> 7.81 | F129: =[5]EJECUTIVO!$I93 -> 6.25 | G129: =[5]EJECUTIVO!$J93 -> 6.93 | H129: =[1]EJECUTIVO!$I93 -> 8 | I129: =[1]EJECUTIVO!$J93 -> 9.33 | J129: =[6]EJECUTIVO!$I93 -> 9.499210203 | K129: =[6]EJECUTIVO!$J93 -> 8.876809846 | L129: =[7]EJECUTIVO!$I93 -> 7.1843 | M129: =[7]EJECUTIVO!J93 -> 8.1926 | N129: =[8]EJECUTIVO!$I93 -> 8.261111111 | O129: =[8]EJECUTIVO!J93 -> 8.897777778
A130: 3.4 Tasa interés pasiva nominal promedio 180 días en MN | B130: =[3]EJECUTIVO!$I94 -> 6.02 | C130: =[3]EJECUTIVO!$J94 -> 5.46 | D130: =[4]EJECUTIVO!$I94 -> 4.66 | E130: =[4]EJECUTIVO!$J94 -> 5.26 | F130: =[5]EJECUTIVO!$I94 -> 3.99 | G130: =[5]EJECUTIVO!$J94 -> 4.59 | H130: =[1]EJECUTIVO!$I94 -> 4.18 | I130: =[1]EJECUTIVO!$J94 -> 6.64 | J130: =[6]EJECUTIVO!$I94 -> 3.511853036 | K130: =[6]EJECUTIVO!$J94 -> 4.409685574 | L130: =[7]EJECUTIVO!$I94 -> 10.204 | M130: =[7]EJECUTIVO!J94 -> 8.5685 | N130: =[8]EJECUTIVO!$I94 -> 1.62 | O130: =[8]EJECUTIVO!J94 -> 3.4525
A131: 3.5 Tasa interés pasiva real promedio 180 días en MN | B131: =[3]EJECUTIVO!$I95 -> -2.726268905 | C131: =[3]EJECUTIVO!$J95 -> 6.82624519 | D131: =[4]EJECUTIVO!$I95 -> -2.614597614 | E131: =[4]EJECUTIVO!$J95 -> 2.526184109 | F131: =[5]EJECUTIVO!$I95 -> -5.196877009 | G131: =[5]EJECUTIVO!$J95 -> 0.7442874399 | H131: =[1]EJECUTIVO!$I95 -> -5.449864729 | I131: =[1]EJECUTIVO!$J95 -> 0.7590248521 | J131: =[6]EJECUTIVO!$I95 -> -5.471789503 | K131: =[6]EJECUTIVO!$J95 -> -0.1468733329 | L131: =[7]EJECUTIVO!$I95 -> 2.760704035 | M131: =[7]EJECUTIVO!J95 -> 5.082645736 | N131: =[8]EJECUTIVO!$I95 -> 0.1257131552 | O131: =[8]EJECUTIVO!J95 -> 1.413614132
A132: 3.6 Tasa interés pasiva promedio 180 días en ME | B132: =[3]EJECUTIVO!$I96 -> 3.55204412 | C132: =[3]EJECUTIVO!$J96 -> 3.72950298 | D132: =[4]EJECUTIVO!$I96 -> 4.66 | E132: =[4]EJECUTIVO!$J96 -> 5.26 | F132: =[5]EJECUTIVO!$I96 -> 3 | G132: =[5]EJECUTIVO!$J96 -> 3.56 | H132: =[1]EJECUTIVO!$I96 -> 2.99 | I132: =[1]EJECUTIVO!$J96 -> 4.79 | J132: =[6]EJECUTIVO!$I96 -> 3.433869625 | K132: =[6]EJECUTIVO!$J96 -> 4.797023254 | L132: =[7]EJECUTIVO!$I96 -> 4.1661 | M132: =[7]EJECUTIVO!J96 -> 4.3245 | N132: =[8]EJECUTIVO!$I96 -> 1.62 | O132: =[8]EJECUTIVO!J96 -> 3.4525
A133: 3.7 Tasa de interés de Política Monetaria de fin de mes o/ | B133: =[3]EJECUTIVO!$I97 -> 9 | C133: =[3]EJECUTIVO!$J97 -> 6.25 | D133: =[4]EJECUTIVO!$I97 -> n.a. | E133: =[4]EJECUTIVO!$J97 -> n.a. | F133: =[5]EJECUTIVO!$I97 -> 4.25 | G133: =[5]EJECUTIVO!$J97 -> 5 | H133: =[1]EJECUTIVO!$I97 -> 3 | I133: =[1]EJECUTIVO!$J97 -> 3 | J133: =[6]EJECUTIVO!$I97 -> 7 | K133: =[6]EJECUTIVO!$J97 -> 7 | L133: =[7]EJECUTIVO!$I97 -> 8.5 | M133: =[7]EJECUTIVO!J97 -> 7 | N133: =[8]EJECUTIVO!$I97 -> n.a. | O133: =[8]EJECUTIVO!J97 -> n.a.
A134: 3.8 Tasa de encaje efectivo promedio (Obligaciones MN) | B134: =[3]EJECUTIVO!$I89 -> 15.74719711 | C134: =[3]EJECUTIVO!$J89 -> 15.53350059 | D134: =[4]EJECUTIVO!$I89 -> 12.23444765 | E134: =[4]EJECUTIVO!$J89 -> 11.58668332 | F134: =[5]EJECUTIVO!$I89 -> 14.69223517 | G134: =[5]EJECUTIVO!$J89 -> 14.68654665 | H134: =[1]EJECUTIVO!$I89 -> 13.06410527 | I134: =[1]EJECUTIVO!$J89 -> 12.48039815 | J134: =[6]EJECUTIVO!$I89 -> 25.37458643 | K134: =[6]EJECUTIVO!$J89 -> 21.32488956 | L134: =[7]EJECUTIVO!$I89 -> 12.24834682 | M134: =[7]EJECUTIVO!J89 -> 12.3124594 | N134: =[8]EJECUTIVO!$I89 -> n.a. | O134: =[8]EJECUTIVO!J89 -> n.a.
A135: 3.9 Tasa de encaje efectivo promedio (Obligaciones ME) | B135: =[3]EJECUTIVO!$I90 -> 15.93577217 | C135: =[3]EJECUTIVO!$J90 -> 15.84253521 | D135: =[4]EJECUTIVO!$I90 -> 12.23444765 | E135: =[4]EJECUTIVO!$J90 -> 11.58668332 | F135: =[5]EJECUTIVO!$I90 -> 15.71714212 | G135: =[5]EJECUTIVO!$J90 -> 15.49166792 | H135: =[1]EJECUTIVO!$I90 -> 29.1 | I135: =[1]EJECUTIVO!$J90 -> 27.1 | J135: =[6]EJECUTIVO!$I90 -> 15.92020005 | K135: =[6]EJECUTIVO!$J90 -> 19.04573829 | L135: =[7]EJECUTIVO!$I90 -> 26.76017043 | M135: =[7]EJECUTIVO!J90 -> 26.1832509 | N135: =[8]EJECUTIVO!$I90 -> n.a. | O135: =[8]EJECUTIVO!J90 -> n.a.
A137: V. SECTOR BURSÁTIL | B137: =IF([3]EJECUTIVO!$J$135=[3]EJECUTIVO!$J$8,[3]EJECUTIVO!$G$136,CONCATENATE([3]EJECUTIVO!$G$136," ",[3]EJECUTIVO!$I$135," ",[3]EJECUTIVO!$J$135)) -> SEPTIEMBRE 2022 2023 | D137: =IF([4]EJECUTIVO!$J$135=[4]EJECUTIVO!$J$8,[4]EJECUTIVO!$G$136,CONCATENATE([4]EJECUTIVO!$G$136," ",[4]EJECUTIVO!$I$135," ",[4]EJECUTIVO!$J$135)) -> OCTUBRE 2022 2023 | F137: =IF([5]EJECUTIVO!$J$135=[5]EJECUTIVO!$J$8,[5]EJECUTIVO!$G$136,CONCATENATE([5]EJECUTIVO!$G$136," ",[5]EJECUTIVO!$I$135," ",[5]EJECUTIVO!$J$135)) -> DICIEMBRE 2022 2023 | H137: =IF([1]EJECUTIVO!$J$135=[1]EJECUTIVO!$J$8,[1]EJECUTIVO!$G$136,CONCATENATE([1]EJECUTIVO!$G$136," ",[1]EJECUTIVO!$I$135," ",[1]EJECUTIVO!$J$135)) -> DICIEMBRE 2021 2022 | J137: =IF([6]EJECUTIVO!$J$135=[6]EJECUTIVO!$J$8,[6]EJECUTIVO!$G$136,CONCATENATE([6]EJECUTIVO!$G$136," ",[6]EJECUTIVO!$I$135," ",[6]EJECUTIVO!$J$135)) -> DICIEMBRE 2022 2023 | L137: =IF([7]EJECUTIVO!$J$135=[7]EJECUTIVO!$J$8,[7]EJECUTIVO!$G$136,CONCATENATE([7]EJECUTIVO!$G$136," ",[7]EJECUTIVO!$I$135," ",[7]EJECUTIVO!$J$135)) -> OCTUBRE 2022 2023 | N137: =IF([8]EJECUTIVO!$J$135=[8]EJECUTIVO!$J$8,[8]EJECUTIVO!$G$136,CONCATENATE([8]EJECUTIVO!$G$136," ",[8]EJECUTIVO!$I$135," ",[8]EJECUTIVO!$J$135)) -> SEPTIEMBRE 2021 2022
A139: 1 Volúmen Total Negociado por tipo de emisor, acumulado en mill.US$ | B139: =[3]EJECUTIVO!$I136 -> 11869.94115 | C139: =[3]EJECUTIVO!$J136 -> 16407.89646 | D139: =[4]EJECUTIVO!$I136 -> 2412.714726 | E139: =[4]EJECUTIVO!$J136 -> 4249.953731 | F139: =[5]EJECUTIVO!$I136 -> 134006.4253 | G139: =[5]EJECUTIVO!$J136 -> 106600.6099 | H139: =[1]EJECUTIVO!$I136 -> 5790.011741 | I139: =[1]EJECUTIVO!$J136 -> 4967.479825 | J139: =[6]EJECUTIVO!$I136 -> 1516.510418 | K139: =[6]EJECUTIVO!$J136 -> 1775.192761 | L139: =[7]EJECUTIVO!$I136 -> 9396.217977 | M139: =[7]EJECUTIVO!$J136 -> 9061.107655 | N139: =[8]EJECUTIVO!$I136 -> 7887.739605 | O139: =[8]EJECUTIVO!$J136 -> 4968.559939
A140: 1.1 Público | B140: =[3]EJECUTIVO!$I137 -> 10118.97315 | C140: =[3]EJECUTIVO!$J137 -> 14468.60302 | D140: =[4]EJECUTIVO!$I137 -> 1321.060854 | E140: =[4]EJECUTIVO!$J137 -> 2176.841212 | F140: =[5]EJECUTIVO!$I137 -> 133561.6472 | G140: =[5]EJECUTIVO!$J137 -> 106161.8089 | H140: =[1]EJECUTIVO!$I137 -> 5657.922873 | I140: =[1]EJECUTIVO!$J137 -> 4848.51538 | J140: =[6]EJECUTIVO!$I137 -> 1490.28915 | K140: =[6]EJECUTIVO!$J137 -> 1745.939172 | L140: =[7]EJECUTIVO!$I137 -> 7180.178507 | M140: =[7]EJECUTIVO!$J137 -> 7146.468455 | N140: =[8]EJECUTIVO!$I137 -> 2403.935056 | O140: =[8]EJECUTIVO!$J137 -> 1168.588806
A141: 1.2 Privado | B141: =[3]EJECUTIVO!$I138 -> 1750.967993 | C141: =[3]EJECUTIVO!$J138 -> 1939.293447 | D141: =[4]EJECUTIVO!$I138 -> 1091.653871 | E141: =[4]EJECUTIVO!$J138 -> 2073.112519 | F141: =[5]EJECUTIVO!$I138 -> 444.7780512 | G141: =[5]EJECUTIVO!$J138 -> 438.801042 | H141: =[1]EJECUTIVO!$I138 -> 132.0888675 | I141: =[1]EJECUTIVO!$J138 -> 118.9644459 | J141: =[6]EJECUTIVO!$I138 -> 26.22126787 | K141: =[6]EJECUTIVO!$J138 -> 29.25358933 | L141: =[7]EJECUTIVO!$I138 -> 2216.03947 | M141: =[7]EJECUTIVO!$J138 -> 1914.6392 | N141: =[8]EJECUTIVO!$I138 -> 5483.804549 | O141: =[8]EJECUTIVO!$J138 -> 3799.971133
A142: 2. Relaciones Analíticas
A143: 2.1 Reportos / volúmen total negociado, en porcentajes | B143: =[3]EJECUTIVO!$I140 -> 66.40274822 | C143: =[3]EJECUTIVO!$J140 -> 51.64622937 | D143: =[4]EJECUTIVO!$I140 -> 45.62216464 | E143: =[4]EJECUTIVO!$J140 -> 52.47053296 | F143: =[5]EJECUTIVO!$I140 -> 38.04710153 | G143: =[5]EJECUTIVO!$J140 -> 54.24621482 | H143: =[1]EJECUTIVO!$I140 -> 0 | I143: =[1]EJECUTIVO!$J140 -> 0 | J143: =[6]EJECUTIVO!$I140 -> 5.337998084 | K143: =[6]EJECUTIVO!$J140 -> 10.36428067 | L143: =[7]EJECUTIVO!$I140 -> n.d. | M143: =[7]EJECUTIVO!$J140 -> n.d. | N143: =[8]EJECUTIVO!$I140 -> 1.667863679 | O143: =[8]EJECUTIVO!$J140 -> 7.647175028
A144: 2.2 Mercado Secundario / Mercado Primario, (número de veces) | B144: =[3]EJECUTIVO!$I141 -> 5.275404852 | C144: =[3]EJECUTIVO!$J141 -> 5.978735546 | D144: =[4]EJECUTIVO!$I141 -> 1.071517677 | E144: =[4]EJECUTIVO!$J141 -> 0.7220840249 | F144: =[5]EJECUTIVO!$I141 -> 0.6201246581 | G144: =[5]EJECUTIVO!$J141 -> 1.205571286 | H144: =[1]EJECUTIVO!$I141 -> 0.1460482617 | I144: =[1]EJECUTIVO!$J141 -> 0.1383941071 | J144: =[6]EJECUTIVO!$I141 -> 0.03330696181 | K144: =[6]EJECUTIVO!$J141 -> 0.02698479629 | L144: =[7]EJECUTIVO!$I141 -> n.d. | M144: =[7]EJECUTIVO!$J141 -> n.d. | N144: =[8]EJECUTIVO!$I141 -> 0.3268791673 | O144: =[8]EJECUTIVO!$J141 -> 0.2607335641
A145: 2.3 Volúmen negociado en MN / Volúmen Total, en porcentajes | B145: =[3]EJECUTIVO!$I142 -> 49.04755219 | C145: =[3]EJECUTIVO!$J142 -> 63.53715866 | D145: =[4]EJECUTIVO!$I142 -> 100 | E145: =[4]EJECUTIVO!$J142 -> 100 | F145: =[5]EJECUTIVO!$I142 -> 92.50284872 | G145: =[5]EJECUTIVO!$J142 -> 93.76383881 | H145: =[1]EJECUTIVO!$I142 -> 94.36151246 | I145: =[1]EJECUTIVO!$J142 -> 96.23371996 | J145: =[6]EJECUTIVO!$I142 -> 26.47785938 | K145: =[6]EJECUTIVO!$J142 -> 63.01866496 | L145: =[7]EJECUTIVO!$I142 -> 77.70255021 | M145: =[7]EJECUTIVO!$J142 -> 80.32285132 | N145: =[8]EJECUTIVO!$I142 -> 100 | O145: =[8]EJECUTIVO!$J142 -> 100
A146: 2.4 Rendimiento Promedio: Operaciones de Reporto de 1 semana | B146: =[3]EJECUTIVO!$I139 -> n.d. | C146: =[3]EJECUTIVO!$J139 -> n.d. | D146: =[4]EJECUTIVO!$I139 -> 5.343151615 | E146: =[4]EJECUTIVO!$J139 -> 6.29766177 | F146: =[5]EJECUTIVO!$I139 -> n.a. | G146: =[5]EJECUTIVO!$J139 -> n.a. | H146: =[1]EJECUTIVO!$I139 -> n.a. | I146: =[1]EJECUTIVO!$J139 -> n.a. | J146: =[6]EJECUTIVO!$I139 -> n.a. | K146: =[6]EJECUTIVO!$J139 -> n.a. | L146: =[7]EJECUTIVO!$I139 -> n.a. | M146: =[7]EJECUTIVO!$J139 -> n.a. | N146: =[8]EJECUTIVO!$I139 -> n.d. | O146: =[8]EJECUTIVO!$J139 -> n.d.
A148: Notas:
A149: Notación: n.a.=no aplica , n.d.=no disponible, n.o.=No hubo transacción ese mes.
A151: a/ En Costa Rica corresponde a la nueva serie del PIB año base 2017; b/ Datos preliminares de 2021 y estimado 2022 (bancos centrales o WEO); c/ Los datos de Honduras no incluyen la maquila; d/ Las remesas provienen de la Balanza Cambiaria en Guatemala y Honduras y de la Balanza de Pagos para el resto de países; e/ Los flujos negativos de IED que se pudieran observar en El Salvador surgen debido a que en algunos periodos hay amortizaciones netas de préstamos con el inversionista directo, mayores a lo registrado por acciones u otras aportaciones de capital, los cuales por razones metodológicas deben sumarse al valor de la IED; f/ Incluye dentro de los socios comerciales al resto de países centroamericanos, República Dominicana, Panamá, Brasil, Canadá, China, Colombia, Corea del Sur, Haití, Japón, México, Estados Unidos y Zona Euro. Valores sobre (bajo) 100 significan una depreciación (apreciación) real de la moneda. Ver nota metodológica en http://www.secmca.org/nota/propuesta-de-actualizacion-del-indice-de-tipo-de-cambio-efectivo-real-itcer/; g/ Incluye dentro de los socios comerciales al resto de países Centroamericanos, República Dominicana y Panamá. Valores sobre (bajo) 100 significan una depreciación (apreciación) real de la moneda; h/ En Guatemala, Honduras y República Dominicana se refiere a la Deuda Pública Consolidada tal como lo recomienda la versión del 2001 del Manual de Estadísticas de Finanzas Públicas del FMI. En el resto de países se compila únicamente la deuda bruta. La Deuda Intragubernamental es la obligación contraída por una institución del gobierno con otra, por ejemplo los bonos emitidos por el Gobierno Central y que son comprados por una institución pública. Se resta de la deuda bruta para obtener la deuda consolidada; i/ Las estadísticas monetarias responden a los conceptos definidos en los cuadros armonizados que fueron aprobados por el CMCA en diciembre de 2007. Las tasas de variación de los componentes de cada concepto están ponderadas, de modo que la suma de las tasas coincide con la tasa de variación interanual de dicho concepto; j/ Costa Rica, Nicaragua y República Dominicana no tienen encaje remunerado; k/ En El Salvador el agregado monetario M3 es igual a M2 debido a que no existen pasivos de las Sociedades de Depósito en otra moneda que no sea el US dólar; L/ Esta relación es cero para Nicaragua debido a que todo el cuasidinero en MN se registra como cuasidinero en ME, dado que los depósitos y valores distintos de acciones en MN poseen cláusulas de mantenimiento de valor; m/ Esta relación no aplica a El Salvador debido a que no existen depósitos en una moneda distinta al US dólar, dada la vigencia de la Ley de Integración Monetaria; n/ Esta relación es 100 en Nicaragua debido a que los créditos en MN están indexados al tipo de cambio (mantenimiento de valor). Para efectos prácticos, están dolarizados; ñ/ En El Salvador desde el 2001 las tasas en MN y ME son las mismas, debido a la Ley de Integración Monetaria que circula el US dólar como la moneda local; o/ Para Costa Rica la Tasa de Política Monetaria (TPM) corresponde a la tasa de interés que utiliza el BCCR como referencia para conducir el costo de las operaciones a un día plazo en el Mercado Integrado de Liquidez dentro de un corredor formado por las tasas de interés de sus facilidades permanentes de crédito y de depósito en este mercado; en República Dominicana corresponde a la tasa de referencia para las operaciones de expansión y contracción al plazo de un día hábil; en Honduras la Tasa de Política Monetaria corresponde a la tasa máxima permitida para las posturas de compra y la tasa mínima para las posturas de venta, en las subastas de Letras del Banco Central de Honduras dirigidas a las instituciones del sistema financiero nacional; en Guatemala corresponde a la tasa de interés de los depósitos a plazo a un día (overnight); en El Salvador no aplica por no tener política monetaria y Nicaragua no define tasa de política monetaria.

Sheet Proyecciones
A2: Consejo Monetario Centroamericano | K2: =CONCATENATE(Indice!$J$47,",") -> REM N° 282, | L2: =Indice!$J$48 -> Enero 2024
A3: Secretaría Ejecutiva
A4: PROYECCIONES/METAS 2023-2024 DE LOS PRINCIPALES INDICADORES MACROECONÓMICOS
A6: Cuadro 1 | I6: Cuadro 2
A7: Inflación (IPC) porcentajes | B7: 2020 | C7: =B7+1 -> 2021 | D7: =C7+1 -> 2022 | E7: =CONCATENATE("Proyección inicial ", D7+1) -> Proyección inicial 2023 | F7: =CONCATENATE("Proyección revisada ", D7+1) -> Proyección revisada 2023 | G7: =CONCATENATE("Proyección ",D7+2) -> Proyección 2024 | I7: PIB real variación anual | J7: =B7 -> 2020 | K7: =C7 -> 2021 | L7: =+CONCATENATE(D7) -> 2022 | M7: =+E7 -> Proyección inicial 2023 | N7: =+F7 -> Proyección revisada 2023 | O7: =+G7 -> Proyección 2024
A8: Costa Rica | B8: =+'[2]Cuadros anuales'!H8 -> 0.892448522 | C8: =+'[2]Cuadros anuales'!I8 -> 3.29890791 | D8: =+'[2]Cuadros anuales'!J8 -> 7.877153761 | E8: =CONCATENATE([2]METAS!I8,"") -> 3.0 ± 1 | F8: =CONCATENATE([2]METAS!L8,"") -> 3.0 ± 1 | G8: =CONCATENATE([2]METAS!P8,"") -> 3.0 ± 1 | I8: Costa Rica | J8: =+'[2]Cuadros anuales'!H33 -> -4.273354322 | K8: =+'[2]Cuadros anuales'!I33 -> 7.935762247 | L8: =+'[2]Cuadros anuales'!J33 -> 4.55149178 | M8: =+[2]METAS!I33 -> 2.7 | N8: =+[2]METAS!L33 -> 5 | O8: =[2]METAS!P33 -> 4
A9: El Salvador | B9: =+'[2]Cuadros anuales'!H9 -> -0.08530843355 | C9: =+'[2]Cuadros anuales'!I9 -> 6.114806269 | D9: =+'[2]Cuadros anuales'!J9 -> 7.319683773 | E9: =CONCATENATE([2]METAS!I9,"") -> 4.0 - 5.0 | F9: =CONCATENATE([2]METAS!L9,"") -> 2,8 | G9: =CONCATENATE([2]METAS!P9,"") -> 2.0 - 2.5 | H9: os | I9: El Salvador | J9: =+'[2]Cuadros anuales'!H34 -> -7.878384376 | K9: =+'[2]Cuadros anuales'!I34 -> 11.17802939 | L9: =+'[2]Cuadros anuales'!J34 -> 2.600216685 | M9: =+[2]METAS!I34 -> 2.0 - 3.0 | N9: =+[2]METAS!L34 -> 2.7 | O9: =[2]METAS!P34 -> 2.5 - 3.0
A10: Guatemala | B10: =+'[2]Cuadros anuales'!H10 -> 4.823695346 | C10: =+'[2]Cuadros anuales'!I10 -> 3.067814855 | D10: =+'[2]Cuadros anuales'!J10 -> 9.236292428 | E10: =CONCATENATE([2]METAS!I10,"") -> 4.0 ± 1 | F10: =CONCATENATE([2]METAS!L10,"") ->  | G10: =CONCATENATE([2]METAS!P10,"") -> 4.0 ± 1 | I10: Guatemala | J10: =+'[2]Cuadros anuales'!H35 -> -1.79185768 | K10: =+'[2]Cuadros anuales'!I35 -> 8.002408043 | L10: =+'[2]Cuadros anuales'!J35 -> 4.117999702 | M10: =+[2]METAS!I35 -> 2.5 - 4.5 | N10: =+[2]METAS!L35 -> 3.484484731 | O10: =[2]METAS!P35 -> n.d.
A11: Honduras | B11: =+'[2]Cuadros anuales'!H11 -> 4.013079667 | C11: =+'[2]Cuadros anuales'!I11 -> 5.315804516 | D11: =+'[2]Cuadros anuales'!J11 -> 9.796472185 | E11: =CONCATENATE([2]METAS!I11,"") -> 6.0 - 7.0 | F11: =CONCATENATE([2]METAS!L11,"") -> 5.0 – 6.0 | G11: =CONCATENATE([2]METAS!P11,"") -> 4.0 – 5.0 | I11: Honduras | J11: =+'[2]Cuadros anuales'!H36 -> -8.964714879 | K11: =+'[2]Cuadros anuales'!I36 -> 12.53404001 | L11: =+'[2]Cuadros anuales'!J36 -> 3.997949815 | M11: =+[2]METAS!I36 -> 3.5 - 4.0 | N11: =+[2]METAS!L36 -> 3.0 – 3.5 | O11: =[2]METAS!P36 -> 3.5 – 4.0
A12: Nicaragua | B12: =+'[2]Cuadros anuales'!H12 -> 2.930569591 | C12: =+'[2]Cuadros anuales'!I12 -> 7.210067535 | D12: =+'[2]Cuadros anuales'!J12 -> 11.59344791 | E12: =CONCATENATE([2]METAS!I12,"") -> 6.0 - 7.0 | F12: =[2]METAS!L12 -> 4.5 - 5.5 | G12: =CONCATENATE([2]METAS!P12,"") -> 3.0 - 4.0 | I12: Nicaragua | J12: =+'[2]Cuadros anuales'!H37 -> -1.766248397 | K12: =+'[2]Cuadros anuales'!I37 -> 10.34722671 | L12: =+'[2]Cuadros anuales'!J37 -> 3.750774921 | M12: =+[2]METAS!I37 -> 2.5 - 3.5 | N12: =+[2]METAS!L37 -> 4.0 - 5.0 | O12: =[2]METAS!P37 -> 3.5 - 4.5
A13: Rep Dominicana | B13: =+'[2]Cuadros anuales'!H13 -> 5.553647812 | C13: =+'[2]Cuadros anuales'!I13 -> 8.495698987 | D13: =+'[2]Cuadros anuales'!J13 -> 7.826916116 | E13: =CONCATENATE([2]METAS!I13,"") -> 4.0 ± 1 | F13: =CONCATENATE([2]METAS!L13,"") ->  | G13: =CONCATENATE([2]METAS!P13,"") -> 4.0 ± 1 | I13: Rep Dominicana | J13: =+'[2]Cuadros anuales'!H38 -> -6.720239375 | K13: =+'[2]Cuadros anuales'!I38 -> 12.27199024 | L13: =+'[2]Cuadros anuales'!J38 -> 4.858324033 | M13: =+[2]METAS!I38 -> 4 | N13: =+[2]METAS!L38 -> 2.5 - 3.0 | O13: =[2]METAS!P38 -> 5
A14: Promedio región CARD | B14: =+'[2]Cuadros anuales'!H16 -> 5.578487313 | C14: =+'[2]Cuadros anuales'!I16 -> 8.618409705 | D14: =+'[2]Cuadros anuales'!J16 -> 3.022443362 | E14: =[2]METAS!I16 -> n.d. | G14: =[2]METAS!P16 -> n.d. | I14: Promedio región CARD | J14: =+'[2]Cuadros anuales'!H41 -> 10.2050965 | K14: =+'[2]Cuadros anuales'!I41 -> 4.2667498 | L14: =+'[2]Cuadros anuales'!J41 -> 3.49911351 | M14: =+[2]METAS!I41 -> 3,5 | O14: =CONCATENATE([2]METAS!P41,"") -> n.d.
A16: Cuadro 3 | I16: Cuadro 4
A17: Cuenta Corriente/PIB porcentajes | B17: =B7 -> 2020 | C17: =C7 -> 2021 | D17: =+CONCATENATE(D7) -> 2022 | E17: =+E7 -> Proyección inicial 2023 | F17: =+F7 -> Proyección revisada 2023 | G17: =+G7 -> Proyección 2024 | I17: RIN del Banco Central en millones de US$ | J17: =B7 -> 2020 | K17: 2021 | L17: 2022 | M17: Proyección inicial 2023 | N17: Proyección revisada 2023 | O17: Proyección 2024
A18: Costa Rica | B18: =+'[2]Cuadros anuales'!H154 -> -1.01234986 | C18: =+'[2]Cuadros anuales'!I154 -> -3.172297938 | D18: =+'[2]Cuadros anuales'!J154 -> -3.737124246 | E18: =[2]METAS!I154 -> -3.4 | F18: =[2]METAS!L154 -> -2.1 | G18: =[2]METAS!P154 -> -2 | I18: Costa Rica | J18: =+'[2]Cuadros anuales'!H118 -> 7224.666352 | K18: =+'[2]Cuadros anuales'!I118 -> 6918.14017 | L18: =+'[2]Cuadros anuales'!J118 -> 8550 | M18: =+[2]METAS!I118 -> n.d. | O18: =[2]METAS!P118 -> n.d.
A19: El Salvador | B19: =+'[2]Cuadros anuales'!H155 -> 1.616737717 | C19: =+'[2]Cuadros anuales'!I155 -> -4.318868969 | D19: =+'[2]Cuadros anuales'!J155 -> -6.605904619 | E19: n.d. | F19: =+[2]METAS!L155 ->  | G19: =[2]METAS!P155 -> n.d. | I19: El Salvador | J19: =+'[2]Cuadros anuales'!H119 -> 2915.2 | K19: =+'[2]Cuadros anuales'!I119 -> 3342.39 | L19: =+'[2]Cuadros anuales'!J119 -> 2440.44 | M19: n.d. | N19: =[2]METAS!L119 ->  | O19: =[2]METAS!P119 -> n.d.
A20: Guatemala | B20: =+'[2]Cuadros anuales'!H156 -> 5.049335079 | C20: =+'[2]Cuadros anuales'!I156 -> 2.19655125 | D20: =+'[2]Cuadros anuales'!J156 -> 1.313444487 | E20: =[2]METAS!I156 -> 0.8294187193 | F20: =[2]METAS!L156 -> 2.4 | G20: =[2]METAS!P156 -> n.d. | I20: Guatemala | J20: =+'[2]Cuadros anuales'!H120 -> 18468.2 | K20: =+'[2]Cuadros anuales'!I120 -> 20939.6 | L20: =+'[2]Cuadros anuales'!J120 -> 20019.8 | M20: =+[2]METAS!I120 -> 22439.6 | N20: =[2]METAS!L120 -> 20769.8 | O20: =[2]METAS!P120 -> n.d. | P20: =+M20 -> 22439.6
A21: Honduras | B21: =+'[2]Cuadros anuales'!H157 -> 3.784854665 | C21: =+'[2]Cuadros anuales'!I157 -> -3.358412577 | D21: =+'[2]Cuadros anuales'!J157 -> -4.330950648 | E21: =[2]METAS!I157 -> -3.8 | F21: =[2]METAS!L157 -> -3.5 | G21: =[2]METAS!P157 -> -3 | I21: Honduras | J21: =+'[2]Cuadros anuales'!H121 -> 8148.8 | K21: =+'[2]Cuadros anuales'!I121 -> 8677.556815 | L21: =+'[2]Cuadros anuales'!J121 -> 8421.5 | M21: =+[2]METAS!I121 -> n.d. | N21: =[2]METAS!L121 ->  | O21: =[2]METAS!P121 -> n.d. | P21: =+N21 -> 
A22: Nicaragua | B22: =+'[2]Cuadros anuales'!H158 -> 3.597641662 | C22: =+'[2]Cuadros anuales'!I158 -> -3.099685061 | D22: =+'[2]Cuadros anuales'!J158 -> -1.607362225 | E22: =[2]METAS!I158 -> -1.5 a -2.5 | F22: =[2]METAS!L158 -> 4.5 - 5.5 | G22: =[2]METAS!P158 -> n.d. | I22: Nicaragua | J22: =+'[2]Cuadros anuales'!H122 -> 3073.5 | K22: =+'[2]Cuadros anuales'!I122 -> 3954.552242 | L22: =+'[2]Cuadros anuales'!J122 -> 4356.370027 | M22: =+[2]METAS!I122 -> n.d. | N22: =[2]METAS!L122 ->  | O22: =[2]METAS!P122 -> n.d.
A23: Rep Dominicana | B23: =+'[2]Cuadros anuales'!H159 -> -1.696457046 | C23: =+'[2]Cuadros anuales'!I159 -> -2.840875456 | D23: =+'[2]Cuadros anuales'!J159 -> -5.549601274 | E23: =[2]METAS!I159 -> -4.2 | F23: =[2]METAS!L159 ->  | G23: =[2]METAS!P159 -> n.d. | I23: Rep Dominicana | J23: =+'[2]Cuadros anuales'!H123 -> 10751.67249 | K23: =+'[2]Cuadros anuales'!I123 -> 13033.91743 | L23: =+'[2]Cuadros anuales'!J123 -> 14436.13907 | M23: =+[2]METAS!I123 -> n.d. | N23: =[2]METAS!L123 ->  | O23: =[2]METAS!P123 -> n.d. | P23: =+M23 -> n.d.
A24: Promedio región CARD | B24: =+'[2]Cuadros anuales'!H162 -> -1.436625688 | C24: =+'[2]Cuadros anuales'!I162 -> -3.080459818 | D24: =+[2]METAS!H162 -> 0 | E24: =[2]METAS!I162 -> n.d | G24: =[2]METAS!P162 -> n.d. | I24: Total región CARD | J24: =+'[2]Cuadros anuales'!H126 -> 56866.15666 | K24: =+'[2]Cuadros anuales'!I126 -> 58224.2491 | L24: =+'[2]Cuadros anuales'!J126 -> 0 | M24: =+[2]METAS!I126 -> n.d. | O24: =CONCATENATE([2]METAS!P126,"") -> n.d. | P24: =+SUM(P18:P23) -> 22439.6
A26: Cuadro 5 | I26: Cuadro 6
A27: Exportaciones variación anual | B27: =B7 -> 2020 | C27: =C7 -> 2021 | D27: =D17 -> 2022 | E27: =E7 -> Proyección inicial 2023 | F27: =F7 -> Proyección revisada 2023 | G27: =G7 -> Proyección 2024 | I27: Importaciones variación anual | J27: =B7 -> 2020 | K27: =C7 -> 2021 | L27: =D17 -> 2022 | M27: =E7 -> Proyección inicial 2023 | N27: =F7 -> Proyección revisada 2023 | O27: =G7 -> Proyección 2024
A28: Costa Rica | B28: =+'[2]Cuadros anuales'!H70 -> 2.094990056 | C28: =+'[2]Cuadros anuales'!I70 -> 23.66563281 | D28: =+'[2]Cuadros anuales'!J70 -> 9.486834046 | E28: =[2]METAS!I70 -> n.d. | F28: =([2]METAS!L70) ->  | G28: =[2]METAS!$P70 -> n.d. | H28: =+E28 -> n.d. | I28: Costa Rica | J28: =+'[2]Cuadros anuales'!H94 -> -12.40989725 | K28: =+'[2]Cuadros anuales'!I94 -> 31.67823031 | L28: =+'[2]Cuadros anuales'!J94 -> 16.40935352 | M28: =[2]METAS!I94 -> n.d. | N28: =[2]METAS!$L94 ->  | O28: =[2]METAS!$P94 -> n.d.
A29: El Salvador | B29: =+'[2]Cuadros anuales'!H71 -> -18.62072352 | C29: =+'[2]Cuadros anuales'!I71 -> 33.0763324 | D29: =+'[2]Cuadros anuales'!J71 -> 11.26242985 | E29: n.d. | F29: =([2]METAS!L71) ->  | G29: =[2]METAS!$P71 -> n.d. | H29: =+E29 -> n.d. | I29: El Salvador | J29: =+'[2]Cuadros anuales'!H95 -> -14.77498489 | K29: =+'[2]Cuadros anuales'!I95 -> 47.83138988 | L29: =+'[2]Cuadros anuales'!J95 -> 17.03850611 | M29: n.d. | N29: =[2]METAS!$L95 ->  | O29: =[2]METAS!$P95 -> n.d.
A30: Guatemala | B30: =+'[2]Cuadros anuales'!H72 -> -0.6168197526 | C30: =+'[2]Cuadros anuales'!I72 -> 22.68653221 | D30: =+'[2]Cuadros anuales'!J72 -> 14.93785092 | E30: =[2]METAS!I72 -> 4.5 - 7.5 | F30: =([2]METAS!L72) -> -1.5 - -4.5 | G30: =[2]METAS!$P72 -> n.d. | H30: =IF([1]EJECUTIVO!$J$38=[1]EJECUTIVO!$J$4,[1]EJECUTIVO!$G$38,(CONCATENATE([1]EJECUTIVO!$G$38," ",[1]EJECUTIVO!$I$37," ",[1]EJECUTIVO!$J$37))) -> ENERO 2022 2023 | I30: Guatemala | J30: =+'[2]Cuadros anuales'!H96 -> -8.425711699 | K30: =+'[2]Cuadros anuales'!I96 -> 46.14265 | L30: =+'[2]Cuadros anuales'!J96 -> 20.72999436 | M30: =[2]METAS!I96 -> 6.5 - 9.5 | N30: =[2]METAS!$L96 -> -0.5 - 2.5 | O30: =[2]METAS!$P96 -> n.d.
A31: Honduras | B31: =+'[2]Cuadros anuales'!H73 -> -12.61612099 | C31: =+'[2]Cuadros anuales'!I73 -> 33.4950241 | D31: =+'[2]Cuadros anuales'!J73 -> 19.91076165 | E31: =[2]METAS!I73 -> 2.5 | F31: =([2]METAS!L73) -> -4.7 | G31: =[2]METAS!$P73 -> 6.1 | H31: 13.6 | I31: Honduras | J31: =+'[2]Cuadros anuales'!H97 -> -15.50103343 | K31: =+'[2]Cuadros anuales'!I97 -> 50.01742998 | L31: =+'[2]Cuadros anuales'!J97 -> 22.81409528 | M31: =[2]METAS!I97 -> 6.3 | N31: =[2]METAS!$L97 -> -4.8 | O31: =[2]METAS!$P97 -> 6.1
A32: Nicaragua | B32: =+'[2]Cuadros anuales'!H74 -> -5.088745508 | C32: =+'[2]Cuadros anuales'!I74 -> 29.37827577 | D32: =+'[2]Cuadros anuales'!J74 -> 12.60924644 | E32: =[2]METAS!I74 -> n.d. | F32: =([2]METAS!L74) ->  | G32: =[2]METAS!$P74 -> n.d. | H32: 8.2 | I32: Nicaragua | J32: =+'[2]Cuadros anuales'!H98 -> -5.003912657 | K32: =+'[2]Cuadros anuales'!I98 -> 41.82411758 | L32: =+'[2]Cuadros anuales'!J98 -> 21.01940798 | M32: =[2]METAS!I98 -> n.d. | N32: =[2]METAS!$L98 ->  | O32: =[2]METAS!$P98 -> n.d.
A33: Rep Dominicana | B33: =+'[2]Cuadros anuales'!H75 -> -7.958758834 | C33: =+'[2]Cuadros anuales'!I75 -> 21.20482629 | D33: =+'[2]Cuadros anuales'!J75 -> 10.33524475 | E33: =[2]METAS!I75 -> 4.8 | F33: =([2]METAS!L75) ->  | G33: =[2]METAS!$P75 -> n.d. | H33: 47 | I33: Rep Dominicana | J33: =+'[2]Cuadros anuales'!H99 -> -15.6050484 | K33: =+'[2]Cuadros anuales'!I99 -> 41.95849167 | L33: =+'[2]Cuadros anuales'!J99 -> 26.60777531 | M33: =[2]METAS!I99 -> 0.7 | N33: =[2]METAS!$L99 ->  | O33: =[2]METAS!$P99 -> n.d.
A34: Promedio región CARD | B34: =+'[2]Cuadros anuales'!H78 -> -5.655813035 | C34: =+'[2]Cuadros anuales'!I78 -> 24.67053375 | D34: n.d. | E34: =[2]METAS!I78 -> n.d. | G34: =[2]METAS!$P78 -> n.d. | I34: Promedio región CARD | J34: =+'[2]Cuadros anuales'!H102 -> -12.4242114 | K34: =+'[2]Cuadros anuales'!I102 -> 42.70904812 | L34: n.d. | M34: =[2]METAS!I102 -> n.d. | O34: =[2]METAS!$P102 -> n.d.
A35: En Honduras no se incluyen los bienes para la transformación. | I35: En Honduras no se incluyen los bienes para la transformación.
A36: Cuadro 7 | I36: Cuadro 8
A37: Remesas (Ingreso) en millones de US$ | B37: =B7 -> 2020 | C37: 2021 | D37: 2022 | E37: Proyección inicial 2023 | F37: Proyección revisada 2023 | G37: Proyección 2024 | I37: Saldo Operacional del Gobierno Central/PIB | J37: =B7 -> 2020 | K37: =C7 -> 2021 | L37: =D17 -> 2022 | M37: =E7 -> Proyección inicial 2023 | N37: =F7 -> Proyección revisada 2023 | O37: =G7 -> Proyección 2024
A38: Costa Rica | B38: =+'[2]Cuadros anuales'!H130 -> 495.2607316 | C38: =+'[2]Cuadros anuales'!I130 -> 558.8144439 | D38: =+'[2]Cuadros anuales'!J130 -> 575.2867613 | E38: =+[2]METAS!I130 -> n.d. | F38: =+[2]METAS!L130 ->  | G38: =+[2]METAS!P130 -> n.d. | H38: =+E38 -> n.d. | I38: Costa Rica | J38: =+'[2]Cuadros anuales'!H191 -> -7.962489832 | K38: =+'[2]Cuadros anuales'!I191 -> -4.991797417 | L38: =+'[2]Cuadros anuales'!J191 -> -2.487107861 | M38: =+[2]METAS!I179 -> -3.5 | N38: =[2]METAS!L179 -> -3.4 | O38: =[2]METAS!P179 -> -3.1 | P38: =+N38 -> -3.4
A39: El Salvador | B39: =+'[2]Cuadros anuales'!H131 -> 5929.94 | C39: =+'[2]Cuadros anuales'!I131 -> 7585.24 | D39: =+'[2]Cuadros anuales'!J131 -> 7819.57 | E39: =+[2]METAS!I131 -> n.d. | F39: =+[2]METAS!L131 ->  | G39: =+[2]METAS!P131 -> n.d. | H39: =+E39 -> n.d. | I39: El Salvador | J39: =+'[2]Cuadros anuales'!H192 -> -9.10329441 | K39: =+'[2]Cuadros anuales'!I192 -> -4.81054182 | L39: =+'[2]Cuadros anuales'!J192 -> -1.80800363 | M39: n.d. | N39: =[2]METAS!L180 ->  | O39: =[2]METAS!P180 -> n.d. | P39: =+M39 -> n.d.
A40: Guatemala | B40: =+'[2]Cuadros anuales'!H132 -> 11340.5 | C40: =+'[2]Cuadros anuales'!I132 -> 15295.7 | D40: =+'[2]Cuadros anuales'!J132 -> 18040.32108 | E40: =+[2]METAS!I132 -> 18645.44028 | F40: =+[2]METAS!L132 -> 20024.75642 | G40: =+[2]METAS!P132 -> n.d. | H40: =+E40 -> 18645.44028 | I40: Guatemala | J40: =+'[2]Cuadros anuales'!H193 -> -4.909835421 | K40: =+'[2]Cuadros anuales'!I193 -> -1.167546705 | L40: =+'[2]Cuadros anuales'!J193 -> -1.706501518 | M40: =+[2]METAS!I181 -> -2.508652163 | N40: =[2]METAS!L181 -> -1.708885625 | O40: =[2]METAS!P181 -> n.d. | P40: =+M40 -> -2.508652163
A41: Honduras | B41: =+'[2]Cuadros anuales'!H133 -> 5741.0466 | C41: =+'[2]Cuadros anuales'!I133 -> 7370.0331 | D41: =+'[2]Cuadros anuales'!J133 -> 8686.1973 | E41: =+[2]METAS!I133 -> 9184.4 | F41: =+[2]METAS!L133 -> 8888.2 | G41: =+[2]METAS!P133 -> 9332.6 | H41: =+F41 -> 8888.2 | I41: Honduras | J41: =+'[2]Cuadros anuales'!H194 -> -6.989955335 | K41: =+'[2]Cuadros anuales'!I194 -> -4.962950534 | L41: =+'[2]Cuadros anuales'!J194 -> -1.291929097 | M41: =+[2]METAS!I182 -> 4.2 | N41: =[2]METAS!L182 ->  | O41: =[2]METAS!P182 -> 3.6 | P41: -3.7
A42: Nicaragua | B42: =+'[2]Cuadros anuales'!H134 -> 1851.4 | C42: =+'[2]Cuadros anuales'!I134 -> 2146.9 | D42: =+'[2]Cuadros anuales'!J134 -> 3224.9 | E42: =+[2]METAS!I134 -> n.d. | F42: =+[2]METAS!L134 ->  | G42: =+[2]METAS!P134 -> n.d. | I42: Nicaragua | J42: =+'[2]Cuadros anuales'!H195 -> -1.052299155 | K42: =+'[2]Cuadros anuales'!I195 -> -0.7342340631 | L42: =+'[2]Cuadros anuales'!J195 -> 1.293447346 | M42: n.d. | N42: =[2]METAS!L183 ->  | O42: =[2]METAS!P183 -> n.d. | P42: =+M42 -> n.d.
A43: Rep Dominicana | B43: =+'[2]Cuadros anuales'!H135 -> 8219.262926 | C43: =+'[2]Cuadros anuales'!I135 -> 10402.4692 | D43: =+'[2]Cuadros anuales'!J135 -> 9856.497461 | E43: =+[2]METAS!I135 -> 10200 | F43: =+[2]METAS!L135 ->  | G43: =+[2]METAS!P135 -> n.d. | I43: Rep Dominicana | J43: =+'[2]Cuadros anuales'!H196 -> -7.90610947 | K43: =+'[2]Cuadros anuales'!I196 -> -2.939321382 | L43: =+'[2]Cuadros anuales'!J196 -> -3.247304283 | M43: =+[2]METAS!I184 -> n.d. | N43: =[2]METAS!L184 ->  | O43: =[2]METAS!P184 -> n.d. | P43: =+M43 -> n.d.
A44: Total región CARD | B44: =+'[2]Cuadros anuales'!H138 -> 43359.15674 | C44: =+'[2]Cuadros anuales'!I138 -> 48202.77261 | D44: n.d. | E44: =+[2]METAS!I138 -> n.d. | G44: =CONCATENATE([2]METAS!P138,"") -> n.d. | I44: Promedio región CARD | J44: =+'[2]Cuadros anuales'!H199 -> -6.706557046 | K44: =+'[2]Cuadros anuales'!I199 -> -2.99028265 | L44: n.d. | M44: =+[2]METAS!I187 -> n.d | O44: =[2]METAS!P187 -> n.d.
I45: Incluye donaciones
A46: Fuente: Bancos Centrales Centroamericanos y de República Dominicana.
A47: NOTAS:
A48: La región CARD incluye a los países de Centroamérica y República Dominicana
A49: Los promedios regionales están ponderados conforme al tamaño de cada economía.

Sheet Seguimiento proyecciones
A2: CONSEJO MONETARIO CENTROAMERICANO | M2: =CONCATENATE(Indice!$J$47,",") -> REM N° 282, | N2: =Indice!$J$48 -> Enero 2024
A3: SECRETARIA EJECUTIVA
A4: SEGUIMIENTO DE LAS PROYECCIONES EN 2023
A6: Inflación Acumulada en 2024 | I6: Resultado operacional del Gobierno Central 2023
I7: (incluye las donaciones)
A25: Cuando se especifica un rango en las metas de inflación, se toma el límite superior. | I25: El saldo positivo de República Dominicana se debe a que en enero del 2015 se incluye dentro de las donaciones la suma de RD$ 93,157.2 millones, correspondiente al descuento generado por la transacción de deuda realizada con Petrocaribe.
A28: Saldo en la Cuenta Corriente 2023 | I28: Reservas Internacionales Netas
I29: del Banco Central 2023
H30: =IF([1]EJECUTIVO!$J$38=[1]EJECUTIVO!$J$4,[1]EJECUTIVO!$G$38,(CONCATENATE([1]EJECUTIVO!$G$38," ",[1]EJECUTIVO!$I$37," ",[1]EJECUTIVO!$J$37))) -> ENERO 2022 2023
A50: Exportaciones Totales con Maquila 2023 | I50: Importaciones Totales con Maquila 2023
A72: Ingresos por Remesas Familiares 2023
A93: Los datos de Costa Rica no están disponibles en forma mensual. Anualmente Costa Rica recibe alrededor de 500 millones de US dólares por concepto de remesas.

Sheet Gráficos-pais
S2: Seleccione el país
A3: CONSEJO MONETARIO CENTROAMERICANO | O3: =CONCATENATE(Indice!$J$47,",") -> REM N° 282, | P3: =Indice!$J$48 -> Enero 2024
A4: SECRETARIA EJECUTIVA
A5: EVOLUCIÓN POR PAÍS DE INDICADORES MACROECONÓMICOS SELECCIONADOS
A10: Tasa de Inflación Interanual | J10: IMAE | S10: Nota: Se le recuerda habilitar las macros para hacer uso de las herramientas dinámicas presentes en este informe.
J11: Variación interanual de la Tendencia-Ciclo
H30: =IF([1]EJECUTIVO!$J$38=[1]EJECUTIVO!$J$4,[1]EJECUTIVO!$G$38,(CONCATENATE([1]EJECUTIVO!$G$38," ",[1]EJECUTIVO!$I$37," ",[1]EJECUTIVO!$J$37))) -> ENERO 2022 2023
A34: ITCER bilateral USA año base 2000 | J34: Tipo de Cambio Nominal Tasa de variación interanual
A35: 2000=100 | J35: Tasa de Variación Interanual
A58: RIN Banco Central | J58: RIN Banco Central/ Base Monetaria Amplia
A81: En Panamá, el Banco Nacional de Panamá (BNP) funciona como receptor y gestor de las RIN que corresponden a los activos externos de reserva menos los pasivos de corto plazo frente a no residentes. Los primeros se componen de: billetes y depósitos en moneda extranjera e inversiones en títulos (incluidos los títulos de deuda y participaciones de capital); los pasivos se componen de los depósitos transferibles de no residentes en moneda extranjera. En Costa Rica se dió un aumento en las RIN en marzo de 2018 de US$ 1.000 millones provenientes del FLAR. | J81: República Dominicana presenta un incremento de US$1,246 millones en febrero de 2018 debido a la colocación de bonos soberanos en el mercado global de capitales. En El Salvador al cierre de febrero de 2017 las Reservas Internacionales Netas (RIN) alcanzaron un nivel de US$3,510.9 millones, un incremento de US$607 millones respecto al mes de enero de 2017, explicado por la colocación de bonos del Gobierno de El Salvador ($601 millones). La relación RIN a Base Monetaria es alta en Panamá (escala derecha) debido a que la base monetaria es pequeña; esto es consecuencia de que no existe encaje legal debido a la ausencia de Banco Central.
A85: Exportaciones totales FOB, del mes | J85: Importaciones totales CIF, del mes
A86: Promedio móvil de los últimos 12 meses | J86: Promedio móvil de los últimos 12 meses
A107: Las cifras de Honduras no incluyen la maquila. | J107: Las cifras de Honduras no incluyen la maquila.
A109: Tasa de interés pasiva real en MN a 180 días | J109: Tasa de interés activa real en MN de corto plazo
A132: La tasa real se obtiene deflatando con la tasa de variación interanual del IPC al mes indicado. | J132: La tasa real se obtiene deflatando con la tasa de variación interanual del IPC al mes indicado.
A134: Tasa de interés pasiva en ME a 180 días | J134: Tasa de interés activa en ME de corto plazo
J158: En Honduras, a partir de enero 2017, la CNBS implementó las Normas Internacionales de Información Financiera (NIIF) en los balances contables de los Bancos Comerciales, Sociedades Financieras y Banhprovi, permitiendo cambios en el cálculo de las tasas de interés activas y pasivas.
J159: En Costa Rica a partir de enero 2019 cambia la metodología de cálculo de tasas de interés para utilizar tasas ponderadas por el monto de la operación.
A160: Tasa de interés líder de Política Monetaria | J160: Créditos de las OSD al sector Privado, Variación Interanual
A161: evolución mensual
A182: En Nicaragua corresponde a la Tasa de Referencia de Reportos Monetarios (TRM) que el BCN utiliza para indicar el costo de operaciones a un día en las subastas de reportos monetarios. Es definida por el Comité de Operaciones de Mercado Abierto. La serie inicia en abril de 2020.

Sheet Nota Técnica
K1: Consejo Monetario Centroamericano
K2: Secretaría Ejecutiva
D5: REPORTE EJECUTIVO MENSUAL
D7: DE INDICADORES MACROECONÓMICOS
D8: DE CENTROAMÉRICA, REPÚBLICA DOMINICANA y
D9: PANAMÁ
B12: Glosario de Términos
B13: PIB | D13: Producto Interno Bruto
B14: IMAE | D14: Índice Mensual de Actividad Económica
B15: IPC | D15: Índice de Precios al Consumidor
B16: ISI | D16: Índice Subyacente de Inflación. En algunos países se utiliza el Indice del Nucleo Inflacionario (INI)
B17: Región CARD | D17: La región incluye los siguientes países: Costa Rica, El Salvador, Guatemala, Honduras, Nicaragua y República Dominicana
B18: Región CAPARD | D18: La región incluye los siguientes países: Costa Rica, El Salvador, Guatemala, Honduras, Nicaragua, Panamá y República Dominicana
B20: Definición de términos
B22: Variación Interanual | E22: Variación porcentual del nivel del mes respecto al mismo mes del año anterior.
B23: Variación acumulada | E23: Variación porcentual del nivel del mes vigente respecto al mes de diciembre del año anterior.
B24: Aceleración | E24: Diferencia en valor absoluto entre la variación (interanual) de un mes respecto al mes anterior. Su interpretación se realiza en puntos porcentuales.
B25: Metas de Inflación | E25: Esquema donde el Banco Central hace explícita su meta de inflación puntual o rango, y los instrumentos de política monetaria se direccionan en la obtención de dicha meta.
B26: Inflación Subyacente | E26: El Índice subyacente de Inflación (ISI) se define como el componente del cambio total de precios común a todos los bienes y servicios, cuya persistencia se mantendría en el mediano y largo plazo. El ISI constituye una medida alternativa del IPC, al que se le han eliminado algunos de los bienes y servicios cuyos precios son, por lo general, los más volátiles. El algunos países se denomina índice del nucleo inflacionario.
B27: Tendencia-Ciclo | E27: Serie de tiempo que excluye los componentes de estacionalidad e irregularidad.
B28: RIN/meses de importación promedio | E28: Tanto en el cuadro regional como en el compartivo por país se calcula la relación de RIN a importaciones promedio. En ambos casos el denominador corresponde al promedio de importaciones observadas de enero al mes indicado. En el cálculo regional se suman las importaciones totales y las RIN de todos los países de la región.
B31: Periodos base de los principales indicadores del sector real
D32: Año Base o de referencia del Indicador Mensual de Actividad Económica IMAE | H32: Año Base o de referencia del Producto Interno Bruto en términos constantes | L32: Periodo base de los Índices de Precios al Consumidor
B33: País
B34: Costa Rica | E34: 2017 | I34: 2017 | M34: Diciembre 2020
B35: El Salvador | E35: 2014 | I35: 2014 | M35: Diciembre 2009
B36: Guatemala | E36: 2013 | I36: 2013 | M36: Diciembre 2023
B37: Honduras | E37: 2000 | I37: 2000 | M37: Diciembre 1999
B38: Nicaragua | E38: 2006 | I38: 2006 | M38: 2006
B39: República Dominicana | E39: 2007 | I39: 2007 | M39: Oct.2019-Sept. 2020
B40: Panamá | E40: 2007 | I40: 2007 | M40: 2013
B44: Los ponderadores
B46: Los cálculos regionales están basados en promedios ponderados de las tasas de variación de cada país. Los ponderadores por país se obtienen Banco Mundial utilizando el Gasto de consumo final de los hogares (GCFH) y de las instituciones sin fines de lucro que sirven a los hogares (ISFLSH) según la paridad del poder de compra (PPC) para las variables de precios y del Producto Interno Bruto según PPC para las variables de producción. Para mayor detalle consultar el Documento de Trabajo SECMCA-01-2021 “Propuesta de cambio en el método de agregación de variables y ponderadores regionales”, http://www.secmca.org/wp-content/uploads/2021/03/Propuesta-de-cambio-en-el-m%C3%A9todo-deagregaci%C3%B3n-de-variables-y-ponderadores-regionales.pdf.

Sheet Gráfico Seguimiento (hidden)
B1: INFLACIÓN | D1: RIN | F1: RESULTADO OPERACIONAL GC | H1: CUENTA CORRIENTE | J1: Exportaciones | L1: Importaciones | N1: Remesas acumuladas | P1: Remesas sin CR-NI | Q1: =+[2]EJECUTIVO!$G$72 -> SEPTIEMBRE
B2: Proy.dic/24 | C2: =[2]METAS!S19 -> ENE.24 | D2: Proy.dic/24 | E2: =+[2]METAS!$S117 -> ENE.24 | F2: =+[2]METAS!$M166 -> Proy.dic/23 | G2: =+[2]METAS!$S166 -> DIC.23 | H2: =+[2]METAS!$M141 -> Proy.dic/23 | I2: =[2]METAS!S141 -> III TRIM.23 | J2: =+[2]METAS!$M57 -> Proy.dic/23 | K2: =+[2]METAS!$S57 -> NOV.23 | L2: =+[2]METAS!$M81 -> Proy.dic/23 | M2: =+[2]METAS!$S81 -> NOV.23 | N2: =+[2]METAS!$M129 -> Proy.dic/23 | O2: =+[2]METAS!$S129 -> SEP.23 | P2: =+[2]METAS!$M129 -> Proy.dic/23 | Q2: =+[2]METAS!$V129 -> SEP.23
A3: CR | B3: =+[2]METAS!$O8 -> 4 | C3: =[2]METAS!S20 -> 0.05509726645 | E3: =+[2]METAS!$S118 -> 14337 | G3: =+[2]METAS!$S167 -> -4606.629403 | I3: =[2]METAS!S142 -> -580.7761533 | K3: =+[2]METAS!$S58 -> 16683.07382 | M3: =+[2]METAS!$S82 -> 20669.15131 | O3: =+[2]METAS!$S130 -> 473.8276537
A4: ES | B4: 2.5 | C4: =[2]METAS!S21 -> 0.3247255296 | E4: =+[2]METAS!$S119 -> 2761 | G4: =+[2]METAS!$S168 -> -764.5665458 | I4: =[2]METAS!S143 -> -550.8948717 | K4: =+[2]METAS!$S59 -> 6048.98 | M4: =+[2]METAS!$S83 -> 14399.6 | O4: =+[2]METAS!$S131 -> 8181.79 | Q4: =+[2]METAS!$V131 -> 8181.79
A5: GT | B5: 5 | C5: =[2]METAS!S22 -> 0.03 | D5: =+[2]METAS!$M120 -> 20769.8 | E5: =+[2]METAS!$S120 -> 21227 | F5: =+[2]METAS!$M$169 -> -1743.907857 | G5: =+[2]METAS!$S169 -> -1426.871545 | H5: =+'[5]HIST METAS'!$AO$23 -> 1535.2 | I5: =[2]METAS!S144 -> 2879.6 | J5: =+[2]METAS!$M60 -> 15184.79386 | K5: =+[2]METAS!$S60 -> 11975.86268 | L5: =+[2]METAS!$M84 -> 32444.95475 | M5: =+[2]METAS!$S84 -> 27899.52877 | N5: =+[2]METAS!$M132 -> 20024.75642 | O5: =+[2]METAS!$S132 -> 14773.6403 | P5: =+[2]METAS!$M132 -> 20024.75642 | Q5: =+[2]METAS!$V132 -> 14773.6403
A6: HO | B6: 5 | C6: =[2]METAS!S23 -> 0.234962406 | E6: =+[2]METAS!$S121 -> 7396 | I6: =[2]METAS!S145 -> -451.3327283 | J6: =+[2]METAS!$M61 -> 11671.29507 | K6: =+[2]METAS!$S61 -> 10598.97321 | L6: =+[2]METAS!$M85 -> 19705.83116 | M6: =+[2]METAS!$S85 -> 17877.74643 | N6: =+[2]METAS!$M133 -> 8888.2 | O6: =+[2]METAS!$S133 -> 6853.7065 | P6: =+[2]METAS!$M133 -> 8888.2 | Q6: =+[2]METAS!$V133 -> 6853.7065
A7: NI | B7: 4 | C7: =[2]METAS!S24 -> 0.2751484011 | E7: =+[2]METAS!$S122 -> 5472 | I7: =[2]METAS!S146 -> 1201.6 | K7: =+[2]METAS!$S62 -> 7036.323753 | M7: =+[2]METAS!$S86 -> 9162.665397 | O7: =+[2]METAS!$S134 -> 3433.5 | Q7: =+[2]METAS!$V134 -> 3433.5
A8: RD | B8: =+[2]METAS!$O13 -> 5 | C8: =[2]METAS!S25 -> 0.3900808465 | E8: =+[2]METAS!$S123 -> 14360 | G8: =+[2]METAS!$S172 -> -4013.326648 | I8: =[2]METAS!S147 -> -3483.8 | J8: =+[2]METAS!$M63 -> 14400 | L8: =+[2]METAS!$M87 -> 32894.903 | N8: =+[2]METAS!$M135 -> 10200 | O8: =+[2]METAS!$S135 -> 7597.102875 | P8: =+[2]METAS!$M135 -> 10200 | Q8: =+[2]METAS!$V135 -> 7597.102875
B9: Nicaragua siempre da error el link y por eso se ingresa a mano

Sheet Datos_Regional (M) (hidden)
A1: Variables Mensuales Regional | D1: IPC CARD | E1: IPC CARD_T | F1: IPC CAPARD | G1: IPC CAPARD_T | H1: CARD | J1: CAPARD | L1: RIN_CARD | M1: RIN Diciembres | N1: RIN_CAPARD | O1: RIN Diciembres | P1: CARD | V1: CAPARD | AB1: Crédito de las OSD con SPNF | AF1: Créditos de las OSD con el sector privado, saldo en millones de USD | AL1: Tasa de variación Interanual | AS1: Crédito de las OSD con SPNF | AW1: Créditos de las OSD con el sector privado, saldo en millones de USD | BC1: Tasa de variación Interanual | BJ1: Tasa de Política Monetaria | BQ1: CARD Saldo operacional GC | BR1: CAPARD Saldo operacional GC | BS1: CARD | BV1: CAPARD | BY1: Crédito de las OSD con el Sector Privado MN | CM1: Mill-US$ | CN1: Mill-US$ | CO1: % | CP1: Mill-US$ | CQ1: Mill-US$ | CR1: % | CS1: CARD | DA1: CAPARD
H2: IMAER_TC | I2: IMAER_T | J2: IMAER CARD_TC | K2: IMAER CAPARD_T | P2: M1 | Q2: M2 | R2: M3 | S2: M1_% | T2: M2_% | U2: M3_% | V2: M1 | W2: M2 | X2: M3 | Y2: M1_% | Z2: M2_% | AA2: M3_% | AB2: Activos | AC2: Pasivos | AD2: Crédito Neto | AE2: %Interanual | AF2: Otras sociedades no financieras | AG2: Otros sectores 1/ | AH2: Otras sociedades no financieras | AI2: Hogares e ISFLSH | AK2: TOTAL | AL2: Otras sociedades no financieras | AN2: Otros sectores 1/ | AO2: Otras sociedades no financieras | AP2: Hogares e ISFLSH | AQ2: TOTAL | AR2: Aceleración | AS2: Activos | AT2: Pasivos | AU2: Crédito Neto | AV2: %Interanual | AW2: Otras sociedades no financieras | AX2: Otros sectores 1/ | AY2: Otras sociedades no financieras | AZ2: Hogares e ISFLSH | BB2: TOTAL | BC2: Otras sociedades no financieras | BE2: Otros sectores 1/ | BF2: Otras sociedades no financieras | BG2: Hogares e ISFLSH | BH2: TOTAL | BI2: Aceleración | BJ2: Costa Rica | BK2: El Salvador | BL2: Guatemala | BM2: Honduras | BN2: Nicaragua | BO2: República Dominicana | BP2: PA | BS2: Deuda Pública total | BT2: Deuda Interna | BU2: Deuda Externa | BV2: Deuda Pública total | BW2: Deuda Interna | BX2: Deuda Externa | BY2: CR | BZ2: SV | CA2: GT | CB2: HO | CC2: NI | CD2: RD | CE2: PA | CF2: CR % | CG2: SV % | CH2: GT % | CI2: HO % | CJ2: NI % | CK2: RD % | CL2: PA % | CM2: CARD Saldo Operacional con donaciones | CN2: CARD PIB a precios corrientes | CO2: CARD Saldo operacional/PIB | CP2: CAPARD Saldo Operacional con donaciones | CQ2: CAPARD PIB a precios corrientes | CR2: CAPARD Saldo operacional/PIB | CS2: Credito TOTAL | CT2: Créditos de las OSD a sector Público | CU2: Créditos de las OSD a sector Privado | CV2: Créditos de las OSD a no residentes y otros | CW2: Credito TOTAL % | CX2: Créditos de las OSD a sector Público % | CY2: Créditos de las OSD a sector Privado % | CZ2: Créditos de las OSD a no residentes y otros % | DA2: Credito TOTAL | DB2: Créditos de las OSD a sector Público | DC2: Créditos de las OSD a sector Privado | DD2: Créditos de las OSD a no residentes y otros | DE2: Credito TOTAL % | DF2: Créditos de las OSD a sector Público % | DG2: Créditos de las OSD a sector Privado % | DH2: Créditos de las OSD a no residentes y otros %
A3: 1990 | B3: enero | C3: =A3&"-"&B3 -> 1990-enero | D3: =IF('[2]REAL IPC(M)'!$AL10="","",+'[2]REAL IPC(M)'!$AL10) -> n.d. | E3: =IF('[2]REAL IPC(M)'!$BE10="","",+'[2]REAL IPC(M)'!$BE10) -> n.d. | F3: =IF('[2]REAL IPC(M)'!$AM10="","",+'[2]REAL IPC(M)'!$AM10) -> n.d. | G3: =IF('[2]REAL IPC(M)'!$BI10="","",+'[2]REAL IPC(M)'!$BI10) -> n.d. | H3: =IF('[2]REAL IMAE(M)'!BJ10="","",'[2]REAL IMAE(M)'!BJ10) -> n.d. | I3: =IF('[2]REAL IMAE(M)'!BK10="","",'[2]REAL IMAE(M)'!BK10) -> n.d. | J3: =IF('[2]REAL IMAE(M)'!BN10="","",'[2]REAL IMAE(M)'!BN10) -> n.d. | K3: =IF('[2]REAL IMAE(M)'!BO10="","",'[2]REAL IMAE(M)'!BO10) -> n.d. | L3: =IF('[2]EXT RIN(M)'!$K10="","",'[2]EXT RIN(M)'!$K10) -> n.d. | M3: =IF(B3<>"diciembre","",L3) ->  | N3: =IF('[2]EXT RIN(M)'!$L10="","",'[2]EXT RIN(M)'!$L10) -> n.d. | O3: =IF(B3<>"diciembre","",N3) ->  | P3: =IF('[2]MONE(M)CARD'!EG10="","",'[2]MONE(M)CARD'!EG10) -> n.d. | Q3: =IF('[2]MONE(M)CARD'!EK10="","",'[2]MONE(M)CARD'!EK10) -> n.d. | R3: =IF('[2]MONE(M)CARD'!EP10="","",'[2]MONE(M)CARD'!EP10) -> n.d. | S3: =IF('[2]MONE(M)CARD'!ES10="","",'[2]MONE(M)CARD'!ES10) -> n.d. | T3: =IF('[2]MONE(M)CARD'!EV10="","",'[2]MONE(M)CARD'!EV10) -> n.d. | U3: =IF('[2]MONE(M)CARD'!EZ10="","",'[2]MONE(M)CARD'!EZ10) -> n.d. | V3: =IF('[2]MONE(M)CAPARD'!FC10="","",'[2]MONE(M)CAPARD'!FC10) -> n.d. | W3: =IF('[2]MONE(M)CAPARD'!FG10="","",'[2]MONE(M)CAPARD'!FG10) -> n.d. | X3: =IF('[2]MONE(M)CAPARD'!FL10="","",'[2]MONE(M)CAPARD'!FL10) -> n.d. | Y3: =IF('[2]MONE(M)CAPARD'!FO10="","",'[2]MONE(M)CAPARD'!FO10) -> n.d. | Z3: =IF('[2]MONE(M)CAPARD'!FR10="","",'[2]MONE(M)CAPARD'!FR10) -> n.d. | AA3: =IF('[2]MONE(M)CAPARD'!FV10="","",'[2]MONE(M)CAPARD'!FV10) -> n.d. | AB3: =IF('[2]MONE(M)CARD'!FV10="","",'[2]MONE(M)CARD'!FV10) ->  | AC3: =IF('[2]MONE(M)CARD'!GD10="","",'[2]MONE(M)CARD'!GD10) -> n.d. | AD3: =IF('[2]MONE(M)CARD'!GE10="","",'[2]MONE(M)CARD'!GE10) -> n.d. | AE3: n.d. | AF3: n.d. | AG3: n.d. | AH3: n.d. | AI3: n.d. | AK3: n.d. | AL3: n.d. | AN3: n.d. | AO3: n.d. | AP3: n.d. | AQ3: n.d. | AR3: n.d. | AS3: =IF('[2]MONE(M)CAPARD'!GS10="","",'[2]MONE(M)CAPARD'!GS10) -> n.d. | AT3: =IF('[2]MONE(M)CARD'!HA10="","",'[2]MONE(M)CAPARD'!HA10) -> n.d. | AU3: =IF('[2]MONE(M)CAPARD'!HB10="","",'[2]MONE(M)CAPARD'!HB10) -> n.d. | AV3: n.d. | AW3: n.d. | AX3: n.d. | AY3: n.d. | AZ3: n.d. | BA3: n.d. | BB3: n.d. | BC3: n.d. | BD3: n.d. | BE3: n.d. | BF3: n.d. | BG3: n.d. | BH3: n.d. | BI3: n.d. | BJ3: =IF('[2]MONE(M)CAPARD'!AS10="","",'[2]MONE(M)CAPARD'!AS10) -> n.d. | BK3: =IF('[2]MONE(M)CAPARD'!AT10="","",'[2]MONE(M)CAPARD'!AT10) -> n.a. | BL3: =IF('[2]MONE(M)CAPARD'!AU10="","",'[2]MONE(M)CAPARD'!AU10) -> n.d. | BM3: =IF('[2]MONE(M)CAPARD'!AV10="","",'[2]MONE(M)CAPARD'!AV10) -> n.d. | BN3: =IF('[2]MONE(M)CAPARD'!AW10="","",'[2]MONE(M)CAPARD'!AW10) -> n.a. | BO3: =IF('[2]MONE(M)CAPARD'!AX10="","",'[2]MONE(M)CAPARD'!AX10) -> n.d. | BP3: =IF('[2]MONE(M)CAPARD'!AY10="","",'[2]MONE(M)CAPARD'!AY10) -> n.a. | BQ3: =IF('[2]FISCAL(M)'!$K10="","",'[2]FISCAL(M)'!$K10) -> n.d. | BR3: =IF('[2]FISCAL(M)'!$L10="","",'[2]FISCAL(M)'!$L10) -> n.d. | BS3: =IF('[2]FISCAL(M)'!$AY10="","",'[2]FISCAL(M)'!$AY10) -> n.d. | BT3: =IF('[2]FISCAL(M)'!$BI10="","",'[2]FISCAL(M)'!$BI10) -> n.d. | BU3: =IF('[2]FISCAL(M)'!$BS10="","",'[2]FISCAL(M)'!$BS10) -> n.d. | BV3: =IF('[2]FISCAL(M)'!$AZ10="","",'[2]FISCAL(M)'!$AZ10) -> n.d. | BW3: =IF('[2]FISCAL(M)'!$BJ10="","",'[2]FISCAL(M)'!$BJ10) -> n.d. | BX3: =IF('[2]FISCAL(M)'!$BT10="","",'[2]FISCAL(M)'!$BT10) -> n.d. | BY3: =IF('[3]MONE(M)'!$AO10="","",'[3]MONE(M)'!$AO10) -> n.d. | BZ3: =IF('[4]MONE(M)'!$AO10="","",'[4]MONE(M)'!$AO10) -> n.d. | CA3: =IF('[5]MONE(M)'!$AO10="","",'[5]MONE(M)'!$AO10) -> n.d. | CB3: =+'[1]MONE(M)'!$AO10 -> n.d. | CC3: =IF('[6]MONE(M)'!$AO10="","",'[6]MONE(M)'!$AO10) -> n.d. | CD3: =IF('[7]MONE(M)'!$AO10="","",'[7]MONE(M)'!$AO10) -> n.d. | CE3: =IF('[8]MONE(M)'!$AO10="","",'[8]MONE(M)'!$AO10) -> n.d. | CF3: n.d. | CG3: n.d. | CH3: n.d. | CI3: n.d. | CJ3: n.d. | CK3: n.d. | CL3: n.d. | CM3: ='[2]FISCAL(M)'!$K10 -> n.d. | CN3: n.d. | CO3: =IF(OR(CM3="n.d.",CM3="",CN3="",CN3="n.d."),"n.d.",(CM3/CN3)*100) -> n.d. | CP3: =IF('[2]FISCAL(M)'!$L10="","",'[2]FISCAL(M)'!$L10) -> n.d. | CQ3: n.d. | CR3: =IF(OR(CP3="n.d.",CP3="",CQ3="",CQ3="n.d."),"n.d.",(CP3/CQ3)*100) -> n.d. | CS3: n.d. | CT3: n.d. | CU3: n.d. | CV3: n.d. | CW3: n.d. | CX3: n.d. | CY3: n.d. | CZ3: n.d. | DA3: n.d. | DB3: n.d. | DC3: n.d. | DD3: n.d. | DE3: n.d. | DF3: n.d. | DG3: n.d. | DH3: n.d.
A4: 1990 | B4: febrero | C4: =A4&"-"&B4 -> 1990-febrero | D4: =IF('[2]REAL IPC(M)'!$AL11="","",+'[2]REAL IPC(M)'!$AL11) -> n.d. | E4: =IF('[2]REAL IPC(M)'!$BE11="","",+'[2]REAL IPC(M)'!$BE11) -> n.d. | F4: =IF('[2]REAL IPC(M)'!$AM11="","",+'[2]REAL IPC(M)'!$AM11) -> n.d. | G4: =IF('[2]REAL IPC(M)'!$BI11="","",+'[2]REAL IPC(M)'!$BI11) -> n.d. | H4: =IF('[2]REAL IMAE(M)'!BJ11="","",'[2]REAL IMAE(M)'!BJ11) -> n.d. | I4: =IF('[2]REAL IMAE(M)'!BK11="","",'[2]REAL IMAE(M)'!BK11) -> n.d. | J4: =IF('[2]REAL IMAE(M)'!BN11="","",'[2]REAL IMAE(M)'!BN11) -> n.d. | K4: =IF('[2]REAL IMAE(M)'!BO11="","",'[2]REAL IMAE(M)'!BO11) -> n.d. | L4: =IF('[2]EXT RIN(M)'!$K11="","",'[2]EXT RIN(M)'!$K11) -> n.d. | M4: =IF(B4<>"diciembre","",L4) ->  | N4: =IF('[2]EXT RIN(M)'!$L11="","",'[2]EXT RIN(M)'!$L11) -> n.d. | O4: =IF(B4<>"diciembre","",N4) ->  | P4: =IF('[2]MONE(M)CARD'!EG11="","",'[2]MONE(M)CARD'!EG11) -> n.d. | Q4: =IF('[2]MONE(M)CARD'!EK11="","",'[2]MONE(M)CARD'!EK11) -> n.d. | R4: =IF('[2]MONE(M)CARD'!EP11="","",'[2]MONE(M)CARD'!EP11) -> n.d. | S4: =IF('[2]MONE(M)CARD'!ES11="","",'[2]MONE(M)CARD'!ES11) -> n.d. | T4: =IF('[2]MONE(M)CARD'!EV11="","",'[2]MONE(M)CARD'!EV11) -> n.d. | U4: =IF('[2]MONE(M)CARD'!EZ11="","",'[2]MONE(M)CARD'!EZ11) -> n.d. | V4: =IF('[2]MONE(M)CAPARD'!FC11="","",'[2]MONE(M)CAPARD'!FC11) -> n.d. | W4: =IF('[2]MONE(M)CAPARD'!FG11="","",'[2]MONE(M)CAPARD'!FG11) -> n.d. | X4: =IF('[2]MONE(M)CAPARD'!FL11="","",'[2]MONE(M)CAPARD'!FL11) -> n.d. | Y4: =IF('[2]MONE(M)CAPARD'!FO11="","",'[2]MONE(M)CAPARD'!FO11) -> n.d. | Z4: =IF('[2]MONE(M)CAPARD'!FR11="","",'[2]MONE(M)CAPARD'!FR11) -> n.d. | AA4: =IF('[2]MONE(M)CAPARD'!FV11="","",'[2]MONE(M)CAPARD'!FV11) -> n.d. | AB4: =IF('[2]MONE(M)CARD'!FV11="","",'[2]MONE(M)CARD'!FV11) ->  | AC4: =IF('[2]MONE(M)CARD'!GD11="","",'[2]MONE(M)CARD'!GD11) -> n.d. | AD4: =IF('[2]MONE(M)CARD'!GE11="","",'[2]MONE(M)CARD'!GE11) -> n.d. | AE4: n.d. | AF4: n.d. | AG4: n.d. | AH4: n.d. | AI4: n.d. | AJ4: =IFERROR(+AF4+AH4,"") ->  | AK4: n.d. | AL4: n.d. | AN4: n.d. | AO4: n.d. | AP4: n.d. | AQ4: n.d. | AR4: n.d. | AS4: =IF('[2]MONE(M)CAPARD'!GS11="","",'[2]MONE(M)CAPARD'!GS11) -> n.d. | AT4: =IF('[2]MONE(M)CARD'!HA11="","",'[2]MONE(M)CAPARD'!HA11) -> n.d. | AU4: =IF('[2]MONE(M)CAPARD'!HB11="","",'[2]MONE(M)CAPARD'!HB11) -> n.d. | AV4: n.d. | AW4: n.d. | AX4: n.d. | AY4: n.d. | AZ4: n.d. | BA4: n.d. | BB4: n.d. | BC4: n.d. | BD4: n.d. | BE4: n.d. | BF4: n.d. | BG4: n.d. | BH4: n.d. | BI4: n.d. | BJ4: =IF('[2]MONE(M)CAPARD'!AS11="","",'[2]MONE(M)CAPARD'!AS11) -> n.d. | BK4: =IF('[2]MONE(M)CAPARD'!AT11="","",'[2]MONE(M)CAPARD'!AT11) -> n.a. | BL4: =IF('[2]MONE(M)CAPARD'!AU11="","",'[2]MONE(M)CAPARD'!AU11) -> n.d. | BM4: =IF('[2]MONE(M)CAPARD'!AV11="","",'[2]MONE(M)CAPARD'!AV11) -> n.d. | BN4: =IF('[2]MONE(M)CAPARD'!AW11="","",'[2]MONE(M)CAPARD'!AW11) -> n.a. | BO4: =IF('[2]MONE(M)CAPARD'!AX11="","",'[2]MONE(M)CAPARD'!AX11) -> n.d. | BP4: =IF('[2]MONE(M)CAPARD'!AY11="","",'[2]MONE(M)CAPARD'!AY11) -> n.a. | BQ4: =IF('[2]FISCAL(M)'!$K11="","",'[2]FISCAL(M)'!$K11) -> n.d. | BR4: =IF('[2]FISCAL(M)'!$L11="","",'[2]FISCAL(M)'!$L11) -> n.d. | BS4: =IF('[2]FISCAL(M)'!$AY11="","",'[2]FISCAL(M)'!$AY11) -> n.d. | BT4: =IF('[2]FISCAL(M)'!$BI11="","",'[2]FISCAL(M)'!$BI11) -> n.d. | BU4: =IF('[2]FISCAL(M)'!$BS11="","",'[2]FISCAL(M)'!$BS11) -> n.d. | BV4: =IF('[2]FISCAL(M)'!$AZ11="","",'[2]FISCAL(M)'!$AZ11) -> n.d. | BW4: =IF('[2]FISCAL(M)'!$BJ11="","",'[2]FISCAL(M)'!$BJ11) -> n.d. | BX4: =IF('[2]FISCAL(M)'!$BT11="","",'[2]FISCAL(M)'!$BT11) -> n.d. | BY4: =IF('[3]MONE(M)'!$AO11="","",'[3]MONE(M)'!$AO11) -> n.d. | BZ4: =IF('[4]MONE(M)'!$AO11="","",'[4]MONE(M)'!$AO11) -> n.d. | CA4: =IF('[5]MONE(M)'!$AO11="","",'[5]MONE(M)'!$AO11) -> n.d. | CB4: =+'[1]MONE(M)'!$AO11 -> n.d. | CC4: =IF('[6]MONE(M)'!$AO11="","",'[6]MONE(M)'!$AO11) -> n.d. | CD4: =IF('[7]MONE(M)'!$AO11="","",'[7]MONE(M)'!$AO11) -> n.d. | CE4: =IF('[8]MONE(M)'!$AO11="","",'[8]MONE(M)'!$AO11) -> n.d. | CF4: n.d. | CG4: n.d. | CH4: n.d. | CI4: n.d. | CJ4: n.d. | CK4: n.d. | CL4: n.d. | CM4: ='[2]FISCAL(M)'!$K11 -> n.d. | CN4: n.d. | CO4: n.d. | CP4: =IF('[2]FISCAL(M)'!$L11="","",'[2]FISCAL(M)'!$L11) -> n.d. | CQ4: n.d. | CR4: =IF(OR(CP4="n.d.",CP4="",CQ4="",CQ4="n.d."),"n.d.",(CP4/CQ4)*100) -> n.d. | CS4: n.d. | CT4: n.d. | CU4: n.d. | CV4: n.d. | CW4: n.d. | CX4: n.d. | CY4: n.d. | CZ4: n.d. | DA4: n.d. | DB4: n.d. | DC4: n.d. | DD4: n.d. | DE4: n.d. | DF4: n.d. | DG4: n.d. | DH4: n.d.
A5: 1990 | B5: marzo | C5: 1990-marzo | D5: =IF('[2]REAL IPC(M)'!$AL12="","",+'[2]REAL IPC(M)'!$AL12) -> n.d. | E5: =IF('[2]REAL IPC(M)'!$BE12="","",+'[2]REAL IPC(M)'!$BE12) -> n.d. | F5: =IF('[2]REAL IPC(M)'!$AM12="","",+'[2]REAL IPC(M)'!$AM12) -> n.d. | G5: =IF('[2]REAL IPC(M)'!$BI12="","",+'[2]REAL IPC(M)'!$BI12) -> n.d. | H5: =IF('[2]REAL IMAE(M)'!BJ12="","",'[2]REAL IMAE(M)'!BJ12) -> n.d. | I5: =IF('[2]REAL IMAE(M)'!BK12="","",'[2]REAL IMAE(M)'!BK12) -> n.d. | J5: =IF('[2]REAL IMAE(M)'!BN12="","",'[2]REAL IMAE(M)'!BN12) -> n.d. | K5: =IF('[2]REAL IMAE(M)'!BO12="","",'[2]REAL IMAE(M)'!BO12) -> n.d. | L5: =IF('[2]EXT RIN(M)'!$K12="","",'[2]EXT RIN(M)'!$K12) -> n.d. | N5: =IF('[2]EXT RIN(M)'!$L12="","",'[2]EXT RIN(M)'!$L12) -> n.d. | P5: =IF('[2]MONE(M)CARD'!EG12="","",'[2]MONE(M)CARD'!EG12) -> n.d. | Q5: =IF('[2]MONE(M)CARD'!EK12="","",'[2]MONE(M)CARD'!EK12) -> n.d. | R5: =IF('[2]MONE(M)CARD'!EP12="","",'[2]MONE(M)CARD'!EP12) -> n.d. | S5: =IF('[2]MONE(M)CARD'!ES12="","",'[2]MONE(M)CARD'!ES12) -> n.d. | T5: =IF('[2]MONE(M)CARD'!EV12="","",'[2]MONE(M)CARD'!EV12) -> n.d. | U5: =IF('[2]MONE(M)CARD'!EZ12="","",'[2]MONE(M)CARD'!EZ12) -> n.d. | V5: =IF('[2]MONE(M)CAPARD'!FC12="","",'[2]MONE(M)CAPARD'!FC12) -> n.d. | W5: =IF('[2]MONE(M)CAPARD'!FG12="","",'[2]MONE(M)CAPARD'!FG12) -> n.d. | X5: =IF('[2]MONE(M)CAPARD'!FL12="","",'[2]MONE(M)CAPARD'!FL12) -> n.d. | Y5: =IF('[2]MONE(M)CAPARD'!FO12="","",'[2]MONE(M)CAPARD'!FO12) -> n.d. | Z5: =IF('[2]MONE(M)CAPARD'!FR12="","",'[2]MONE(M)CAPARD'!FR12) -> n.d. | AA5: =IF('[2]MONE(M)CAPARD'!FV12="","",'[2]MONE(M)CAPARD'!FV12) -> n.d. | AB5: =IF('[2]MONE(M)CARD'!FV12="","",'[2]MONE(M)CARD'!FV12) ->  | AC5: =IF('[2]MONE(M)CARD'!GD12="","",'[2]MONE(M)CARD'!GD12) -> n.d. | AD5: =IF('[2]MONE(M)CARD'!GE12="","",'[2]MONE(M)CARD'!GE12) -> n.d. | AE5: n.d. | AF5: n.d. | AG5: n.d. | AH5: n.d. | AI5: n.d. | AJ5: =IFERROR(+AF5+AH5,"") ->  | AK5: n.d. | AL5: n.d. | AN5: n.d. | AO5: n.d. | AP5: n.d. | AQ5: n.d. | AR5: n.d. | AS5: =IF('[2]MONE(M)CAPARD'!GS12="","",'[2]MONE(M)CAPARD'!GS12) -> n.d. | AT5: =IF('[2]MONE(M)CARD'!HA12="","",'[2]MONE(M)CAPARD'!HA12) -> n.d. | AU5: =IF('[2]MONE(M)CAPARD'!HB12="","",'[2]MONE(M)CAPARD'!HB12) -> n.d. | AV5: n.d. | AW5: n.d. | AX5: n.d. | AY5: n.d. | AZ5: n.d. | BA5: n.d. | BB5: n.d. | BC5: n.d. | BD5: n.d. | BE5: n.d. | BF5: n.d. | BG5: n.d. | BH5: n.d. | BI5: n.d. | BJ5: =IF('[2]MONE(M)CAPARD'!AS12="","",'[2]MONE(M)CAPARD'!AS12) -> n.d. | BK5: =IF('[2]MONE(M)CAPARD'!AT12="","",'[2]MONE(M)CAPARD'!AT12) -> n.a. | BL5: =IF('[2]MONE(M)CAPARD'!AU12="","",'[2]MONE(M)CAPARD'!AU12) -> n.d. | BM5: =IF('[2]MONE(M)CAPARD'!AV12="","",'[2]MONE(M)CAPARD'!AV12) -> n.d. | BN5: =IF('[2]MONE(M)CAPARD'!AW12="","",'[2]MONE(M)CAPARD'!AW12) -> n.a. | BO5: =IF('[2]MONE(M)CAPARD'!AX12="","",'[2]MONE(M)CAPARD'!AX12) -> n.d. | BP5: =IF('[2]MONE(M)CAPARD'!AY12="","",'[2]MONE(M)CAPARD'!AY12) -> n.a. | BQ5: =IF('[2]FISCAL(M)'!$K12="","",'[2]FISCAL(M)'!$K12) -> n.d. | BR5: =IF('[2]FISCAL(M)'!$L12="","",'[2]FISCAL(M)'!$L12) -> n.d. | BS5: =IF('[2]FISCAL(M)'!$AY12="","",'[2]FISCAL(M)'!$AY12) -> n.d. | BT5: =IF('[2]FISCAL(M)'!$BI12="","",'[2]FISCAL(M)'!$BI12) -> n.d. | BU5: =IF('[2]FISCAL(M)'!$BS12="","",'[2]FISCAL(M)'!$BS12) -> n.d. | BV5: =IF('[2]FISCAL(M)'!$AZ12="","",'[2]FISCAL(M)'!$AZ12) -> n.d. | BW5: =IF('[2]FISCAL(M)'!$BJ12="","",'[2]FISCAL(M)'!$BJ12) -> n.d. | BX5: =IF('[2]FISCAL(M)'!$BT12="","",'[2]FISCAL(M)'!$BT12) -> n.d. | BY5: =IF('[3]MONE(M)'!$AO12="","",'[3]MONE(M)'!$AO12) -> n.d. | BZ5: =IF('[4]MONE(M)'!$AO12="","",'[4]MONE(M)'!$AO12) -> n.d. | CA5: =IF('[5]MONE(M)'!$AO12="","",'[5]MONE(M)'!$AO12) -> n.d. | CB5: =+'[1]MONE(M)'!$AO12 -> n.d. | CC5: =IF('[6]MONE(M)'!$AO12="","",'[6]MONE(M)'!$AO12) -> n.d. | CD5: =IF('[7]MONE(M)'!$AO12="","",'[7]MONE(M)'!$AO12) -> n.d. | CE5: =IF('[8]MONE(M)'!$AO12="","",'[8]MONE(M)'!$AO12) -> n.d. | CF5: n.d. | CG5: n.d. | CH5: n.d. | CI5: n.d. | CJ5: n.d. | CK5: n.d. | CL5: n.d. | CM5: =IF('[2]FISCAL(M)'!$K12="","",'[2]FISCAL(M)'!$K12) -> n.d. | CN5: n.d. | CO5: n.d. | CP5: =IF('[2]FISCAL(M)'!$L12="","",'[2]FISCAL(M)'!$L12) -> n.d. | CQ5: n.d. | CR5: n.d. | CS5: n.d. | CT5: n.d. | CU5: n.d. | CV5: n.d. | CW5: n.d. | CX5: n.d. | CY5: n.d. | CZ5: n.d. | DA5: n.d. | DB5: n.d. | DC5: n.d. | DD5: n.d. | DE5: n.d. | DF5: n.d. | DG5: n.d. | DH5: n.d.
A6: 1990 | B6: abril | C6: 1990-abril | D6: =IF('[2]REAL IPC(M)'!$AL13="","",+'[2]REAL IPC(M)'!$AL13) -> n.d. | E6: =IF('[2]REAL IPC(M)'!$BE13="","",+'[2]REAL IPC(M)'!$BE13) -> n.d. | F6: =IF('[2]REAL IPC(M)'!$AM13="","",+'[2]REAL IPC(M)'!$AM13) -> n.d. | G6: =IF('[2]REAL IPC(M)'!$BI13="","",+'[2]REAL IPC(M)'!$BI13) -> n.d. | H6: =IF('[2]REAL IMAE(M)'!BJ13="","",'[2]REAL IMAE(M)'!BJ13) -> n.d. | I6: =IF('[2]REAL IMAE(M)'!BK13="","",'[2]REAL IMAE(M)'!BK13) -> n.d. | J6: =IF('[2]REAL IMAE(M)'!BN13="","",'[2]REAL IMAE(M)'!BN13) -> n.d. | K6: =IF('[2]REAL IMAE(M)'!BO13="","",'[2]REAL IMAE(M)'!BO13) -> n.d. | L6: =IF('[2]EXT RIN(M)'!$K13="","",'[2]EXT RIN(M)'!$K13) -> n.d. | N6: =IF('[2]EXT RIN(M)'!$L13="","",'[2]EXT RIN(M)'!$L13) -> n.d. | P6: =IF('[2]MONE(M)CARD'!EG13="","",'[2]MONE(M)CARD'!EG13) -> n.d. | Q6: =IF('[2]MONE(M)CARD'!EK13="","",'[2]MONE(M)CARD'!EK13) -> n.d. | R6: =IF('[2]MONE(M)CARD'!EP13="","",'[2]MONE(M)CARD'!EP13) -> n.d. | S6: =IF('[2]MONE(M)CARD'!ES13="","",'[2]MONE(M)CARD'!ES13) -> n.d. | T6: =IF('[2]MONE(M)CARD'!EV13="","",'[2]MONE(M)CARD'!EV13) -> n.d. | U6: =IF('[2]MONE(M)CARD'!EZ13="","",'[2]MONE(M)CARD'!EZ13) -> n.d. | V6: =IF('[2]MONE(M)CAPARD'!FC13="","",'[2]MONE(M)CAPARD'!FC13) -> n.d. | W6: =IF('[2]MONE(M)CAPARD'!FG13="","",'[2]MONE(M)CAPARD'!FG13) -> n.d. | X6: =IF('[2]MONE(M)CAPARD'!FL13="","",'[2]MONE(M)CAPARD'!FL13) -> n.d. | Y6: =IF('[2]MONE(M)CAPARD'!FO13="","",'[2]MONE(M)CAPARD'!FO13) -> n.d. | Z6: =IF('[2]MONE(M)CAPARD'!FR13="","",'[2]MONE(M)CAPARD'!FR13) -> n.d. | AA6: =IF('[2]MONE(M)CAPARD'!FV13="","",'[2]MONE(M)CAPARD'!FV13) -> n.d. | AB6: =IF('[2]MONE(M)CARD'!FV13="","",'[2]MONE(M)CARD'!FV13) ->  | AC6: =IF('[2]MONE(M)CARD'!GD13="","",'[2]MONE(M)CARD'!GD13) -> n.d. | AD6: =IF('[2]MONE(M)CARD'!GE13="","",'[2]MONE(M)CARD'!GE13) -> n.d. | AE6: n.d. | AF6: n.d. | AG6: n.d. | AH6: n.d. | AI6: n.d. | AJ6: =IFERROR(+AF6+AH6,"n.d.") -> n.d. | AK6: n.d. | AL6: n.d. | AN6: n.d. | AO6: n.d. | AP6: n.d. | AQ6: n.d. | AR6: n.d. | AS6: =IF('[2]MONE(M)CAPARD'!GS13="","",'[2]MONE(M)CAPARD'!GS13) -> n.d. | AT6: =IF('[2]MONE(M)CARD'!HA13="","",'[2]MONE(M)CAPARD'!HA13) -> n.d. | AU6: =IF('[2]MONE(M)CAPARD'!HB13="","",'[2]MONE(M)CAPARD'!HB13) -> n.d. | AV6: n.d. | AW6: n.d. | AX6: n.d. | AY6: n.d. | AZ6: n.d. | BA6: n.d. | BB6: n.d. | BC6: n.d. | BD6: n.d. | BE6: n.d. | BF6: n.d. | BG6: n.d. | BH6: n.d. | BI6: n.d. | BJ6: =IF('[2]MONE(M)CAPARD'!AS13="","",'[2]MONE(M)CAPARD'!AS13) -> n.d. | BK6: =IF('[2]MONE(M)CAPARD'!AT13="","",'[2]MONE(M)CAPARD'!AT13) -> n.a. | BL6: =IF('[2]MONE(M)CAPARD'!AU13="","",'[2]MONE(M)CAPARD'!AU13) -> n.d. | BM6: =IF('[2]MONE(M)CAPARD'!AV13="","",'[2]MONE(M)CAPARD'!AV13) -> n.d. | BN6: =IF('[2]MONE(M)CAPARD'!AW13="","",'[2]MONE(M)CAPARD'!AW13) -> n.a. | BO6: =IF('[2]MONE(M)CAPARD'!AX13="","",'[2]MONE(M)CAPARD'!AX13) -> n.d. | BP6: =IF('[2]MONE(M)CAPARD'!AY13="","",'[2]MONE(M)CAPARD'!AY13) -> n.a. | BQ6: =IF('[2]FISCAL(M)'!$K13="","",'[2]FISCAL(M)'!$K13) -> n.d. | BR6: =IF('[2]FISCAL(M)'!$L13="","",'[2]FISCAL(M)'!$L13) -> n.d. | BS6: =IF('[2]FISCAL(M)'!$AY13="","",'[2]FISCAL(M)'!$AY13) -> n.d. | BT6: =IF('[2]FISCAL(M)'!$BI13="","",'[2]FISCAL(M)'!$BI13) -> n.d. | BU6: =IF('[2]FISCAL(M)'!$BS13="","",'[2]FISCAL(M)'!$BS13) -> n.d. | BV6: =IF('[2]FISCAL(M)'!$AZ13="","",'[2]FISCAL(M)'!$AZ13) -> n.d. | BW6: =IF('[2]FISCAL(M)'!$BJ13="","",'[2]FISCAL(M)'!$BJ13) -> n.d. | BX6: =IF('[2]FISCAL(M)'!$BT13="","",'[2]FISCAL(M)'!$BT13) -> n.d. | BY6: =IF('[3]MONE(M)'!$AO13="","",'[3]MONE(M)'!$AO13) -> n.d. | BZ6: =IF('[4]MONE(M)'!$AO13="","",'[4]MONE(M)'!$AO13) -> n.d. | CA6: =IF('[5]MONE(M)'!$AO13="","",'[5]MONE(M)'!$AO13) -> n.d. | CB6: =+'[1]MONE(M)'!$AO13 -> n.d. | CC6: =IF('[6]MONE(M)'!$AO13="","",'[6]MONE(M)'!$AO13) -> n.d. | CD6: =IF('[7]MONE(M)'!$AO13="","",'[7]MONE(M)'!$AO13) -> n.d. | CE6: =IF('[8]MONE(M)'!$AO13="","",'[8]MONE(M)'!$AO13) -> n.d. | CF6: n.d. | CG6: n.d. | CH6: n.d. | CI6: n.d. | CJ6: n.d. | CK6: n.d. | CL6: n.d. | CM6: =IF('[2]FISCAL(M)'!$K13="","",'[2]FISCAL(M)'!$K13) -> n.d. | CN6: n.d. | CO6: n.d. | CP6: =IF('[2]FISCAL(M)'!$L13="","",'[2]FISCAL(M)'!$L13) -> n.d. | CQ6: n.d. | CR6: n.d. | CS6: n.d. | CT6: n.d. | CU6: n.d. | CV6: n.d. | CW6: n.d. | CX6: n.d. | CY6: n.d. | CZ6: n.d. | DA6: n.d. | DB6: n.d. | DC6: n.d. | DD6: n.d. | DE6: n.d. | DF6: n.d. | DG6: n.d. | DH6: n.d.
A7: 1990 | B7: mayo | C7: 1990-mayo | D7: =IF('[2]REAL IPC(M)'!$AL14="","",+'[2]REAL IPC(M)'!$AL14) -> n.d. | E7: =IF('[2]REAL IPC(M)'!$BE14="","",+'[2]REAL IPC(M)'!$BE14) -> n.d. | F7: =IF('[2]REAL IPC(M)'!$AM14="","",+'[2]REAL IPC(M)'!$AM14) -> n.d. | G7: =IF('[2]REAL IPC(M)'!$BI14="","",+'[2]REAL IPC(M)'!$BI14) -> n.d. | H7: =IF('[2]REAL IMAE(M)'!BJ14="","",'[2]REAL IMAE(M)'!BJ14) -> n.d. | I7: =IF('[2]REAL IMAE(M)'!BK14="","",'[2]REAL IMAE(M)'!BK14) -> n.d. | J7: =IF('[2]REAL IMAE(M)'!BN14="","",'[2]REAL IMAE(M)'!BN14) -> n.d. | K7: =IF('[2]REAL IMAE(M)'!BO14="","",'[2]REAL IMAE(M)'!BO14) -> n.d. | L7: =IF('[2]EXT RIN(M)'!$K14="","",'[2]EXT RIN(M)'!$K14) -> n.d. | N7: =IF('[2]EXT RIN(M)'!$L14="","",'[2]EXT RIN(M)'!$L14) -> n.d. | P7: =IF('[2]MONE(M)CARD'!EG14="","",'[2]MONE(M)CARD'!EG14) -> n.d. | Q7: =IF('[2]MONE(M)CARD'!EK14="","",'[2]MONE(M)CARD'!EK14) -> n.d. | R7: =IF('[2]MONE(M)CARD'!EP14="","",'[2]MONE(M)CARD'!EP14) -> n.d. | S7: =IF('[2]MONE(M)CARD'!ES14="","",'[2]MONE(M)CARD'!ES14) -> n.d. | T7: =IF('[2]MONE(M)CARD'!EV14="","",'[2]MONE(M)CARD'!EV14) -> n.d. | U7: =IF('[2]MONE(M)CARD'!EZ14="","",'[2]MONE(M)CARD'!EZ14) -> n.d. | V7: =IF('[2]MONE(M)CAPARD'!FC14="","",'[2]MONE(M)CAPARD'!FC14) -> n.d. | W7: =IF('[2]MONE(M)CAPARD'!FG14="","",'[2]MONE(M)CAPARD'!FG14) -> n.d. | X7: =IF('[2]MONE(M)CAPARD'!FL14="","",'[2]MONE(M)CAPARD'!FL14) -> n.d. | Y7: =IF('[2]MONE(M)CAPARD'!FO14="","",'[2]MONE(M)CAPARD'!FO14) -> n.d. | Z7: =IF('[2]MONE(M)CAPARD'!FR14="","",'[2]MONE(M)CAPARD'!FR14) -> n.d. | AA7: =IF('[2]MONE(M)CAPARD'!FV14="","",'[2]MONE(M)CAPARD'!FV14) -> n.d. | AB7: =IF('[2]MONE(M)CARD'!FV14="","",'[2]MONE(M)CARD'!FV14) ->  | AC7: =IF('[2]MONE(M)CARD'!GD14="","",'[2]MONE(M)CARD'!GD14) -> n.d. | AD7: =IF('[2]MONE(M)CARD'!GE14="","",'[2]MONE(M)CARD'!GE14) -> n.d. | AE7: n.d. | AF7: n.d. | AG7: n.d. | AH7: n.d. | AI7: n.d. | AJ7: =IFERROR(+AF7+AH7,"n.d.") -> n.d. | AK7: n.d. | AL7: n.d. | AN7: n.d. | AO7: n.d. | AP7: n.d. | AQ7: n.d. | AR7: n.d. | AS7: =IF('[2]MONE(M)CAPARD'!GS14="","",'[2]MONE(M)CAPARD'!GS14) -> n.d. | AT7: =IF('[2]MONE(M)CARD'!HA14="","",'[2]MONE(M)CAPARD'!HA14) -> n.d. | AU7: =IF('[2]MONE(M)CAPARD'!HB14="","",'[2]MONE(M)CAPARD'!HB14) -> n.d. | AV7: n.d. | AW7: n.d. | AX7: n.d. | AY7: n.d. | AZ7: n.d. | BA7: n.d. | BB7: n.d. | BC7: n.d. | BD7: n.d. | BE7: n.d. | BF7: n.d. | BG7: n.d. | BH7: n.d. | BI7: n.d. | BJ7: =IF('[2]MONE(M)CAPARD'!AS14="","",'[2]MONE(M)CAPARD'!AS14) -> n.d. | BK7: =IF('[2]MONE(M)CAPARD'!AT14="","",'[2]MONE(M)CAPARD'!AT14) -> n.a. | BL7: =IF('[2]MONE(M)CAPARD'!AU14="","",'[2]MONE(M)CAPARD'!AU14) -> n.d. | BM7: =IF('[2]MONE(M)CAPARD'!AV14="","",'[2]MONE(M)CAPARD'!AV14) -> n.d. | BN7: =IF('[2]MONE(M)CAPARD'!AW14="","",'[2]MONE(M)CAPARD'!AW14) -> n.a. | BO7: =IF('[2]MONE(M)CAPARD'!AX14="","",'[2]MONE(M)CAPARD'!AX14) -> n.d. | BP7: =IF('[2]MONE(M)CAPARD'!AY14="","",'[2]MONE(M)CAPARD'!AY14) -> n.a. | BQ7: =IF('[2]FISCAL(M)'!$K14="","",'[2]FISCAL(M)'!$K14) -> n.d. | BR7: =IF('[2]FISCAL(M)'!$L14="","",'[2]FISCAL(M)'!$L14) -> n.d. | BS7: =IF('[2]FISCAL(M)'!$AY14="","",'[2]FISCAL(M)'!$AY14) -> n.d. | BT7: =IF('[2]FISCAL(M)'!$BI14="","",'[2]FISCAL(M)'!$BI14) -> n.d. | BU7: =IF('[2]FISCAL(M)'!$BS14="","",'[2]FISCAL(M)'!$BS14) -> n.d. | BV7: =IF('[2]FISCAL(M)'!$AZ14="","",'[2]FISCAL(M)'!$AZ14) -> n.d. | BW7: =IF('[2]FISCAL(M)'!$BJ14="","",'[2]FISCAL(M)'!$BJ14) -> n.d. | BX7: =IF('[2]FISCAL(M)'!$BT14="","",'[2]FISCAL(M)'!$BT14) -> n.d. | BY7: =IF('[3]MONE(M)'!$AO14="","",'[3]MONE(M)'!$AO14) -> n.d. | BZ7: =IF('[4]MONE(M)'!$AO14="","",'[4]MONE(M)'!$AO14) -> n.d. | CA7: =IF('[5]MONE(M)'!$AO14="","",'[5]MONE(M)'!$AO14) -> n.d. | CB7: =+'[1]MONE(M)'!$AO14 -> n.d. | CC7: =IF('[6]MONE(M)'!$AO14="","",'[6]MONE(M)'!$AO14) -> n.d. | CD7: =IF('[7]MONE(M)'!$AO14="","",'[7]MONE(M)'!$AO14) -> n.d. | CE7: =IF('[8]MONE(M)'!$AO14="","",'[8]MONE(M)'!$AO14) -> n.d. | CF7: n.d. | CG7: n.d. | CH7: n.d. | CI7: n.d. | CJ7: n.d. | CK7: n.d. | CL7: n.d. | CM7: =IF('[2]FISCAL(M)'!$K14="","",'[2]FISCAL(M)'!$K14) -> n.d. | CN7: n.d. | CO7: n.d. | CP7: =IF('[2]FISCAL(M)'!$L14="","",'[2]FISCAL(M)'!$L14) -> n.d. | CQ7: n.d. | CR7: n.d. | CS7: n.d. | CT7: n.d. | CU7: n.d. | CV7: n.d. | CW7: n.d. | CX7: n.d. | CY7: n.d. | CZ7: n.d. | DA7: n.d. | DB7: n.d. | DC7: n.d. | DD7: n.d. | DE7: n.d. | DF7: n.d. | DG7: n.d. | DH7: n.d.
A8: 1990 | B8: junio | C8: 1990-junio | D8: =IF('[2]REAL IPC(M)'!$AL15="","",+'[2]REAL IPC(M)'!$AL15) -> n.d. | E8: =IF('[2]REAL IPC(M)'!$BE15="","",+'[2]REAL IPC(M)'!$BE15) -> n.d. | F8: =IF('[2]REAL IPC(M)'!$AM15="","",+'[2]REAL IPC(M)'!$AM15) -> n.d. | G8: =IF('[2]REAL IPC(M)'!$BI15="","",+'[2]REAL IPC(M)'!$BI15) -> n.d. | H8: =IF('[2]REAL IMAE(M)'!BJ15="","",'[2]REAL IMAE(M)'!BJ15) -> n.d. | I8: =IF('[2]REAL IMAE(M)'!BK15="","",'[2]REAL IMAE(M)'!BK15) -> n.d. | J8: =IF('[2]REAL IMAE(M)'!BN15="","",'[2]REAL IMAE(M)'!BN15) -> n.d. | K8: =IF('[2]REAL IMAE(M)'!BO15="","",'[2]REAL IMAE(M)'!BO15) -> n.d. | L8: =IF('[2]EXT RIN(M)'!$K15="","",'[2]EXT RIN(M)'!$K15) -> n.d. | N8: =IF('[2]EXT RIN(M)'!$L15="","",'[2]EXT RIN(M)'!$L15) -> n.d. | P8: =IF('[2]MONE(M)CARD'!EG15="","",'[2]MONE(M)CARD'!EG15) -> n.d. | Q8: =IF('[2]MONE(M)CARD'!EK15="","",'[2]MONE(M)CARD'!EK15) -> n.d. | R8: =IF('[2]MONE(M)CARD'!EP15="","",'[2]MONE(M)CARD'!EP15) -> n.d. | S8: =IF('[2]MONE(M)CARD'!ES15="","",'[2]MONE(M)CARD'!ES15) -> n.d. | T8: =IF('[2]MONE(M)CARD'!EV15="","",'[2]MONE(M)CARD'!EV15) -> n.d. | U8: =IF('[2]MONE(M)CARD'!EZ15="","",'[2]MONE(M)CARD'!EZ15) -> n.d. | V8: =IF('[2]MONE(M)CAPARD'!FC15="","",'[2]MONE(M)CAPARD'!FC15) -> n.d. | W8: =IF('[2]MONE(M)CAPARD'!FG15="","",'[2]MONE(M)CAPARD'!FG15) -> n.d. | X8: =IF('[2]MONE(M)CAPARD'!FL15="","",'[2]MONE(M)CAPARD'!FL15) -> n.d. | Y8: =IF('[2]MONE(M)CAPARD'!FO15="","",'[2]MONE(M)CAPARD'!FO15) -> n.d. | Z8: =IF('[2]MONE(M)CAPARD'!FR15="","",'[2]MONE(M)CAPARD'!FR15) -> n.d. | AA8: =IF('[2]MONE(M)CAPARD'!FV15="","",'[2]MONE(M)CAPARD'!FV15) -> n.d. | AB8: =IF('[2]MONE(M)CARD'!FV15="","",'[2]MONE(M)CARD'!FV15) ->  | AC8: =IF('[2]MONE(M)CARD'!GD15="","",'[2]MONE(M)CARD'!GD15) -> n.d. | AD8: =IF('[2]MONE(M)CARD'!GE15="","",'[2]MONE(M)CARD'!GE15) -> n.d. | AE8: n.d. | AF8: n.d. | AG8: n.d. | AH8: n.d. | AI8: n.d. | AJ8: n.d. | AK8: n.d. | AL8: n.d. | AN8: n.d. | AO8: n.d. | AP8: n.d. | AQ8: n.d. | AR8: n.d. | AS8: =IF('[2]MONE(M)CAPARD'!GS15="","",'[2]MONE(M)CAPARD'!GS15) -> n.d. | AT8: =IF('[2]MONE(M)CARD'!HA15="","",'[2]MONE(M)CAPARD'!HA15) -> n.d. | AU8: =IF('[2]MONE(M)CAPARD'!HB15="","",'[2]MONE(M)CAPARD'!HB15) -> n.d. | AV8: n.d. | AW8: n.d. | AX8: n.d. | AY8: n.d. | AZ8: n.d. | BA8: n.d. | BB8: n.d. | BC8: n.d. | BD8: n.d. | BE8: n.d. | BF8: n.d. | BG8: n.d. | BH8: n.d. | BI8: n.d. | BJ8: =IF('[2]MONE(M)CAPARD'!AS15="","",'[2]MONE(M)CAPARD'!AS15) -> n.d. | BK8: =IF('[2]MONE(M)CAPARD'!AT15="","",'[2]MONE(M)CAPARD'!AT15) -> n.a. | BL8: =IF('[2]MONE(M)CAPARD'!AU15="","",'[2]MONE(M)CAPARD'!AU15) -> n.d. | BM8: =IF('[2]MONE(M)CAPARD'!AV15="","",'[2]MONE(M)CAPARD'!AV15) -> n.d. | BN8: =IF('[2]MONE(M)CAPARD'!AW15="","",'[2]MONE(M)CAPARD'!AW15) -> n.a. | BO8: =IF('[2]MONE(M)CAPARD'!AX15="","",'[2]MONE(M)CAPARD'!AX15) -> n.d. | BP8: =IF('[2]MONE(M)CAPARD'!AY15="","",'[2]MONE(M)CAPARD'!AY15) -> n.a. | BQ8: =IF('[2]FISCAL(M)'!$K15="","",'[2]FISCAL(M)'!$K15) -> n.d. | BR8: =IF('[2]FISCAL(M)'!$L15="","",'[2]FISCAL(M)'!$L15) -> n.d. | BS8: =IF('[2]FISCAL(M)'!$AY15="","",'[2]FISCAL(M)'!$AY15) -> n.d. | BT8: =IF('[2]FISCAL(M)'!$BI15="","",'[2]FISCAL(M)'!$BI15) -> n.d. | BU8: =IF('[2]FISCAL(M)'!$BS15="","",'[2]FISCAL(M)'!$BS15) -> n.d. | BV8: =IF('[2]FISCAL(M)'!$AZ15="","",'[2]FISCAL(M)'!$AZ15) -> n.d. | BW8: =IF('[2]FISCAL(M)'!$BJ15="","",'[2]FISCAL(M)'!$BJ15) -> n.d. | BX8: =IF('[2]FISCAL(M)'!$BT15="","",'[2]FISCAL(M)'!$BT15) -> n.d. | BY8: =IF('[3]MONE(M)'!$AO15="","",'[3]MONE(M)'!$AO15) -> n.d. | BZ8: =IF('[4]MONE(M)'!$AO15="","",'[4]MONE(M)'!$AO15) -> n.d. | CA8: =IF('[5]MONE(M)'!$AO15="","",'[5]MONE(M)'!$AO15) -> n.d. | CB8: =+'[1]MONE(M)'!$AO15 -> n.d. | CC8: =IF('[6]MONE(M)'!$AO15="","",'[6]MONE(M)'!$AO15) -> n.d. | CD8: =IF('[7]MONE(M)'!$AO15="","",'[7]MONE(M)'!$AO15) -> n.d. | CE8: =IF('[8]MONE(M)'!$AO15="","",'[8]MONE(M)'!$AO15) -> n.d. | CF8: n.d. | CG8: n.d. | CH8: n.d. | CI8: n.d. | CJ8: n.d. | CK8: n.d. | CL8: n.d. | CM8: =IF('[2]FISCAL(M)'!$K15="","",'[2]FISCAL(M)'!$K15) -> n.d. | CN8: n.d. | CO8: n.d. | CP8: =IF('[2]FISCAL(M)'!$L15="","",'[2]FISCAL(M)'!$L15) -> n.d. | CQ8: n.d. | CR8: n.d. | CS8: n.d. | CT8: n.d. | CU8: n.d. | CV8: n.d. | CW8: n.d. | CX8: n.d. | CY8: n.d. | CZ8: n.d. | DA8: n.d. | DB8: n.d. | DC8: n.d. | DD8: n.d. | DE8: n.d. | DF8: n.d. | DG8: n.d. | DH8: n.d.
A9: 1990 | B9: julio | C9: 1990-julio | D9: =IF('[2]REAL IPC(M)'!$AL16="","",+'[2]REAL IPC(M)'!$AL16) -> n.d. | E9: =IF('[2]REAL IPC(M)'!$BE16="","",+'[2]REAL IPC(M)'!$BE16) -> n.d. | F9: =IF('[2]REAL IPC(M)'!$AM16="","",+'[2]REAL IPC(M)'!$AM16) -> n.d. | G9: =IF('[2]REAL IPC(M)'!$BI16="","",+'[2]REAL IPC(M)'!$BI16) -> n.d. | H9: =IF('[2]REAL IMAE(M)'!BJ16="","",'[2]REAL IMAE(M)'!BJ16) -> n.d. | I9: =IF('[2]REAL IMAE(M)'!BK16="","",'[2]REAL IMAE(M)'!BK16) -> n.d. | J9: =IF('[2]REAL IMAE(M)'!BN16="","",'[2]REAL IMAE(M)'!BN16) -> n.d. | K9: =IF('[2]REAL IMAE(M)'!BO16="","",'[2]REAL IMAE(M)'!BO16) -> n.d. | L9: =IF('[2]EXT RIN(M)'!$K16="","",'[2]EXT RIN(M)'!$K16) -> n.d. | N9: =IF('[2]EXT RIN(M)'!$L16="","",'[2]EXT RIN(M)'!$L16) -> n.d. | P9: =IF('[2]MONE(M)CARD'!EG16="","",'[2]MONE(M)CARD'!EG16) -> n.d. | Q9: =IF('[2]MONE(M)CARD'!EK16="","",'[2]MONE(M)CARD'!EK16) -> n.d. | R9: =IF('[2]MONE(M)CARD'!EP16="","",'[2]MONE(M)CARD'!EP16) -> n.d. | S9: =IF('[2]MONE(M)CARD'!ES16="","",'[2]MONE(M)CARD'!ES16) -> n.d. | T9: =IF('[2]MONE(M)CARD'!EV16="","",'[2]MONE(M)CARD'!EV16) -> n.d. | U9: =IF('[2]MONE(M)CARD'!EZ16="","",'[2]MONE(M)CARD'!EZ16) -> n.d. | V9: =IF('[2]MONE(M)CAPARD'!FC16="","",'[2]MONE(M)CAPARD'!FC16) -> n.d. | W9: =IF('[2]MONE(M)CAPARD'!FG16="","",'[2]MONE(M)CAPARD'!FG16) -> n.d. | X9: =IF('[2]MONE(M)CAPARD'!FL16="","",'[2]MONE(M)CAPARD'!FL16) -> n.d. | Y9: =IF('[2]MONE(M)CAPARD'!FO16="","",'[2]MONE(M)CAPARD'!FO16) -> n.d. | Z9: =IF('[2]MONE(M)CAPARD'!FR16="","",'[2]MONE(M)CAPARD'!FR16) -> n.d. | AA9: =IF('[2]MONE(M)CAPARD'!FV16="","",'[2]MONE(M)CAPARD'!FV16) -> n.d. | AB9: =IF('[2]MONE(M)CARD'!FV16="","",'[2]MONE(M)CARD'!FV16) ->  | AC9: =IF('[2]MONE(M)CARD'!GD16="","",'[2]MONE(M)CARD'!GD16) -> n.d. | AD9: =IF('[2]MONE(M)CARD'!GE16="","",'[2]MONE(M)CARD'!GE16) -> n.d. | AE9: n.d. | AF9: n.d. | AG9: n.d. | AH9: n.d. | AI9: n.d. | AJ9: n.d. | AK9: n.d. | AL9: n.d. | AN9: n.d. | AO9: n.d. | AP9: n.d. | AQ9: n.d. | AR9: n.d. | AS9: =IF('[2]MONE(M)CAPARD'!GS16="","",'[2]MONE(M)CAPARD'!GS16) -> n.d. | AT9: =IF('[2]MONE(M)CARD'!HA16="","",'[2]MONE(M)CAPARD'!HA16) -> n.d. | AU9: =IF('[2]MONE(M)CAPARD'!HB16="","",'[2]MONE(M)CAPARD'!HB16) -> n.d. | AV9: n.d. | AW9: n.d. | AX9: n.d. | AY9: n.d. | AZ9: n.d. | BA9: n.d. | BB9: n.d. | BC9: n.d. | BD9: n.d. | BE9: n.d. | BF9: n.d. | BG9: n.d. | BH9: n.d. | BI9: n.d. | BJ9: =IF('[2]MONE(M)CAPARD'!AS16="","",'[2]MONE(M)CAPARD'!AS16) -> n.d. | BK9: =IF('[2]MONE(M)CAPARD'!AT16="","",'[2]MONE(M)CAPARD'!AT16) -> n.a. | BL9: =IF('[2]MONE(M)CAPARD'!AU16="","",'[2]MONE(M)CAPARD'!AU16) -> n.d. | BM9: =IF('[2]MONE(M)CAPARD'!AV16="","",'[2]MONE(M)CAPARD'!AV16) -> n.d. | BN9: =IF('[2]MONE(M)CAPARD'!AW16="","",'[2]MONE(M)CAPARD'!AW16) -> n.a. | BO9: =IF('[2]MONE(M)CAPARD'!AX16="","",'[2]MONE(M)CAPARD'!AX16) -> n.d. | BP9: =IF('[2]MONE(M)CAPARD'!AY16="","",'[2]MONE(M)CAPARD'!AY16) -> n.a. | BQ9: =IF('[2]FISCAL(M)'!$K16="","",'[2]FISCAL(M)'!$K16) -> n.d. | BR9: =IF('[2]FISCAL(M)'!$L16="","",'[2]FISCAL(M)'!$L16) -> n.d. | BS9: =IF('[2]FISCAL(M)'!$AY16="","",'[2]FISCAL(M)'!$AY16) -> n.d. | BT9: =IF('[2]FISCAL(M)'!$BI16="","",'[2]FISCAL(M)'!$BI16) -> n.d. | BU9: =IF('[2]FISCAL(M)'!$BS16="","",'[2]FISCAL(M)'!$BS16) -> n.d. | BV9: =IF('[2]FISCAL(M)'!$AZ16="","",'[2]FISCAL(M)'!$AZ16) -> n.d. | BW9: =IF('[2]FISCAL(M)'!$BJ16="","",'[2]FISCAL(M)'!$BJ16) -> n.d. | BX9: =IF('[2]FISCAL(M)'!$BT16="","",'[2]FISCAL(M)'!$BT16) -> n.d. | BY9: =IF('[3]MONE(M)'!$AO16="","",'[3]MONE(M)'!$AO16) -> n.d. | BZ9: =IF('[4]MONE(M)'!$AO16="","",'[4]MONE(M)'!$AO16) -> n.d. | CA9: =IF('[5]MONE(M)'!$AO16="","",'[5]MONE(M)'!$AO16) -> n.d. | CB9: =+'[1]MONE(M)'!$AO16 -> n.d. | CC9: =IF('[6]MONE(M)'!$AO16="","",'[6]MONE(M)'!$AO16) -> n.d. | CD9: =IF('[7]MONE(M)'!$AO16="","",'[7]MONE(M)'!$AO16) -> n.d. | CE9: =IF('[8]MONE(M)'!$AO16="","",'[8]MONE(M)'!$AO16) -> n.d. | CF9: n.d. | CG9: n.d. | CH9: n.d. | CI9: n.d. | CJ9: n.d. | CK9: n.d. | CL9: n.d. | CM9: =IF('[2]FISCAL(M)'!$K16="","",'[2]FISCAL(M)'!$K16) -> n.d. | CN9: n.d. | CO9: n.d. | CP9: =IF('[2]FISCAL(M)'!$L16="","",'[2]FISCAL(M)'!$L16) -> n.d. | CQ9: n.d. | CR9: n.d. | CS9: n.d. | CT9: n.d. | CU9: n.d. | CV9: n.d. | CW9: n.d. | CX9: n.d. | CY9: n.d. | CZ9: n.d. | DA9: n.d. | DB9: n.d. | DC9: n.d. | DD9: n.d. | DE9: n.d. | DF9: n.d. | DG9: n.d. | DH9: n.d.
A10: 1990 | B10: agosto | C10: 1990-agosto | D10: =IF('[2]REAL IPC(M)'!$AL17="","",+'[2]REAL IPC(M)'!$AL17) -> n.d. | E10: =IF('[2]REAL IPC(M)'!$BE17="","",+'[2]REAL IPC(M)'!$BE17) -> n.d. | F10: =IF('[2]REAL IPC(M)'!$AM17="","",+'[2]REAL IPC(M)'!$AM17) -> n.d. | G10: =IF('[2]REAL IPC(M)'!$BI17="","",+'[2]REAL IPC(M)'!$BI17) -> n.d. | H10: =IF('[2]REAL IMAE(M)'!BJ17="","",'[2]REAL IMAE(M)'!BJ17) -> n.d. | I10: =IF('[2]REAL IMAE(M)'!BK17="","",'[2]REAL IMAE(M)'!BK17) -> n.d. | J10: =IF('[2]REAL IMAE(M)'!BN17="","",'[2]REAL IMAE(M)'!BN17) -> n.d. | K10: =IF('[2]REAL IMAE(M)'!BO17="","",'[2]REAL IMAE(M)'!BO17) -> n.d. | L10: =IF('[2]EXT RIN(M)'!$K17="","",'[2]EXT RIN(M)'!$K17) -> n.d. | N10: =IF('[2]EXT RIN(M)'!$L17="","",'[2]EXT RIN(M)'!$L17) -> n.d. | P10: =IF('[2]MONE(M)CARD'!EG17="","",'[2]MONE(M)CARD'!EG17) -> n.d. | Q10: =IF('[2]MONE(M)CARD'!EK17="","",'[2]MONE(M)CARD'!EK17) -> n.d. | R10: =IF('[2]MONE(M)CARD'!EP17="","",'[2]MONE(M)CARD'!EP17) -> n.d. | S10: =IF('[2]MONE(M)CARD'!ES17="","",'[2]MONE(M)CARD'!ES17) -> n.d. | T10: =IF('[2]MONE(M)CARD'!EV17="","",'[2]MONE(M)CARD'!EV17) -> n.d. | U10: =IF('[2]MONE(M)CARD'!EZ17="","",'[2]MONE(M)CARD'!EZ17) -> n.d. | V10: =IF('[2]MONE(M)CAPARD'!FC17="","",'[2]MONE(M)CAPARD'!FC17) -> n.d. | W10: =IF('[2]MONE(M)CAPARD'!FG17="","",'[2]MONE(M)CAPARD'!FG17) -> n.d. | X10: =IF('[2]MONE(M)CAPARD'!FL17="","",'[2]MONE(M)CAPARD'!FL17) -> n.d. | Y10: =IF('[2]MONE(M)CAPARD'!FO17="","",'[2]MONE(M)CAPARD'!FO17) -> n.d. | Z10: =IF('[2]MONE(M)CAPARD'!FR17="","",'[2]MONE(M)CAPARD'!FR17) -> n.d. | AA10: =IF('[2]MONE(M)CAPARD'!FV17="","",'[2]MONE(M)CAPARD'!FV17) -> n.d. | AB10: =IF('[2]MONE(M)CARD'!FV17="","",'[2]MONE(M)CARD'!FV17) ->  | AC10: =IF('[2]MONE(M)CARD'!GD17="","",'[2]MONE(M)CARD'!GD17) -> n.d. | AD10: =IF('[2]MONE(M)CARD'!GE17="","",'[2]MONE(M)CARD'!GE17) -> n.d. | AE10: n.d. | AF10: n.d. | AG10: n.d. | AH10: n.d. | AI10: n.d. | AJ10: n.d. | AK10: n.d. | AL10: n.d. | AN10: n.d. | AO10: n.d. | AP10: n.d. | AQ10: n.d. | AR10: n.d. | AS10: =IF('[2]MONE(M)CAPARD'!GS17="","",'[2]MONE(M)CAPARD'!GS17) -> n.d. | AT10: =IF('[2]MONE(M)CARD'!HA17="","",'[2]MONE(M)CAPARD'!HA17) -> n.d. | AU10: =IF('[2]MONE(M)CAPARD'!HB17="","",'[2]MONE(M)CAPARD'!HB17) -> n.d. | AV10: n.d. | AW10: n.d. | AX10: n.d. | AY10: n.d. | AZ10: n.d. | BA10: n.d. | BB10: n.d. | BC10: n.d. | BD10: n.d. | BE10: n.d. | BF10: n.d. | BG10: n.d. | BH10: n.d. | BI10: n.d. | BJ10: =IF('[2]MONE(M)CAPARD'!AS17="","",'[2]MONE(M)CAPARD'!AS17) -> n.d. | BK10: =IF('[2]MONE(M)CAPARD'!AT17="","",'[2]MONE(M)CAPARD'!AT17) -> n.a. | BL10: =IF('[2]MONE(M)CAPARD'!AU17="","",'[2]MONE(M)CAPARD'!AU17) -> n.d. | BM10: =IF('[2]MONE(M)CAPARD'!AV17="","",'[2]MONE(M)CAPARD'!AV17) -> n.d. | BN10: =IF('[2]MONE(M)CAPARD'!AW17="","",'[2]MONE(M)CAPARD'!AW17) -> n.a. | BO10: =IF('[2]MONE(M)CAPARD'!AX17="","",'[2]MONE(M)CAPARD'!AX17) -> n.d. | BP10: =IF('[2]MONE(M)CAPARD'!AY17="","",'[2]MONE(M)CAPARD'!AY17) -> n.a. | BQ10: =IF('[2]FISCAL(M)'!$K17="","",'[2]FISCAL(M)'!$K17) -> n.d. | BR10: =IF('[2]FISCAL(M)'!$L17="","",'[2]FISCAL(M)'!$L17) -> n.d. | BS10: =IF('[2]FISCAL(M)'!$AY17="","",'[2]FISCAL(M)'!$AY17) -> n.d. | BT10: =IF('[2]FISCAL(M)'!$BI17="","",'[2]FISCAL(M)'!$BI17) -> n.d. | BU10: =IF('[2]FISCAL(M)'!$BS17="","",'[2]FISCAL(M)'!$BS17) -> n.d. | BV10: =IF('[2]FISCAL(M)'!$AZ17="","",'[2]FISCAL(M)'!$AZ17) -> n.d. | BW10: =IF('[2]FISCAL(M)'!$BJ17="","",'[2]FISCAL(M)'!$BJ17) -> n.d. | BX10: =IF('[2]FISCAL(M)'!$BT17="","",'[2]FISCAL(M)'!$BT17) -> n.d. | BY10: =IF('[3]MONE(M)'!$AO17="","",'[3]MONE(M)'!$AO17) -> n.d. | BZ10: =IF('[4]MONE(M)'!$AO17="","",'[4]MONE(M)'!$AO17) -> n.d. | CA10: =IF('[5]MONE(M)'!$AO17="","",'[5]MONE(M)'!$AO17) -> n.d. | CB10: =+'[1]MONE(M)'!$AO17 -> n.d. | CC10: =IF('[6]MONE(M)'!$AO17="","",'[6]MONE(M)'!$AO17) -> n.d. | CD10: =IF('[7]MONE(M)'!$AO17="","",'[7]MONE(M)'!$AO17) -> n.d. | CE10: =IF('[8]MONE(M)'!$AO17="","",'[8]MONE(M)'!$AO17) -> n.d. | CF10: n.d. | CG10: n.d. | CH10: n.d. | CI10: n.d. | CJ10: n.d. | CK10: n.d. | CL10: n.d. | CM10: =IF('[2]FISCAL(M)'!$K17="","",'[2]FISCAL(M)'!$K17) -> n.d. | CN10: n.d. | CO10: n.d. | CP10: =IF('[2]FISCAL(M)'!$L17="","",'[2]FISCAL(M)'!$L17) -> n.d. | CQ10: n.d. | CR10: n.d. | CS10: n.d. | CT10: n.d. | CU10: n.d. | CV10: n.d. | CW10: n.d. | CX10: n.d. | CY10: n.d. | CZ10: n.d. | DA10: n.d. | DB10: n.d. | DC10: n.d. | DD10: n.d. | DE10: n.d. | DF10: n.d. | DG10: n.d. | DH10: n.d.
A11: 1990 | B11: septiembre | C11: 1990-septiembre | D11: =IF('[2]REAL IPC(M)'!$AL18="","",+'[2]REAL IPC(M)'!$AL18) -> n.d. | E11: =IF('[2]REAL IPC(M)'!$BE18="","",+'[2]REAL IPC(M)'!$BE18) -> n.d. | F11: =IF('[2]REAL IPC(M)'!$AM18="","",+'[2]REAL IPC(M)'!$AM18) -> n.d. | G11: =IF('[2]REAL IPC(M)'!$BI18="","",+'[2]REAL IPC(M)'!$BI18) -> n.d. | H11: =IF('[2]REAL IMAE(M)'!BJ18="","",'[2]REAL IMAE(M)'!BJ18) -> n.d. | I11: =IF('[2]REAL IMAE(M)'!BK18="","",'[2]REAL IMAE(M)'!BK18) -> n.d. | J11: =IF('[2]REAL IMAE(M)'!BN18="","",'[2]REAL IMAE(M)'!BN18) -> n.d. | K11: =IF('[2]REAL IMAE(M)'!BO18="","",'[2]REAL IMAE(M)'!BO18) -> n.d. | L11: =IF('[2]EXT RIN(M)'!$K18="","",'[2]EXT RIN(M)'!$K18) -> n.d. | N11: =IF('[2]EXT RIN(M)'!$L18="","",'[2]EXT RIN(M)'!$L18) -> n.d. | P11: =IF('[2]MONE(M)CARD'!EG18="","",'[2]MONE(M)CARD'!EG18) -> n.d. | Q11: =IF('[2]MONE(M)CARD'!EK18="","",'[2]MONE(M)CARD'!EK18) -> n.d. | R11: =IF('[2]MONE(M)CARD'!EP18="","",'[2]MONE(M)CARD'!EP18) -> n.d. | S11: =IF('[2]MONE(M)CARD'!ES18="","",'[2]MONE(M)CARD'!ES18) -> n.d. | T11: =IF('[2]MONE(M)CARD'!EV18="","",'[2]MONE(M)CARD'!EV18) -> n.d. | U11: =IF('[2]MONE(M)CARD'!EZ18="","",'[2]MONE(M)CARD'!EZ18) -> n.d. | V11: =IF('[2]MONE(M)CAPARD'!FC18="","",'[2]MONE(M)CAPARD'!FC18) -> n.d. | W11: =IF('[2]MONE(M)CAPARD'!FG18="","",'[2]MONE(M)CAPARD'!FG18) -> n.d. | X11: =IF('[2]MONE(M)CAPARD'!FL18="","",'[2]MONE(M)CAPARD'!FL18) -> n.d. | Y11: =IF('[2]MONE(M)CAPARD'!FO18="","",'[2]MONE(M)CAPARD'!FO18) -> n.d. | Z11: =IF('[2]MONE(M)CAPARD'!FR18="","",'[2]MONE(M)CAPARD'!FR18) -> n.d. | AA11: =IF('[2]MONE(M)CAPARD'!FV18="","",'[2]MONE(M)CAPARD'!FV18) -> n.d. | AB11: =IF('[2]MONE(M)CARD'!FV18="","",'[2]MONE(M)CARD'!FV18) ->  | AC11: =IF('[2]MONE(M)CARD'!GD18="","",'[2]MONE(M)CARD'!GD18) -> n.d. | AD11: =IF('[2]MONE(M)CARD'!GE18="","",'[2]MONE(M)CARD'!GE18) -> n.d. | AE11: n.d. | AF11: n.d. | AG11: n.d. | AH11: n.d. | AI11: n.d. | AJ11: n.d. | AK11: n.d. | AL11: n.d. | AN11: n.d. | AO11: n.d. | AP11: n.d. | AQ11: n.d. | AR11: n.d. | AS11: =IF('[2]MONE(M)CAPARD'!GS18="","",'[2]MONE(M)CAPARD'!GS18) -> n.d. | AT11: =IF('[2]MONE(M)CARD'!HA18="","",'[2]MONE(M)CAPARD'!HA18) -> n.d. | AU11: =IF('[2]MONE(M)CAPARD'!HB18="","",'[2]MONE(M)CAPARD'!HB18) -> n.d. | AV11: n.d. | AW11: n.d. | AX11: n.d. | AY11: n.d. | AZ11: n.d. | BA11: n.d. | BB11: n.d. | BC11: n.d. | BD11: n.d. | BE11: n.d. | BF11: n.d. | BG11: n.d. | BH11: n.d. | BI11: n.d. | BJ11: =IF('[2]MONE(M)CAPARD'!AS18="","",'[2]MONE(M)CAPARD'!AS18) -> n.d. | BK11: =IF('[2]MONE(M)CAPARD'!AT18="","",'[2]MONE(M)CAPARD'!AT18) -> n.a. | BL11: =IF('[2]MONE(M)CAPARD'!AU18="","",'[2]MONE(M)CAPARD'!AU18) -> n.d. | BM11: =IF('[2]MONE(M)CAPARD'!AV18="","",'[2]MONE(M)CAPARD'!AV18) -> n.d. | BN11: =IF('[2]MONE(M)CAPARD'!AW18="","",'[2]MONE(M)CAPARD'!AW18) -> n.a. | BO11: =IF('[2]MONE(M)CAPARD'!AX18="","",'[2]MONE(M)CAPARD'!AX18) -> n.d. | BP11: =IF('[2]MONE(M)CAPARD'!AY18="","",'[2]MONE(M)CAPARD'!AY18) -> n.a. | BQ11: =IF('[2]FISCAL(M)'!$K18="","",'[2]FISCAL(M)'!$K18) -> n.d. | BR11: =IF('[2]FISCAL(M)'!$L18="","",'[2]FISCAL(M)'!$L18) -> n.d. | BS11: =IF('[2]FISCAL(M)'!$AY18="","",'[2]FISCAL(M)'!$AY18) -> n.d. | BT11: =IF('[2]FISCAL(M)'!$BI18="","",'[2]FISCAL(M)'!$BI18) -> n.d. | BU11: =IF('[2]FISCAL(M)'!$BS18="","",'[2]FISCAL(M)'!$BS18) -> n.d. | BV11: =IF('[2]FISCAL(M)'!$AZ18="","",'[2]FISCAL(M)'!$AZ18) -> n.d. | BW11: =IF('[2]FISCAL(M)'!$BJ18="","",'[2]FISCAL(M)'!$BJ18) -> n.d. | BX11: =IF('[2]FISCAL(M)'!$BT18="","",'[2]FISCAL(M)'!$BT18) -> n.d. | BY11: =IF('[3]MONE(M)'!$AO18="","",'[3]MONE(M)'!$AO18) -> n.d. | BZ11: =IF('[4]MONE(M)'!$AO18="","",'[4]MONE(M)'!$AO18) -> n.d. | CA11: =IF('[5]MONE(M)'!$AO18="","",'[5]MONE(M)'!$AO18) -> n.d. | CB11: =+'[1]MONE(M)'!$AO18 -> n.d. | CC11: =IF('[6]MONE(M)'!$AO18="","",'[6]MONE(M)'!$AO18) -> n.d. | CD11: =IF('[7]MONE(M)'!$AO18="","",'[7]MONE(M)'!$AO18) -> n.d. | CE11: =IF('[8]MONE(M)'!$AO18="","",'[8]MONE(M)'!$AO18) -> n.d. | CF11: n.d. | CG11: n.d. | CH11: n.d. | CI11: n.d. | CJ11: n.d. | CK11: n.d. | CL11: n.d. | CM11: =IF('[2]FISCAL(M)'!$K18="","",'[2]FISCAL(M)'!$K18) -> n.d. | CN11: n.d. | CO11: n.d. | CP11: =IF('[2]FISCAL(M)'!$L18="","",'[2]FISCAL(M)'!$L18) -> n.d. | CQ11: n.d. | CR11: n.d. | CS11: n.d. | CT11: n.d. | CU11: n.d. | CV11: n.d. | CW11: n.d. | CX11: n.d. | CY11: n.d. | CZ11: n.d. | DA11: n.d. | DB11: n.d. | DC11: n.d. | DD11: n.d. | DE11: n.d. | DF11: n.d. | DG11: n.d. | DH11: n.d.
A12: 1990 | B12: octubre | C12: 1990-octubre | D12: =IF('[2]REAL IPC(M)'!$AL19="","",+'[2]REAL IPC(M)'!$AL19) -> n.d. | E12: =IF('[2]REAL IPC(M)'!$BE19="","",+'[2]REAL IPC(M)'!$BE19) -> n.d. | F12: =IF('[2]REAL IPC(M)'!$AM19="","",+'[2]REAL IPC(M)'!$AM19) -> n.d. | G12: =IF('[2]REAL IPC(M)'!$BI19="","",+'[2]REAL IPC(M)'!$BI19) -> n.d. | H12: =IF('[2]REAL IMAE(M)'!BJ19="","",'[2]REAL IMAE(M)'!BJ19) -> n.d. | I12: =IF('[2]REAL IMAE(M)'!BK19="","",'[2]REAL IMAE(M)'!BK19) -> n.d. | J12: =IF('[2]REAL IMAE(M)'!BN19="","",'[2]REAL IMAE(M)'!BN19) -> n.d. | K12: =IF('[2]REAL IMAE(M)'!BO19="","",'[2]REAL IMAE(M)'!BO19) -> n.d. | L12: =IF('[2]EXT RIN(M)'!$K19="","",'[2]EXT RIN(M)'!$K19) -> n.d. | N12: =IF('[2]EXT RIN(M)'!$L19="","",'[2]EXT RIN(M)'!$L19) -> n.d. | P12: =IF('[2]MONE(M)CARD'!EG19="","",'[2]MONE(M)CARD'!EG19) -> n.d. | Q12: =IF('[2]MONE(M)CARD'!EK19="","",'[2]MONE(M)CARD'!EK19) -> n.d. | R12: =IF('[2]MONE(M)CARD'!EP19="","",'[2]MONE(M)CARD'!EP19) -> n.d. | S12: =IF('[2]MONE(M)CARD'!ES19="","",'[2]MONE(M)CARD'!ES19) -> n.d. | T12: =IF('[2]MONE(M)CARD'!EV19="","",'[2]MONE(M)CARD'!EV19) -> n.d. | U12: =IF('[2]MONE(M)CARD'!EZ19="","",'[2]MONE(M)CARD'!EZ19) -> n.d. | V12: =IF('[2]MONE(M)CAPARD'!FC19="","",'[2]MONE(M)CAPARD'!FC19) -> n.d. | W12: =IF('[2]MONE(M)CAPARD'!FG19="","",'[2]MONE(M)CAPARD'!FG19) -> n.d. | X12: =IF('[2]MONE(M)CAPARD'!FL19="","",'[2]MONE(M)CAPARD'!FL19) -> n.d. | Y12: =IF('[2]MONE(M)CAPARD'!FO19="","",'[2]MONE(M)CAPARD'!FO19) -> n.d. | Z12: =IF('[2]MONE(M)CAPARD'!FR19="","",'[2]MONE(M)CAPARD'!FR19) -> n.d. | AA12: =IF('[2]MONE(M)CAPARD'!FV19="","",'[2]MONE(M)CAPARD'!FV19) -> n.d. | AB12: =IF('[2]MONE(M)CARD'!FV19="","",'[2]MONE(M)CARD'!FV19) ->  | AC12: =IF('[2]MONE(M)CARD'!GD19="","",'[2]MONE(M)CARD'!GD19) -> n.d. | AD12: =IF('[2]MONE(M)CARD'!GE19="","",'[2]MONE(M)CARD'!GE19) -> n.d. | AE12: n.d. | AF12: n.d. | AG12: n.d. | AH12: n.d. | AI12: n.d. | AJ12: n.d. | AK12: n.d. | AL12: n.d. | AN12: n.d. | AO12: n.d. | AP12: n.d. | AQ12: n.d. | AR12: n.d. | AS12: =IF('[2]MONE(M)CAPARD'!GS19="","",'[2]MONE(M)CAPARD'!GS19) -> n.d. | AT12: =IF('[2]MONE(M)CARD'!HA19="","",'[2]MONE(M)CAPARD'!HA19) -> n.d. | AU12: =IF('[2]MONE(M)CAPARD'!HB19="","",'[2]MONE(M)CAPARD'!HB19) -> n.d. | AV12: n.d. | AW12: n.d. | AX12: n.d. | AY12: n.d. | AZ12: n.d. | BA12: n.d. | BB12: n.d. | BC12: n.d. | BD12: n.d. | BE12: n.d. | BF12: n.d. | BG12: n.d. | BH12: n.d. | BI12: n.d. | BJ12: =IF('[2]MONE(M)CAPARD'!AS19="","",'[2]MONE(M)CAPARD'!AS19) -> n.d. | BK12: =IF('[2]MONE(M)CAPARD'!AT19="","",'[2]MONE(M)CAPARD'!AT19) -> n.a. | BL12: =IF('[2]MONE(M)CAPARD'!AU19="","",'[2]MONE(M)CAPARD'!AU19) -> n.d. | BM12: =IF('[2]MONE(M)CAPARD'!AV19="","",'[2]MONE(M)CAPARD'!AV19) -> n.d. | BN12: =IF('[2]MONE(M)CAPARD'!AW19="","",'[2]MONE(M)CAPARD'!AW19) -> n.a. | BO12: =IF('[2]MONE(M)CAPARD'!AX19="","",'[2]MONE(M)CAPARD'!AX19) -> n.d. | BP12: =IF('[2]MONE(M)CAPARD'!AY19="","",'[2]MONE(M)CAPARD'!AY19) -> n.a. | BQ12: =IF('[2]FISCAL(M)'!$K19="","",'[2]FISCAL(M)'!$K19) -> n.d. | BR12: =IF('[2]FISCAL(M)'!$L19="","",'[2]FISCAL(M)'!$L19) -> n.d. | BS12: =IF('[2]FISCAL(M)'!$AY19="","",'[2]FISCAL(M)'!$AY19) -> n.d. | BT12: =IF('[2]FISCAL(M)'!$BI19="","",'[2]FISCAL(M)'!$BI19) -> n.d. | BU12: =IF('[2]FISCAL(M)'!$BS19="","",'[2]FISCAL(M)'!$BS19) -> n.d. | BV12: =IF('[2]FISCAL(M)'!$AZ19="","",'[2]FISCAL(M)'!$AZ19) -> n.d. | BW12: =IF('[2]FISCAL(M)'!$BJ19="","",'[2]FISCAL(M)'!$BJ19) -> n.d. | BX12: =IF('[2]FISCAL(M)'!$BT19="","",'[2]FISCAL(M)'!$BT19) -> n.d. | BY12: =IF('[3]MONE(M)'!$AO19="","",'[3]MONE(M)'!$AO19) -> n.d. | BZ12: =IF('[4]MONE(M)'!$AO19="","",'[4]MONE(M)'!$AO19) -> n.d. | CA12: =IF('[5]MONE(M)'!$AO19="","",'[5]MONE(M)'!$AO19) -> n.d. | CB12: =+'[1]MONE(M)'!$AO19 -> n.d. | CC12: =IF('[6]MONE(M)'!$AO19="","",'[6]MONE(M)'!$AO19) -> n.d. | CD12: =IF('[7]MONE(M)'!$AO19="","",'[7]MONE(M)'!$AO19) -> n.d. | CE12: =IF('[8]MONE(M)'!$AO19="","",'[8]MONE(M)'!$AO19) -> n.d. | CF12: n.d. | CG12: n.d. | CH12: n.d. | CI12: n.d. | CJ12: n.d. | CK12: n.d. | CL12: n.d. | CM12: =IF('[2]FISCAL(M)'!$K19="","",'[2]FISCAL(M)'!$K19) -> n.d. | CN12: n.d. | CO12: n.d. | CP12: =IF('[2]FISCAL(M)'!$L19="","",'[2]FISCAL(M)'!$L19) -> n.d. | CQ12: n.d. | CR12: n.d. | CS12: n.d. | CT12: n.d. | CU12: n.d. | CV12: n.d. | CW12: n.d. | CX12: n.d. | CY12: n.d. | CZ12: n.d. | DA12: n.d. | DB12: n.d. | DC12: n.d. | DD12: n.d. | DE12: n.d. | DF12: n.d. | DG12: n.d. | DH12: n.d.
A13: 1990 | B13: noviembre | C13: 1990-noviembre | D13: =IF('[2]REAL IPC(M)'!$AL20="","",+'[2]REAL IPC(M)'!$AL20) -> n.d. | E13: =IF('[2]REAL IPC(M)'!$BE20="","",+'[2]REAL IPC(M)'!$BE20) -> n.d. | F13: =IF('[2]REAL IPC(M)'!$AM20="","",+'[2]REAL IPC(M)'!$AM20) -> n.d. | G13: =IF('[2]REAL IPC(M)'!$BI20="","",+'[2]REAL IPC(M)'!$BI20) -> n.d. | H13: =IF('[2]REAL IMAE(M)'!BJ20="","",'[2]REAL IMAE(M)'!BJ20) -> n.d. | I13: =IF('[2]REAL IMAE(M)'!BK20="","",'[2]REAL IMAE(M)'!BK20) -> n.d. | J13: =IF('[2]REAL IMAE(M)'!BN20="","",'[2]REAL IMAE(M)'!BN20) -> n.d. | K13: =IF('[2]REAL IMAE(M)'!BO20="","",'[2]REAL IMAE(M)'!BO20) -> n.d. | L13: =IF('[2]EXT RIN(M)'!$K20="","",'[2]EXT RIN(M)'!$K20) -> n.d. | N13: =IF('[2]EXT RIN(M)'!$L20="","",'[2]EXT RIN(M)'!$L20) -> n.d. | P13: =IF('[2]MONE(M)CARD'!EG20="","",'[2]MONE(M)CARD'!EG20) -> n.d. | Q13: =IF('[2]MONE(M)CARD'!EK20="","",'[2]MONE(M)CARD'!EK20) -> n.d. | R13: =IF('[2]MONE(M)CARD'!EP20="","",'[2]MONE(M)CARD'!EP20) -> n.d. | S13: =IF('[2]MONE(M)CARD'!ES20="","",'[2]MONE(M)CARD'!ES20) -> n.d. | T13: =IF('[2]MONE(M)CARD'!EV20="","",'[2]MONE(M)CARD'!EV20) -> n.d. | U13: =IF('[2]MONE(M)CARD'!EZ20="","",'[2]MONE(M)CARD'!EZ20) -> n.d. | V13: =IF('[2]MONE(M)CAPARD'!FC20="","",'[2]MONE(M)CAPARD'!FC20) -> n.d. | W13: =IF('[2]MONE(M)CAPARD'!FG20="","",'[2]MONE(M)CAPARD'!FG20) -> n.d. | X13: =IF('[2]MONE(M)CAPARD'!FL20="","",'[2]MONE(M)CAPARD'!FL20) -> n.d. | Y13: =IF('[2]MONE(M)CAPARD'!FO20="","",'[2]MONE(M)CAPARD'!FO20) -> n.d. | Z13: =IF('[2]MONE(M)CAPARD'!FR20="","",'[2]MONE(M)CAPARD'!FR20) -> n.d. | AA13: =IF('[2]MONE(M)CAPARD'!FV20="","",'[2]MONE(M)CAPARD'!FV20) -> n.d. | AB13: =IF('[2]MONE(M)CARD'!FV20="","",'[2]MONE(M)CARD'!FV20) ->  | AC13: =IF('[2]MONE(M)CARD'!GD20="","",'[2]MONE(M)CARD'!GD20) -> n.d. | AD13: =IF('[2]MONE(M)CARD'!GE20="","",'[2]MONE(M)CARD'!GE20) -> n.d. | AE13: n.d. | AF13: n.d. | AG13: n.d. | AH13: n.d. | AI13: n.d. | AJ13: n.d. | AK13: n.d. | AL13: n.d. | AN13: n.d. | AO13: n.d. | AP13: n.d. | AQ13: n.d. | AR13: n.d. | AS13: =IF('[2]MONE(M)CAPARD'!GS20="","",'[2]MONE(M)CAPARD'!GS20) -> n.d. | AT13: =IF('[2]MONE(M)CARD'!HA20="","",'[2]MONE(M)CAPARD'!HA20) -> n.d. | AU13: =IF('[2]MONE(M)CAPARD'!HB20="","",'[2]MONE(M)CAPARD'!HB20) -> n.d. | AV13: n.d. | AW13: n.d. | AX13: n.d. | AY13: n.d. | AZ13: n.d. | BA13: n.d. | BB13: n.d. | BC13: n.d. | BD13: n.d. | BE13: n.d. | BF13: n.d. | BG13: n.d. | BH13: n.d. | BI13: n.d. | BJ13: =IF('[2]MONE(M)CAPARD'!AS20="","",'[2]MONE(M)CAPARD'!AS20) -> n.d. | BK13: =IF('[2]MONE(M)CAPARD'!AT20="","",'[2]MONE(M)CAPARD'!AT20) -> n.a. | BL13: =IF('[2]MONE(M)CAPARD'!AU20="","",'[2]MONE(M)CAPARD'!AU20) -> n.d. | BM13: =IF('[2]MONE(M)CAPARD'!AV20="","",'[2]MONE(M)CAPARD'!AV20) -> n.d. | BN13: =IF('[2]MONE(M)CAPARD'!AW20="","",'[2]MONE(M)CAPARD'!AW20) -> n.a. | BO13: =IF('[2]MONE(M)CAPARD'!AX20="","",'[2]MONE(M)CAPARD'!AX20) -> n.d. | BP13: =IF('[2]MONE(M)CAPARD'!AY20="","",'[2]MONE(M)CAPARD'!AY20) -> n.a. | BQ13: =IF('[2]FISCAL(M)'!$K20="","",'[2]FISCAL(M)'!$K20) -> n.d. | BR13: =IF('[2]FISCAL(M)'!$L20="","",'[2]FISCAL(M)'!$L20) -> n.d. | BS13: =IF('[2]FISCAL(M)'!$AY20="","",'[2]FISCAL(M)'!$AY20) -> n.d. | BT13: =IF('[2]FISCAL(M)'!$BI20="","",'[2]FISCAL(M)'!$BI20) -> n.d. | BU13: =IF('[2]FISCAL(M)'!$BS20="","",'[2]FISCAL(M)'!$BS20) -> n.d. | BV13: =IF('[2]FISCAL(M)'!$AZ20="","",'[2]FISCAL(M)'!$AZ20) -> n.d. | BW13: =IF('[2]FISCAL(M)'!$BJ20="","",'[2]FISCAL(M)'!$BJ20) -> n.d. | BX13: =IF('[2]FISCAL(M)'!$BT20="","",'[2]FISCAL(M)'!$BT20) -> n.d. | BY13: =IF('[3]MONE(M)'!$AO20="","",'[3]MONE(M)'!$AO20) -> n.d. | BZ13: =IF('[4]MONE(M)'!$AO20="","",'[4]MONE(M)'!$AO20) -> n.d. | CA13: =IF('[5]MONE(M)'!$AO20="","",'[5]MONE(M)'!$AO20) -> n.d. | CB13: =+'[1]MONE(M)'!$AO20 -> n.d. | CC13: =IF('[6]MONE(M)'!$AO20="","",'[6]MONE(M)'!$AO20) -> n.d. | CD13: =IF('[7]MONE(M)'!$AO20="","",'[7]MONE(M)'!$AO20) -> n.d. | CE13: =IF('[8]MONE(M)'!$AO20="","",'[8]MONE(M)'!$AO20) -> n.d. | CF13: n.d. | CG13: n.d. | CH13: n.d. | CI13: n.d. | CJ13: n.d. | CK13: n.d. | CL13: n.d. | CM13: =IF('[2]FISCAL(M)'!$K20="","",'[2]FISCAL(M)'!$K20) -> n.d. | CN13: n.d. | CO13: n.d. | CP13: =IF('[2]FISCAL(M)'!$L20="","",'[2]FISCAL(M)'!$L20) -> n.d. | CQ13: n.d. | CR13: n.d. | CS13: n.d. | CT13: n.d. | CU13: n.d. | CV13: n.d. | CW13: n.d. | CX13: n.d. | CY13: n.d. | CZ13: n.d. | DA13: n.d. | DB13: n.d. | DC13: n.d. | DD13: n.d. | DE13: n.d. | DF13: n.d. | DG13: n.d. | DH13: n.d.
A14: 1990 | B14: diciembre | C14: 1990-diciembre | D14: =IF('[2]REAL IPC(M)'!$AL21="","",+'[2]REAL IPC(M)'!$AL21) -> n.d. | E14: =IF('[2]REAL IPC(M)'!$BE21="","",+'[2]REAL IPC(M)'!$BE21) -> n.d. | F14: =IF('[2]REAL IPC(M)'!$AM21="","",+'[2]REAL IPC(M)'!$AM21) -> n.d. | G14: =IF('[2]REAL IPC(M)'!$BI21="","",+'[2]REAL IPC(M)'!$BI21) -> n.d. | H14: =IF('[2]REAL IMAE(M)'!BJ21="","",'[2]REAL IMAE(M)'!BJ21) -> n.d. | I14: =IF('[2]REAL IMAE(M)'!BK21="","",'[2]REAL IMAE(M)'!BK21) -> n.d. | J14: =IF('[2]REAL IMAE(M)'!BN21="","",'[2]REAL IMAE(M)'!BN21) -> n.d. | K14: =IF('[2]REAL IMAE(M)'!BO21="","",'[2]REAL IMAE(M)'!BO21) -> n.d. | L14: =IF('[2]EXT RIN(M)'!$K21="","",'[2]EXT RIN(M)'!$K21) -> n.d. | M14: n.d. | N14: =IF('[2]EXT RIN(M)'!$L21="","",'[2]EXT RIN(M)'!$L21) -> n.d. | O14: n.d. | P14: =IF('[2]MONE(M)CARD'!EG21="","",'[2]MONE(M)CARD'!EG21) -> n.d. | Q14: =IF('[2]MONE(M)CARD'!EK21="","",'[2]MONE(M)CARD'!EK21) -> n.d. | R14: =IF('[2]MONE(M)CARD'!EP21="","",'[2]MONE(M)CARD'!EP21) -> n.d. | S14: =IF('[2]MONE(M)CARD'!ES21="","",'[2]MONE(M)CARD'!ES21) -> n.d. | T14: =IF('[2]MONE(M)CARD'!EV21="","",'[2]MONE(M)CARD'!EV21) -> n.d. | U14: =IF('[2]MONE(M)CARD'!EZ21="","",'[2]MONE(M)CARD'!EZ21) -> n.d. | V14: =IF('[2]MONE(M)CAPARD'!FC21="","",'[2]MONE(M)CAPARD'!FC21) -> n.d. | W14: =IF('[2]MONE(M)CAPARD'!FG21="","",'[2]MONE(M)CAPARD'!FG21) -> n.d. | X14: =IF('[2]MONE(M)CAPARD'!FL21="","",'[2]MONE(M)CAPARD'!FL21) -> n.d. | Y14: =IF('[2]MONE(M)CAPARD'!FO21="","",'[2]MONE(M)CAPARD'!FO21) -> n.d. | Z14: =IF('[2]MONE(M)CAPARD'!FR21="","",'[2]MONE(M)CAPARD'!FR21) -> n.d. | AA14: =IF('[2]MONE(M)CAPARD'!FV21="","",'[2]MONE(M)CAPARD'!FV21) -> n.d. | AB14: =IF('[2]MONE(M)CARD'!FV21="","",'[2]MONE(M)CARD'!FV21) ->  | AC14: =IF('[2]MONE(M)CARD'!GD21="","",'[2]MONE(M)CARD'!GD21) -> n.d. | AD14: =IF('[2]MONE(M)CARD'!GE21="","",'[2]MONE(M)CARD'!GE21) -> n.d. | AE14: n.d. | AF14: n.d. | AG14: n.d. | AH14: n.d. | AI14: n.d. | AJ14: n.d. | AK14: n.d. | AL14: n.d. | AN14: n.d. | AO14: n.d. | AP14: n.d. | AQ14: n.d. | AR14: n.d. | AS14: =IF('[2]MONE(M)CAPARD'!GS21="","",'[2]MONE(M)CAPARD'!GS21) -> n.d. | AT14: =IF('[2]MONE(M)CARD'!HA21="","",'[2]MONE(M)CAPARD'!HA21) -> n.d. | AU14: =IF('[2]MONE(M)CAPARD'!HB21="","",'[2]MONE(M)CAPARD'!HB21) -> n.d. | AV14: n.d. | AW14: n.d. | AX14: n.d. | AY14: n.d. | AZ14: n.d. | BA14: n.d. | BB14: n.d. | BC14: n.d. | BD14: n.d. | BE14: n.d. | BF14: n.d. | BG14: n.d. | BH14: n.d. | BI14: n.d. | BJ14: =IF('[2]MONE(M)CAPARD'!AS21="","",'[2]MONE(M)CAPARD'!AS21) -> n.d. | BK14: =IF('[2]MONE(M)CAPARD'!AT21="","",'[2]MONE(M)CAPARD'!AT21) -> n.a. | BL14: =IF('[2]MONE(M)CAPARD'!AU21="","",'[2]MONE(M)CAPARD'!AU21) -> n.d. | BM14: =IF('[2]MONE(M)CAPARD'!AV21="","",'[2]MONE(M)CAPARD'!AV21) -> n.d. | BN14: =IF('[2]MONE(M)CAPARD'!AW21="","",'[2]MONE(M)CAPARD'!AW21) -> n.a. | BO14: =IF('[2]MONE(M)CAPARD'!AX21="","",'[2]MONE(M)CAPARD'!AX21) -> n.d. | BP14: =IF('[2]MONE(M)CAPARD'!AY21="","",'[2]MONE(M)CAPARD'!AY21) -> n.a. | BQ14: =IF('[2]FISCAL(M)'!$K21="","",'[2]FISCAL(M)'!$K21) -> n.d. | BR14: =IF('[2]FISCAL(M)'!$L21="","",'[2]FISCAL(M)'!$L21) -> n.d. | BS14: =IF('[2]FISCAL(M)'!$AY21="","",'[2]FISCAL(M)'!$AY21) -> n.d. | BT14: =IF('[2]FISCAL(M)'!$BI21="","",'[2]FISCAL(M)'!$BI21) -> n.d. | BU14: =IF('[2]FISCAL(M)'!$BS21="","",'[2]FISCAL(M)'!$BS21) -> n.d. | BV14: =IF('[2]FISCAL(M)'!$AZ21="","",'[2]FISCAL(M)'!$AZ21) -> n.d. | BW14: =IF('[2]FISCAL(M)'!$BJ21="","",'[2]FISCAL(M)'!$BJ21) -> n.d. | BX14: =IF('[2]FISCAL(M)'!$BT21="","",'[2]FISCAL(M)'!$BT21) -> n.d. | BY14: =IF('[3]MONE(M)'!$AO21="","",'[3]MONE(M)'!$AO21) -> n.d. | BZ14: =IF('[4]MONE(M)'!$AO21="","",'[4]MONE(M)'!$AO21) -> n.d. | CA14: =IF('[5]MONE(M)'!$AO21="","",'[5]MONE(M)'!$AO21) -> n.d. | CB14: =+'[1]MONE(M)'!$AO21 -> n.d. | CC14: =IF('[6]MONE(M)'!$AO21="","",'[6]MONE(M)'!$AO21) -> n.d. | CD14: =IF('[7]MONE(M)'!$AO21="","",'[7]MONE(M)'!$AO21) -> n.d. | CE14: =IF('[8]MONE(M)'!$AO21="","",'[8]MONE(M)'!$AO21) -> n.d. | CF14: n.d. | CG14: n.d. | CH14: n.d. | CI14: n.d. | CJ14: n.d. | CK14: n.d. | CL14: n.d. | CM14: =IF('[2]FISCAL(M)'!$K21="","",'[2]FISCAL(M)'!$K21) -> n.d. | CN14: n.d. | CO14: n.d. | CP14: =IF('[2]FISCAL(M)'!$L21="","",'[2]FISCAL(M)'!$L21) -> n.d. | CQ14: n.d. | CR14: n.d. | CS14: n.d. | CT14: n.d. | CU14: n.d. | CV14: n.d. | CW14: n.d. | CX14: n.d. | CY14: n.d. | CZ14: n.d. | DA14: n.d. | DB14: n.d. | DC14: n.d. | DD14: n.d. | DE14: n.d. | DF14: n.d. | DG14: n.d. | DH14: n.d.
A15: 1991 | B15: enero | C15: 1991-enero | D15: =IF('[2]REAL IPC(M)'!$AL22="","",+'[2]REAL IPC(M)'!$AL22) -> n.d. | E15: =IF('[2]REAL IPC(M)'!$BE22="","",+'[2]REAL IPC(M)'!$BE22) -> n.d. | F15: =IF('[2]REAL IPC(M)'!$AM22="","",+'[2]REAL IPC(M)'!$AM22) -> n.d. | G15: =IF('[2]REAL IPC(M)'!$BI22="","",+'[2]REAL IPC(M)'!$BI22) -> n.d. | H15: =IF('[2]REAL IMAE(M)'!BJ22="","",'[2]REAL IMAE(M)'!BJ22) -> n.d. | I15: =IF('[2]REAL IMAE(M)'!BK22="","",'[2]REAL IMAE(M)'!BK22) -> n.d. | J15: =IF('[2]REAL IMAE(M)'!BN22="","",'[2]REAL IMAE(M)'!BN22) -> n.d. | K15: =IF('[2]REAL IMAE(M)'!BO22="","",'[2]REAL IMAE(M)'!BO22) -> n.d. | L15: =IF('[2]EXT RIN(M)'!$K22="","",'[2]EXT RIN(M)'!$K22) -> n.d. | N15: =IF('[2]EXT RIN(M)'!$L22="","",'[2]EXT RIN(M)'!$L22) -> n.d. | P15: =IF('[2]MONE(M)CARD'!EG22="","",'[2]MONE(M)CARD'!EG22) -> n.d. | Q15: =IF('[2]MONE(M)CARD'!EK22="","",'[2]MONE(M)CARD'!EK22) -> n.d. | R15: =IF('[2]MONE(M)CARD'!EP22="","",'[2]MONE(M)CARD'!EP22) -> n.d. | S15: =IF('[2]MONE(M)CARD'!ES22="","",'[2]MONE(M)CARD'!ES22) -> n.d. | T15: =IF('[2]MONE(M)CARD'!EV22="","",'[2]MONE(M)CARD'!EV22) -> n.d. | U15: =IF('[2]MONE(M)CARD'!EZ22="","",'[2]MONE(M)CARD'!EZ22) -> n.d. | V15: =IF('[2]MONE(M)CAPARD'!FC22="","",'[2]MONE(M)CAPARD'!FC22) -> n.d. | W15: =IF('[2]MONE(M)CAPARD'!FG22="","",'[2]MONE(M)CAPARD'!FG22) -> n.d. | X15: =IF('[2]MONE(M)CAPARD'!FL22="","",'[2]MONE(M)CAPARD'!FL22) -> n.d. | Y15: =IF('[2]MONE(M)CAPARD'!FO22="","",'[2]MONE(M)CAPARD'!FO22) -> n.d. | Z15: =IF('[2]MONE(M)CAPARD'!FR22="","",'[2]MONE(M)CAPARD'!FR22) -> n.d. | AA15: =IF('[2]MONE(M)CAPARD'!FV22="","",'[2]MONE(M)CAPARD'!FV22) -> n.d. | AB15: =IF('[2]MONE(M)CARD'!FV22="","",'[2]MONE(M)CARD'!FV22) ->  | AC15: =IF('[2]MONE(M)CARD'!GD22="","",'[2]MONE(M)CARD'!GD22) -> n.d. | AD15: =IF('[2]MONE(M)CARD'!GE22="","",'[2]MONE(M)CARD'!GE22) -> n.d. | AE15: n.d. | AF15: n.d. | AG15: n.d. | AH15: n.d. | AI15: n.d. | AJ15: n.d. | AK15: n.d. | AL15: n.d. | AN15: n.d. | AO15: n.d. | AP15: n.d. | AQ15: n.d. | AR15: n.d. | AS15: =IF('[2]MONE(M)CAPARD'!GS22="","",'[2]MONE(M)CAPARD'!GS22) -> n.d. | AT15: =IF('[2]MONE(M)CARD'!HA22="","",'[2]MONE(M)CAPARD'!HA22) -> n.d. | AU15: =IF('[2]MONE(M)CAPARD'!HB22="","",'[2]MONE(M)CAPARD'!HB22) -> n.d. | AV15: n.d. | AW15: n.d. | AX15: n.d. | AY15: n.d. | AZ15: n.d. | BA15: n.d. | BB15: n.d. | BC15: n.d. | BD15: n.d. | BE15: n.d. | BF15: n.d. | BG15: n.d. | BH15: n.d. | BI15: n.d. | BJ15: =IF('[2]MONE(M)CAPARD'!AS22="","",'[2]MONE(M)CAPARD'!AS22) -> n.d. | BK15: =IF('[2]MONE(M)CAPARD'!AT22="","",'[2]MONE(M)CAPARD'!AT22) -> n.a. | BL15: =IF('[2]MONE(M)CAPARD'!AU22="","",'[2]MONE(M)CAPARD'!AU22) -> n.d. | BM15: =IF('[2]MONE(M)CAPARD'!AV22="","",'[2]MONE(M)CAPARD'!AV22) -> n.d. | BN15: =IF('[2]MONE(M)CAPARD'!AW22="","",'[2]MONE(M)CAPARD'!AW22) -> n.a. | BO15: =IF('[2]MONE(M)CAPARD'!AX22="","",'[2]MONE(M)CAPARD'!AX22) -> n.d. | BP15: =IF('[2]MONE(M)CAPARD'!AY22="","",'[2]MONE(M)CAPARD'!AY22) -> n.a. | BQ15: =IF('[2]FISCAL(M)'!$K22="","",'[2]FISCAL(M)'!$K22) -> n.d. | BR15: =IF('[2]FISCAL(M)'!$L22="","",'[2]FISCAL(M)'!$L22) -> n.d. | BS15: =IF('[2]FISCAL(M)'!$AY22="","",'[2]FISCAL(M)'!$AY22) -> n.d. | BT15: =IF('[2]FISCAL(M)'!$BI22="","",'[2]FISCAL(M)'!$BI22) -> n.d. | BU15: =IF('[2]FISCAL(M)'!$BS22="","",'[2]FISCAL(M)'!$BS22) -> n.d. | BV15: =IF('[2]FISCAL(M)'!$AZ22="","",'[2]FISCAL(M)'!$AZ22) -> n.d. | BW15: =IF('[2]FISCAL(M)'!$BJ22="","",'[2]FISCAL(M)'!$BJ22) -> n.d. | BX15: =IF('[2]FISCAL(M)'!$BT22="","",'[2]FISCAL(M)'!$BT22) -> n.d. | BY15: =IF('[3]MONE(M)'!$AO22="","",'[3]MONE(M)'!$AO22) -> n.d. | BZ15: =IF('[4]MONE(M)'!$AO22="","",'[4]MONE(M)'!$AO22) -> n.d. | CA15: =IF('[5]MONE(M)'!$AO22="","",'[5]MONE(M)'!$AO22) -> n.d. | CB15: =+'[1]MONE(M)'!$AO22 -> n.d. | CC15: =IF('[6]MONE(M)'!$AO22="","",'[6]MONE(M)'!$AO22) -> n.d. | CD15: =IF('[7]MONE(M)'!$AO22="","",'[7]MONE(M)'!$AO22) -> n.d. | CE15: =IF('[8]MONE(M)'!$AO22="","",'[8]MONE(M)'!$AO22) -> n.d. | CF15: n.d. | CG15: n.d. | CH15: n.d. | CI15: n.d. | CJ15: n.d. | CK15: n.d. | CL15: n.d. | CM15: =IF('[2]FISCAL(M)'!$K22="","",'[2]FISCAL(M)'!$K22) -> n.d. | CN15: n.d. | CO15: n.d. | CP15: =IF('[2]FISCAL(M)'!$L22="","",'[2]FISCAL(M)'!$L22) -> n.d. | CQ15: n.d. | CR15: n.d. | CS15: n.d. | CT15: n.d. | CU15: n.d. | CV15: n.d. | CW15: n.d. | CX15: n.d. | CY15: n.d. | CZ15: n.d. | DA15: n.d. | DB15: n.d. | DC15: n.d. | DD15: n.d. | DE15: n.d. | DF15: n.d. | DG15: n.d. | DH15: n.d.
A16: 1991 | B16: febrero | C16: 1991-febrero | D16: =IF('[2]REAL IPC(M)'!$AL23="","",+'[2]REAL IPC(M)'!$AL23) -> n.d. | E16: =IF('[2]REAL IPC(M)'!$BE23="","",+'[2]REAL IPC(M)'!$BE23) -> n.d. | F16: =IF('[2]REAL IPC(M)'!$AM23="","",+'[2]REAL IPC(M)'!$AM23) -> n.d. | G16: =IF('[2]REAL IPC(M)'!$BI23="","",+'[2]REAL IPC(M)'!$BI23) -> n.d. | H16: =IF('[2]REAL IMAE(M)'!BJ23="","",'[2]REAL IMAE(M)'!BJ23) -> n.d. | I16: =IF('[2]REAL IMAE(M)'!BK23="","",'[2]REAL IMAE(M)'!BK23) -> n.d. | J16: =IF('[2]REAL IMAE(M)'!BN23="","",'[2]REAL IMAE(M)'!BN23) -> n.d. | K16: =IF('[2]REAL IMAE(M)'!BO23="","",'[2]REAL IMAE(M)'!BO23) -> n.d. | L16: =IF('[2]EXT RIN(M)'!$K23="","",'[2]EXT RIN(M)'!$K23) -> n.d. | N16: =IF('[2]EXT RIN(M)'!$L23="","",'[2]EXT RIN(M)'!$L23) -> n.d. | P16: =IF('[2]MONE(M)CARD'!EG23="","",'[2]MONE(M)CARD'!EG23) -> n.d. | Q16: =IF('[2]MONE(M)CARD'!EK23="","",'[2]MONE(M)CARD'!EK23) -> n.d. | R16: =IF('[2]MONE(M)CARD'!EP23="","",'[2]MONE(M)CARD'!EP23) -> n.d. | S16: =IF('[2]MONE(M)CARD'!ES23="","",'[2]MONE(M)CARD'!ES23) -> n.d. | T16: =IF('[2]MONE(M)CARD'!EV23="","",'[2]MONE(M)CARD'!EV23) -> n.d. | U16: =IF('[2]MONE(M)CARD'!EZ23="","",'[2]MONE(M)CARD'!EZ23) -> n.d. | V16: =IF('[2]MONE(M)CAPARD'!FC23="","",'[2]MONE(M)CAPARD'!FC23) -> n.d. | W16: =IF('[2]MONE(M)CAPARD'!FG23="","",'[2]MONE(M)CAPARD'!FG23) -> n.d. | X16: =IF('[2]MONE(M)CAPARD'!FL23="","",'[2]MONE(M)CAPARD'!FL23) -> n.d. | Y16: =IF('[2]MONE(M)CAPARD'!FO23="","",'[2]MONE(M)CAPARD'!FO23) -> n.d. | Z16: =IF('[2]MONE(M)CAPARD'!FR23="","",'[2]MONE(M)CAPARD'!FR23) -> n.d. | AA16: =IF('[2]MONE(M)CAPARD'!FV23="","",'[2]MONE(M)CAPARD'!FV23) -> n.d. | AB16: =IF('[2]MONE(M)CARD'!FV23="","",'[2]MONE(M)CARD'!FV23) ->  | AC16: =IF('[2]MONE(M)CARD'!GD23="","",'[2]MONE(M)CARD'!GD23) -> n.d. | AD16: =IF('[2]MONE(M)CARD'!GE23="","",'[2]MONE(M)CARD'!GE23) -> n.d. | AE16: n.d. | AF16: n.d. | AG16: n.d. | AH16: n.d. | AI16: n.d. | AJ16: n.d. | AK16: n.d. | AL16: n.d. | AN16: n.d. | AO16: n.d. | AP16: n.d. | AQ16: n.d. | AR16: n.d. | AS16: =IF('[2]MONE(M)CAPARD'!GS23="","",'[2]MONE(M)CAPARD'!GS23) -> n.d. | AT16: =IF('[2]MONE(M)CARD'!HA23="","",'[2]MONE(M)CAPARD'!HA23) -> n.d. | AU16: =IF('[2]MONE(M)CAPARD'!HB23="","",'[2]MONE(M)CAPARD'!HB23) -> n.d. | AV16: n.d. | AW16: n.d. | AX16: n.d. | AY16: n.d. | AZ16: n.d. | BA16: n.d. | BB16: n.d. | BC16: n.d. | BD16: n.d. | BE16: n.d. | BF16: n.d. | BG16: n.d. | BH16: n.d. | BI16: n.d. | BJ16: =IF('[2]MONE(M)CAPARD'!AS23="","",'[2]MONE(M)CAPARD'!AS23) -> n.d. | BK16: =IF('[2]MONE(M)CAPARD'!AT23="","",'[2]MONE(M)CAPARD'!AT23) -> n.a. | BL16: =IF('[2]MONE(M)CAPARD'!AU23="","",'[2]MONE(M)CAPARD'!AU23) -> n.d. | BM16: =IF('[2]MONE(M)CAPARD'!AV23="","",'[2]MONE(M)CAPARD'!AV23) -> n.d. | BN16: =IF('[2]MONE(M)CAPARD'!AW23="","",'[2]MONE(M)CAPARD'!AW23) -> n.a. | BO16: =IF('[2]MONE(M)CAPARD'!AX23="","",'[2]MONE(M)CAPARD'!AX23) -> n.d. | BP16: =IF('[2]MONE(M)CAPARD'!AY23="","",'[2]MONE(M)CAPARD'!AY23) -> n.a. | BQ16: =IF('[2]FISCAL(M)'!$K23="","",'[2]FISCAL(M)'!$K23) -> n.d. | BR16: =IF('[2]FISCAL(M)'!$L23="","",'[2]FISCAL(M)'!$L23) -> n.d. | BS16: =IF('[2]FISCAL(M)'!$AY23="","",'[2]FISCAL(M)'!$AY23) -> n.d. | BT16: =IF('[2]FISCAL(M)'!$BI23="","",'[2]FISCAL(M)'!$BI23) -> n.d. | BU16: =IF('[2]FISCAL(M)'!$BS23="","",'[2]FISCAL(M)'!$BS23) -> n.d. | BV16: =IF('[2]FISCAL(M)'!$AZ23="","",'[2]FISCAL(M)'!$AZ23) -> n.d. | BW16: =IF('[2]FISCAL(M)'!$BJ23="","",'[2]FISCAL(M)'!$BJ23) -> n.d. | BX16: =IF('[2]FISCAL(M)'!$BT23="","",'[2]FISCAL(M)'!$BT23) -> n.d. | BY16: =IF('[3]MONE(M)'!$AO23="","",'[3]MONE(M)'!$AO23) -> n.d. | BZ16: =IF('[4]MONE(M)'!$AO23="","",'[4]MONE(M)'!$AO23) -> n.d. | CA16: =IF('[5]MONE(M)'!$AO23="","",'[5]MONE(M)'!$AO23) -> n.d. | CB16: =+'[1]MONE(M)'!$AO23 -> n.d. | CC16: =IF('[6]MONE(M)'!$AO23="","",'[6]MONE(M)'!$AO23) -> n.d. | CD16: =IF('[7]MONE(M)'!$AO23="","",'[7]MONE(M)'!$AO23) -> n.d. | CE16: =IF('[8]MONE(M)'!$AO23="","",'[8]MONE(M)'!$AO23) -> n.d. | CF16: n.d. | CG16: n.d. | CH16: n.d. | CI16: n.d. | CJ16: n.d. | CK16: n.d. | CL16: n.d. | CM16: =IF('[2]FISCAL(M)'!$K23="","",'[2]FISCAL(M)'!$K23) -> n.d. | CN16: n.d. | CO16: n.d. | CP16: =IF('[2]FISCAL(M)'!$L23="","",'[2]FISCAL(M)'!$L23) -> n.d. | CQ16: n.d. | CR16: n.d. | CS16: n.d. | CT16: n.d. | CU16: n.d. | CV16: n.d. | CW16: n.d. | CX16: n.d. | CY16: n.d. | CZ16: n.d. | DA16: n.d. | DB16: n.d. | DC16: n.d. | DD16: n.d. | DE16: n.d. | DF16: n.d. | DG16: n.d. | DH16: n.d.
A17: 1991 | B17: marzo | C17: 1991-marzo | D17: =IF('[2]REAL IPC(M)'!$AL24="","",+'[2]REAL IPC(M)'!$AL24) -> n.d. | E17: =IF('[2]REAL IPC(M)'!$BE24="","",+'[2]REAL IPC(M)'!$BE24) -> n.d. | F17: =IF('[2]REAL IPC(M)'!$AM24="","",+'[2]REAL IPC(M)'!$AM24) -> n.d. | G17: =IF('[2]REAL IPC(M)'!$BI24="","",+'[2]REAL IPC(M)'!$BI24) -> n.d. | H17: =IF('[2]REAL IMAE(M)'!BJ24="","",'[2]REAL IMAE(M)'!BJ24) -> n.d. | I17: =IF('[2]REAL IMAE(M)'!BK24="","",'[2]REAL IMAE(M)'!BK24) -> n.d. | J17: =IF('[2]REAL IMAE(M)'!BN24="","",'[2]REAL IMAE(M)'!BN24) -> n.d. | K17: =IF('[2]REAL IMAE(M)'!BO24="","",'[2]REAL IMAE(M)'!BO24) -> n.d. | L17: =IF('[2]EXT RIN(M)'!$K24="","",'[2]EXT RIN(M)'!$K24) -> n.d. | N17: =IF('[2]EXT RIN(M)'!$L24="","",'[2]EXT RIN(M)'!$L24) -> n.d. | P17: =IF('[2]MONE(M)CARD'!EG24="","",'[2]MONE(M)CARD'!EG24) -> n.d. | Q17: =IF('[2]MONE(M)CARD'!EK24="","",'[2]MONE(M)CARD'!EK24) -> n.d. | R17: =IF('[2]MONE(M)CARD'!EP24="","",'[2]MONE(M)CARD'!EP24) -> n.d. | S17: =IF('[2]MONE(M)CARD'!ES24="","",'[2]MONE(M)CARD'!ES24) -> n.d. | T17: =IF('[2]MONE(M)CARD'!EV24="","",'[2]MONE(M)CARD'!EV24) -> n.d. | U17: =IF('[2]MONE(M)CARD'!EZ24="","",'[2]MONE(M)CARD'!EZ24) -> n.d. | V17: =IF('[2]MONE(M)CAPARD'!FC24="","",'[2]MONE(M)CAPARD'!FC24) -> n.d. | W17: =IF('[2]MONE(M)CAPARD'!FG24="","",'[2]MONE(M)CAPARD'!FG24) -> n.d. | X17: =IF('[2]MONE(M)CAPARD'!FL24="","",'[2]MONE(M)CAPARD'!FL24) -> n.d. | Y17: =IF('[2]MONE(M)CAPARD'!FO24="","",'[2]MONE(M)CAPARD'!FO24) -> n.d. | Z17: =IF('[2]MONE(M)CAPARD'!FR24="","",'[2]MONE(M)CAPARD'!FR24) -> n.d. | AA17: =IF('[2]MONE(M)CAPARD'!FV24="","",'[2]MONE(M)CAPARD'!FV24) -> n.d. | AB17: =IF('[2]MONE(M)CARD'!FV24="","",'[2]MONE(M)CARD'!FV24) ->  | AC17: =IF('[2]MONE(M)CARD'!GD24="","",'[2]MONE(M)CARD'!GD24) -> n.d. | AD17: =IF('[2]MONE(M)CARD'!GE24="","",'[2]MONE(M)CARD'!GE24) -> n.d. | AE17: n.d. | AF17: n.d. | AG17: n.d. | AH17: n.d. | AI17: n.d. | AJ17: n.d. | AK17: n.d. | AL17: n.d. | AN17: n.d. | AO17: n.d. | AP17: n.d. | AQ17: n.d. | AR17: n.d. | AS17: =IF('[2]MONE(M)CAPARD'!GS24="","",'[2]MONE(M)CAPARD'!GS24) -> n.d. | AT17: =IF('[2]MONE(M)CARD'!HA24="","",'[2]MONE(M)CAPARD'!HA24) -> n.d. | AU17: =IF('[2]MONE(M)CAPARD'!HB24="","",'[2]MONE(M)CAPARD'!HB24) -> n.d. | AV17: n.d. | AW17: n.d. | AX17: n.d. | AY17: n.d. | AZ17: n.d. | BA17: n.d. | BB17: n.d. | BC17: n.d. | BD17: n.d. | BE17: n.d. | BF17: n.d. | BG17: n.d. | BH17: n.d. | BI17: n.d. | BJ17: =IF('[2]MONE(M)CAPARD'!AS24="","",'[2]MONE(M)CAPARD'!AS24) -> n.d. | BK17: =IF('[2]MONE(M)CAPARD'!AT24="","",'[2]MONE(M)CAPARD'!AT24) -> n.a. | BL17: =IF('[2]MONE(M)CAPARD'!AU24="","",'[2]MONE(M)CAPARD'!AU24) -> n.d. | BM17: =IF('[2]MONE(M)CAPARD'!AV24="","",'[2]MONE(M)CAPARD'!AV24) -> n.d. | BN17: =IF('[2]MONE(M)CAPARD'!AW24="","",'[2]MONE(M)CAPARD'!AW24) -> n.a. | BO17: =IF('[2]MONE(M)CAPARD'!AX24="","",'[2]MONE(M)CAPARD'!AX24) -> n.d. | BP17: =IF('[2]MONE(M)CAPARD'!AY24="","",'[2]MONE(M)CAPARD'!AY24) -> n.a. | BQ17: =IF('[2]FISCAL(M)'!$K24="","",'[2]FISCAL(M)'!$K24) -> n.d. | BR17: =IF('[2]FISCAL(M)'!$L24="","",'[2]FISCAL(M)'!$L24) -> n.d. | BS17: =IF('[2]FISCAL(M)'!$AY24="","",'[2]FISCAL(M)'!$AY24) -> n.d. | BT17: =IF('[2]FISCAL(M)'!$BI24="","",'[2]FISCAL(M)'!$BI24) -> n.d. | BU17: =IF('[2]FISCAL(M)'!$BS24="","",'[2]FISCAL(M)'!$BS24) -> n.d. | BV17: =IF('[2]FISCAL(M)'!$AZ24="","",'[2]FISCAL(M)'!$AZ24) -> n.d. | BW17: =IF('[2]FISCAL(M)'!$BJ24="","",'[2]FISCAL(M)'!$BJ24) -> n.d. | BX17: =IF('[2]FISCAL(M)'!$BT24="","",'[2]FISCAL(M)'!$BT24) -> n.d. | BY17: =IF('[3]MONE(M)'!$AO24="","",'[3]MONE(M)'!$AO24) -> n.d. | BZ17: =IF('[4]MONE(M)'!$AO24="","",'[4]MONE(M)'!$AO24) -> n.d. | CA17: =IF('[5]MONE(M)'!$AO24="","",'[5]MONE(M)'!$AO24) -> n.d. | CB17: =+'[1]MONE(M)'!$AO24 -> n.d. | CC17: =IF('[6]MONE(M)'!$AO24="","",'[6]MONE(M)'!$AO24) -> n.d. | CD17: =IF('[7]MONE(M)'!$AO24="","",'[7]MONE(M)'!$AO24) -> n.d. | CE17: =IF('[8]MONE(M)'!$AO24="","",'[8]MONE(M)'!$AO24) -> n.d. | CF17: n.d. | CG17: n.d. | CH17: n.d. | CI17: n.d. | CJ17: n.d. | CK17: n.d. | CL17: n.d. | CM17: =IF('[2]FISCAL(M)'!$K24="","",'[2]FISCAL(M)'!$K24) -> n.d. | CN17: n.d. | CO17: n.d. | CP17: =IF('[2]FISCAL(M)'!$L24="","",'[2]FISCAL(M)'!$L24) -> n.d. | CQ17: n.d. | CR17: n.d. | CS17: n.d. | CT17: n.d. | CU17: n.d. | CV17: n.d. | CW17: n.d. | CX17: n.d. | CY17: n.d. | CZ17: n.d. | DA17: n.d. | DB17: n.d. | DC17: n.d. | DD17: n.d. | DE17: n.d. | DF17: n.d. | DG17: n.d. | DH17: n.d.
A18: 1991 | B18: abril | C18: 1991-abril | D18: =IF('[2]REAL IPC(M)'!$AL25="","",+'[2]REAL IPC(M)'!$AL25) -> n.d. | E18: =IF('[2]REAL IPC(M)'!$BE25="","",+'[2]REAL IPC(M)'!$BE25) -> n.d. | F18: =IF('[2]REAL IPC(M)'!$AM25="","",+'[2]REAL IPC(M)'!$AM25) -> n.d. | G18: =IF('[2]REAL IPC(M)'!$BI25="","",+'[2]REAL IPC(M)'!$BI25) -> n.d. | H18: =IF('[2]REAL IMAE(M)'!BJ25="","",'[2]REAL IMAE(M)'!BJ25) -> n.d. | I18: =IF('[2]REAL IMAE(M)'!BK25="","",'[2]REAL IMAE(M)'!BK25) -> n.d. | J18: =IF('[2]REAL IMAE(M)'!BN25="","",'[2]REAL IMAE(M)'!BN25) -> n.d. | K18: =IF('[2]REAL IMAE(M)'!BO25="","",'[2]REAL IMAE(M)'!BO25) -> n.d. | L18: =IF('[2]EXT RIN(M)'!$K25="","",'[2]EXT RIN(M)'!$K25) -> n.d. | N18: =IF('[2]EXT RIN(M)'!$L25="","",'[2]EXT RIN(M)'!$L25) -> n.d. | P18: =IF('[2]MONE(M)CARD'!EG25="","",'[2]MONE(M)CARD'!EG25) -> n.d. | Q18: =IF('[2]MONE(M)CARD'!EK25="","",'[2]MONE(M)CARD'!EK25) -> n.d. | R18: =IF('[2]MONE(M)CARD'!EP25="","",'[2]MONE(M)CARD'!EP25) -> n.d. | S18: =IF('[2]MONE(M)CARD'!ES25="","",'[2]MONE(M)CARD'!ES25) -> n.d. | T18: =IF('[2]MONE(M)CARD'!EV25="","",'[2]MONE(M)CARD'!EV25) -> n.d. | U18: =IF('[2]MONE(M)CARD'!EZ25="","",'[2]MONE(M)CARD'!EZ25) -> n.d. | V18: =IF('[2]MONE(M)CAPARD'!FC25="","",'[2]MONE(M)CAPARD'!FC25) -> n.d. | W18: =IF('[2]MONE(M)CAPARD'!FG25="","",'[2]MONE(M)CAPARD'!FG25) -> n.d. | X18: =IF('[2]MONE(M)CAPARD'!FL25="","",'[2]MONE(M)CAPARD'!FL25) -> n.d. | Y18: =IF('[2]MONE(M)CAPARD'!FO25="","",'[2]MONE(M)CAPARD'!FO25) -> n.d. | Z18: =IF('[2]MONE(M)CAPARD'!FR25="","",'[2]MONE(M)CAPARD'!FR25) -> n.d. | AA18: =IF('[2]MONE(M)CAPARD'!FV25="","",'[2]MONE(M)CAPARD'!FV25) -> n.d. | AB18: =IF('[2]MONE(M)CARD'!FV25="","",'[2]MONE(M)CARD'!FV25) ->  | AC18: =IF('[2]MONE(M)CARD'!GD25="","",'[2]MONE(M)CARD'!GD25) -> n.d. | AD18: =IF('[2]MONE(M)CARD'!GE25="","",'[2]MONE(M)CARD'!GE25) -> n.d. | AE18: n.d. | AF18: n.d. | AG18: n.d. | AH18: n.d. | AI18: n.d. | AJ18: n.d. | AK18: n.d. | AL18: n.d. | AN18: n.d. | AO18: n.d. | AP18: n.d. | AQ18: n.d. | AR18: n.d. | AS18: =IF('[2]MONE(M)CAPARD'!GS25="","",'[2]MONE(M)CAPARD'!GS25) -> n.d. | AT18: =IF('[2]MONE(M)CARD'!HA25="","",'[2]MONE(M)CAPARD'!HA25) -> n.d. | AU18: =IF('[2]MONE(M)CAPARD'!HB25="","",'[2]MONE(M)CAPARD'!HB25) -> n.d. | AV18: n.d. | AW18: n.d. | AX18: n.d. | AY18: n.d. | AZ18: n.d. | BA18: n.d. | BB18: n.d. | BC18: n.d. | BD18: n.d. | BE18: n.d. | BF18: n.d. | BG18: n.d. | BH18: n.d. | BI18: n.d. | BJ18: =IF('[2]MONE(M)CAPARD'!AS25="","",'[2]MONE(M)CAPARD'!AS25) -> n.d. | BK18: =IF('[2]MONE(M)CAPARD'!AT25="","",'[2]MONE(M)CAPARD'!AT25) -> n.a. | BL18: =IF('[2]MONE(M)CAPARD'!AU25="","",'[2]MONE(M)CAPARD'!AU25) -> n.d. | BM18: =IF('[2]MONE(M)CAPARD'!AV25="","",'[2]MONE(M)CAPARD'!AV25) -> n.d. | BN18: =IF('[2]MONE(M)CAPARD'!AW25="","",'[2]MONE(M)CAPARD'!AW25) -> n.a. | BO18: =IF('[2]MONE(M)CAPARD'!AX25="","",'[2]MONE(M)CAPARD'!AX25) -> n.d. | BP18: =IF('[2]MONE(M)CAPARD'!AY25="","",'[2]MONE(M)CAPARD'!AY25) -> n.a. | BQ18: =IF('[2]FISCAL(M)'!$K25="","",'[2]FISCAL(M)'!$K25) -> n.d. | BR18: =IF('[2]FISCAL(M)'!$L25="","",'[2]FISCAL(M)'!$L25) -> n.d. | BS18: =IF('[2]FISCAL(M)'!$AY25="","",'[2]FISCAL(M)'!$AY25) -> n.d. | BT18: =IF('[2]FISCAL(M)'!$BI25="","",'[2]FISCAL(M)'!$BI25) -> n.d. | BU18: =IF('[2]FISCAL(M)'!$BS25="","",'[2]FISCAL(M)'!$BS25) -> n.d. | BV18: =IF('[2]FISCAL(M)'!$AZ25="","",'[2]FISCAL(M)'!$AZ25) -> n.d. | BW18: =IF('[2]FISCAL(M)'!$BJ25="","",'[2]FISCAL(M)'!$BJ25) -> n.d. | BX18: =IF('[2]FISCAL(M)'!$BT25="","",'[2]FISCAL(M)'!$BT25) -> n.d. | BY18: =IF('[3]MONE(M)'!$AO25="","",'[3]MONE(M)'!$AO25) -> n.d. | BZ18: =IF('[4]MONE(M)'!$AO25="","",'[4]MONE(M)'!$AO25) -> n.d. | CA18: =IF('[5]MONE(M)'!$AO25="","",'[5]MONE(M)'!$AO25) -> n.d. | CB18: =+'[1]MONE(M)'!$AO25 -> n.d. | CC18: =IF('[6]MONE(M)'!$AO25="","",'[6]MONE(M)'!$AO25) -> n.d. | CD18: =IF('[7]MONE(M)'!$AO25="","",'[7]MONE(M)'!$AO25) -> n.d. | CE18: =IF('[8]MONE(M)'!$AO25="","",'[8]MONE(M)'!$AO25) -> n.d. | CF18: n.d. | CG18: n.d. | CH18: n.d. | CI18: n.d. | CJ18: n.d. | CK18: n.d. | CL18: n.d. | CM18: =IF('[2]FISCAL(M)'!$K25="","",'[2]FISCAL(M)'!$K25) -> n.d. | CN18: n.d. | CO18: n.d. | CP18: =IF('[2]FISCAL(M)'!$L25="","",'[2]FISCAL(M)'!$L25) -> n.d. | CQ18: n.d. | CR18: n.d. | CS18: n.d. | CT18: n.d. | CU18: n.d. | CV18: n.d. | CW18: n.d. | CX18: n.d. | CY18: n.d. | CZ18: n.d. | DA18: n.d. | DB18: n.d. | DC18: n.d. | DD18: n.d. | DE18: n.d. | DF18: n.d. | DG18: n.d. | DH18: n.d.
A19: 1991 | B19: mayo | C19: 1991-mayo | D19: =IF('[2]REAL IPC(M)'!$AL26="","",+'[2]REAL IPC(M)'!$AL26) -> n.d. | E19: =IF('[2]REAL IPC(M)'!$BE26="","",+'[2]REAL IPC(M)'!$BE26) -> n.d. | F19: =IF('[2]REAL IPC(M)'!$AM26="","",+'[2]REAL IPC(M)'!$AM26) -> n.d. | G19: =IF('[2]REAL IPC(M)'!$BI26="","",+'[2]REAL IPC(M)'!$BI26) -> n.d. | H19: =IF('[2]REAL IMAE(M)'!BJ26="","",'[2]REAL IMAE(M)'!BJ26) -> n.d. | I19: =IF('[2]REAL IMAE(M)'!BK26="","",'[2]REAL IMAE(M)'!BK26) -> n.d. | J19: =IF('[2]REAL IMAE(M)'!BN26="","",'[2]REAL IMAE(M)'!BN26) -> n.d. | K19: =IF('[2]REAL IMAE(M)'!BO26="","",'[2]REAL IMAE(M)'!BO26) -> n.d. | L19: =IF('[2]EXT RIN(M)'!$K26="","",'[2]EXT RIN(M)'!$K26) -> n.d. | N19: =IF('[2]EXT RIN(M)'!$L26="","",'[2]EXT RIN(M)'!$L26) -> n.d. | P19: =IF('[2]MONE(M)CARD'!EG26="","",'[2]MONE(M)CARD'!EG26) -> n.d. | Q19: =IF('[2]MONE(M)CARD'!EK26="","",'[2]MONE(M)CARD'!EK26) -> n.d. | R19: =IF('[2]MONE(M)CARD'!EP26="","",'[2]MONE(M)CARD'!EP26) -> n.d. | S19: =IF('[2]MONE(M)CARD'!ES26="","",'[2]MONE(M)CARD'!ES26) -> n.d. | T19: =IF('[2]MONE(M)CARD'!EV26="","",'[2]MONE(M)CARD'!EV26) -> n.d. | U19: =IF('[2]MONE(M)CARD'!EZ26="","",'[2]MONE(M)CARD'!EZ26) -> n.d. | V19: =IF('[2]MONE(M)CAPARD'!FC26="","",'[2]MONE(M)CAPARD'!FC26) -> n.d. | W19: =IF('[2]MONE(M)CAPARD'!FG26="","",'[2]MONE(M)CAPARD'!FG26) -> n.d. | X19: =IF('[2]MONE(M)CAPARD'!FL26="","",'[2]MONE(M)CAPARD'!FL26) -> n.d. | Y19: =IF('[2]MONE(M)CAPARD'!FO26="","",'[2]MONE(M)CAPARD'!FO26) -> n.d. | Z19: =IF('[2]MONE(M)CAPARD'!FR26="","",'[2]MONE(M)CAPARD'!FR26) -> n.d. | AA19: =IF('[2]MONE(M)CAPARD'!FV26="","",'[2]MONE(M)CAPARD'!FV26) -> n.d. | AB19: =IF('[2]MONE(M)CARD'!FV26="","",'[2]MONE(M)CARD'!FV26) ->  | AC19: =IF('[2]MONE(M)CARD'!GD26="","",'[2]MONE(M)CARD'!GD26) -> n.d. | AD19: =IF('[2]MONE(M)CARD'!GE26="","",'[2]MONE(M)CARD'!GE26) -> n.d. | AE19: n.d. | AF19: n.d. | AG19: n.d. | AH19: n.d. | AI19: n.d. | AJ19: n.d. | AK19: n.d. | AL19: n.d. | AN19: n.d. | AO19: n.d. | AP19: n.d. | AQ19: n.d. | AR19: n.d. | AS19: =IF('[2]MONE(M)CAPARD'!GS26="","",'[2]MONE(M)CAPARD'!GS26) -> n.d. | AT19: =IF('[2]MONE(M)CARD'!HA26="","",'[2]MONE(M)CAPARD'!HA26) -> n.d. | AU19: =IF('[2]MONE(M)CAPARD'!HB26="","",'[2]MONE(M)CAPARD'!HB26) -> n.d. | AV19: n.d. | AW19: n.d. | AX19: n.d. | AY19: n.d. | AZ19: n.d. | BA19: n.d. | BB19: n.d. | BC19: n.d. | BD19: n.d. | BE19: n.d. | BF19: n.d. | BG19: n.d. | BH19: n.d. | BI19: n.d. | BJ19: =IF('[2]MONE(M)CAPARD'!AS26="","",'[2]MONE(M)CAPARD'!AS26) -> n.d. | BK19: =IF('[2]MONE(M)CAPARD'!AT26="","",'[2]MONE(M)CAPARD'!AT26) -> n.a. | BL19: =IF('[2]MONE(M)CAPARD'!AU26="","",'[2]MONE(M)CAPARD'!AU26) -> n.d. | BM19: =IF('[2]MONE(M)CAPARD'!AV26="","",'[2]MONE(M)CAPARD'!AV26) -> n.d. | BN19: =IF('[2]MONE(M)CAPARD'!AW26="","",'[2]MONE(M)CAPARD'!AW26) -> n.a. | BO19: =IF('[2]MONE(M)CAPARD'!AX26="","",'[2]MONE(M)CAPARD'!AX26) -> n.d. | BP19: =IF('[2]MONE(M)CAPARD'!AY26="","",'[2]MONE(M)CAPARD'!AY26) -> n.a. | BQ19: =IF('[2]FISCAL(M)'!$K26="","",'[2]FISCAL(M)'!$K26) -> n.d. | BR19: =IF('[2]FISCAL(M)'!$L26="","",'[2]FISCAL(M)'!$L26) -> n.d. | BS19: =IF('[2]FISCAL(M)'!$AY26="","",'[2]FISCAL(M)'!$AY26) -> n.d. | BT19: =IF('[2]FISCAL(M)'!$BI26="","",'[2]FISCAL(M)'!$BI26) -> n.d. | BU19: =IF('[2]FISCAL(M)'!$BS26="","",'[2]FISCAL(M)'!$BS26) -> n.d. | BV19: =IF('[2]FISCAL(M)'!$AZ26="","",'[2]FISCAL(M)'!$AZ26) -> n.d. | BW19: =IF('[2]FISCAL(M)'!$BJ26="","",'[2]FISCAL(M)'!$BJ26) -> n.d. | BX19: =IF('[2]FISCAL(M)'!$BT26="","",'[2]FISCAL(M)'!$BT26) -> n.d. | BY19: =IF('[3]MONE(M)'!$AO26="","",'[3]MONE(M)'!$AO26) -> n.d. | BZ19: =IF('[4]MONE(M)'!$AO26="","",'[4]MONE(M)'!$AO26) -> n.d. | CA19: =IF('[5]MONE(M)'!$AO26="","",'[5]MONE(M)'!$AO26) -> n.d. | CB19: =+'[1]MONE(M)'!$AO26 -> n.d. | CC19: =IF('[6]MONE(M)'!$AO26="","",'[6]MONE(M)'!$AO26) -> n.d. | CD19: =IF('[7]MONE(M)'!$AO26="","",'[7]MONE(M)'!$AO26) -> n.d. | CE19: =IF('[8]MONE(M)'!$AO26="","",'[8]MONE(M)'!$AO26) -> n.d. | CF19: n.d. | CG19: n.d. | CH19: n.d. | CI19: n.d. | CJ19: n.d. | CK19: n.d. | CL19: n.d. | CM19: =IF('[2]FISCAL(M)'!$K26="","",'[2]FISCAL(M)'!$K26) -> n.d. | CN19: n.d. | CO19: n.d. | CP19: =IF('[2]FISCAL(M)'!$L26="","",'[2]FISCAL(M)'!$L26) -> n.d. | CQ19: n.d. | CR19: n.d. | CS19: n.d. | CT19: n.d. | CU19: n.d. | CV19: n.d. | CW19: n.d. | CX19: n.d. | CY19: n.d. | CZ19: n.d. | DA19: n.d. | DB19: n.d. | DC19: n.d. | DD19: n.d. | DE19: n.d. | DF19: n.d. | DG19: n.d. | DH19: n.d.
A20: 1991 | B20: junio | C20: 1991-junio | D20: =IF('[2]REAL IPC(M)'!$AL27="","",+'[2]REAL IPC(M)'!$AL27) -> n.d. | E20: =IF('[2]REAL IPC(M)'!$BE27="","",+'[2]REAL IPC(M)'!$BE27) -> n.d. | F20: =IF('[2]REAL IPC(M)'!$AM27="","",+'[2]REAL IPC(M)'!$AM27) -> n.d. | G20: =IF('[2]REAL IPC(M)'!$BI27="","",+'[2]REAL IPC(M)'!$BI27) -> n.d. | H20: =IF('[2]REAL IMAE(M)'!BJ27="","",'[2]REAL IMAE(M)'!BJ27) -> n.d. | I20: =IF('[2]REAL IMAE(M)'!BK27="","",'[2]REAL IMAE(M)'!BK27) -> n.d. | J20: =IF('[2]REAL IMAE(M)'!BN27="","",'[2]REAL IMAE(M)'!BN27) -> n.d. | K20: =IF('[2]REAL IMAE(M)'!BO27="","",'[2]REAL IMAE(M)'!BO27) -> n.d. | L20: =IF('[2]EXT RIN(M)'!$K27="","",'[2]EXT RIN(M)'!$K27) -> n.d. | N20: =IF('[2]EXT RIN(M)'!$L27="","",'[2]EXT RIN(M)'!$L27) -> n.d. | P20: =IF('[2]MONE(M)CARD'!EG27="","",'[2]MONE(M)CARD'!EG27) -> n.d. | Q20: =IF('[2]MONE(M)CARD'!EK27="","",'[2]MONE(M)CARD'!EK27) -> n.d. | R20: =IF('[2]MONE(M)CARD'!EP27="","",'[2]MONE(M)CARD'!EP27) -> n.d. | S20: =IF('[2]MONE(M)CARD'!ES27="","",'[2]MONE(M)CARD'!ES27) -> n.d. | T20: =IF('[2]MONE(M)CARD'!EV27="","",'[2]MONE(M)CARD'!EV27) -> n.d. | U20: =IF('[2]MONE(M)CARD'!EZ27="","",'[2]MONE(M)CARD'!EZ27) -> n.d. | V20: =IF('[2]MONE(M)CAPARD'!FC27="","",'[2]MONE(M)CAPARD'!FC27) -> n.d. | W20: =IF('[2]MONE(M)CAPARD'!FG27="","",'[2]MONE(M)CAPARD'!FG27) -> n.d. | X20: =IF('[2]MONE(M)CAPARD'!FL27="","",'[2]MONE(M)CAPARD'!FL27) -> n.d. | Y20: =IF('[2]MONE(M)CAPARD'!FO27="","",'[2]MONE(M)CAPARD'!FO27) -> n.d. | Z20: =IF('[2]MONE(M)CAPARD'!FR27="","",'[2]MONE(M)CAPARD'!FR27) -> n.d. | AA20: =IF('[2]MONE(M)CAPARD'!FV27="","",'[2]MONE(M)CAPARD'!FV27) -> n.d. | AB20: =IF('[2]MONE(M)CARD'!FV27="","",'[2]MONE(M)CARD'!FV27) ->  | AC20: =IF('[2]MONE(M)CARD'!GD27="","",'[2]MONE(M)CARD'!GD27) -> n.d. | AD20: =IF('[2]MONE(M)CARD'!GE27="","",'[2]MONE(M)CARD'!GE27) -> n.d. | AE20: n.d. | AF20: n.d. | AG20: n.d. | AH20: n.d. | AI20: n.d. | AJ20: n.d. | AK20: n.d. | AL20: n.d. | AN20: n.d. | AO20: n.d. | AP20: n.d. | AQ20: n.d. | AR20: n.d. | AS20: =IF('[2]MONE(M)CAPARD'!GS27="","",'[2]MONE(M)CAPARD'!GS27) -> n.d. | AT20: =IF('[2]MONE(M)CARD'!HA27="","",'[2]MONE(M)CAPARD'!HA27) -> n.d. | AU20: =IF('[2]MONE(M)CAPARD'!HB27="","",'[2]MONE(M)CAPARD'!HB27) -> n.d. | AV20: n.d. | AW20: n.d. | AX20: n.d. | AY20: n.d. | AZ20: n.d. | BA20: n.d. | BB20: n.d. | BC20: n.d. | BD20: n.d. | BE20: n.d. | BF20: n.d. | BG20: n.d. | BH20: n.d. | BI20: n.d. | BJ20: =IF('[2]MONE(M)CAPARD'!AS27="","",'[2]MONE(M)CAPARD'!AS27) -> n.d. | BK20: =IF('[2]MONE(M)CAPARD'!AT27="","",'[2]MONE(M)CAPARD'!AT27) -> n.a. | BL20: =IF('[2]MONE(M)CAPARD'!AU27="","",'[2]MONE(M)CAPARD'!AU27) -> n.d. | BM20: =IF('[2]MONE(M)CAPARD'!AV27="","",'[2]MONE(M)CAPARD'!AV27) -> n.d. | BN20: =IF('[2]MONE(M)CAPARD'!AW27="","",'[2]MONE(M)CAPARD'!AW27) -> n.a. | BO20: =IF('[2]MONE(M)CAPARD'!AX27="","",'[2]MONE(M)CAPARD'!AX27) -> n.d. | BP20: =IF('[2]MONE(M)CAPARD'!AY27="","",'[2]MONE(M)CAPARD'!AY27) -> n.a. | BQ20: =IF('[2]FISCAL(M)'!$K27="","",'[2]FISCAL(M)'!$K27) -> n.d. | BR20: =IF('[2]FISCAL(M)'!$L27="","",'[2]FISCAL(M)'!$L27) -> n.d. | BS20: =IF('[2]FISCAL(M)'!$AY27="","",'[2]FISCAL(M)'!$AY27) -> n.d. | BT20: =IF('[2]FISCAL(M)'!$BI27="","",'[2]FISCAL(M)'!$BI27) -> n.d. | BU20: =IF('[2]FISCAL(M)'!$BS27="","",'[2]FISCAL(M)'!$BS27) -> n.d. | BV20: =IF('[2]FISCAL(M)'!$AZ27="","",'[2]FISCAL(M)'!$AZ27) -> n.d. | BW20: =IF('[2]FISCAL(M)'!$BJ27="","",'[2]FISCAL(M)'!$BJ27) -> n.d. | BX20: =IF('[2]FISCAL(M)'!$BT27="","",'[2]FISCAL(M)'!$BT27) -> n.d. | BY20: =IF('[3]MONE(M)'!$AO27="","",'[3]MONE(M)'!$AO27) -> n.d. | BZ20: =IF('[4]MONE(M)'!$AO27="","",'[4]MONE(M)'!$AO27) -> n.d. | CA20: =IF('[5]MONE(M)'!$AO27="","",'[5]MONE(M)'!$AO27) -> n.d. | CB20: =+'[1]MONE(M)'!$AO27 -> n.d. | CC20: =IF('[6]MONE(M)'!$AO27="","",'[6]MONE(M)'!$AO27) -> n.d. | CD20: =IF('[7]MONE(M)'!$AO27="","",'[7]MONE(M)'!$AO27) -> n.d. | CE20: =IF('[8]MONE(M)'!$AO27="","",'[8]MONE(M)'!$AO27) -> n.d. | CF20: n.d. | CG20: n.d. | CH20: n.d. | CI20: n.d. | CJ20: n.d. | CK20: n.d. | CL20: n.d. | CM20: =IF('[2]FISCAL(M)'!$K27="","",'[2]FISCAL(M)'!$K27) -> n.d. | CN20: n.d. | CO20: n.d. | CP20: =IF('[2]FISCAL(M)'!$L27="","",'[2]FISCAL(M)'!$L27) -> n.d. | CQ20: n.d. | CR20: n.d. | CS20: n.d. | CT20: n.d. | CU20: n.d. | CV20: n.d. | CW20: n.d. | CX20: n.d. | CY20: n.d. | CZ20: n.d. | DA20: n.d. | DB20: n.d. | DC20: n.d. | DD20: n.d. | DE20: n.d. | DF20: n.d. | DG20: n.d. | DH20: n.d.
A21: 1991 | B21: julio | C21: 1991-julio | D21: =IF('[2]REAL IPC(M)'!$AL28="","",+'[2]REAL IPC(M)'!$AL28) -> n.d. | E21: =IF('[2]REAL IPC(M)'!$BE28="","",+'[2]REAL IPC(M)'!$BE28) -> n.d. | F21: =IF('[2]REAL IPC(M)'!$AM28="","",+'[2]REAL IPC(M)'!$AM28) -> n.d. | G21: =IF('[2]REAL IPC(M)'!$BI28="","",+'[2]REAL IPC(M)'!$BI28) -> n.d. | H21: =IF('[2]REAL IMAE(M)'!BJ28="","",'[2]REAL IMAE(M)'!BJ28) -> n.d. | I21: =IF('[2]REAL IMAE(M)'!BK28="","",'[2]REAL IMAE(M)'!BK28) -> n.d. | J21: =IF('[2]REAL IMAE(M)'!BN28="","",'[2]REAL IMAE(M)'!BN28) -> n.d. | K21: =IF('[2]REAL IMAE(M)'!BO28="","",'[2]REAL IMAE(M)'!BO28) -> n.d. | L21: =IF('[2]EXT RIN(M)'!$K28="","",'[2]EXT RIN(M)'!$K28) -> n.d. | N21: =IF('[2]EXT RIN(M)'!$L28="","",'[2]EXT RIN(M)'!$L28) -> n.d. | P21: =IF('[2]MONE(M)CARD'!EG28="","",'[2]MONE(M)CARD'!EG28) -> n.d. | Q21: =IF('[2]MONE(M)CARD'!EK28="","",'[2]MONE(M)CARD'!EK28) -> n.d. | R21: =IF('[2]MONE(M)CARD'!EP28="","",'[2]MONE(M)CARD'!EP28) -> n.d. | S21: =IF('[2]MONE(M)CARD'!ES28="","",'[2]MONE(M)CARD'!ES28) -> n.d. | T21: =IF('[2]MONE(M)CARD'!EV28="","",'[2]MONE(M)CARD'!EV28) -> n.d. | U21: =IF('[2]MONE(M)CARD'!EZ28="","",'[2]MONE(M)CARD'!EZ28) -> n.d. | V21: =IF('[2]MONE(M)CAPARD'!FC28="","",'[2]MONE(M)CAPARD'!FC28) -> n.d. | W21: =IF('[2]MONE(M)CAPARD'!FG28="","",'[2]MONE(M)CAPARD'!FG28) -> n.d. | X21: =IF('[2]MONE(M)CAPARD'!FL28="","",'[2]MONE(M)CAPARD'!FL28) -> n.d. | Y21: =IF('[2]MONE(M)CAPARD'!FO28="","",'[2]MONE(M)CAPARD'!FO28) -> n.d. | Z21: =IF('[2]MONE(M)CAPARD'!FR28="","",'[2]MONE(M)CAPARD'!FR28) -> n.d. | AA21: =IF('[2]MONE(M)CAPARD'!FV28="","",'[2]MONE(M)CAPARD'!FV28) -> n.d. | AB21: =IF('[2]MONE(M)CARD'!FV28="","",'[2]MONE(M)CARD'!FV28) ->  | AC21: =IF('[2]MONE(M)CARD'!GD28="","",'[2]MONE(M)CARD'!GD28) -> n.d. | AD21: =IF('[2]MONE(M)CARD'!GE28="","",'[2]MONE(M)CARD'!GE28) -> n.d. | AE21: n.d. | AF21: n.d. | AG21: n.d. | AH21: n.d. | AI21: n.d. | AJ21: n.d. | AK21: n.d. | AL21: n.d. | AN21: n.d. | AO21: n.d. | AP21: n.d. | AQ21: n.d. | AR21: n.d. | AS21: =IF('[2]MONE(M)CAPARD'!GS28="","",'[2]MONE(M)CAPARD'!GS28) -> n.d. | AT21: =IF('[2]MONE(M)CARD'!HA28="","",'[2]MONE(M)CAPARD'!HA28) -> n.d. | AU21: =IF('[2]MONE(M)CAPARD'!HB28="","",'[2]MONE(M)CAPARD'!HB28) -> n.d. | AV21: n.d. | AW21: n.d. | AX21: n.d. | AY21: n.d. | AZ21: n.d. | BA21: n.d. | BB21: n.d. | BC21: n.d. | BD21: n.d. | BE21: n.d. | BF21: n.d. | BG21: n.d. | BH21: n.d. | BI21: n.d. | BJ21: =IF('[2]MONE(M)CAPARD'!AS28="","",'[2]MONE(M)CAPARD'!AS28) -> n.d. | BK21: =IF('[2]MONE(M)CAPARD'!AT28="","",'[2]MONE(M)CAPARD'!AT28) -> n.a. | BL21: =IF('[2]MONE(M)CAPARD'!AU28="","",'[2]MONE(M)CAPARD'!AU28) -> n.d. | BM21: =IF('[2]MONE(M)CAPARD'!AV28="","",'[2]MONE(M)CAPARD'!AV28) -> n.d. | BN21: =IF('[2]MONE(M)CAPARD'!AW28="","",'[2]MONE(M)CAPARD'!AW28) -> n.a. | BO21: =IF('[2]MONE(M)CAPARD'!AX28="","",'[2]MONE(M)CAPARD'!AX28) -> n.d. | BP21: =IF('[2]MONE(M)CAPARD'!AY28="","",'[2]MONE(M)CAPARD'!AY28) -> n.a. | BQ21: =IF('[2]FISCAL(M)'!$K28="","",'[2]FISCAL(M)'!$K28) -> n.d. | BR21: =IF('[2]FISCAL(M)'!$L28="","",'[2]FISCAL(M)'!$L28) -> n.d. | BS21: =IF('[2]FISCAL(M)'!$AY28="","",'[2]FISCAL(M)'!$AY28) -> n.d. | BT21: =IF('[2]FISCAL(M)'!$BI28="","",'[2]FISCAL(M)'!$BI28) -> n.d. | BU21: =IF('[2]FISCAL(M)'!$BS28="","",'[2]FISCAL(M)'!$BS28) -> n.d. | BV21: =IF('[2]FISCAL(M)'!$AZ28="","",'[2]FISCAL(M)'!$AZ28) -> n.d. | BW21: =IF('[2]FISCAL(M)'!$BJ28="","",'[2]FISCAL(M)'!$BJ28) -> n.d. | BX21: =IF('[2]FISCAL(M)'!$BT28="","",'[2]FISCAL(M)'!$BT28) -> n.d. | BY21: =IF('[3]MONE(M)'!$AO28="","",'[3]MONE(M)'!$AO28) -> n.d. | BZ21: =IF('[4]MONE(M)'!$AO28="","",'[4]MONE(M)'!$AO28) -> n.d. | CA21: =IF('[5]MONE(M)'!$AO28="","",'[5]MONE(M)'!$AO28) -> n.d. | CB21: =+'[1]MONE(M)'!$AO28 -> n.d. | CC21: =IF('[6]MONE(M)'!$AO28="","",'[6]MONE(M)'!$AO28) -> n.d. | CD21: =IF('[7]MONE(M)'!$AO28="","",'[7]MONE(M)'!$AO28) -> n.d. | CE21: =IF('[8]MONE(M)'!$AO28="","",'[8]MONE(M)'!$AO28) -> n.d. | CF21: n.d. | CG21: n.d. | CH21: n.d. | CI21: n.d. | CJ21: n.d. | CK21: n.d. | CL21: n.d. | CM21: =IF('[2]FISCAL(M)'!$K28="","",'[2]FISCAL(M)'!$K28) -> n.d. | CN21: n.d. | CO21: n.d. | CP21: =IF('[2]FISCAL(M)'!$L28="","",'[2]FISCAL(M)'!$L28) -> n.d. | CQ21: n.d. | CR21: n.d. | CS21: n.d. | CT21: n.d. | CU21: n.d. | CV21: n.d. | CW21: n.d. | CX21: n.d. | CY21: n.d. | CZ21: n.d. | DA21: n.d. | DB21: n.d. | DC21: n.d. | DD21: n.d. | DE21: n.d. | DF21: n.d. | DG21: n.d. | DH21: n.d.
A22: 1991 | B22: agosto | C22: 1991-agosto | D22: =IF('[2]REAL IPC(M)'!$AL29="","",+'[2]REAL IPC(M)'!$AL29) -> n.d. | E22: =IF('[2]REAL IPC(M)'!$BE29="","",+'[2]REAL IPC(M)'!$BE29) -> n.d. | F22: =IF('[2]REAL IPC(M)'!$AM29="","",+'[2]REAL IPC(M)'!$AM29) -> n.d. | G22: =IF('[2]REAL IPC(M)'!$BI29="","",+'[2]REAL IPC(M)'!$BI29) -> n.d. | H22: =IF('[2]REAL IMAE(M)'!BJ29="","",'[2]REAL IMAE(M)'!BJ29) -> n.d. | I22: =IF('[2]REAL IMAE(M)'!BK29="","",'[2]REAL IMAE(M)'!BK29) -> n.d. | J22: =IF('[2]REAL IMAE(M)'!BN29="","",'[2]REAL IMAE(M)'!BN29) -> n.d. | K22: =IF('[2]REAL IMAE(M)'!BO29="","",'[2]REAL IMAE(M)'!BO29) -> n.d. | L22: =IF('[2]EXT RIN(M)'!$K29="","",'[2]EXT RIN(M)'!$K29) -> n.d. | N22: =IF('[2]EXT RIN(M)'!$L29="","",'[2]EXT RIN(M)'!$L29) -> n.d. | P22: =IF('[2]MONE(M)CARD'!EG29="","",'[2]MONE(M)CARD'!EG29) -> n.d. | Q22: =IF('[2]MONE(M)CARD'!EK29="","",'[2]MONE(M)CARD'!EK29) -> n.d. | R22: =IF('[2]MONE(M)CARD'!EP29="","",'[2]MONE(M)CARD'!EP29) -> n.d. | S22: =IF('[2]MONE(M)CARD'!ES29="","",'[2]MONE(M)CARD'!ES29) -> n.d. | T22: =IF('[2]MONE(M)CARD'!EV29="","",'[2]MONE(M)CARD'!EV29) -> n.d. | U22: =IF('[2]MONE(M)CARD'!EZ29="","",'[2]MONE(M)CARD'!EZ29) -> n.d. | V22: =IF('[2]MONE(M)CAPARD'!FC29="","",'[2]MONE(M)CAPARD'!FC29) -> n.d. | W22: =IF('[2]MONE(M)CAPARD'!FG29="","",'[2]MONE(M)CAPARD'!FG29) -> n.d. | X22: =IF('[2]MONE(M)CAPARD'!FL29="","",'[2]MONE(M)CAPARD'!FL29) -> n.d. | Y22: =IF('[2]MONE(M)CAPARD'!FO29="","",'[2]MONE(M)CAPARD'!FO29) -> n.d. | Z22: =IF('[2]MONE(M)CAPARD'!FR29="","",'[2]MONE(M)CAPARD'!FR29) -> n.d. | AA22: =IF('[2]MONE(M)CAPARD'!FV29="","",'[2]MONE(M)CAPARD'!FV29) -> n.d. | AB22: =IF('[2]MONE(M)CARD'!FV29="","",'[2]MONE(M)CARD'!FV29) ->  | AC22: =IF('[2]MONE(M)CARD'!GD29="","",'[2]MONE(M)CARD'!GD29) -> n.d. | AD22: =IF('[2]MONE(M)CARD'!GE29="","",'[2]MONE(M)CARD'!GE29) -> n.d. | AE22: n.d. | AF22: n.d. | AG22: n.d. | AH22: n.d. | AI22: n.d. | AJ22: n.d. | AK22: n.d. | AL22: n.d. | AN22: n.d. | AO22: n.d. | AP22: n.d. | AQ22: n.d. | AR22: n.d. | AS22: =IF('[2]MONE(M)CAPARD'!GS29="","",'[2]MONE(M)CAPARD'!GS29) -> n.d. | AT22: =IF('[2]MONE(M)CARD'!HA29="","",'[2]MONE(M)CAPARD'!HA29) -> n.d. | AU22: =IF('[2]MONE(M)CAPARD'!HB29="","",'[2]MONE(M)CAPARD'!HB29) -> n.d. | AV22: n.d. | AW22: n.d. | AX22: n.d. | AY22: n.d. | AZ22: n.d. | BA22: n.d. | BB22: n.d. | BC22: n.d. | BD22: n.d. | BE22: n.d. | BF22: n.d. | BG22: n.d. | BH22: n.d. | BI22: n.d. | BJ22: =IF('[2]MONE(M)CAPARD'!AS29="","",'[2]MONE(M)CAPARD'!AS29) -> n.d. | BK22: =IF('[2]MONE(M)CAPARD'!AT29="","",'[2]MONE(M)CAPARD'!AT29) -> n.a. | BL22: =IF('[2]MONE(M)CAPARD'!AU29="","",'[2]MONE(M)CAPARD'!AU29) -> n.d. | BM22: =IF('[2]MONE(M)CAPARD'!AV29="","",'[2]MONE(M)CAPARD'!AV29) -> n.d. | BN22: =IF('[2]MONE(M)CAPARD'!AW29="","",'[2]MONE(M)CAPARD'!AW29) -> n.a. | BO22: =IF('[2]MONE(M)CAPARD'!AX29="","",'[2]MONE(M)CAPARD'!AX29) -> n.d. | BP22: =IF('[2]MONE(M)CAPARD'!AY29="","",'[2]MONE(M)CAPARD'!AY29) -> n.a. | BQ22: =IF('[2]FISCAL(M)'!$K29="","",'[2]FISCAL(M)'!$K29) -> n.d. | BR22: =IF('[2]FISCAL(M)'!$L29="","",'[2]FISCAL(M)'!$L29) -> n.d. | BS22: =IF('[2]FISCAL(M)'!$AY29="","",'[2]FISCAL(M)'!$AY29) -> n.d. | BT22: =IF('[2]FISCAL(M)'!$BI29="","",'[2]FISCAL(M)'!$BI29) -> n.d. | BU22: =IF('[2]FISCAL(M)'!$BS29="","",'[2]FISCAL(M)'!$BS29) -> n.d. | BV22: =IF('[2]FISCAL(M)'!$AZ29="","",'[2]FISCAL(M)'!$AZ29) -> n.d. | BW22: =IF('[2]FISCAL(M)'!$BJ29="","",'[2]FISCAL(M)'!$BJ29) -> n.d. | BX22: =IF('[2]FISCAL(M)'!$BT29="","",'[2]FISCAL(M)'!$BT29) -> n.d. | BY22: =IF('[3]MONE(M)'!$AO29="","",'[3]MONE(M)'!$AO29) -> n.d. | BZ22: =IF('[4]MONE(M)'!$AO29="","",'[4]MONE(M)'!$AO29) -> n.d. | CA22: =IF('[5]MONE(M)'!$AO29="","",'[5]MONE(M)'!$AO29) -> n.d. | CB22: =+'[1]MONE(M)'!$AO29 -> n.d. | CC22: =IF('[6]MONE(M)'!$AO29="","",'[6]MONE(M)'!$AO29) -> n.d. | CD22: =IF('[7]MONE(M)'!$AO29="","",'[7]MONE(M)'!$AO29) -> n.d. | CE22: =IF('[8]MONE(M)'!$AO29="","",'[8]MONE(M)'!$AO29) -> n.d. | CF22: n.d. | CG22: n.d. | CH22: n.d. | CI22: n.d. | CJ22: n.d. | CK22: n.d. | CL22: n.d. | CM22: =IF('[2]FISCAL(M)'!$K29="","",'[2]FISCAL(M)'!$K29) -> n.d. | CN22: n.d. | CO22: n.d. | CP22: =IF('[2]FISCAL(M)'!$L29="","",'[2]FISCAL(M)'!$L29) -> n.d. | CQ22: n.d. | CR22: n.d. | CS22: n.d. | CT22: n.d. | CU22: n.d. | CV22: n.d. | CW22: n.d. | CX22: n.d. | CY22: n.d. | CZ22: n.d. | DA22: n.d. | DB22: n.d. | DC22: n.d. | DD22: n.d. | DE22: n.d. | DF22: n.d. | DG22: n.d. | DH22: n.d.
A23: 1991 | B23: septiembre | C23: 1991-septiembre | D23: =IF('[2]REAL IPC(M)'!$AL30="","",+'[2]REAL IPC(M)'!$AL30) -> n.d. | E23: =IF('[2]REAL IPC(M)'!$BE30="","",+'[2]REAL IPC(M)'!$BE30) -> n.d. | F23: =IF('[2]REAL IPC(M)'!$AM30="","",+'[2]REAL IPC(M)'!$AM30) -> n.d. | G23: =IF('[2]REAL IPC(M)'!$BI30="","",+'[2]REAL IPC(M)'!$BI30) -> n.d. | H23: =IF('[2]REAL IMAE(M)'!BJ30="","",'[2]REAL IMAE(M)'!BJ30) -> n.d. | I23: =IF('[2]REAL IMAE(M)'!BK30="","",'[2]REAL IMAE(M)'!BK30) -> n.d. | J23: =IF('[2]REAL IMAE(M)'!BN30="","",'[2]REAL IMAE(M)'!BN30) -> n.d. | K23: =IF('[2]REAL IMAE(M)'!BO30="","",'[2]REAL IMAE(M)'!BO30) -> n.d. | L23: =IF('[2]EXT RIN(M)'!$K30="","",'[2]EXT RIN(M)'!$K30) -> n.d. | N23: =IF('[2]EXT RIN(M)'!$L30="","",'[2]EXT RIN(M)'!$L30) -> n.d. | P23: =IF('[2]MONE(M)CARD'!EG30="","",'[2]MONE(M)CARD'!EG30) -> n.d. | Q23: =IF('[2]MONE(M)CARD'!EK30="","",'[2]MONE(M)CARD'!EK30) -> n.d. | R23: =IF('[2]MONE(M)CARD'!EP30="","",'[2]MONE(M)CARD'!EP30) -> n.d. | S23: =IF('[2]MONE(M)CARD'!ES30="","",'[2]MONE(M)CARD'!ES30) -> n.d. | T23: =IF('[2]MONE(M)CARD'!EV30="","",'[2]MONE(M)CARD'!EV30) -> n.d. | U23: =IF('[2]MONE(M)CARD'!EZ30="","",'[2]MONE(M)CARD'!EZ30) -> n.d. | V23: =IF('[2]MONE(M)CAPARD'!FC30="","",'[2]MONE(M)CAPARD'!FC30) -> n.d. | W23: =IF('[2]MONE(M)CAPARD'!FG30="","",'[2]MONE(M)CAPARD'!FG30) -> n.d. | X23: =IF('[2]MONE(M)CAPARD'!FL30="","",'[2]MONE(M)CAPARD'!FL30) -> n.d. | Y23: =IF('[2]MONE(M)CAPARD'!FO30="","",'[2]MONE(M)CAPARD'!FO30) -> n.d. | Z23: =IF('[2]MONE(M)CAPARD'!FR30="","",'[2]MONE(M)CAPARD'!FR30) -> n.d. | AA23: =IF('[2]MONE(M)CAPARD'!FV30="","",'[2]MONE(M)CAPARD'!FV30) -> n.d. | AB23: =IF('[2]MONE(M)CARD'!FV30="","",'[2]MONE(M)CARD'!FV30) ->  | AC23: =IF('[2]MONE(M)CARD'!GD30="","",'[2]MONE(M)CARD'!GD30) -> n.d. | AD23: =IF('[2]MONE(M)CARD'!GE30="","",'[2]MONE(M)CARD'!GE30) -> n.d. | AE23: n.d. | AF23: n.d. | AG23: n.d. | AH23: n.d. | AI23: n.d. | AJ23: n.d. | AK23: n.d. | AL23: n.d. | AN23: n.d. | AO23: n.d. | AP23: n.d. | AQ23: n.d. | AR23: n.d. | AS23: =IF('[2]MONE(M)CAPARD'!GS30="","",'[2]MONE(M)CAPARD'!GS30) -> n.d. | AT23: =IF('[2]MONE(M)CARD'!HA30="","",'[2]MONE(M)CAPARD'!HA30) -> n.d. | AU23: =IF('[2]MONE(M)CAPARD'!HB30="","",'[2]MONE(M)CAPARD'!HB30) -> n.d. | AV23: n.d. | AW23: n.d. | AX23: n.d. | AY23: n.d. | AZ23: n.d. | BA23: n.d. | BB23: n.d. | BC23: n.d. | BD23: n.d. | BE23: n.d. | BF23: n.d. | BG23: n.d. | BH23: n.d. | BI23: n.d. | BJ23: =IF('[2]MONE(M)CAPARD'!AS30="","",'[2]MONE(M)CAPARD'!AS30) -> n.d. | BK23: =IF('[2]MONE(M)CAPARD'!AT30="","",'[2]MONE(M)CAPARD'!AT30) -> n.a. | BL23: =IF('[2]MONE(M)CAPARD'!AU30="","",'[2]MONE(M)CAPARD'!AU30) -> n.d. | BM23: =IF('[2]MONE(M)CAPARD'!AV30="","",'[2]MONE(M)CAPARD'!AV30) -> n.d. | BN23: =IF('[2]MONE(M)CAPARD'!AW30="","",'[2]MONE(M)CAPARD'!AW30) -> n.a. | BO23: =IF('[2]MONE(M)CAPARD'!AX30="","",'[2]MONE(M)CAPARD'!AX30) -> n.d. | BP23: =IF('[2]MONE(M)CAPARD'!AY30="","",'[2]MONE(M)CAPARD'!AY30) -> n.a. | BQ23: =IF('[2]FISCAL(M)'!$K30="","",'[2]FISCAL(M)'!$K30) -> n.d. | BR23: =IF('[2]FISCAL(M)'!$L30="","",'[2]FISCAL(M)'!$L30) -> n.d. | BS23: =IF('[2]FISCAL(M)'!$AY30="","",'[2]FISCAL(M)'!$AY30) -> n.d. | BT23: =IF('[2]FISCAL(M)'!$BI30="","",'[2]FISCAL(M)'!$BI30) -> n.d. | BU23: =IF('[2]FISCAL(M)'!$BS30="","",'[2]FISCAL(M)'!$BS30) -> n.d. | BV23: =IF('[2]FISCAL(M)'!$AZ30="","",'[2]FISCAL(M)'!$AZ30) -> n.d. | BW23: =IF('[2]FISCAL(M)'!$BJ30="","",'[2]FISCAL(M)'!$BJ30) -> n.d. | BX23: =IF('[2]FISCAL(M)'!$BT30="","",'[2]FISCAL(M)'!$BT30) -> n.d. | BY23: =IF('[3]MONE(M)'!$AO30="","",'[3]MONE(M)'!$AO30) -> n.d. | BZ23: =IF('[4]MONE(M)'!$AO30="","",'[4]MONE(M)'!$AO30) -> n.d. | CA23: =IF('[5]MONE(M)'!$AO30="","",'[5]MONE(M)'!$AO30) -> n.d. | CB23: =+'[1]MONE(M)'!$AO30 -> n.d. | CC23: =IF('[6]MONE(M)'!$AO30="","",'[6]MONE(M)'!$AO30) -> n.d. | CD23: =IF('[7]MONE(M)'!$AO30="","",'[7]MONE(M)'!$AO30) -> n.d. | CE23: =IF('[8]MONE(M)'!$AO30="","",'[8]MONE(M)'!$AO30) -> n.d. | CF23: n.d. | CG23: n.d. | CH23: n.d. | CI23: n.d. | CJ23: n.d. | CK23: n.d. | CL23: n.d. | CM23: =IF('[2]FISCAL(M)'!$K30="","",'[2]FISCAL(M)'!$K30) -> n.d. | CN23: n.d. | CO23: n.d. | CP23: =IF('[2]FISCAL(M)'!$L30="","",'[2]FISCAL(M)'!$L30) -> n.d. | CQ23: n.d. | CR23: n.d. | CS23: n.d. | CT23: n.d. | CU23: n.d. | CV23: n.d. | CW23: n.d. | CX23: n.d. | CY23: n.d. | CZ23: n.d. | DA23: n.d. | DB23: n.d. | DC23: n.d. | DD23: n.d. | DE23: n.d. | DF23: n.d. | DG23: n.d. | DH23: n.d.
A24: 1991 | B24: octubre | C24: 1991-octubre | D24: =IF('[2]REAL IPC(M)'!$AL31="","",+'[2]REAL IPC(M)'!$AL31) -> n.d. | E24: =IF('[2]REAL IPC(M)'!$BE31="","",+'[2]REAL IPC(M)'!$BE31) -> n.d. | F24: =IF('[2]REAL IPC(M)'!$AM31="","",+'[2]REAL IPC(M)'!$AM31) -> n.d. | G24: =IF('[2]REAL IPC(M)'!$BI31="","",+'[2]REAL IPC(M)'!$BI31) -> n.d. | H24: =IF('[2]REAL IMAE(M)'!BJ31="","",'[2]REAL IMAE(M)'!BJ31) -> n.d. | I24: =IF('[2]REAL IMAE(M)'!BK31="","",'[2]REAL IMAE(M)'!BK31) -> n.d. | J24: =IF('[2]REAL IMAE(M)'!BN31="","",'[2]REAL IMAE(M)'!BN31) -> n.d. | K24: =IF('[2]REAL IMAE(M)'!BO31="","",'[2]REAL IMAE(M)'!BO31) -> n.d. | L24: =IF('[2]EXT RIN(M)'!$K31="","",'[2]EXT RIN(M)'!$K31) -> n.d. | N24: =IF('[2]EXT RIN(M)'!$L31="","",'[2]EXT RIN(M)'!$L31) -> n.d. | P24: =IF('[2]MONE(M)CARD'!EG31="","",'[2]MONE(M)CARD'!EG31) -> n.d. | Q24: =IF('[2]MONE(M)CARD'!EK31="","",'[2]MONE(M)CARD'!EK31) -> n.d. | R24: =IF('[2]MONE(M)CARD'!EP31="","",'[2]MONE(M)CARD'!EP31) -> n.d. | S24: =IF('[2]MONE(M)CARD'!ES31="","",'[2]MONE(M)CARD'!ES31) -> n.d. | T24: =IF('[2]MONE(M)CARD'!EV31="","",'[2]MONE(M)CARD'!EV31) -> n.d. | U24: =IF('[2]MONE(M)CARD'!EZ31="","",'[2]MONE(M)CARD'!EZ31) -> n.d. | V24: =IF('[2]MONE(M)CAPARD'!FC31="","",'[2]MONE(M)CAPARD'!FC31) -> n.d. | W24: =IF('[2]MONE(M)CAPARD'!FG31="","",'[2]MONE(M)CAPARD'!FG31) -> n.d. | X24: =IF('[2]MONE(M)CAPARD'!FL31="","",'[2]MONE(M)CAPARD'!FL31) -> n.d. | Y24: =IF('[2]MONE(M)CAPARD'!FO31="","",'[2]MONE(M)CAPARD'!FO31) -> n.d. | Z24: =IF('[2]MONE(M)CAPARD'!FR31="","",'[2]MONE(M)CAPARD'!FR31) -> n.d. | AA24: =IF('[2]MONE(M)CAPARD'!FV31="","",'[2]MONE(M)CAPARD'!FV31) -> n.d. | AB24: =IF('[2]MONE(M)CARD'!FV31="","",'[2]MONE(M)CARD'!FV31) ->  | AC24: =IF('[2]MONE(M)CARD'!GD31="","",'[2]MONE(M)CARD'!GD31) -> n.d. | AD24: =IF('[2]MONE(M)CARD'!GE31="","",'[2]MONE(M)CARD'!GE31) -> n.d. | AE24: n.d. | AF24: n.d. | AG24: n.d. | AH24: n.d. | AI24: n.d. | AJ24: n.d. | AK24: n.d. | AL24: n.d. | AN24: n.d. | AO24: n.d. | AP24: n.d. | AQ24: n.d. | AR24: n.d. | AS24: =IF('[2]MONE(M)CAPARD'!GS31="","",'[2]MONE(M)CAPARD'!GS31) -> n.d. | AT24: =IF('[2]MONE(M)CARD'!HA31="","",'[2]MONE(M)CAPARD'!HA31) -> n.d. | AU24: =IF('[2]MONE(M)CAPARD'!HB31="","",'[2]MONE(M)CAPARD'!HB31) -> n.d. | AV24: n.d. | AW24: n.d. | AX24: n.d. | AY24: n.d. | AZ24: n.d. | BA24: n.d. | BB24: n.d. | BC24: n.d. | BD24: n.d. | BE24: n.d. | BF24: n.d. | BG24: n.d. | BH24: n.d. | BI24: n.d. | BJ24: =IF('[2]MONE(M)CAPARD'!AS31="","",'[2]MONE(M)CAPARD'!AS31) -> n.d. | BK24: =IF('[2]MONE(M)CAPARD'!AT31="","",'[2]MONE(M)CAPARD'!AT31) -> n.a. | BL24: =IF('[2]MONE(M)CAPARD'!AU31="","",'[2]MONE(M)CAPARD'!AU31) -> n.d. | BM24: =IF('[2]MONE(M)CAPARD'!AV31="","",'[2]MONE(M)CAPARD'!AV31) -> n.d. | BN24: =IF('[2]MONE(M)CAPARD'!AW31="","",'[2]MONE(M)CAPARD'!AW31) -> n.a. | BO24: =IF('[2]MONE(M)CAPARD'!AX31="","",'[2]MONE(M)CAPARD'!AX31) -> n.d. | BP24: =IF('[2]MONE(M)CAPARD'!AY31="","",'[2]MONE(M)CAPARD'!AY31) -> n.a. | BQ24: =IF('[2]FISCAL(M)'!$K31="","",'[2]FISCAL(M)'!$K31) -> n.d. | BR24: =IF('[2]FISCAL(M)'!$L31="","",'[2]FISCAL(M)'!$L31) -> n.d. | BS24: =IF('[2]FISCAL(M)'!$AY31="","",'[2]FISCAL(M)'!$AY31) -> n.d. | BT24: =IF('[2]FISCAL(M)'!$BI31="","",'[2]FISCAL(M)'!$BI31) -> n.d. | BU24: =IF('[2]FISCAL(M)'!$BS31="","",'[2]FISCAL(M)'!$BS31) -> n.d. | BV24: =IF('[2]FISCAL(M)'!$AZ31="","",'[2]FISCAL(M)'!$AZ31) -> n.d. | BW24: =IF('[2]FISCAL(M)'!$BJ31="","",'[2]FISCAL(M)'!$BJ31) -> n.d. | BX24: =IF('[2]FISCAL(M)'!$BT31="","",'[2]FISCAL(M)'!$BT31) -> n.d. | BY24: =IF('[3]MONE(M)'!$AO31="","",'[3]MONE(M)'!$AO31) -> n.d. | BZ24: =IF('[4]MONE(M)'!$AO31="","",'[4]MONE(M)'!$AO31) -> n.d. | CA24: =IF('[5]MONE(M)'!$AO31="","",'[5]MONE(M)'!$AO31) -> n.d. | CB24: =+'[1]MONE(M)'!$AO31 -> n.d. | CC24: =IF('[6]MONE(M)'!$AO31="","",'[6]MONE(M)'!$AO31) -> n.d. | CD24: =IF('[7]MONE(M)'!$AO31="","",'[7]MONE(M)'!$AO31) -> n.d. | CE24: =IF('[8]MONE(M)'!$AO31="","",'[8]MONE(M)'!$AO31) -> n.d. | CF24: n.d. | CG24: n.d. | CH24: n.d. | CI24: n.d. | CJ24: n.d. | CK24: n.d. | CL24: n.d. | CM24: =IF('[2]FISCAL(M)'!$K31="","",'[2]FISCAL(M)'!$K31) -> n.d. | CN24: n.d. | CO24: n.d. | CP24: =IF('[2]FISCAL(M)'!$L31="","",'[2]FISCAL(M)'!$L31) -> n.d. | CQ24: n.d. | CR24: n.d. | CS24: n.d. | CT24: n.d. | CU24: n.d. | CV24: n.d. | CW24: n.d. | CX24: n.d. | CY24: n.d. | CZ24: n.d. | DA24: n.d. | DB24: n.d. | DC24: n.d. | DD24: n.d. | DE24: n.d. | DF24: n.d. | DG24: n.d. | DH24: n.d.
A25: 1991 | B25: noviembre | C25: 1991-noviembre | D25: =IF('[2]REAL IPC(M)'!$AL32="","",+'[2]REAL IPC(M)'!$AL32) -> n.d. | E25: =IF('[2]REAL IPC(M)'!$BE32="","",+'[2]REAL IPC(M)'!$BE32) -> n.d. | F25: =IF('[2]REAL IPC(M)'!$AM32="","",+'[2]REAL IPC(M)'!$AM32) -> n.d. | G25: =IF('[2]REAL IPC(M)'!$BI32="","",+'[2]REAL IPC(M)'!$BI32) -> n.d. | H25: =IF('[2]REAL IMAE(M)'!BJ32="","",'[2]REAL IMAE(M)'!BJ32) -> n.d. | I25: =IF('[2]REAL IMAE(M)'!BK32="","",'[2]REAL IMAE(M)'!BK32) -> n.d. | J25: =IF('[2]REAL IMAE(M)'!BN32="","",'[2]REAL IMAE(M)'!BN32) -> n.d. | K25: =IF('[2]REAL IMAE(M)'!BO32="","",'[2]REAL IMAE(M)'!BO32) -> n.d. | L25: =IF('[2]EXT RIN(M)'!$K32="","",'[2]EXT RIN(M)'!$K32) -> n.d. | N25: =IF('[2]EXT RIN(M)'!$L32="","",'[2]EXT RIN(M)'!$L32) -> n.d. | P25: =IF('[2]MONE(M)CARD'!EG32="","",'[2]MONE(M)CARD'!EG32) -> n.d. | Q25: =IF('[2]MONE(M)CARD'!EK32="","",'[2]MONE(M)CARD'!EK32) -> n.d. | R25: =IF('[2]MONE(M)CARD'!EP32="","",'[2]MONE(M)CARD'!EP32) -> n.d. | S25: =IF('[2]MONE(M)CARD'!ES32="","",'[2]MONE(M)CARD'!ES32) -> n.d. | T25: =IF('[2]MONE(M)CARD'!EV32="","",'[2]MONE(M)CARD'!EV32) -> n.d. | U25: =IF('[2]MONE(M)CARD'!EZ32="","",'[2]MONE(M)CARD'!EZ32) -> n.d. | V25: =IF('[2]MONE(M)CAPARD'!FC32="","",'[2]MONE(M)CAPARD'!FC32) -> n.d. | W25: =IF('[2]MONE(M)CAPARD'!FG32="","",'[2]MONE(M)CAPARD'!FG32) -> n.d. | X25: =IF('[2]MONE(M)CAPARD'!FL32="","",'[2]MONE(M)CAPARD'!FL32) -> n.d. | Y25: =IF('[2]MONE(M)CAPARD'!FO32="","",'[2]MONE(M)CAPARD'!FO32) -> n.d. | Z25: =IF('[2]MONE(M)CAPARD'!FR32="","",'[2]MONE(M)CAPARD'!FR32) -> n.d. | AA25: =IF('[2]MONE(M)CAPARD'!FV32="","",'[2]MONE(M)CAPARD'!FV32) -> n.d. | AB25: =IF('[2]MONE(M)CARD'!FV32="","",'[2]MONE(M)CARD'!FV32) ->  | AC25: =IF('[2]MONE(M)CARD'!GD32="","",'[2]MONE(M)CARD'!GD32) -> n.d. | AD25: =IF('[2]MONE(M)CARD'!GE32="","",'[2]MONE(M)CARD'!GE32) -> n.d. | AE25: n.d. | AF25: n.d. | AG25: n.d. | AH25: n.d. | AI25: n.d. | AJ25: n.d. | AK25: n.d. | AL25: n.d. | AN25: n.d. | AO25: n.d. | AP25: n.d. | AQ25: n.d. | AR25: n.d. | AS25: =IF('[2]MONE(M)CAPARD'!GS32="","",'[2]MONE(M)CAPARD'!GS32) -> n.d. | AT25: =IF('[2]MONE(M)CARD'!HA32="","",'[2]MONE(M)CAPARD'!HA32) -> n.d. | AU25: =IF('[2]MONE(M)CAPARD'!HB32="","",'[2]MONE(M)CAPARD'!HB32) -> n.d. | AV25: n.d. | AW25: n.d. | AX25: n.d. | AY25: n.d. | AZ25: n.d. | BA25: n.d. | BB25: n.d. | BC25: n.d. | BD25: n.d. | BE25: n.d. | BF25: n.d. | BG25: n.d. | BH25: n.d. | BI25: n.d. | BJ25: =IF('[2]MONE(M)CAPARD'!AS32="","",'[2]MONE(M)CAPARD'!AS32) -> n.d. | BK25: =IF('[2]MONE(M)CAPARD'!AT32="","",'[2]MONE(M)CAPARD'!AT32) -> n.a. | BL25: =IF('[2]MONE(M)CAPARD'!AU32="","",'[2]MONE(M)CAPARD'!AU32) -> n.d. | BM25: =IF('[2]MONE(M)CAPARD'!AV32="","",'[2]MONE(M)CAPARD'!AV32) -> n.d. | BN25: =IF('[2]MONE(M)CAPARD'!AW32="","",'[2]MONE(M)CAPARD'!AW32) -> n.a. | BO25: =IF('[2]MONE(M)CAPARD'!AX32="","",'[2]MONE(M)CAPARD'!AX32) -> n.d. | BP25: =IF('[2]MONE(M)CAPARD'!AY32="","",'[2]MONE(M)CAPARD'!AY32) -> n.a. | BQ25: =IF('[2]FISCAL(M)'!$K32="","",'[2]FISCAL(M)'!$K32) -> n.d. | BR25: =IF('[2]FISCAL(M)'!$L32="","",'[2]FISCAL(M)'!$L32) -> n.d. | BS25: =IF('[2]FISCAL(M)'!$AY32="","",'[2]FISCAL(M)'!$AY32) -> n.d. | BT25: =IF('[2]FISCAL(M)'!$BI32="","",'[2]FISCAL(M)'!$BI32) -> n.d. | BU25: =IF('[2]FISCAL(M)'!$BS32="","",'[2]FISCAL(M)'!$BS32) -> n.d. | BV25: =IF('[2]FISCAL(M)'!$AZ32="","",'[2]FISCAL(M)'!$AZ32) -> n.d. | BW25: =IF('[2]FISCAL(M)'!$BJ32="","",'[2]FISCAL(M)'!$BJ32) -> n.d. | BX25: =IF('[2]FISCAL(M)'!$BT32="","",'[2]FISCAL(M)'!$BT32) -> n.d. | BY25: =IF('[3]MONE(M)'!$AO32="","",'[3]MONE(M)'!$AO32) -> n.d. | BZ25: =IF('[4]MONE(M)'!$AO32="","",'[4]MONE(M)'!$AO32) -> n.d. | CA25: =IF('[5]MONE(M)'!$AO32="","",'[5]MONE(M)'!$AO32) -> n.d. | CB25: =+'[1]MONE(M)'!$AO32 -> n.d. | CC25: =IF('[6]MONE(M)'!$AO32="","",'[6]MONE(M)'!$AO32) -> n.d. | CD25: =IF('[7]MONE(M)'!$AO32="","",'[7]MONE(M)'!$AO32) -> n.d. | CE25: =IF('[8]MONE(M)'!$AO32="","",'[8]MONE(M)'!$AO32) -> n.d. | CF25: n.d. | CG25: n.d. | CH25: n.d. | CI25: n.d. | CJ25: n.d. | CK25: n.d. | CL25: n.d. | CM25: =IF('[2]FISCAL(M)'!$K32="","",'[2]FISCAL(M)'!$K32) -> n.d. | CN25: n.d. | CO25: n.d. | CP25: =IF('[2]FISCAL(M)'!$L32="","",'[2]FISCAL(M)'!$L32) -> n.d. | CQ25: n.d. | CR25: n.d. | CS25: n.d. | CT25: n.d. | CU25: n.d. | CV25: n.d. | CW25: n.d. | CX25: n.d. | CY25: n.d. | CZ25: n.d. | DA25: n.d. | DB25: n.d. | DC25: n.d. | DD25: n.d. | DE25: n.d. | DF25: n.d. | DG25: n.d. | DH25: n.d.
A26: 1991 | B26: diciembre | C26: 1991-diciembre | D26: =IF('[2]REAL IPC(M)'!$AL33="","",+'[2]REAL IPC(M)'!$AL33) -> n.d. | E26: =IF('[2]REAL IPC(M)'!$BE33="","",+'[2]REAL IPC(M)'!$BE33) -> n.d. | F26: =IF('[2]REAL IPC(M)'!$AM33="","",+'[2]REAL IPC(M)'!$AM33) -> n.d. | G26: =IF('[2]REAL IPC(M)'!$BI33="","",+'[2]REAL IPC(M)'!$BI33) -> n.d. | H26: =IF('[2]REAL IMAE(M)'!BJ33="","",'[2]REAL IMAE(M)'!BJ33) -> n.d. | I26: =IF('[2]REAL IMAE(M)'!BK33="","",'[2]REAL IMAE(M)'!BK33) -> n.d. | J26: =IF('[2]REAL IMAE(M)'!BN33="","",'[2]REAL IMAE(M)'!BN33) -> n.d. | K26: =IF('[2]REAL IMAE(M)'!BO33="","",'[2]REAL IMAE(M)'!BO33) -> n.d. | L26: =IF('[2]EXT RIN(M)'!$K33="","",'[2]EXT RIN(M)'!$K33) -> n.d. | M26: n.d. | N26: =IF('[2]EXT RIN(M)'!$L33="","",'[2]EXT RIN(M)'!$L33) -> n.d. | O26: n.d. | P26: =IF('[2]MONE(M)CARD'!EG33="","",'[2]MONE(M)CARD'!EG33) -> n.d. | Q26: =IF('[2]MONE(M)CARD'!EK33="","",'[2]MONE(M)CARD'!EK33) -> n.d. | R26: =IF('[2]MONE(M)CARD'!EP33="","",'[2]MONE(M)CARD'!EP33) -> n.d. | S26: =IF('[2]MONE(M)CARD'!ES33="","",'[2]MONE(M)CARD'!ES33) -> n.d. | T26: =IF('[2]MONE(M)CARD'!EV33="","",'[2]MONE(M)CARD'!EV33) -> n.d. | U26: =IF('[2]MONE(M)CARD'!EZ33="","",'[2]MONE(M)CARD'!EZ33) -> n.d. | V26: =IF('[2]MONE(M)CAPARD'!FC33="","",'[2]MONE(M)CAPARD'!FC33) -> n.d. | W26: =IF('[2]MONE(M)CAPARD'!FG33="","",'[2]MONE(M)CAPARD'!FG33) -> n.d. | X26: =IF('[2]MONE(M)CAPARD'!FL33="","",'[2]MONE(M)CAPARD'!FL33) -> n.d. | Y26: =IF('[2]MONE(M)CAPARD'!FO33="","",'[2]MONE(M)CAPARD'!FO33) -> n.d. | Z26: =IF('[2]MONE(M)CAPARD'!FR33="","",'[2]MONE(M)CAPARD'!FR33) -> n.d. | AA26: =IF('[2]MONE(M)CAPARD'!FV33="","",'[2]MONE(M)CAPARD'!FV33) -> n.d. | AB26: =IF('[2]MONE(M)CARD'!FV33="","",'[2]MONE(M)CARD'!FV33) ->  | AC26: =IF('[2]MONE(M)CARD'!GD33="","",'[2]MONE(M)CARD'!GD33) -> n.d. | AD26: =IF('[2]MONE(M)CARD'!GE33="","",'[2]MONE(M)CARD'!GE33) -> n.d. | AE26: n.d. | AF26: n.d. | AG26: n.d. | AH26: n.d. | AI26: n.d. | AJ26: n.d. | AK26: n.d. | AL26: n.d. | AN26: n.d. | AO26: n.d. | AP26: n.d. | AQ26: n.d. | AR26: n.d. | AS26: =IF('[2]MONE(M)CAPARD'!GS33="","",'[2]MONE(M)CAPARD'!GS33) -> n.d. | AT26: =IF('[2]MONE(M)CARD'!HA33="","",'[2]MONE(M)CAPARD'!HA33) -> n.d. | AU26: =IF('[2]MONE(M)CAPARD'!HB33="","",'[2]MONE(M)CAPARD'!HB33) -> n.d. | AV26: n.d. | AW26: n.d. | AX26: n.d. | AY26: n.d. | AZ26: n.d. | BA26: n.d. | BB26: n.d. | BC26: n.d. | BD26: n.d. | BE26: n.d. | BF26: n.d. | BG26: n.d. | BH26: n.d. | BI26: n.d. | BJ26: =IF('[2]MONE(M)CAPARD'!AS33="","",'[2]MONE(M)CAPARD'!AS33) -> n.d. | BK26: =IF('[2]MONE(M)CAPARD'!AT33="","",'[2]MONE(M)CAPARD'!AT33) -> n.a. | BL26: =IF('[2]MONE(M)CAPARD'!AU33="","",'[2]MONE(M)CAPARD'!AU33) -> n.d. | BM26: =IF('[2]MONE(M)CAPARD'!AV33="","",'[2]MONE(M)CAPARD'!AV33) -> n.d. | BN26: =IF('[2]MONE(M)CAPARD'!AW33="","",'[2]MONE(M)CAPARD'!AW33) -> n.a. | BO26: =IF('[2]MONE(M)CAPARD'!AX33="","",'[2]MONE(M)CAPARD'!AX33) -> n.d. | BP26: =IF('[2]MONE(M)CAPARD'!AY33="","",'[2]MONE(M)CAPARD'!AY33) -> n.a. | BQ26: =IF('[2]FISCAL(M)'!$K33="","",'[2]FISCAL(M)'!$K33) -> n.d. | BR26: =IF('[2]FISCAL(M)'!$L33="","",'[2]FISCAL(M)'!$L33) -> n.d. | BS26: =IF('[2]FISCAL(M)'!$AY33="","",'[2]FISCAL(M)'!$AY33) -> n.d. | BT26: =IF('[2]FISCAL(M)'!$BI33="","",'[2]FISCAL(M)'!$BI33) -> n.d. | BU26: =IF('[2]FISCAL(M)'!$BS33="","",'[2]FISCAL(M)'!$BS33) -> n.d. | BV26: =IF('[2]FISCAL(M)'!$AZ33="","",'[2]FISCAL(M)'!$AZ33) -> n.d. | BW26: =IF('[2]FISCAL(M)'!$BJ33="","",'[2]FISCAL(M)'!$BJ33) -> n.d. | BX26: =IF('[2]FISCAL(M)'!$BT33="","",'[2]FISCAL(M)'!$BT33) -> n.d. | BY26: =IF('[3]MONE(M)'!$AO33="","",'[3]MONE(M)'!$AO33) -> n.d. | BZ26: =IF('[4]MONE(M)'!$AO33="","",'[4]MONE(M)'!$AO33) -> n.d. | CA26: =IF('[5]MONE(M)'!$AO33="","",'[5]MONE(M)'!$AO33) -> n.d. | CB26: =+'[1]MONE(M)'!$AO33 -> n.d. | CC26: =IF('[6]MONE(M)'!$AO33="","",'[6]MONE(M)'!$AO33) -> n.d. | CD26: =IF('[7]MONE(M)'!$AO33="","",'[7]MONE(M)'!$AO33) -> n.d. | CE26: =IF('[8]MONE(M)'!$AO33="","",'[8]MONE(M)'!$AO33) -> n.d. | CF26: n.d. | CG26: n.d. | CH26: n.d. | CI26: n.d. | CJ26: n.d. | CK26: n.d. | CL26: n.d. | CM26: =IF('[2]FISCAL(M)'!$K33="","",'[2]FISCAL(M)'!$K33) -> n.d. | CN26: n.d. | CO26: n.d. | CP26: =IF('[2]FISCAL(M)'!$L33="","",'[2]FISCAL(M)'!$L33) -> n.d. | CQ26: n.d. | CR26: n.d. | CS26: n.d. | CT26: n.d. | CU26: n.d. | CV26: n.d. | CW26: n.d. | CX26: n.d. | CY26: n.d. | CZ26: n.d. | DA26: n.d. | DB26: n.d. | DC26: n.d. | DD26: n.d. | DE26: n.d. | DF26: n.d. | DG26: n.d. | DH26: n.d.
A27: 1992 | B27: enero | C27: 1992-enero | D27: =IF('[2]REAL IPC(M)'!$AL34="","",+'[2]REAL IPC(M)'!$AL34) -> n.d. | E27: =IF('[2]REAL IPC(M)'!$BE34="","",+'[2]REAL IPC(M)'!$BE34) -> n.d. | F27: =IF('[2]REAL IPC(M)'!$AM34="","",+'[2]REAL IPC(M)'!$AM34) -> n.d. | G27: =IF('[2]REAL IPC(M)'!$BI34="","",+'[2]REAL IPC(M)'!$BI34) -> n.d. | H27: =IF('[2]REAL IMAE(M)'!BJ34="","",'[2]REAL IMAE(M)'!BJ34) -> n.d. | I27: =IF('[2]REAL IMAE(M)'!BK34="","",'[2]REAL IMAE(M)'!BK34) -> n.d. | J27: =IF('[2]REAL IMAE(M)'!BN34="","",'[2]REAL IMAE(M)'!BN34) -> n.d. | K27: =IF('[2]REAL IMAE(M)'!BO34="","",'[2]REAL IMAE(M)'!BO34) -> n.d. | L27: =IF('[2]EXT RIN(M)'!$K34="","",'[2]EXT RIN(M)'!$K34) -> n.d. | N27: =IF('[2]EXT RIN(M)'!$L34="","",'[2]EXT RIN(M)'!$L34) -> n.d. | P27: =IF('[2]MONE(M)CARD'!EG34="","",'[2]MONE(M)CARD'!EG34) -> n.d. | Q27: =IF('[2]MONE(M)CARD'!EK34="","",'[2]MONE(M)CARD'!EK34) -> n.d. | R27: =IF('[2]MONE(M)CARD'!EP34="","",'[2]MONE(M)CARD'!EP34) -> n.d. | S27: =IF('[2]MONE(M)CARD'!ES34="","",'[2]MONE(M)CARD'!ES34) -> n.d. | T27: =IF('[2]MONE(M)CARD'!EV34="","",'[2]MONE(M)CARD'!EV34) -> n.d. | U27: =IF('[2]MONE(M)CARD'!EZ34="","",'[2]MONE(M)CARD'!EZ34) -> n.d. | V27: =IF('[2]MONE(M)CAPARD'!FC34="","",'[2]MONE(M)CAPARD'!FC34) -> n.d. | W27: =IF('[2]MONE(M)CAPARD'!FG34="","",'[2]MONE(M)CAPARD'!FG34) -> n.d. | X27: =IF('[2]MONE(M)CAPARD'!FL34="","",'[2]MONE(M)CAPARD'!FL34) -> n.d. | Y27: =IF('[2]MONE(M)CAPARD'!FO34="","",'[2]MONE(M)CAPARD'!FO34) -> n.d. | Z27: =IF('[2]MONE(M)CAPARD'!FR34="","",'[2]MONE(M)CAPARD'!FR34) -> n.d. | AA27: =IF('[2]MONE(M)CAPARD'!FV34="","",'[2]MONE(M)CAPARD'!FV34) -> n.d. | AB27: =IF('[2]MONE(M)CARD'!FV34="","",'[2]MONE(M)CARD'!FV34) ->  | AC27: =IF('[2]MONE(M)CARD'!GD34="","",'[2]MONE(M)CARD'!GD34) -> n.d. | AD27: =IF('[2]MONE(M)CARD'!GE34="","",'[2]MONE(M)CARD'!GE34) -> n.d. | AE27: n.d. | AF27: n.d. | AG27: n.d. | AH27: n.d. | AI27: n.d. | AJ27: n.d. | AK27: n.d. | AL27: n.d. | AN27: n.d. | AO27: n.d. | AP27: n.d. | AQ27: n.d. | AR27: n.d. | AS27: =IF('[2]MONE(M)CAPARD'!GS34="","",'[2]MONE(M)CAPARD'!GS34) -> n.d. | AT27: =IF('[2]MONE(M)CARD'!HA34="","",'[2]MONE(M)CAPARD'!HA34) -> n.d. | AU27: =IF('[2]MONE(M)CAPARD'!HB34="","",'[2]MONE(M)CAPARD'!HB34) -> n.d. | AV27: n.d. | AW27: n.d. | AX27: n.d. | AY27: n.d. | AZ27: n.d. | BA27: n.d. | BB27: n.d. | BC27: n.d. | BD27: n.d. | BE27: n.d. | BF27: n.d. | BG27: n.d. | BH27: n.d. | BI27: n.d. | BJ27: =IF('[2]MONE(M)CAPARD'!AS34="","",'[2]MONE(M)CAPARD'!AS34) -> n.d. | BK27: =IF('[2]MONE(M)CAPARD'!AT34="","",'[2]MONE(M)CAPARD'!AT34) -> n.a. | BL27: =IF('[2]MONE(M)CAPARD'!AU34="","",'[2]MONE(M)CAPARD'!AU34) -> n.d. | BM27: =IF('[2]MONE(M)CAPARD'!AV34="","",'[2]MONE(M)CAPARD'!AV34) -> n.d. | BN27: =IF('[2]MONE(M)CAPARD'!AW34="","",'[2]MONE(M)CAPARD'!AW34) -> n.a. | BO27: =IF('[2]MONE(M)CAPARD'!AX34="","",'[2]MONE(M)CAPARD'!AX34) -> n.d. | BP27: =IF('[2]MONE(M)CAPARD'!AY34="","",'[2]MONE(M)CAPARD'!AY34) -> n.a. | BQ27: =IF('[2]FISCAL(M)'!$K34="","",'[2]FISCAL(M)'!$K34) -> n.d. | BR27: =IF('[2]FISCAL(M)'!$L34="","",'[2]FISCAL(M)'!$L34) -> n.d. | BS27: =IF('[2]FISCAL(M)'!$AY34="","",'[2]FISCAL(M)'!$AY34) -> n.d. | BT27: =IF('[2]FISCAL(M)'!$BI34="","",'[2]FISCAL(M)'!$BI34) -> n.d. | BU27: =IF('[2]FISCAL(M)'!$BS34="","",'[2]FISCAL(M)'!$BS34) -> n.d. | BV27: =IF('[2]FISCAL(M)'!$AZ34="","",'[2]FISCAL(M)'!$AZ34) -> n.d. | BW27: =IF('[2]FISCAL(M)'!$BJ34="","",'[2]FISCAL(M)'!$BJ34) -> n.d. | BX27: =IF('[2]FISCAL(M)'!$BT34="","",'[2]FISCAL(M)'!$BT34) -> n.d. | BY27: =IF('[3]MONE(M)'!$AO34="","",'[3]MONE(M)'!$AO34) -> n.d. | BZ27: =IF('[4]MONE(M)'!$AO34="","",'[4]MONE(M)'!$AO34) -> n.d. | CA27: =IF('[5]MONE(M)'!$AO34="","",'[5]MONE(M)'!$AO34) -> n.d. | CB27: =+'[1]MONE(M)'!$AO34 -> n.d. | CC27: =IF('[6]MONE(M)'!$AO34="","",'[6]MONE(M)'!$AO34) -> n.d. | CD27: =IF('[7]MONE(M)'!$AO34="","",'[7]MONE(M)'!$AO34) -> n.d. | CE27: =IF('[8]MONE(M)'!$AO34="","",'[8]MONE(M)'!$AO34) -> n.d. | CF27: n.d. | CG27: n.d. | CH27: n.d. | CI27: n.d. | CJ27: n.d. | CK27: n.d. | CL27: n.d. | CM27: =IF('[2]FISCAL(M)'!$K34="","",'[2]FISCAL(M)'!$K34) -> n.d. | CN27: n.d. | CO27: n.d. | CP27: =IF('[2]FISCAL(M)'!$L34="","",'[2]FISCAL(M)'!$L34) -> n.d. | CQ27: n.d. | CR27: n.d. | CS27: n.d. | CT27: n.d. | CU27: n.d. | CV27: n.d. | CW27: n.d. | CX27: n.d. | CY27: n.d. | CZ27: n.d. | DA27: n.d. | DB27: n.d. | DC27: n.d. | DD27: n.d. | DE27: n.d. | DF27: n.d. | DG27: n.d. | DH27: n.d.
A28: 1992 | B28: febrero | C28: 1992-febrero | D28: =IF('[2]REAL IPC(M)'!$AL35="","",+'[2]REAL IPC(M)'!$AL35) -> n.d. | E28: =IF('[2]REAL IPC(M)'!$BE35="","",+'[2]REAL IPC(M)'!$BE35) -> n.d. | F28: =IF('[2]REAL IPC(M)'!$AM35="","",+'[2]REAL IPC(M)'!$AM35) -> n.d. | G28: =IF('[2]REAL IPC(M)'!$BI35="","",+'[2]REAL IPC(M)'!$BI35) -> n.d. | H28: =IF('[2]REAL IMAE(M)'!BJ35="","",'[2]REAL IMAE(M)'!BJ35) -> n.d. | I28: =IF('[2]REAL IMAE(M)'!BK35="","",'[2]REAL IMAE(M)'!BK35) -> n.d. | J28: =IF('[2]REAL IMAE(M)'!BN35="","",'[2]REAL IMAE(M)'!BN35) -> n.d. | K28: =IF('[2]REAL IMAE(M)'!BO35="","",'[2]REAL IMAE(M)'!BO35) -> n.d. | L28: =IF('[2]EXT RIN(M)'!$K35="","",'[2]EXT RIN(M)'!$K35) -> n.d. | N28: =IF('[2]EXT RIN(M)'!$L35="","",'[2]EXT RIN(M)'!$L35) -> n.d. | P28: =IF('[2]MONE(M)CARD'!EG35="","",'[2]MONE(M)CARD'!EG35) -> n.d. | Q28: =IF('[2]MONE(M)CARD'!EK35="","",'[2]MONE(M)CARD'!EK35) -> n.d. | R28: =IF('[2]MONE(M)CARD'!EP35="","",'[2]MONE(M)CARD'!EP35) -> n.d. | S28: =IF('[2]MONE(M)CARD'!ES35="","",'[2]MONE(M)CARD'!ES35) -> n.d. | T28: =IF('[2]MONE(M)CARD'!EV35="","",'[2]MONE(M)CARD'!EV35) -> n.d. | U28: =IF('[2]MONE(M)CARD'!EZ35="","",'[2]MONE(M)CARD'!EZ35) -> n.d. | V28: =IF('[2]MONE(M)CAPARD'!FC35="","",'[2]MONE(M)CAPARD'!FC35) -> n.d. | W28: =IF('[2]MONE(M)CAPARD'!FG35="","",'[2]MONE(M)CAPARD'!FG35) -> n.d. | X28: =IF('[2]MONE(M)CAPARD'!FL35="","",'[2]MONE(M)CAPARD'!FL35) -> n.d. | Y28: =IF('[2]MONE(M)CAPARD'!FO35="","",'[2]MONE(M)CAPARD'!FO35) -> n.d. | Z28: =IF('[2]MONE(M)CAPARD'!FR35="","",'[2]MONE(M)CAPARD'!FR35) -> n.d. | AA28: =IF('[2]MONE(M)CAPARD'!FV35="","",'[2]MONE(M)CAPARD'!FV35) -> n.d. | AB28: =IF('[2]MONE(M)CARD'!FV35="","",'[2]MONE(M)CARD'!FV35) ->  | AC28: =IF('[2]MONE(M)CARD'!GD35="","",'[2]MONE(M)CARD'!GD35) -> n.d. | AD28: =IF('[2]MONE(M)CARD'!GE35="","",'[2]MONE(M)CARD'!GE35) -> n.d. | AE28: n.d. | AF28: n.d. | AG28: n.d. | AH28: n.d. | AI28: n.d. | AJ28: n.d. | AK28: n.d. | AL28: n.d. | AN28: n.d. | AO28: n.d. | AP28: n.d. | AQ28: n.d. | AR28: n.d. | AS28: =IF('[2]MONE(M)CAPARD'!GS35="","",'[2]MONE(M)CAPARD'!GS35) -> n.d. | AT28: =IF('[2]MONE(M)CARD'!HA35="","",'[2]MONE(M)CAPARD'!HA35) -> n.d. | AU28: =IF('[2]MONE(M)CAPARD'!HB35="","",'[2]MONE(M)CAPARD'!HB35) -> n.d. | AV28: n.d. | AW28: n.d. | AX28: n.d. | AY28: n.d. | AZ28: n.d. | BA28: n.d. | BB28: n.d. | BC28: n.d. | BD28: n.d. | BE28: n.d. | BF28: n.d. | BG28: n.d. | BH28: n.d. | BI28: n.d. | BJ28: =IF('[2]MONE(M)CAPARD'!AS35="","",'[2]MONE(M)CAPARD'!AS35) -> n.d. | BK28: =IF('[2]MONE(M)CAPARD'!AT35="","",'[2]MONE(M)CAPARD'!AT35) -> n.a. | BL28: =IF('[2]MONE(M)CAPARD'!AU35="","",'[2]MONE(M)CAPARD'!AU35) -> n.d. | BM28: =IF('[2]MONE(M)CAPARD'!AV35="","",'[2]MONE(M)CAPARD'!AV35) -> n.d. | BN28: =IF('[2]MONE(M)CAPARD'!AW35="","",'[2]MONE(M)CAPARD'!AW35) -> n.a. | BO28: =IF('[2]MONE(M)CAPARD'!AX35="","",'[2]MONE(M)CAPARD'!AX35) -> n.d. | BP28: =IF('[2]MONE(M)CAPARD'!AY35="","",'[2]MONE(M)CAPARD'!AY35) -> n.a. | BQ28: =IF('[2]FISCAL(M)'!$K35="","",'[2]FISCAL(M)'!$K35) -> n.d. | BR28: =IF('[2]FISCAL(M)'!$L35="","",'[2]FISCAL(M)'!$L35) -> n.d. | BS28: =IF('[2]FISCAL(M)'!$AY35="","",'[2]FISCAL(M)'!$AY35) -> n.d. | BT28: =IF('[2]FISCAL(M)'!$BI35="","",'[2]FISCAL(M)'!$BI35) -> n.d. | BU28: =IF('[2]FISCAL(M)'!$BS35="","",'[2]FISCAL(M)'!$BS35) -> n.d. | BV28: =IF('[2]FISCAL(M)'!$AZ35="","",'[2]FISCAL(M)'!$AZ35) -> n.d. | BW28: =IF('[2]FISCAL(M)'!$BJ35="","",'[2]FISCAL(M)'!$BJ35) -> n.d. | BX28: =IF('[2]FISCAL(M)'!$BT35="","",'[2]FISCAL(M)'!$BT35) -> n.d. | BY28: =IF('[3]MONE(M)'!$AO35="","",'[3]MONE(M)'!$AO35) -> n.d. | BZ28: =IF('[4]MONE(M)'!$AO35="","",'[4]MONE(M)'!$AO35) -> n.d. | CA28: =IF('[5]MONE(M)'!$AO35="","",'[5]MONE(M)'!$AO35) -> n.d. | CB28: =+'[1]MONE(M)'!$AO35 -> n.d. | CC28: =IF('[6]MONE(M)'!$AO35="","",'[6]MONE(M)'!$AO35) -> n.d. | CD28: =IF('[7]MONE(M)'!$AO35="","",'[7]MONE(M)'!$AO35) -> n.d. | CE28: =IF('[8]MONE(M)'!$AO35="","",'[8]MONE(M)'!$AO35) -> n.d. | CF28: n.d. | CG28: n.d. | CH28: n.d. | CI28: n.d. | CJ28: n.d. | CK28: n.d. | CL28: n.d. | CM28: =IF('[2]FISCAL(M)'!$K35="","",'[2]FISCAL(M)'!$K35) -> n.d. | CN28: n.d. | CO28: n.d. | CP28: =IF('[2]FISCAL(M)'!$L35="","",'[2]FISCAL(M)'!$L35) -> n.d. | CQ28: n.d. | CR28: n.d. | CS28: n.d. | CT28: n.d. | CU28: n.d. | CV28: n.d. | CW28: n.d. | CX28: n.d. | CY28: n.d. | CZ28: n.d. | DA28: n.d. | DB28: n.d. | DC28: n.d. | DD28: n.d. | DE28: n.d. | DF28: n.d. | DG28: n.d. | DH28: n.d.
A29: 1992 | B29: marzo | C29: 1992-marzo | D29: =IF('[2]REAL IPC(M)'!$AL36="","",+'[2]REAL IPC(M)'!$AL36) -> n.d. | E29: =IF('[2]REAL IPC(M)'!$BE36="","",+'[2]REAL IPC(M)'!$BE36) -> n.d. | F29: =IF('[2]REAL IPC(M)'!$AM36="","",+'[2]REAL IPC(M)'!$AM36) -> n.d. | G29: =IF('[2]REAL IPC(M)'!$BI36="","",+'[2]REAL IPC(M)'!$BI36) -> n.d. | H29: =IF('[2]REAL IMAE(M)'!BJ36="","",'[2]REAL IMAE(M)'!BJ36) -> n.d. | I29: =IF('[2]REAL IMAE(M)'!BK36="","",'[2]REAL IMAE(M)'!BK36) -> n.d. | J29: =IF('[2]REAL IMAE(M)'!BN36="","",'[2]REAL IMAE(M)'!BN36) -> n.d. | K29: =IF('[2]REAL IMAE(M)'!BO36="","",'[2]REAL IMAE(M)'!BO36) -> n.d. | L29: =IF('[2]EXT RIN(M)'!$K36="","",'[2]EXT RIN(M)'!$K36) -> n.d. | N29: =IF('[2]EXT RIN(M)'!$L36="","",'[2]EXT RIN(M)'!$L36) -> n.d. | P29: =IF('[2]MONE(M)CARD'!EG36="","",'[2]MONE(M)CARD'!EG36) -> n.d. | Q29: =IF('[2]MONE(M)CARD'!EK36="","",'[2]MONE(M)CARD'!EK36) -> n.d. | R29: =IF('[2]MONE(M)CARD'!EP36="","",'[2]MONE(M)CARD'!EP36) -> n.d. | S29: =IF('[2]MONE(M)CARD'!ES36="","",'[2]MONE(M)CARD'!ES36) -> n.d. | T29: =IF('[2]MONE(M)CARD'!EV36="","",'[2]MONE(M)CARD'!EV36) -> n.d. | U29: =IF('[2]MONE(M)CARD'!EZ36="","",'[2]MONE(M)CARD'!EZ36) -> n.d. | V29: =IF('[2]MONE(M)CAPARD'!FC36="","",'[2]MONE(M)CAPARD'!FC36) -> n.d. | W29: =IF('[2]MONE(M)CAPARD'!FG36="","",'[2]MONE(M)CAPARD'!FG36) -> n.d. | X29: =IF('[2]MONE(M)CAPARD'!FL36="","",'[2]MONE(M)CAPARD'!FL36) -> n.d. | Y29: =IF('[2]MONE(M)CAPARD'!FO36="","",'[2]MONE(M)CAPARD'!FO36) -> n.d. | Z29: =IF('[2]MONE(M)CAPARD'!FR36="","",'[2]MONE(M)CAPARD'!FR36) -> n.d. | AA29: =IF('[2]MONE(M)CAPARD'!FV36="","",'[2]MONE(M)CAPARD'!FV36) -> n.d. | AB29: =IF('[2]MONE(M)CARD'!FV36="","",'[2]MONE(M)CARD'!FV36) ->  | AC29: =IF('[2]MONE(M)CARD'!GD36="","",'[2]MONE(M)CARD'!GD36) -> n.d. | AD29: =IF('[2]MONE(M)CARD'!GE36="","",'[2]MONE(M)CARD'!GE36) -> n.d. | AE29: n.d. | AF29: n.d. | AG29: n.d. | AH29: n.d. | AI29: n.d. | AJ29: n.d. | AK29: n.d. | AL29: n.d. | AN29: n.d. | AO29: n.d. | AP29: n.d. | AQ29: n.d. | AR29: n.d. | AS29: =IF('[2]MONE(M)CAPARD'!GS36="","",'[2]MONE(M)CAPARD'!GS36) -> n.d. | AT29: =IF('[2]MONE(M)CARD'!HA36="","",'[2]MONE(M)CAPARD'!HA36) -> n.d. | AU29: =IF('[2]MONE(M)CAPARD'!HB36="","",'[2]MONE(M)CAPARD'!HB36) -> n.d. | AV29: n.d. | AW29: n.d. | AX29: n.d. | AY29: n.d. | AZ29: n.d. | BA29: n.d. | BB29: n.d. | BC29: n.d. | BD29: n.d. | BE29: n.d. | BF29: n.d. | BG29: n.d. | BH29: n.d. | BI29: n.d. | BJ29: =IF('[2]MONE(M)CAPARD'!AS36="","",'[2]MONE(M)CAPARD'!AS36) -> n.d. | BK29: =IF('[2]MONE(M)CAPARD'!AT36="","",'[2]MONE(M)CAPARD'!AT36) -> n.a. | BL29: =IF('[2]MONE(M)CAPARD'!AU36="","",'[2]MONE(M)CAPARD'!AU36) -> n.d. | BM29: =IF('[2]MONE(M)CAPARD'!AV36="","",'[2]MONE(M)CAPARD'!AV36) -> n.d. | BN29: =IF('[2]MONE(M)CAPARD'!AW36="","",'[2]MONE(M)CAPARD'!AW36) -> n.a. | BO29: =IF('[2]MONE(M)CAPARD'!AX36="","",'[2]MONE(M)CAPARD'!AX36) -> n.d. | BP29: =IF('[2]MONE(M)CAPARD'!AY36="","",'[2]MONE(M)CAPARD'!AY36) -> n.a. | BQ29: =IF('[2]FISCAL(M)'!$K36="","",'[2]FISCAL(M)'!$K36) -> n.d. | BR29: =IF('[2]FISCAL(M)'!$L36="","",'[2]FISCAL(M)'!$L36) -> n.d. | BS29: =IF('[2]FISCAL(M)'!$AY36="","",'[2]FISCAL(M)'!$AY36) -> n.d. | BT29: =IF('[2]FISCAL(M)'!$BI36="","",'[2]FISCAL(M)'!$BI36) -> n.d. | BU29: =IF('[2]FISCAL(M)'!$BS36="","",'[2]FISCAL(M)'!$BS36) -> n.d. | BV29: =IF('[2]FISCAL(M)'!$AZ36="","",'[2]FISCAL(M)'!$AZ36) -> n.d. | BW29: =IF('[2]FISCAL(M)'!$BJ36="","",'[2]FISCAL(M)'!$BJ36) -> n.d. | BX29: =IF('[2]FISCAL(M)'!$BT36="","",'[2]FISCAL(M)'!$BT36) -> n.d. | BY29: =IF('[3]MONE(M)'!$AO36="","",'[3]MONE(M)'!$AO36) -> n.d. | BZ29: =IF('[4]MONE(M)'!$AO36="","",'[4]MONE(M)'!$AO36) -> n.d. | CA29: =IF('[5]MONE(M)'!$AO36="","",'[5]MONE(M)'!$AO36) -> n.d. | CB29: =+'[1]MONE(M)'!$AO36 -> n.d. | CC29: =IF('[6]MONE(M)'!$AO36="","",'[6]MONE(M)'!$AO36) -> n.d. | CD29: =IF('[7]MONE(M)'!$AO36="","",'[7]MONE(M)'!$AO36) -> n.d. | CE29: =IF('[8]MONE(M)'!$AO36="","",'[8]MONE(M)'!$AO36) -> n.d. | CF29: n.d. | CG29: n.d. | CH29: n.d. | CI29: n.d. | CJ29: n.d. | CK29: n.d. | CL29: n.d. | CM29: =IF('[2]FISCAL(M)'!$K36="","",'[2]FISCAL(M)'!$K36) -> n.d. | CN29: n.d. | CO29: n.d. | CP29: =IF('[2]FISCAL(M)'!$L36="","",'[2]FISCAL(M)'!$L36) -> n.d. | CQ29: n.d. | CR29: n.d. | CS29: n.d. | CT29: n.d. | CU29: n.d. | CV29: n.d. | CW29: n.d. | CX29: n.d. | CY29: n.d. | CZ29: n.d. | DA29: n.d. | DB29: n.d. | DC29: n.d. | DD29: n.d. | DE29: n.d. | DF29: n.d. | DG29: n.d. | DH29: n.d.
A30: 1992 | B30: abril | C30: 1992-abril | D30: =IF('[2]REAL IPC(M)'!$AL37="","",+'[2]REAL IPC(M)'!$AL37) -> n.d. | E30: =IF('[2]REAL IPC(M)'!$BE37="","",+'[2]REAL IPC(M)'!$BE37) -> n.d. | F30: =IF('[2]REAL IPC(M)'!$AM37="","",+'[2]REAL IPC(M)'!$AM37) -> n.d. | G30: =IF('[2]REAL IPC(M)'!$BI37="","",+'[2]REAL IPC(M)'!$BI37) -> n.d. | H30: =IF('[2]REAL IMAE(M)'!BJ37="","",'[2]REAL IMAE(M)'!BJ37) -> n.d. | I30: =IF('[2]REAL IMAE(M)'!BK37="","",'[2]REAL IMAE(M)'!BK37) -> n.d. | J30: =IF('[2]REAL IMAE(M)'!BN37="","",'[2]REAL IMAE(M)'!BN37) -> n.d. | K30: =IF('[2]REAL IMAE(M)'!BO37="","",'[2]REAL IMAE(M)'!BO37) -> n.d. | L30: =IF('[2]EXT RIN(M)'!$K37="","",'[2]EXT RIN(M)'!$K37) -> n.d. | N30: =IF('[2]EXT RIN(M)'!$L37="","",'[2]EXT RIN(M)'!$L37) -> n.d. | P30: =IF('[2]MONE(M)CARD'!EG37="","",'[2]MONE(M)CARD'!EG37) -> n.d. | Q30: =IF('[2]MONE(M)CARD'!EK37="","",'[2]MONE(M)CARD'!EK37) -> n.d. | R30: =IF('[2]MONE(M)CARD'!EP37="","",'[2]MONE(M)CARD'!EP37) -> n.d. | S30: =IF('[2]MONE(M)CARD'!ES37="","",'[2]MONE(M)CARD'!ES37) -> n.d. | T30: =IF('[2]MONE(M)CARD'!EV37="","",'[2]MONE(M)CARD'!EV37) -> n.d. | U30: =IF('[2]MONE(M)CARD'!EZ37="","",'[2]MONE(M)CARD'!EZ37) -> n.d. | V30: =IF('[2]MONE(M)CAPARD'!FC37="","",'[2]MONE(M)CAPARD'!FC37) -> n.d. | W30: =IF('[2]MONE(M)CAPARD'!FG37="","",'[2]MONE(M)CAPARD'!FG37) -> n.d. | X30: =IF('[2]MONE(M)CAPARD'!FL37="","",'[2]MONE(M)CAPARD'!FL37) -> n.d. | Y30: =IF('[2]MONE(M)CAPARD'!FO37="","",'[2]MONE(M)CAPARD'!FO37) -> n.d. | Z30: =IF('[2]MONE(M)CAPARD'!FR37="","",'[2]MONE(M)CAPARD'!FR37) -> n.d. | AA30: =IF('[2]MONE(M)CAPARD'!FV37="","",'[2]MONE(M)CAPARD'!FV37) -> n.d. | AB30: =IF('[2]MONE(M)CARD'!FV37="","",'[2]MONE(M)CARD'!FV37) ->  | AC30: =IF('[2]MONE(M)CARD'!GD37="","",'[2]MONE(M)CARD'!GD37) -> n.d. | AD30: =IF('[2]MONE(M)CARD'!GE37="","",'[2]MONE(M)CARD'!GE37) -> n.d. | AE30: n.d. | AF30: n.d. | AG30: n.d. | AH30: n.d. | AI30: n.d. | AJ30: n.d. | AK30: n.d. | AL30: n.d. | AN30: n.d. | AO30: n.d. | AP30: n.d. | AQ30: n.d. | AR30: n.d. | AS30: =IF('[2]MONE(M)CAPARD'!GS37="","",'[2]MONE(M)CAPARD'!GS37) -> n.d. | AT30: =IF('[2]MONE(M)CARD'!HA37="","",'[2]MONE(M)CAPARD'!HA37) -> n.d. | AU30: =IF('[2]MONE(M)CAPARD'!HB37="","",'[2]MONE(M)CAPARD'!HB37) -> n.d. | AV30: n.d. | AW30: n.d. | AX30: n.d. | AY30: n.d. | AZ30: n.d. | BA30: n.d. | BB30: n.d. | BC30: n.d. | BD30: n.d. | BE30: n.d. | BF30: n.d. | BG30: n.d. | BH30: n.d. | BI30: n.d. | BJ30: =IF('[2]MONE(M)CAPARD'!AS37="","",'[2]MONE(M)CAPARD'!AS37) -> n.d. | BK30: =IF('[2]MONE(M)CAPARD'!AT37="","",'[2]MONE(M)CAPARD'!AT37) -> n.a. | BL30: =IF('[2]MONE(M)CAPARD'!AU37="","",'[2]MONE(M)CAPARD'!AU37) -> n.d. | BM30: =IF('[2]MONE(M)CAPARD'!AV37="","",'[2]MONE(M)CAPARD'!AV37) -> n.d. | BN30: =IF('[2]MONE(M)CAPARD'!AW37="","",'[2]MONE(M)CAPARD'!AW37) -> n.a. | BO30: =IF('[2]MONE(M)CAPARD'!AX37="","",'[2]MONE(M)CAPARD'!AX37) -> n.d. | BP30: =IF('[2]MONE(M)CAPARD'!AY37="","",'[2]MONE(M)CAPARD'!AY37) -> n.a. | BQ30: =IF('[2]FISCAL(M)'!$K37="","",'[2]FISCAL(M)'!$K37) -> n.d. | BR30: =IF('[2]FISCAL(M)'!$L37="","",'[2]FISCAL(M)'!$L37) -> n.d. | BS30: =IF('[2]FISCAL(M)'!$AY37="","",'[2]FISCAL(M)'!$AY37) -> n.d. | BT30: =IF('[2]FISCAL(M)'!$BI37="","",'[2]FISCAL(M)'!$BI37) -> n.d. | BU30: =IF('[2]FISCAL(M)'!$BS37="","",'[2]FISCAL(M)'!$BS37) -> n.d. | BV30: =IF('[2]FISCAL(M)'!$AZ37="","",'[2]FISCAL(M)'!$AZ37) -> n.d. | BW30: =IF('[2]FISCAL(M)'!$BJ37="","",'[2]FISCAL(M)'!$BJ37) -> n.d. | BX30: =IF('[2]FISCAL(M)'!$BT37="","",'[2]FISCAL(M)'!$BT37) -> n.d. | BY30: =IF('[3]MONE(M)'!$AO37="","",'[3]MONE(M)'!$AO37) -> n.d. | BZ30: =IF('[4]MONE(M)'!$AO37="","",'[4]MONE(M)'!$AO37) -> n.d. | CA30: =IF('[5]MONE(M)'!$AO37="","",'[5]MONE(M)'!$AO37) -> n.d. | CB30: =+'[1]MONE(M)'!$AO37 -> n.d. | CC30: =IF('[6]MONE(M)'!$AO37="","",'[6]MONE(M)'!$AO37) -> n.d. | CD30: =IF('[7]MONE(M)'!$AO37="","",'[7]MONE(M)'!$AO37) -> n.d. | CE30: =IF('[8]MONE(M)'!$AO37="","",'[8]MONE(M)'!$AO37) -> n.d. | CF30: n.d. | CG30: n.d. | CH30: n.d. | CI30: n.d. | CJ30: n.d. | CK30: n.d. | CL30: n.d. | CM30: =IF('[2]FISCAL(M)'!$K37="","",'[2]FISCAL(M)'!$K37) -> n.d. | CN30: n.d. | CO30: n.d. | CP30: =IF('[2]FISCAL(M)'!$L37="","",'[2]FISCAL(M)'!$L37) -> n.d. | CQ30: n.d. | CR30: n.d. | CS30: n.d. | CT30: n.d. | CU30: n.d. | CV30: n.d. | CW30: n.d. | CX30: n.d. | CY30: n.d. | CZ30: n.d. | DA30: n.d. | DB30: n.d. | DC30: n.d. | DD30: n.d. | DE30: n.d. | DF30: n.d. | DG30: n.d. | DH30: n.d.
A31: 1992 | B31: mayo | C31: 1992-mayo | D31: =IF('[2]REAL IPC(M)'!$AL38="","",+'[2]REAL IPC(M)'!$AL38) -> n.d. | E31: =IF('[2]REAL IPC(M)'!$BE38="","",+'[2]REAL IPC(M)'!$BE38) -> n.d. | F31: =IF('[2]REAL IPC(M)'!$AM38="","",+'[2]REAL IPC(M)'!$AM38) -> n.d. | G31: =IF('[2]REAL IPC(M)'!$BI38="","",+'[2]REAL IPC(M)'!$BI38) -> n.d. | H31: =IF('[2]REAL IMAE(M)'!BJ38="","",'[2]REAL IMAE(M)'!BJ38) -> n.d. | I31: =IF('[2]REAL IMAE(M)'!BK38="","",'[2]REAL IMAE(M)'!BK38) -> n.d. | J31: =IF('[2]REAL IMAE(M)'!BN38="","",'[2]REAL IMAE(M)'!BN38) -> n.d. | K31: =IF('[2]REAL IMAE(M)'!BO38="","",'[2]REAL IMAE(M)'!BO38) -> n.d. | L31: =IF('[2]EXT RIN(M)'!$K38="","",'[2]EXT RIN(M)'!$K38) -> n.d. | N31: =IF('[2]EXT RIN(M)'!$L38="","",'[2]EXT RIN(M)'!$L38) -> n.d. | P31: =IF('[2]MONE(M)CARD'!EG38="","",'[2]MONE(M)CARD'!EG38) -> n.d. | Q31: =IF('[2]MONE(M)CARD'!EK38="","",'[2]MONE(M)CARD'!EK38) -> n.d. | R31: =IF('[2]MONE(M)CARD'!EP38="","",'[2]MONE(M)CARD'!EP38) -> n.d. | S31: =IF('[2]MONE(M)CARD'!ES38="","",'[2]MONE(M)CARD'!ES38) -> n.d. | T31: =IF('[2]MONE(M)CARD'!EV38="","",'[2]MONE(M)CARD'!EV38) -> n.d. | U31: =IF('[2]MONE(M)CARD'!EZ38="","",'[2]MONE(M)CARD'!EZ38) -> n.d. | V31: =IF('[2]MONE(M)CAPARD'!FC38="","",'[2]MONE(M)CAPARD'!FC38) -> n.d. | W31: =IF('[2]MONE(M)CAPARD'!FG38="","",'[2]MONE(M)CAPARD'!FG38) -> n.d. | X31: =IF('[2]MONE(M)CAPARD'!FL38="","",'[2]MONE(M)CAPARD'!FL38) -> n.d. | Y31: =IF('[2]MONE(M)CAPARD'!FO38="","",'[2]MONE(M)CAPARD'!FO38) -> n.d. | Z31: =IF('[2]MONE(M)CAPARD'!FR38="","",'[2]MONE(M)CAPARD'!FR38) -> n.d. | AA31: =IF('[2]MONE(M)CAPARD'!FV38="","",'[2]MONE(M)CAPARD'!FV38) -> n.d. | AB31: =IF('[2]MONE(M)CARD'!FV38="","",'[2]MONE(M)CARD'!FV38) ->  | AC31: =IF('[2]MONE(M)CARD'!GD38="","",'[2]MONE(M)CARD'!GD38) -> n.d. | AD31: =IF('[2]MONE(M)CARD'!GE38="","",'[2]MONE(M)CARD'!GE38) -> n.d. | AE31: n.d. | AF31: n.d. | AG31: n.d. | AH31: n.d. | AI31: n.d. | AJ31: n.d. | AK31: n.d. | AL31: n.d. | AN31: n.d. | AO31: n.d. | AP31: n.d. | AQ31: n.d. | AR31: n.d. | AS31: =IF('[2]MONE(M)CAPARD'!GS38="","",'[2]MONE(M)CAPARD'!GS38) -> n.d. | AT31: =IF('[2]MONE(M)CARD'!HA38="","",'[2]MONE(M)CAPARD'!HA38) -> n.d. | AU31: =IF('[2]MONE(M)CAPARD'!HB38="","",'[2]MONE(M)CAPARD'!HB38) -> n.d. | AV31: n.d. | AW31: n.d. | AX31: n.d. | AY31: n.d. | AZ31: n.d. | BA31: n.d. | BB31: n.d. | BC31: n.d. | BD31: n.d. | BE31: n.d. | BF31: n.d. | BG31: n.d. | BH31: n.d. | BI31: n.d. | BJ31: =IF('[2]MONE(M)CAPARD'!AS38="","",'[2]MONE(M)CAPARD'!AS38) -> n.d. | BK31: =IF('[2]MONE(M)CAPARD'!AT38="","",'[2]MONE(M)CAPARD'!AT38) -> n.a. | BL31: =IF('[2]MONE(M)CAPARD'!AU38="","",'[2]MONE(M)CAPARD'!AU38) -> n.d. | BM31: =IF('[2]MONE(M)CAPARD'!AV38="","",'[2]MONE(M)CAPARD'!AV38) -> n.d. | BN31: =IF('[2]MONE(M)CAPARD'!AW38="","",'[2]MONE(M)CAPARD'!AW38) -> n.a. | BO31: =IF('[2]MONE(M)CAPARD'!AX38="","",'[2]MONE(M)CAPARD'!AX38) -> n.d. | BP31: =IF('[2]MONE(M)CAPARD'!AY38="","",'[2]MONE(M)CAPARD'!AY38) -> n.a. | BQ31: =IF('[2]FISCAL(M)'!$K38="","",'[2]FISCAL(M)'!$K38) -> n.d. | BR31: =IF('[2]FISCAL(M)'!$L38="","",'[2]FISCAL(M)'!$L38) -> n.d. | BS31: =IF('[2]FISCAL(M)'!$AY38="","",'[2]FISCAL(M)'!$AY38) -> n.d. | BT31: =IF('[2]FISCAL(M)'!$BI38="","",'[2]FISCAL(M)'!$BI38) -> n.d. | BU31: =IF('[2]FISCAL(M)'!$BS38="","",'[2]FISCAL(M)'!$BS38) -> n.d. | BV31: =IF('[2]FISCAL(M)'!$AZ38="","",'[2]FISCAL(M)'!$AZ38) -> n.d. | BW31: =IF('[2]FISCAL(M)'!$BJ38="","",'[2]FISCAL(M)'!$BJ38) -> n.d. | BX31: =IF('[2]FISCAL(M)'!$BT38="","",'[2]FISCAL(M)'!$BT38) -> n.d. | BY31: =IF('[3]MONE(M)'!$AO38="","",'[3]MONE(M)'!$AO38) -> n.d. | BZ31: =IF('[4]MONE(M)'!$AO38="","",'[4]MONE(M)'!$AO38) -> n.d. | CA31: =IF('[5]MONE(M)'!$AO38="","",'[5]MONE(M)'!$AO38) -> n.d. | CB31: =+'[1]MONE(M)'!$AO38 -> n.d. | CC31: =IF('[6]MONE(M)'!$AO38="","",'[6]MONE(M)'!$AO38) -> n.d. | CD31: =IF('[7]MONE(M)'!$AO38="","",'[7]MONE(M)'!$AO38) -> n.d. | CE31: =IF('[8]MONE(M)'!$AO38="","",'[8]MONE(M)'!$AO38) -> n.d. | CF31: n.d. | CG31: n.d. | CH31: n.d. | CI31: n.d. | CJ31: n.d. | CK31: n.d. | CL31: n.d. | CM31: =IF('[2]FISCAL(M)'!$K38="","",'[2]FISCAL(M)'!$K38) -> n.d. | CN31: n.d. | CO31: n.d. | CP31: =IF('[2]FISCAL(M)'!$L38="","",'[2]FISCAL(M)'!$L38) -> n.d. | CQ31: n.d. | CR31: n.d. | CS31: n.d. | CT31: n.d. | CU31: n.d. | CV31: n.d. | CW31: n.d. | CX31: n.d. | CY31: n.d. | CZ31: n.d. | DA31: n.d. | DB31: n.d. | DC31: n.d. | DD31: n.d. | DE31: n.d. | DF31: n.d. | DG31: n.d. | DH31: n.d.
A32: 1992 | B32: junio | C32: 1992-junio | D32: =IF('[2]REAL IPC(M)'!$AL39="","",+'[2]REAL IPC(M)'!$AL39) -> n.d. | E32: =IF('[2]REAL IPC(M)'!$BE39="","",+'[2]REAL IPC(M)'!$BE39) -> n.d. | F32: =IF('[2]REAL IPC(M)'!$AM39="","",+'[2]REAL IPC(M)'!$AM39) -> n.d. | G32: =IF('[2]REAL IPC(M)'!$BI39="","",+'[2]REAL IPC(M)'!$BI39) -> n.d. | H32: =IF('[2]REAL IMAE(M)'!BJ39="","",'[2]REAL IMAE(M)'!BJ39) -> n.d. | I32: =IF('[2]REAL IMAE(M)'!BK39="","",'[2]REAL IMAE(M)'!BK39) -> n.d. | J32: =IF('[2]REAL IMAE(M)'!BN39="","",'[2]REAL IMAE(M)'!BN39) -> n.d. | K32: =IF('[2]REAL IMAE(M)'!BO39="","",'[2]REAL IMAE(M)'!BO39) -> n.d. | L32: =IF('[2]EXT RIN(M)'!$K39="","",'[2]EXT RIN(M)'!$K39) -> n.d. | N32: =IF('[2]EXT RIN(M)'!$L39="","",'[2]EXT RIN(M)'!$L39) -> n.d. | P32: =IF('[2]MONE(M)CARD'!EG39="","",'[2]MONE(M)CARD'!EG39) -> n.d. | Q32: =IF('[2]MONE(M)CARD'!EK39="","",'[2]MONE(M)CARD'!EK39) -> n.d. | R32: =IF('[2]MONE(M)CARD'!EP39="","",'[2]MONE(M)CARD'!EP39) -> n.d. | S32: =IF('[2]MONE(M)CARD'!ES39="","",'[2]MONE(M)CARD'!ES39) -> n.d. | T32: =IF('[2]MONE(M)CARD'!EV39="","",'[2]MONE(M)CARD'!EV39) -> n.d. | U32: =IF('[2]MONE(M)CARD'!EZ39="","",'[2]MONE(M)CARD'!EZ39) -> n.d. | V32: =IF('[2]MONE(M)CAPARD'!FC39="","",'[2]MONE(M)CAPARD'!FC39) -> n.d. | W32: =IF('[2]MONE(M)CAPARD'!FG39="","",'[2]MONE(M)CAPARD'!FG39) -> n.d. | X32: =IF('[2]MONE(M)CAPARD'!FL39="","",'[2]MONE(M)CAPARD'!FL39) -> n.d. | Y32: =IF('[2]MONE(M)CAPARD'!FO39="","",'[2]MONE(M)CAPARD'!FO39) -> n.d. | Z32: =IF('[2]MONE(M)CAPARD'!FR39="","",'[2]MONE(M)CAPARD'!FR39) -> n.d. | AA32: =IF('[2]MONE(M)CAPARD'!FV39="","",'[2]MONE(M)CAPARD'!FV39) -> n.d. | AB32: =IF('[2]MONE(M)CARD'!FV39="","",'[2]MONE(M)CARD'!FV39) ->  | AC32: =IF('[2]MONE(M)CARD'!GD39="","",'[2]MONE(M)CARD'!GD39) -> n.d. | AD32: =IF('[2]MONE(M)CARD'!GE39="","",'[2]MONE(M)CARD'!GE39) -> n.d. | AE32: n.d. | AF32: n.d. | AG32: n.d. | AH32: n.d. | AI32: n.d. | AJ32: n.d. | AK32: n.d. | AL32: n.d. | AN32: n.d. | AO32: n.d. | AP32: n.d. | AQ32: n.d. | AR32: n.d. | AS32: =IF('[2]MONE(M)CAPARD'!GS39="","",'[2]MONE(M)CAPARD'!GS39) -> n.d. | AT32: =IF('[2]MONE(M)CARD'!HA39="","",'[2]MONE(M)CAPARD'!HA39) -> n.d. | AU32: =IF('[2]MONE(M)CAPARD'!HB39="","",'[2]MONE(M)CAPARD'!HB39) -> n.d. | AV32: n.d. | AW32: n.d. | AX32: n.d. | AY32: n.d. | AZ32: n.d. | BA32: n.d. | BB32: n.d. | BC32: n.d. | BD32: n.d. | BE32: n.d. | BF32: n.d. | BG32: n.d. | BH32: n.d. | BI32: n.d. | BJ32: =IF('[2]MONE(M)CAPARD'!AS39="","",'[2]MONE(M)CAPARD'!AS39) -> n.d. | BK32: =IF('[2]MONE(M)CAPARD'!AT39="","",'[2]MONE(M)CAPARD'!AT39) -> n.a. | BL32: =IF('[2]MONE(M)CAPARD'!AU39="","",'[2]MONE(M)CAPARD'!AU39) -> n.d. | BM32: =IF('[2]MONE(M)CAPARD'!AV39="","",'[2]MONE(M)CAPARD'!AV39) -> n.d. | BN32: =IF('[2]MONE(M)CAPARD'!AW39="","",'[2]MONE(M)CAPARD'!AW39) -> n.a. | BO32: =IF('[2]MONE(M)CAPARD'!AX39="","",'[2]MONE(M)CAPARD'!AX39) -> n.d. | BP32: =IF('[2]MONE(M)CAPARD'!AY39="","",'[2]MONE(M)CAPARD'!AY39) -> n.a. | BQ32: =IF('[2]FISCAL(M)'!$K39="","",'[2]FISCAL(M)'!$K39) -> n.d. | BR32: =IF('[2]FISCAL(M)'!$L39="","",'[2]FISCAL(M)'!$L39) -> n.d. | BS32: =IF('[2]FISCAL(M)'!$AY39="","",'[2]FISCAL(M)'!$AY39) -> n.d. | BT32: =IF('[2]FISCAL(M)'!$BI39="","",'[2]FISCAL(M)'!$BI39) -> n.d. | BU32: =IF('[2]FISCAL(M)'!$BS39="","",'[2]FISCAL(M)'!$BS39) -> n.d. | BV32: =IF('[2]FISCAL(M)'!$AZ39="","",'[2]FISCAL(M)'!$AZ39) -> n.d. | BW32: =IF('[2]FISCAL(M)'!$BJ39="","",'[2]FISCAL(M)'!$BJ39) -> n.d. | BX32: =IF('[2]FISCAL(M)'!$BT39="","",'[2]FISCAL(M)'!$BT39) -> n.d. | BY32: =IF('[3]MONE(M)'!$AO39="","",'[3]MONE(M)'!$AO39) -> n.d. | BZ32: =IF('[4]MONE(M)'!$AO39="","",'[4]MONE(M)'!$AO39) -> n.d. | CA32: =IF('[5]MONE(M)'!$AO39="","",'[5]MONE(M)'!$AO39) -> n.d. | CB32: =+'[1]MONE(M)'!$AO39 -> n.d. | CC32: =IF('[6]MONE(M)'!$AO39="","",'[6]MONE(M)'!$AO39) -> n.d. | CD32: =IF('[7]MONE(M)'!$AO39="","",'[7]MONE(M)'!$AO39) -> n.d. | CE32: =IF('[8]MONE(M)'!$AO39="","",'[8]MONE(M)'!$AO39) -> n.d. | CF32: n.d. | CG32: n.d. | CH32: n.d. | CI32: n.d. | CJ32: n.d. | CK32: n.d. | CL32: n.d. | CM32: =IF('[2]FISCAL(M)'!$K39="","",'[2]FISCAL(M)'!$K39) -> n.d. | CN32: n.d. | CO32: n.d. | CP32: =IF('[2]FISCAL(M)'!$L39="","",'[2]FISCAL(M)'!$L39) -> n.d. | CQ32: n.d. | CR32: n.d. | CS32: n.d. | CT32: n.d. | CU32: n.d. | CV32: n.d. | CW32: n.d. | CX32: n.d. | CY32: n.d. | CZ32: n.d. | DA32: n.d. | DB32: n.d. | DC32: n.d. | DD32: n.d. | DE32: n.d. | DF32: n.d. | DG32: n.d. | DH32: n.d.
A33: 1992 | B33: julio | C33: 1992-julio | D33: =IF('[2]REAL IPC(M)'!$AL40="","",+'[2]REAL IPC(M)'!$AL40) -> n.d. | E33: =IF('[2]REAL IPC(M)'!$BE40="","",+'[2]REAL IPC(M)'!$BE40) -> n.d. | F33: =IF('[2]REAL IPC(M)'!$AM40="","",+'[2]REAL IPC(M)'!$AM40) -> n.d. | G33: =IF('[2]REAL IPC(M)'!$BI40="","",+'[2]REAL IPC(M)'!$BI40) -> n.d. | H33: =IF('[2]REAL IMAE(M)'!BJ40="","",'[2]REAL IMAE(M)'!BJ40) -> n.d. | I33: =IF('[2]REAL IMAE(M)'!BK40="","",'[2]REAL IMAE(M)'!BK40) -> n.d. | J33: =IF('[2]REAL IMAE(M)'!BN40="","",'[2]REAL IMAE(M)'!BN40) -> n.d. | K33: =IF('[2]REAL IMAE(M)'!BO40="","",'[2]REAL IMAE(M)'!BO40) -> n.d. | L33: =IF('[2]EXT RIN(M)'!$K40="","",'[2]EXT RIN(M)'!$K40) -> n.d. | N33: =IF('[2]EXT RIN(M)'!$L40="","",'[2]EXT RIN(M)'!$L40) -> n.d. | P33: =IF('[2]MONE(M)CARD'!EG40="","",'[2]MONE(M)CARD'!EG40) -> n.d. | Q33: =IF('[2]MONE(M)CARD'!EK40="","",'[2]MONE(M)CARD'!EK40) -> n.d. | R33: =IF('[2]MONE(M)CARD'!EP40="","",'[2]MONE(M)CARD'!EP40) -> n.d. | S33: =IF('[2]MONE(M)CARD'!ES40="","",'[2]MONE(M)CARD'!ES40) -> n.d. | T33: =IF('[2]MONE(M)CARD'!EV40="","",'[2]MONE(M)CARD'!EV40) -> n.d. | U33: =IF('[2]MONE(M)CARD'!EZ40="","",'[2]MONE(M)CARD'!EZ40) -> n.d. | V33: =IF('[2]MONE(M)CAPARD'!FC40="","",'[2]MONE(M)CAPARD'!FC40) -> n.d. | W33: =IF('[2]MONE(M)CAPARD'!FG40="","",'[2]MONE(M)CAPARD'!FG40) -> n.d. | X33: =IF('[2]MONE(M)CAPARD'!FL40="","",'[2]MONE(M)CAPARD'!FL40) -> n.d. | Y33: =IF('[2]MONE(M)CAPARD'!FO40="","",'[2]MONE(M)CAPARD'!FO40) -> n.d. | Z33: =IF('[2]MONE(M)CAPARD'!FR40="","",'[2]MONE(M)CAPARD'!FR40) -> n.d. | AA33: =IF('[2]MONE(M)CAPARD'!FV40="","",'[2]MONE(M)CAPARD'!FV40) -> n.d. | AB33: =IF('[2]MONE(M)CARD'!FV40="","",'[2]MONE(M)CARD'!FV40) ->  | AC33: =IF('[2]MONE(M)CARD'!GD40="","",'[2]MONE(M)CARD'!GD40) -> n.d. | AD33: =IF('[2]MONE(M)CARD'!GE40="","",'[2]MONE(M)CARD'!GE40) -> n.d. | AE33: n.d. | AF33: n.d. | AG33: n.d. | AH33: n.d. | AI33: n.d. | AJ33: n.d. | AK33: n.d. | AL33: n.d. | AN33: n.d. | AO33: n.d. | AP33: n.d. | AQ33: n.d. | AR33: n.d. | AS33: =IF('[2]MONE(M)CAPARD'!GS40="","",'[2]MONE(M)CAPARD'!GS40) -> n.d. | AT33: =IF('[2]MONE(M)CARD'!HA40="","",'[2]MONE(M)CAPARD'!HA40) -> n.d. | AU33: =IF('[2]MONE(M)CAPARD'!HB40="","",'[2]MONE(M)CAPARD'!HB40) -> n.d. | AV33: n.d. | AW33: n.d. | AX33: n.d. | AY33: n.d. | AZ33: n.d. | BA33: n.d. | BB33: n.d. | BC33: n.d. | BD33: n.d. | BE33: n.d. | BF33: n.d. | BG33: n.d. | BH33: n.d. | BI33: n.d. | BJ33: =IF('[2]MONE(M)CAPARD'!AS40="","",'[2]MONE(M)CAPARD'!AS40) -> n.d. | BK33: =IF('[2]MONE(M)CAPARD'!AT40="","",'[2]MONE(M)CAPARD'!AT40) -> n.a. | BL33: =IF('[2]MONE(M)CAPARD'!AU40="","",'[2]MONE(M)CAPARD'!AU40) -> n.d. | BM33: =IF('[2]MONE(M)CAPARD'!AV40="","",'[2]MONE(M)CAPARD'!AV40) -> n.d. | BN33: =IF('[2]MONE(M)CAPARD'!AW40="","",'[2]MONE(M)CAPARD'!AW40) -> n.a. | BO33: =IF('[2]MONE(M)CAPARD'!AX40="","",'[2]MONE(M)CAPARD'!AX40) -> n.d. | BP33: =IF('[2]MONE(M)CAPARD'!AY40="","",'[2]MONE(M)CAPARD'!AY40) -> n.a. | BQ33: =IF('[2]FISCAL(M)'!$K40="","",'[2]FISCAL(M)'!$K40) -> n.d. | BR33: =IF('[2]FISCAL(M)'!$L40="","",'[2]FISCAL(M)'!$L40) -> n.d. | BS33: =IF('[2]FISCAL(M)'!$AY40="","",'[2]FISCAL(M)'!$AY40) -> n.d. | BT33: =IF('[2]FISCAL(M)'!$BI40="","",'[2]FISCAL(M)'!$BI40) -> n.d. | BU33: =IF('[2]FISCAL(M)'!$BS40="","",'[2]FISCAL(M)'!$BS40) -> n.d. | BV33: =IF('[2]FISCAL(M)'!$AZ40="","",'[2]FISCAL(M)'!$AZ40) -> n.d. | BW33: =IF('[2]FISCAL(M)'!$BJ40="","",'[2]FISCAL(M)'!$BJ40) -> n.d. | BX33: =IF('[2]FISCAL(M)'!$BT40="","",'[2]FISCAL(M)'!$BT40) -> n.d. | BY33: =IF('[3]MONE(M)'!$AO40="","",'[3]MONE(M)'!$AO40) -> n.d. | BZ33: =IF('[4]MONE(M)'!$AO40="","",'[4]MONE(M)'!$AO40) -> n.d. | CA33: =IF('[5]MONE(M)'!$AO40="","",'[5]MONE(M)'!$AO40) -> n.d. | CB33: =+'[1]MONE(M)'!$AO40 -> n.d. | CC33: =IF('[6]MONE(M)'!$AO40="","",'[6]MONE(M)'!$AO40) -> n.d. | CD33: =IF('[7]MONE(M)'!$AO40="","",'[7]MONE(M)'!$AO40) -> n.d. | CE33: =IF('[8]MONE(M)'!$AO40="","",'[8]MONE(M)'!$AO40) -> n.d. | CF33: n.d. | CG33: n.d. | CH33: n.d. | CI33: n.d. | CJ33: n.d. | CK33: n.d. | CL33: n.d. | CM33: =IF('[2]FISCAL(M)'!$K40="","",'[2]FISCAL(M)'!$K40) -> n.d. | CN33: n.d. | CO33: n.d. | CP33: =IF('[2]FISCAL(M)'!$L40="","",'[2]FISCAL(M)'!$L40) -> n.d. | CQ33: n.d. | CR33: n.d. | CS33: n.d. | CT33: n.d. | CU33: n.d. | CV33: n.d. | CW33: n.d. | CX33: n.d. | CY33: n.d. | CZ33: n.d. | DA33: n.d. | DB33: n.d. | DC33: n.d. | DD33: n.d. | DE33: n.d. | DF33: n.d. | DG33: n.d. | DH33: n.d.
A34: 1992 | B34: agosto | C34: 1992-agosto | D34: =IF('[2]REAL IPC(M)'!$AL41="","",+'[2]REAL IPC(M)'!$AL41) -> n.d. | E34: =IF('[2]REAL IPC(M)'!$BE41="","",+'[2]REAL IPC(M)'!$BE41) -> n.d. | F34: =IF('[2]REAL IPC(M)'!$AM41="","",+'[2]REAL IPC(M)'!$AM41) -> n.d. | G34: =IF('[2]REAL IPC(M)'!$BI41="","",+'[2]REAL IPC(M)'!$BI41) -> n.d. | H34: =IF('[2]REAL IMAE(M)'!BJ41="","",'[2]REAL IMAE(M)'!BJ41) -> n.d. | I34: =IF('[2]REAL IMAE(M)'!BK41="","",'[2]REAL IMAE(M)'!BK41) -> n.d. | J34: =IF('[2]REAL IMAE(M)'!BN41="","",'[2]REAL IMAE(M)'!BN41) -> n.d. | K34: =IF('[2]REAL IMAE(M)'!BO41="","",'[2]REAL IMAE(M)'!BO41) -> n.d. | L34: =IF('[2]EXT RIN(M)'!$K41="","",'[2]EXT RIN(M)'!$K41) -> n.d. | N34: =IF('[2]EXT RIN(M)'!$L41="","",'[2]EXT RIN(M)'!$L41) -> n.d. | P34: =IF('[2]MONE(M)CARD'!EG41="","",'[2]MONE(M)CARD'!EG41) -> n.d. | Q34: =IF('[2]MONE(M)CARD'!EK41="","",'[2]MONE(M)CARD'!EK41) -> n.d. | R34: =IF('[2]MONE(M)CARD'!EP41="","",'[2]MONE(M)CARD'!EP41) -> n.d. | S34: =IF('[2]MONE(M)CARD'!ES41="","",'[2]MONE(M)CARD'!ES41) -> n.d. | T34: =IF('[2]MONE(M)CARD'!EV41="","",'[2]MONE(M)CARD'!EV41) -> n.d. | U34: =IF('[2]MONE(M)CARD'!EZ41="","",'[2]MONE(M)CARD'!EZ41) -> n.d. | V34: =IF('[2]MONE(M)CAPARD'!FC41="","",'[2]MONE(M)CAPARD'!FC41) -> n.d. | W34: =IF('[2]MONE(M)CAPARD'!FG41="","",'[2]MONE(M)CAPARD'!FG41) -> n.d. | X34: =IF('[2]MONE(M)CAPARD'!FL41="","",'[2]MONE(M)CAPARD'!FL41) -> n.d. | Y34: =IF('[2]MONE(M)CAPARD'!FO41="","",'[2]MONE(M)CAPARD'!FO41) -> n.d. | Z34: =IF('[2]MONE(M)CAPARD'!FR41="","",'[2]MONE(M)CAPARD'!FR41) -> n.d. | AA34: =IF('[2]MONE(M)CAPARD'!FV41="","",'[2]MONE(M)CAPARD'!FV41) -> n.d. | AB34: =IF('[2]MONE(M)CARD'!FV41="","",'[2]MONE(M)CARD'!FV41) ->  | AC34: =IF('[2]MONE(M)CARD'!GD41="","",'[2]MONE(M)CARD'!GD41) -> n.d. | AD34: =IF('[2]MONE(M)CARD'!GE41="","",'[2]MONE(M)CARD'!GE41) -> n.d. | AE34: n.d. | AF34: n.d. | AG34: n.d. | AH34: n.d. | AI34: n.d. | AJ34: n.d. | AK34: n.d. | AL34: n.d. | AN34: n.d. | AO34: n.d. | AP34: n.d. | AQ34: n.d. | AR34: n.d. | AS34: =IF('[2]MONE(M)CAPARD'!GS41="","",'[2]MONE(M)CAPARD'!GS41) -> n.d. | AT34: =IF('[2]MONE(M)CARD'!HA41="","",'[2]MONE(M)CAPARD'!HA41) -> n.d. | AU34: =IF('[2]MONE(M)CAPARD'!HB41="","",'[2]MONE(M)CAPARD'!HB41) -> n.d. | AV34: n.d. | AW34: n.d. | AX34: n.d. | AY34: n.d. | AZ34: n.d. | BA34: n.d. | BB34: n.d. | BC34: n.d. | BD34: n.d. | BE34: n.d. | BF34: n.d. | BG34: n.d. | BH34: n.d. | BI34: n.d. | BJ34: =IF('[2]MONE(M)CAPARD'!AS41="","",'[2]MONE(M)CAPARD'!AS41) -> n.d. | BK34: =IF('[2]MONE(M)CAPARD'!AT41="","",'[2]MONE(M)CAPARD'!AT41) -> n.a. | BL34: =IF('[2]MONE(M)CAPARD'!AU41="","",'[2]MONE(M)CAPARD'!AU41) -> n.d. | BM34: =IF('[2]MONE(M)CAPARD'!AV41="","",'[2]MONE(M)CAPARD'!AV41) -> n.d. | BN34: =IF('[2]MONE(M)CAPARD'!AW41="","",'[2]MONE(M)CAPARD'!AW41) -> n.a. | BO34: =IF('[2]MONE(M)CAPARD'!AX41="","",'[2]MONE(M)CAPARD'!AX41) -> n.d. | BP34: =IF('[2]MONE(M)CAPARD'!AY41="","",'[2]MONE(M)CAPARD'!AY41) -> n.a. | BQ34: =IF('[2]FISCAL(M)'!$K41="","",'[2]FISCAL(M)'!$K41) -> n.d. | BR34: =IF('[2]FISCAL(M)'!$L41="","",'[2]FISCAL(M)'!$L41) -> n.d. | BS34: =IF('[2]FISCAL(M)'!$AY41="","",'[2]FISCAL(M)'!$AY41) -> n.d. | BT34: =IF('[2]FISCAL(M)'!$BI41="","",'[2]FISCAL(M)'!$BI41) -> n.d. | BU34: =IF('[2]FISCAL(M)'!$BS41="","",'[2]FISCAL(M)'!$BS41) -> n.d. | BV34: =IF('[2]FISCAL(M)'!$AZ41="","",'[2]FISCAL(M)'!$AZ41) -> n.d. | BW34: =IF('[2]FISCAL(M)'!$BJ41="","",'[2]FISCAL(M)'!$BJ41) -> n.d. | BX34: =IF('[2]FISCAL(M)'!$BT41="","",'[2]FISCAL(M)'!$BT41) -> n.d. | BY34: =IF('[3]MONE(M)'!$AO41="","",'[3]MONE(M)'!$AO41) -> n.d. | BZ34: =IF('[4]MONE(M)'!$AO41="","",'[4]MONE(M)'!$AO41) -> n.d. | CA34: =IF('[5]MONE(M)'!$AO41="","",'[5]MONE(M)'!$AO41) -> n.d. | CB34: =+'[1]MONE(M)'!$AO41 -> n.d. | CC34: =IF('[6]MONE(M)'!$AO41="","",'[6]MONE(M)'!$AO41) -> n.d. | CD34: =IF('[7]MONE(M)'!$AO41="","",'[7]MONE(M)'!$AO41) -> n.d. | CE34: =IF('[8]MONE(M)'!$AO41="","",'[8]MONE(M)'!$AO41) -> n.d. | CF34: n.d. | CG34: n.d. | CH34: n.d. | CI34: n.d. | CJ34: n.d. | CK34: n.d. | CL34: n.d. | CM34: =IF('[2]FISCAL(M)'!$K41="","",'[2]FISCAL(M)'!$K41) -> n.d. | CN34: n.d. | CO34: n.d. | CP34: =IF('[2]FISCAL(M)'!$L41="","",'[2]FISCAL(M)'!$L41) -> n.d. | CQ34: n.d. | CR34: n.d. | CS34: n.d. | CT34: n.d. | CU34: n.d. | CV34: n.d. | CW34: n.d. | CX34: n.d. | CY34: n.d. | CZ34: n.d. | DA34: n.d. | DB34: n.d. | DC34: n.d. | DD34: n.d. | DE34: n.d. | DF34: n.d. | DG34: n.d. | DH34: n.d.
A35: 1992 | B35: septiembre | C35: 1992-septiembre | D35: =IF('[2]REAL IPC(M)'!$AL42="","",+'[2]REAL IPC(M)'!$AL42) -> n.d. | E35: =IF('[2]REAL IPC(M)'!$BE42="","",+'[2]REAL IPC(M)'!$BE42) -> n.d. | F35: =IF('[2]REAL IPC(M)'!$AM42="","",+'[2]REAL IPC(M)'!$AM42) -> n.d. | G35: =IF('[2]REAL IPC(M)'!$BI42="","",+'[2]REAL IPC(M)'!$BI42) -> n.d. | H35: =IF('[2]REAL IMAE(M)'!BJ42="","",'[2]REAL IMAE(M)'!BJ42) -> n.d. | I35: =IF('[2]REAL IMAE(M)'!BK42="","",'[2]REAL IMAE(M)'!BK42) -> n.d. | J35: =IF('[2]REAL IMAE(M)'!BN42="","",'[2]REAL IMAE(M)'!BN42) -> n.d. | K35: =IF('[2]REAL IMAE(M)'!BO42="","",'[2]REAL IMAE(M)'!BO42) -> n.d. | L35: =IF('[2]EXT RIN(M)'!$K42="","",'[2]EXT RIN(M)'!$K42) -> n.d. | N35: =IF('[2]EXT RIN(M)'!$L42="","",'[2]EXT RIN(M)'!$L42) -> n.d. | P35: =IF('[2]MONE(M)CARD'!EG42="","",'[2]MONE(M)CARD'!EG42) -> n.d. | Q35: =IF('[2]MONE(M)CARD'!EK42="","",'[2]MONE(M)CARD'!EK42) -> n.d. | R35: =IF('[2]MONE(M)CARD'!EP42="","",'[2]MONE(M)CARD'!EP42) -> n.d. | S35: =IF('[2]MONE(M)CARD'!ES42="","",'[2]MONE(M)CARD'!ES42) -> n.d. | T35: =IF('[2]MONE(M)CARD'!EV42="","",'[2]MONE(M)CARD'!EV42) -> n.d. | U35: =IF('[2]MONE(M)CARD'!EZ42="","",'[2]MONE(M)CARD'!EZ42) -> n.d. | V35: =IF('[2]MONE(M)CAPARD'!FC42="","",'[2]MONE(M)CAPARD'!FC42) -> n.d. | W35: =IF('[2]MONE(M)CAPARD'!FG42="","",'[2]MONE(M)CAPARD'!FG42) -> n.d. | X35: =IF('[2]MONE(M)CAPARD'!FL42="","",'[2]MONE(M)CAPARD'!FL42) -> n.d. | Y35: =IF('[2]MONE(M)CAPARD'!FO42="","",'[2]MONE(M)CAPARD'!FO42) -> n.d. | Z35: =IF('[2]MONE(M)CAPARD'!FR42="","",'[2]MONE(M)CAPARD'!FR42) -> n.d. | AA35: =IF('[2]MONE(M)CAPARD'!FV42="","",'[2]MONE(M)CAPARD'!FV42) -> n.d. | AB35: =IF('[2]MONE(M)CARD'!FV42="","",'[2]MONE(M)CARD'!FV42) ->  | AC35: =IF('[2]MONE(M)CARD'!GD42="","",'[2]MONE(M)CARD'!GD42) -> n.d. | AD35: =IF('[2]MONE(M)CARD'!GE42="","",'[2]MONE(M)CARD'!GE42) -> n.d. | AE35: n.d. | AF35: n.d. | AG35: n.d. | AH35: n.d. | AI35: n.d. | AJ35: n.d. | AK35: n.d. | AL35: n.d. | AN35: n.d. | AO35: n.d. | AP35: n.d. | AQ35: n.d. | AR35: n.d. | AS35: =IF('[2]MONE(M)CAPARD'!GS42="","",'[2]MONE(M)CAPARD'!GS42) -> n.d. | AT35: =IF('[2]MONE(M)CARD'!HA42="","",'[2]MONE(M)CAPARD'!HA42) -> n.d. | AU35: =IF('[2]MONE(M)CAPARD'!HB42="","",'[2]MONE(M)CAPARD'!HB42) -> n.d. | AV35: n.d. | AW35: n.d. | AX35: n.d. | AY35: n.d. | AZ35: n.d. | BA35: n.d. | BB35: n.d. | BC35: n.d. | BD35: n.d. | BE35: n.d. | BF35: n.d. | BG35: n.d. | BH35: n.d. | BI35: n.d. | BJ35: =IF('[2]MONE(M)CAPARD'!AS42="","",'[2]MONE(M)CAPARD'!AS42) -> n.d. | BK35: =IF('[2]MONE(M)CAPARD'!AT42="","",'[2]MONE(M)CAPARD'!AT42) -> n.a. | BL35: =IF('[2]MONE(M)CAPARD'!AU42="","",'[2]MONE(M)CAPARD'!AU42) -> n.d. | BM35: =IF('[2]MONE(M)CAPARD'!AV42="","",'[2]MONE(M)CAPARD'!AV42) -> n.d. | BN35: =IF('[2]MONE(M)CAPARD'!AW42="","",'[2]MONE(M)CAPARD'!AW42) -> n.a. | BO35: =IF('[2]MONE(M)CAPARD'!AX42="","",'[2]MONE(M)CAPARD'!AX42) -> n.d. | BP35: =IF('[2]MONE(M)CAPARD'!AY42="","",'[2]MONE(M)CAPARD'!AY42) -> n.a. | BQ35: =IF('[2]FISCAL(M)'!$K42="","",'[2]FISCAL(M)'!$K42) -> n.d. | BR35: =IF('[2]FISCAL(M)'!$L42="","",'[2]FISCAL(M)'!$L42) -> n.d. | BS35: =IF('[2]FISCAL(M)'!$AY42="","",'[2]FISCAL(M)'!$AY42) -> n.d. | BT35: =IF('[2]FISCAL(M)'!$BI42="","",'[2]FISCAL(M)'!$BI42) -> n.d. | BU35: =IF('[2]FISCAL(M)'!$BS42="","",'[2]FISCAL(M)'!$BS42) -> n.d. | BV35: =IF('[2]FISCAL(M)'!$AZ42="","",'[2]FISCAL(M)'!$AZ42) -> n.d. | BW35: =IF('[2]FISCAL(M)'!$BJ42="","",'[2]FISCAL(M)'!$BJ42) -> n.d. | BX35: =IF('[2]FISCAL(M)'!$BT42="","",'[2]FISCAL(M)'!$BT42) -> n.d. | BY35: =IF('[3]MONE(M)'!$AO42="","",'[3]MONE(M)'!$AO42) -> n.d. | BZ35: =IF('[4]MONE(M)'!$AO42="","",'[4]MONE(M)'!$AO42) -> n.d. | CA35: =IF('[5]MONE(M)'!$AO42="","",'[5]MONE(M)'!$AO42) -> n.d. | CB35: =+'[1]MONE(M)'!$AO42 -> n.d. | CC35: =IF('[6]MONE(M)'!$AO42="","",'[6]MONE(M)'!$AO42) -> n.d. | CD35: =IF('[7]MONE(M)'!$AO42="","",'[7]MONE(M)'!$AO42) -> n.d. | CE35: =IF('[8]MONE(M)'!$AO42="","",'[8]MONE(M)'!$AO42) -> n.d. | CF35: n.d. | CG35: n.d. | CH35: n.d. | CI35: n.d. | CJ35: n.d. | CK35: n.d. | CL35: n.d. | CM35: =IF('[2]FISCAL(M)'!$K42="","",'[2]FISCAL(M)'!$K42) -> n.d. | CN35: n.d. | CO35: n.d. | CP35: =IF('[2]FISCAL(M)'!$L42="","",'[2]FISCAL(M)'!$L42) -> n.d. | CQ35: n.d. | CR35: n.d. | CS35: n.d. | CT35: n.d. | CU35: n.d. | CV35: n.d. | CW35: n.d. | CX35: n.d. | CY35: n.d. | CZ35: n.d. | DA35: n.d. | DB35: n.d. | DC35: n.d. | DD35: n.d. | DE35: n.d. | DF35: n.d. | DG35: n.d. | DH35: n.d.
